Workbook

Sheet Cover
B6: التقرير الاحصائي السنوي عن نشاط قطاع التأمين بدولة الإمارات العربية المتحدة
B7: ANNUAL REPORT FOR THE
B8: .INSURANCE SECTOR OF THE U.A.E
B9: 2022
B11: جدول رقم | I11: Table
B12: 1 | C12: تطور نشاط قطاع التأمين | H12: Insurance Sector Developments | I12: 1
B13: 1A | C13: اجمالي الأقساط المكتتبة لتأمين الممتلكات والمسؤوليات والتأمين على الأشخاص وتكوين الأموال وفقاً لشركات التأمين الوطنية وشركات التأمين الأجنبية. | H13: Gross Written Premium - Non-Life / Life - National vs Foreign | I13: 1A
B14: 1B | C14: اجمالي الأقساط المكتتبة لتأمين الممتلكات والمسؤوليات والتأمين على الأشخاص وتكوين الأموال وفقا لشركات التأمين التقليدي الوطنية وشركات التأمين التكافلي. | H14: Gross Written Premium - Non-Life / Life - National Traditional vs Takaful | I14: 1B
B15: 1C | C15: اجمالي الأقساط المكتتبة لتأمين الممتلكات والمسؤوليات والتأمين على الأشخاص وتكوين الأموال للشركات الوطنية والشركات الأجنبية خلال عشر سنوات. | H15: Gross Written Premium - Non-Life / Life - National vs Foreign | I15: 1C
B16: 2A | C16: اجمالي الأقساط المكتتبة وفقا لشركات التأمين الوطنية وشركات التأمين الاجنبية ووفقا لكل فرع من فروع التأمين. | H16: GWP by LOB - National vs Foreign | I16: 2A
B17: 2B | C17: اجمالي الأقساط المكتتبة وفقا لشركات التأمين التقليدي الوطنية وشركات التأمين التكافلي ووفقا لكل فرع من فروع التأمين. | H17: GWP by LOB - National Traditional vs Takaful | I17: 2B
B18: 2C | C18: اجمالي الأقساط المكتتبة لشركات التامين على الأشخاص وتكوين الأموال وشركات تامين الممتلكات والمسؤوليات والشركات التي تمارس النوعين معا. | H18: GWP by LOB - Life, Non-Life & Composite | I18: 2C
B19: 3A | C19: صافي الأقساط المكتتبة وفقا لشركات التأمين الوطنية والأجنبية. | H19: NWP by LOB - National vs Foreign | I19: 3A
B20: 3B | C20: صافي الأقساط المكتتبة وفقا لشركات التأمين التقليدي الوطنية وشركات التأمين التكافلي الوطنية. | H20: NWP by LOB - National Traditional vs Takaful | I20: 3B
B21: 4A | C21: نسبة الأقساط المحتفظ بها وفقا لشركات التأمين الوطنية وشركات التأمين الأجنبية. | H21: Premium Retention by LOB - National vs Foreign | I21: 4A
B22: 4B | C22: نسبة الأقساط المحتفظ بها وفقا لشركات التأمين التقليدي الوطنية وشركات التأمين التكافلي الوطنية. | H22: Premium Retention by LOB - National Traditional vs Takaful | I22: 4B
B23: 4C | C23: توزيع أقساط إعادة التأمين حسب التوزيع الجغرافي والتصنيف لكافة شركات التأمين العاملة في القطاع | H23: Ceded premiums per geographic location and rating - All Companies | I23: 4C
B24: 4D | C24: توزيع أقساط إعادة التأمين حسب التوزيع الجغرافي - شركات التأمين التقليدي الوطنية وشركات التأمين التكافلي الوطنية | H24: Ceded premiums per geographic location and rating - Traditional & Takaful National Companies | I24: 4D
B25: 4E | C25: توزيع أقساط إعادة التأمين حسب التوزيع الجغرافي والتصنيف لشركات التامين على الأشخاص وتكوين الأموال وشركات تامين الممتلكات والمسؤوليات والشركات التي تمارس النوعين معاً | H25: Ceded premiums per geographic location and rating - Life, Non-Life & Composite | I25: 4E
B26: 5A | C26: اجمالي الأقساط المكتسبة وفقا لشركات التأمين الوطنية وشركات التأمين الأجنبية. | H26: GEP by LOB - National vs Foreign | I26: 5A
B27: 5B | C27: اجمالي الأقساط المكتسبة وفقا لشركات التأمين التقليدي الوطنية وشركات التأمين التكافلي. | H27: GEP by LOB - National Traditional vs Takaful | I27: 5B
B28: 6A | C28: صافي الأقساط المكتسبة وفقا لشركات التأمين الوطنية وشركات التأمين الأجنبية. | H28: NEP by LOB - National vs Foreign | I28: 6A
B29: 6B | C29: صافي الأقساط المكتسبة وفقا لشركات التأمين التقليدي الوطنية وشركات التأمين التكافلي الوطنية. | H29: NEP by LOB - National Traditional vs Takaful | I29: 6B
B30: 7 | C30: اجمالي الأقساط المكتتبة وأعداد وثائق التأمين ومعدل القسط لكل وثيقة من كل فرع من فروع التامين. | H30: No of Policies & GWP per Policy by LOB | I30: 7
B31: 8 | C31: اجمالي الأقساط المكتتبة والعمولات المدفوعة حسب قنوات التوزيع لشركات التأمين الوطنية وشركات التأمين الأجنبية. | H31: GWP & Commission Paid by Distribution Channel - National vs Foreign | I31: 8
B32: 9A | C32: اجمالي المخصصات الفنية وفقا لشركات التأمين الوطنية وشركات التأمين الأجنبية. | H32: Gross Tech Prov by LOB - National vs Foreign | I32: 9A
B33: 9B | C33: اجمالي المخصصات الفنية وفقا لشركات التأمين التقليدي الوطنية وشركات التأمين التكافلي الوطنية. | H33: Gross Tech Prov by LOB - National Traditional vs Takaful | I33: 9B
B34: 9C | C34: اجمالي المخصصات الفنية لشركات التامين على الأشخاص وتكوين الأموال وشركات تامين الممتلكات والمسؤوليات والشركات التي تمارس النوعين معا. | H34: Gross Tech Prov by LOB - Life, Non-Life & Composite | I34: 9C
B35: 10A | C35: صافي المخصصات الفنية حسب فرع التأمين وفقا لشركات التأمين الوطنية والأجنبية. | H35: Net Tech Prov by LOB - National vs Foreign | I35: 10A
B36: 10B | C36: صافي المخصصات الفنية وفقا لشركات التأمين التقليدي الوطنية وشركات التأمين التكافلي. | H36: Net Tech Prov by LOB - National Traditional vs Takaful | I36: 10B
B37: 11A | C37: إجمالي انواع المخصصات الفنية قبل استبعاد إعادة التامين ووفقا لكل نوع من المخصصات الفنية. | H37: Gross / Net Tech Prov by Type by LOB - National vs Foreign | I37: 11A
B38: 11B | C38: صافي انواع المخصصات الفنية بعد استبعاد إعادة التامين ووفقا لكل نوع من المخصصات الفنية. | H38: Gross / Net Tech Prov by Type by LOB - National Traditional vs Takaful | I38: 11B
B39: 12A | C39: اجمالي المطالبات المدفوعة والمتكبدة وفقا لشركات التأمين الوطنية وشركات التأمين الأجنبية. | H39: Gross Claims Paid & Incurred by LOB - National vs Foreign | I39: 12A
B40: 12B | C40: اجمالي المطالبات المدفوعة والمتكبدة وفقا لشركات التأمين التقليدي الوطنية وشركات التأمين التكافلي الوطنية. | H40: Gross Claims Paid & Incurred by LOB - National Traditional vs Takaful | I40: 12B
B41: 13A | C41: صافي المطالبات المدفوعة والمتكبدة وفقا لشركات التأمين الوطنية وشركات التأمين الأجنبية. | H41: Net Claims Paid & Incurred by LOB - National vs Foreign | I41: 13A
B42: 13B | C42: صافي المطالبات المدفوعة والمتكبدة وفقا لشركات التأمين التقليدي الوطنية وشركات التأمين التكافلي الوطنية. | H42: Net Claims Paid & Incurred by LOB - National Traditional vs Takaful | I42: 13B
B43: 14A | C43: نسب الخسارة "الإجمالية" قبل استبعاد إعادة التأمين وفقا لشركات التأمين الوطنية والاجنبية. | H43: Gross Loss Ratios by LOB - National vs Foreign | I43: 14A
B44: 14B | C44: نسب الخسارة "الإجمالية" قبل استبعاد إعادة التأمين وفقا لشركات التأمين التقليدي الوطنية وشركات التأمين التكافلي الوطنية. | H44: Gross Loss Ratios by LOB - National Traditional vs Takaful | I44: 14B
B45: 15A | C45: نسب الخسارة "الصافية" بعد استبعاد إعادة التامين وفقا لشركات التأمين الوطنية وشركات التأمين الأجنبية. | H45: Net Loss Ratios by LOB - National vs Foreign | I45: 15A
B46: 15B | C46: نسب الخسارة "الصافية" بعد استبعاد إعادة التامين وفقا لشركات التأمين التقليدي الوطنية وشركات التأمين التكافلي الوطنية ووفقا لكل فرع من فروع التأمين. | H46: Net Loss Ratios by LOB - National Traditional vs Takaful | I46: 15B
B47: 16A | C47: نسبة العمولات ونسبة المصاريف والنسبة المجمعة "الإجمالية" قبل استبعاد إعادة التأمين وفقا لشركات التأمين الوطنية والاجنبية ووفقا لكل فرع من فروع التأمين. | H47: Gross Combined Ratios by LOB - National vs Foreign | I47: 16A
B48: 16B | C48: نسبة العمولات ونسبة المصاريف والنسبة المجمعة "الإجمالية" قبل استبعاد إعادة التأمين لشركات التأمين التقليدي الوطنية وشركات التأمين التكافلي الوطنية ووفقا لكل فرع من فروع التأمين. | H48: Gross Combined Ratios by LOB - National Traditional vs Takaful | I48: 16B
B49: 17A | C49: نسبة العمولات ونسبة المصاريف والنسبة المجمعة "الصافية" بعد استبعاد إعادة التأمين وفقا لشركات التأمين الوطنية وشركات التأمين الاجنبية ووفقا لكل فرع من فروع التأمين. | H49: Net Combined Ratios by LOB - National vs Foreign | I49: 17A
B50: 17B | C50: نسبة العمولات ونسبة المصاريف والنسبة المجمعة "الصافية" بعد استبعاد إعادة التأمين لشركات التأمين التقليدي الوطنية وشركات التأمين التكافلي ووفقا لكل فرع من فروع التأمين. | H50: Net Combined Ratios by LOB - National Traditional vs Takaful | I50: 17B
B51: 18 | C51: تحليل ربحية فرع تأمين المركبات “إجمالي" قبل استبعاد إعادة التأمين وبعد استبعاد إعادة التامين "صافي". | H51: Motor Profitability by Policy Type - Gross / Net | I51: 18
B52: 19 | C52: تحليل ربحية فرع التأمين الصحي “إجمالي" قبل استبعاد إعادة التأمين و"صافي" بعد استبعاد إعادة التامين. | H52: Medical Profitability by Policy Type - Gross / Net | I52: 19
B53: 20A | C53: اجمالي الأموال المستثمرة للشركات وفقا للفئات الاستثمارية وفقا لشركات التأمين الوطنية وشركات التأمين الأجنبية. | H53: Invested Assets by Class - National vs Foreign | I53: 20A
B54: 20B | C54: اجمالي الأموال المستثمرة للشركات وفقا للفئات الاستثمارية لشركات التأمين التقليدي الوطنية وشركات التأمين التكافلي. | H54: Invested Assets by Class - National Traditional vs Takaful | I54: 20B
B55: 21A | C55: قائمة المركز المالي للشركات وفقا لشركات التأمين الوطنية وشركات الاجنبية العاملة في الدولة. | H55: Balance Sheet Key Figures - National vs Foreign | I55: 21A
B56: 21B | C56: قائمة المركز المالي لشركات التأمين التقليدي الوطنية وشركات التأمين التكافلي الوطنية. | H56: Balance Sheet Key Figures - National Traditional vs Takaful | I56: 21B
B57: 22A | C57: قائمة الدخل للشركات وفقا لشركات التأمين الوطنية والأجنبية. | H57: Income Statement Key Figures - National vs Foreign | I57: 22A
B58: 22B | C58: قائمة الدخل لشركات التأمين التقليدي الوطنية وشركات التأمين التكافلي الوطنية. | H58: Income Statement Key Figures - National Traditional vs Takaful | I58: 22B
B59: 23A | C59: تحليل الملاءة المالية لكافة شركات التأمين العاملة في القطاع. | H59: Solvency Analysis - All Companies | I59: 23A
B60: 23B | C60: تحليل الملاءة المالية لشركات التأمين الوطنية. | H60: Solvency Analysis - National Companies | I60: 23B
B61: 24A | C61: اجمالي الأقساط المكتتبة حسب الامارة ووفقا لكل فرع من فروع التأمين. | H61: GWP by LOB by Emirate | I61: 24A
B62: 24B | C62: صافي الأقساط المكتتبة حسب الامارة ووفقا لكل فرع من فروع التأمين. | H62: NWP by LOB by Emirate | I62: 24B
B63: 25 | C63: عدد وثائق التأمين حسب الامارة ووفقا لكل فرع من فروع التأمين. | H63: Number of Policies by Emirate | I63: 25
B64: 26A | C64: اجمالي الأقساط غير المكتسبة حسب الامارة ووفقا لكل فرع من فروع التأمين. | H64: Gross UPR by LOB by Emirate | I64: 26A
B65: 26B | C65: صافي الأقساط غير المكتسبة حسب الامارة ووفقا لكل فرع من فروع التأمين. | H65: Net UPR by LOB by Emirate | I65: 26B
B66: 27A | C66: اجمالي المطالبات المدفوعة حسب الامارة ووفقا لكل فرع من فروع التأمين. | H66: Gross Paid Claims by LOB by Emirate | I66: 27A
B67: 27B | C67: صافي المطالبات المدفوعة حسب الامارة ووفقا لكل فرع من فروع التأمين. | H67: Net Paid Claims by LOB by Emirate | I67: 27B
B68: 28A | C68: بيانات التأمين لإمارة دبي بالقيمة الاجمالية. | H68: Gross Results for Dubai | I68: 28A
B69: 28B | C69: بيانات التأمين لإمارة دبي بالقيمة الصافية. | H69: Net Results for Dubai | I69: 28B
B70: 29A | C70: بيانات التأمين لإمارة أبو ظبي بالقيمة الاجمالية. | H70: Gross Results for Abu Dhabi | I70: 29A
B71: 29B | C71: بيانات التأمين لإمارة أبو ظبي بالقيمة الصافية. | H71: Net Results for Abu Dhabi | I71: 29B
B72: 30A | C72: بيانات التأمين لإمارة عجمان بالقيمة الاجمالية. | H72: Gross Results for Ajman | I72: 30A
B73: 30B | C73: بيانات التأمين لإمارة عجمان بالقيمة الصافية. | H73: Net Results for Ajman | I73: 30B
B74: 31A | C74: بيانات التأمين لإمارة أم القيوين بالقيمة الاجمالية. | H74: Gross Results for Umm Al Quwain | I74: 31A
B75: 31B | C75: بيانات التأمين لإمارة ام القيوين بالقيمة الصافية. | H75: Net Results for Umm Al Quwain | I75: 31B
B76: 32A | C76: بيانات التأمين لإمارة الشارقة بالقيمة الاجمالية. | H76: Gross Results for Sharjah | I76: 32A
B77: 32B | C77: بيانات التأمين لإمارة الشارقة بالقيمة الصافية. | H77: Net Results for Sharjah | I77: 32B
B78: 33A | C78: بيانات التأمين لإمارة رأس الخيمة بالقيمة الاجمالية. | H78: Gross Results for Ras Al Khaimah | I78: 33A
B79: 33B | C79: بيانات التأمين لإمارة رأس الخيمة بالقيمة الصافية. | H79: Net Results for Ras Al Khaimah | I79: 33B
B80: 34A | C80: بيانات التأمين لإمارة الفجيرة بالقيمة الاجمالية. | H80: Gross Results for Fujairah | I80: 34A
B81: 34B | C81: بيانات التأمين لإمارة الفجيرة بالقيمة الصافية. | H81: Net Results for Fujairah | I81: 34B
B82: 35 | C82: دليل شركات التأمين في دولة الإمارات العربية المتحدة | H82: Directory of insurance companies in the UAE | I82: 35
B83: 36 | C83: قائمة مُصطلحات التأمين المُستخدمة في التقرير | H83: Glossary of Insurance Terms Used in The Report | I83: 36

Sheet Insurance Sector Development

Sheet 1A
B6: إجمالي الاقساط المكتتبة
B7: Gross Written Premium
B8: (2017 - 2022)
B11: جدول رقم 1A | I11: TABLE 1A
B12: بالألف درهم | I12: AED in 000's
B13: البيــــــــان | C13: =D13-1 -> 2017 | D13: 2018 | E13: 2019 | F13: 2020 | G13: =H13-1 -> 2021 | H13: =ReportYear -> 2022 | I13: DESCRIPTION
B14: تأمين الممتلكات والمسؤوليات | C14: 33079472.07 | D14: 31747732.61 | E14: 32526275.99 | F14: 32166056.18 | G14: 32940064.95 | H14: 37106523.92 | I14: Property and Liability Insurance
B15: التأمين على الأشخاص وتكوين الأموال | C15: 11744756.07 | D15: 11970700.23 | E15: 11494538.22 | F15: 10330736.22 | G15: 11376964.14 | H15: 10139921.51 | I15: Insurance of Persons & Fund Accumulation
B16: اجمالي الأقساط | C16: =SUM(C14:C15) -> 44824228.14 | D16: =SUM(D14:D15) -> 43718432.84 | E16: 44020814.21 | F16: 42496792.4 | G16: 44317029.09 | H16: 47246445.43 | I16: TOTAL
B18: جدول رقم 1AA | C18: National Companies الشركات الوطنية | I18: TABLE 1AA
B19: بالألف درهم | I19: AED in 000's
B20: البيــــــــان | C20: =D20-1 -> 2017 | D20: 2018 | E20: 2019 | F20: 2020 | G20: =H20-1 -> 2021 | H20: =ReportYear -> 2022 | I20: DESCRIPTION
B21: تأمين الممتلكات والمسؤوليات | C21: 25771056.49 | D21: 24692124.36 | E21: 25988129.04 | F21: 26054212.76 | G21: 26629539.15 | H21: 30289262.55 | I21: Property and Liability Insurance
B22: التأمين على الأشخاص وتكوين الأموال | C22: 2372508.936 | D22: 2990432.688 | E22: 3049857.184 | F22: 3008326.207 | G22: 3639522.35 | H22: 3438475.659 | I22: Insurance of Persons & Fund Accumulation
B23: اجمالي الأقساط | C23: =SUM(C21:C22) -> 28143565.43 | D23: =SUM(D21:D22) -> 27682557.05 | E23: 29037986.23 | F23: 29062538.96 | G23: 30269061.5 | H23: 33727738.21 | I23: TOTAL
B25: حصة الشركات الوطنية | I25: Share of National Companies
B26: البيــــــــان | C26: =D26-1 -> 2017 | D26: 2018 | E26: 2019 | F26: 2020 | G26: =H26-1 -> 2021 | H26: =ReportYear -> 2022 | I26: DESCRIPTION
B27: تأمين الممتلكات والمسؤوليات | C27: =C21/C14 -> 0.779064927 | D27: 0.7777602471 | E27: 0.7989887638 | F27: 0.8099908988 | G27: 0.8084240025 | H27: 0.8162786311 | I27: Property and Liability Insurance
B28: التأمين على الأشخاص وتكوين الأموال | C28: 0.2020058076 | D28: 0.2498126786 | E28: 0.2653309881 | F28: 0.2912015314 | G28: 0.3199027706 | H28: 0.3391027886 | I28: Insurance of Persons & Fund Accumulation
B29: اجمالي الأقساط | C29: 0.6278650318 | D29: 0.6332010379 | E29: 0.6596421885 | F29: 0.6838760604 | G29: 0.6830119735 | H29: 0.7138682689 | I29: TOTAL
B31: جدول رقم 1AB | C31: Foreign Branches الشركات الأجنبية | I31: TABLE 1AB
B32: بالألف درهم | I32: AED in 000's
B33: البيــــــــان | C33: =D33-1 -> 2017 | D33: 2018 | E33: 2019 | F33: 2020 | G33: =H33-1 -> 2021 | H33: =ReportYear -> 2022 | I33: DESCRIPTION
B34: تأمين الممتلكات والمسؤوليات | C34: 7308416 | D34: 7055608 | E34: 6538147 | F34: 6111843 | G34: 6310526 | H34: 6817261.37 | I34: Property and Liability Insurance
B35: التأمين على الأشخاص وتكوين الأموال | C35: 9372247 | D35: 8980268 | E35: 8444681 | F35: 7322410 | G35: 7737442 | H35: 6701445.849 | I35: Insurance of Persons & Fund Accumulation
B36: اجمالي الأقساط | C36: =SUM(C34:C35) -> 16680663 | D36: 16035876 | E36: 14982828 | F36: 13434253 | G36: =SUM(G34:G35) -> 14047968 | H36: =SUM(H34:H35) -> 13518707.22 | I36: TOTAL
B38: حصة الشركات الأجنبية | I38: Share of Foreign Companies
B39: البيــــــــان | C39: =D39-1 -> 2017 | D39: 2018 | E39: 2019 | F39: 2020 | G39: =H39-1 -> 2021 | H39: =ReportYear -> 2022 | I39: DESCRIPTION
B40: تأمين الممتلكات والمسؤوليات | C40: =C34/C14 -> 0.2209350858 | D40: 0.222239745 | E40: 0.2010112379 | F40: 0.190009088 | G40: 0.1915760036 | H40: 0.1837213689 | I40: Property and Liability Insurance
B41: التأمين على الأشخاص وتكوين الأموال | C41: 0.7979941808 | D41: 0.75018736 | E41: 0.7346690086 | F41: 0.7087984676 | G41: 0.6800972477 | H41: 0.6608972114 | I41: Insurance of Persons & Fund Accumulation
B42: اجمالي الأقساط | C42: 0.3721349746 | D42: 0.3667989669 | E42: 0.3403578118 | F42: 0.3161239294 | G42: 0.3169880357 | H42: 0.2861317311 | I42: TOTAL

Sheet 1B
B6: إجمالي الاقساط المكتتبة
B7: Gross Written Premium
B8: (2017 - 2022)
B11: جدول رقم 1B | C11: National Companies الشركات الوطنية | I11: TABLE 1B
B12: بالألف درهم | I12: AED in 000's
B13: البيــــــــان | C13: =D13-1 -> 2017 | D13: 2018 | E13: 2019 | F13: 2020 | G13: =H13-1 -> 2021 | H13: =ReportYear -> 2022 | I13: DESCRIPTION
B14: تأمين الممتلكات والمسؤوليات | C14: 25771056.49 | D14: 24692124.36 | E14: 25988129.04 | F14: 26054212.76 | G14: 26629539.15 | H14: 30289262.55 | I14: Property and Liability Insurance
B15: التأمين على الأشخاص وتكوين الأموال | C15: 2372508.936 | D15: 2990432.688 | E15: 3049857.184 | F15: 3008326.207 | G15: 3639522.35 | H15: 3438475.659 | I15: Insurance of Persons & Fund Accumulation
B16: اجمالي الأقساط | C16: =SUM(C14:C15) -> 28143565.43 | D16: 27682557.05 | E16: 29037986.23 | F16: 29062538.96 | G16: 30269061.5 | H16: 33727738.21 | I16: TOTAL
B18: جدول رقم 1BA | C18: National Traditional Insurance Companies شركات التأمين التقليدي الوطنية | I18: TABLE 1BA
B19: بالألف درهم | I19: AED in 000's
B20: البيــــــــان | C20: =D20-1 -> 2017 | D20: 2018 | E20: 2019 | F20: 2020 | G20: =H20-1 -> 2021 | H20: =ReportYear -> 2022 | I20: DESCRIPTION
B21: تأمين الممتلكات والمسؤوليات | C21: 22621305.5 | D21: 21909074.99 | E21: 23090567.86 | F21: 23247009.88 | G21: 23874472.57 | H21: 27430471.11 | I21: Property and Liability Insurance
B22: التأمين على الأشخاص وتكوين الأموال | C22: 1266279.321 | D22: 1347855.84 | E22: 1352897.674 | F22: 1487048.125 | G22: 2043977.188 | H22: 2127418.427 | I22: Insurance of Persons & Fund Accumulation
B23: اجمالي الأقساط | C23: =SUM(C21:C22) -> 23887584.83 | D23: 23256930.83 | E23: 24443465.53 | F23: 24734058.01 | G23: 25918449.76 | H23: 29557889.53 | I23: TOTAL
B25: حصة شركات التأمين التقليدي | I25: Share of Traditional Insurance Companies
B26: البيــــــــان | C26: =D26-1 -> 2017 | D26: 2018 | E26: 2019 | F26: 2020 | G26: =H26-1 -> 2021 | H26: =ReportYear -> 2022 | I26: DESCRIPTION
B27: تأمين الممتلكات والمسؤوليات | C27: =C21/C14 -> 0.8777795163 | D27: 0.8872899987 | E27: 0.8885044329 | F27: 0.8922553177 | G27: 0.896540959 | H27: 0.9056170007 | I27: Property and Liability Insurance
B28: التأمين على الأشخاص وتكوين الأموال | C28: 0.5337300535 | D28: 0.4507226817 | E28: 0.4435937791 | F28: 0.4943107972 | G28: 0.56160589 | H28: 0.6187097535 | I28: Insurance of Persons & Fund Accumulation
B29: اجمالي الأقساط | C29: 0.8487760687 | D29: 0.8401294285 | E29: 0.8417755053 | F29: 0.8510632205 | G29: 0.8562686939 | H29: 0.8763673789 | I29: TOTAL
B31: جدول رقم 1BB | C31: National Takaful Insurance Companies شركات التأمين التكافلي الوطنية | I31: TABLE 1BB
B32: بالألف درهم | I32: AED in 000's
B33: البيــــــــان | C33: =D33-1 -> 2017 | D33: 2018 | E33: 2019 | F33: 2020 | G33: =H33-1 -> 2021 | H33: =ReportYear -> 2022 | I33: DESCRIPTION
B34: تأمين الممتلكات والمسؤوليات | C34: 3149750.99 | D34: 2783049.368 | E34: 2897561.187 | F34: 2807202.876 | G34: 2755066.582 | H34: 2858791.447 | I34: Property and Liability Insurance
B35: التأمين على الأشخاص وتكوين الأموال | C35: 1106229.614 | D35: 1642576.847 | E35: 1696959.51 | F35: 1521278.081 | G35: 1595545.161 | H35: 1311057.232 | I35: Insurance of Persons & Fund Accumulation
B36: اجمالي الأقساط | C36: =SUM(C34:C35) -> 4255980.604 | D36: 4425626.215 | E36: 4594520.697 | F36: 4328480.957 | G36: 4350611.743 | H36: 4169848.679 | I36: TOTAL
B38: حصة شركات التأمين التكافلي | I38: Share of Takaful Insurance Companies
B39: البيــــــــان | C39: =D39-1 -> 2017 | D39: 2018 | E39: 2019 | F39: 2020 | G39: =H39-1 -> 2021 | H39: =ReportYear -> 2022 | I39: DESCRIPTION
B40: تأمين الممتلكات والمسؤوليات | C40: =C34/C14 -> 0.1222204837 | D40: 0.1127100013 | E40: =E34/E14 -> 0.1114955671 | F40: 0.1077446823 | G40: 0.103459041 | H40: 0.09438299934 | I40: Property and Liability Insurance
B41: التأمين على الأشخاص وتكوين الأموال | C41: 0.4662699465 | D41: 0.5492773183 | E41: 0.5564062209 | F41: 0.5056892028 | G41: 0.43839411 | H41: 0.3812902465 | I41: Insurance of Persons & Fund Accumulation
B42: اجمالي الأقساط | C42: 0.1512239313 | D42: 0.1598705715 | E42: 0.1582244947 | F42: 0.1489367795 | G42: 0.1437313061 | H42: 0.1236326211 | I42: TOTAL

Sheet 1C
B6: إجمالي الاقساط المكتتبة
B7: Gross Written Premium
B8: (2013 - 2022)
B10: جدول رقم 1C | M10: TABLE 1C
B11: بالألف درهم | M11: AED in 000's
B12: البيــــــــان | C12: =D12-1 -> 2013 | D12: 2014 | E12: 2015 | F12: 2016 | G12: 2017 | H12: =I12-1 -> 2018 | I12: 2019 | J12: 2020 | K12: =L12-1 -> 2021 | L12: =ReportYear -> 2022 | M12: DESCRIPTION
B13: تأمين الممتلكات والمسؤوليات | C13: 22473259 | D13: 24888224 | E13: 27464821.68 | F13: 29863254.12 | G13: 33079472.07 | H13: 31747732.61 | I13: 32526275.99 | J13: 32166056.18 | K13: 32940064.95 | L13: 37106523.92 | M13: Property and Liability Insurance
B14: التأمين على الأشخاص وتكوين الأموال | C14: 7030665 | D14: 8645603 | E14: 9488889.281 | F14: 10145897.15 | G14: 11744756.07 | H14: 11970700.23 | I14: 11494538.22 | J14: 10330736.22 | K14: 11376964.14 | L14: 10139921.51 | M14: Insurance of Persons & Fund Accumulation
B15: اجمالي الأقساط | C15: =SUM(C13:C14) -> 29503924 | D15: =SUM(D13:D14) -> 33533827 | E15: 36953710.97 | F15: 40009151.27 | G15: 44824228.14 | H15: 43718432.84 | I15: 44020814.21 | J15: 42496792.4 | K15: 44317029.09 | L15: 47246445.43 | M15: TOTAL
B17: جدول رقم 1CA | C17: National Companies الشركات الوطنية | M17: TABLE 1CA
B18: بالألف درهم | M18: AED in 000's
B19: البيــــــــان | C19: =D19-1 -> 2013 | D19: =E19-1 -> 2014 | E19: 2015 | F19: 2016 | G19: 2017 | H19: =I19-1 -> 2018 | I19: 2019 | J19: 2020 | K19: =L19-1 -> 2021 | L19: =ReportYear -> 2022 | M19: DESCRIPTION
B20: تأمين الممتلكات والمسؤوليات | C20: 16714660 | D20: 18658198 | E20: 20347929 | F20: 22691772.4 | G20: 25771056.49 | H20: 24692124.36 | I20: 25988129.04 | J20: 26054212.76 | K20: 26629539.15 | L20: 30289262.55 | M20: Property and Liability Insurance
B21: التأمين على الأشخاص وتكوين الأموال | C21: 1533114 | D21: 1563509 | E21: 1953052 | F21: 2203769.705 | G21: 2372508.936 | H21: 2990432.688 | I21: 3049857.184 | J21: 3008326.207 | K21: 3639522.35 | L21: 3438475.659 | M21: Insurance of Persons & Fund Accumulation
B22: اجمالي الأقساط | C22: =SUM(C20:C21) -> 18247774 | D22: =SUM(D20:D21) -> 20221707 | E22: 22300981 | F22: 24895542.1 | G22: 28143565.43 | H22: 27682557.05 | I22: 29037986.23 | J22: 29062538.96 | K22: 30269061.5 | L22: 33727738.21 | M22: TOTAL
B24: حصة الشركات الوطنية | M24: Share of National Companies
B25: البيــــــــان | C25: =D25-1 -> 2013 | D25: =E25-1 -> 2014 | E25: 2015 | F25: 2016 | G25: 2017 | H25: =I25-1 -> 2018 | I25: 2019 | J25: 2020 | K25: =L25-1 -> 2021 | L25: =ReportYear -> 2022 | M25: DESCRIPTION
B26: تأمين الممتلكات والمسؤوليات | C26: =C20/C13 -> 0.7437577256 | D26: 0.7496797682 | E26: 0.7408724234 | F26: 0.7598559857 | G26: 0.779064927 | H26: 0.7777602471 | I26: 0.7989887638 | J26: 0.8099908988 | K26: 0.8084240025 | L26: 0.8162786311 | M26: Property and Liability Insurance
B27: التأمين على الأشخاص وتكوين الأموال | C27: =C21/C14 -> 0.2180610227 | D27: 0.1808444131 | E27: 0.2058251437 | F27: 0.2172079682 | G27: 0.2020058076 | H27: 0.2498126786 | I27: 0.2653309881 | J27: 0.2912015314 | K27: 0.3199027706 | L27: 0.3391027886 | M27: Insurance of Persons & Fund Accumulation
B28: اجمالي الأقساط | C28: =C22/C15 -> 0.618486341 | D28: 0.6030241344 | E28: 0.6034842081 | F28: 0.6222461939 | G28: 0.6278650318 | H28: 0.6332010379 | I28: 0.6596421885 | J28: 0.6838760604 | K28: 0.6830119735 | L28: 0.7138682689 | M28: TOTAL
B30: جدول رقم 1CB | C30: Foreign Branches الشركات الأجنبية | M30: TABLE 1CB
B31: بالألف درهم | M31: AED in 000's
B32: البيــــــــان | C32: =D32-1 -> 2013 | D32: =E32-1 -> 2014 | E32: 2015 | F32: 2016 | G32: 2017 | H32: =I32-1 -> 2018 | I32: 2019 | J32: 2020 | K32: =L32-1 -> 2021 | L32: =ReportYear -> 2022 | M32: DESCRIPTION
B33: تأمين الممتلكات والمسؤوليات | C33: 5758599 | D33: 6230026 | E33: 7116892 | F33: 7171481.725 | G33: 7308415.578 | H33: 7055608.25 | I33: 6538146.946 | J33: 6111843.423 | K33: 6310525.8 | L33: 6817261.37 | M33: Property and Liability Insurance
B34: التأمين على الأشخاص وتكوين الأموال | C34: 5497551 | D34: 7082094 | E34: 7535837 | F34: 7942127.445 | G34: 9372247.136 | H34: 8980267.538 | I34: 8444681.037 | J34: 7322410.01 | K34: 7737441.791 | L34: 6701445.849 | M34: Insurance of Persons & Fund Accumulation
B35: اجمالي الأقساط | C35: =SUM(C33:C34) -> 11256150 | D35: =SUM(D33:D34) -> 13312120 | E35: 14652729 | F35: 15113609.17 | G35: 16680662.71 | H35: 16035875.79 | I35: 14982827.98 | J35: 13434253.43 | K35: 14047967.59 | L35: 13518707.22 | M35: TOTAL
B37: حصة الشركات الأجنبية | M37: Share of Foreign Companies
B38: البيــــــــان | C38: =D38-1 -> 2013 | D38: =E38-1 -> 2014 | E38: 2015 | F38: 2016 | G38: 2017 | H38: =I38-1 -> 2018 | I38: 2019 | J38: 2020 | K38: =L38-1 -> 2021 | L38: =ReportYear -> 2022 | M38: DESCRIPTION
B39: تأمين الممتلكات والمسؤوليات | C39: =C33/C13 -> 0.2562422744 | D39: 0.2503202318 | E39: 0.2591275517 | F39: 0.2401440143 | G39: 0.220935073 | H39: 0.2222397529 | I39: 0.2010112362 | J39: 0.1900091012 | K39: 0.1915759975 | L39: 0.1837213689 | M39: Property and Liability Insurance
B40: التأمين على الأشخاص وتكوين الأموال | C40: =C34/C14 -> 0.7819389773 | D40: 0.8191555869 | E40: 0.7941748266 | F40: 0.7827920318 | G40: 0.7979941924 | H40: 0.7501873214 | I40: 0.7346690119 | J40: 0.7087984686 | K40: 0.6800972294 | L40: 0.6608972114 | M40: Insurance of Persons & Fund Accumulation
B41: اجمالي الأقساط | C41: =C35/C15 -> 0.381513659 | D41: 0.3969758656 | E41: 0.3965157657 | F41: 0.3777538061 | G41: 0.3721349682 | H41: 0.3667989621 | I41: 0.3403578115 | J41: 0.3161239396 | K41: 0.3169880265 | L41: 0.2861317311 | M41: TOTAL

Sheet 2A
B6: إجمالي الأقساط المكتتبة حسب فرع التأمين
B7: الشركات الوطنية والاجنبية
B8: Gross Written Premium by Line of Business
B9: National & Foreign Companies
B11: جدول رقم 2A | I11: TABLE 2A
B12: بالألف درهم | I12: AED in 000's
B13: فروع التأمين | C13: الشركات الوطنية | E13: الشركات الأجنبية | G13: الاجمالي | I13: Line of Business
C14: NATIONAL COMPANIES | E14: FOREIGN COMPANIES | G14: TOTAL
C15: =E15 -> 2021 | D15: =F15 -> 2022 | E15: =G15 -> 2021 | F15: =H15 -> 2022 | G15: =H15-1 -> 2021 | H15: =ReportYear -> 2022
B16: تأمين الحريق | C16: 2775204.805 | D16: 3717305.093 | E16: 567316.7669 | F16: 586025.5849 | G16: =E16+C16 -> 3342521.572 | H16: =F16+D16 -> 4303330.678 | I16: Fire
B17: التأمين البحري والطيران | C17: 1181434.41 | D17: 1505313.444 | E17: 286064.5986 | F17: 314019.9794 | G17: 1467499.009 | H17: 1819333.424 | I17: Marine & Aviation
B18: تأمين السيارات والمركبات الأخرى | C18: 3409667.599 | D18: 3494243.657 | E18: 1321473.444 | F18: 1264617.05 | G18: 4731141.043 | H18: 4758860.707 | I18: Motor & Transportation
B19: التأمين الهندسي والانشاءات والطاقة | C19: 2306919.871 | D19: 3103775.44 | E19: 169902.7749 | F19: 118896.5704 | G19: 2476822.646 | H19: 3222672.011 | I19: Engineering, Construction & Energy
B20: أخرى | C20: 2954797.052 | D20: 3209566.038 | E20: 506323.8893 | F20: 497395.0506 | G20: 3461120.942 | H20: 3706961.089 | I20: Other
B21: اعادة التأمين غير النسبية - المسؤوليات والممتلكات | C21: 0 | D21: 5710.81882 | E21: 0 | F21: 0 | G21: 0 | H21: 5710.81882 | I21: Reinsurance - Property & Liability
B22: المجموع - تأمين الممتلكات والمسؤوليات | C22: =C16+C17+C18+C19+C20+C21 -> 12628023.74 | D22: 15035914.49 | E22: 2851081.474 | F22: 2780954.236 | G22: =G16+G17+G18+G19+G20+G21 -> 15479105.21 | H22: 17816868.73 | I22: Total - Property & Liability Insurance
B24: المجموع - تأمين صحي | C24: 14866438.67 | D24: 15959199.56 | E24: 5001691.174 | F24: 5782769.967 | G24: =E24+C24 -> 19868129.84 | H24: =F24+D24 -> 21741969.53 | I24: Total - Health Insurance
B26: تأمين حياة جماعي | C26: 670654.9583 | D26: 740245.5426 | E26: 161952.0322 | F26: 172663.315 | G26: =E26+C26 -> 832606.9905 | H26: 912908.8576 | I26: Group Life
B27: تأمين ائتمان حياة جماعي | C27: 924659.2569 | D27: 807626.1132 | E27: 22835.88125 | F27: 20818 | G27: 947495.1382 | H27: 828444.1132 | I27: Group Credit Life
B28: تأمين حياة فردي | C28: 1179204.881 | D28: 1184752.507 | E28: 5904027.894 | F28: 4614934.563 | G28: 7083232.775 | H28: 5799687.069 | I28: Individual Life
B29: دفعات الحياة وتكوين الأموال | C29: 80 | D29: 0 | E29: 106379.1363 | F29: 146567.1386 | G29: 106459.1363 | H29: 146567.1386 | I29: Annuities & Fund Accumulation
B30: المجموع - تأمين الأشخاص وعمليات تكوين الأموال | C30: =C26+C27+C28+C29 -> 2774599.096 | D30: 2732624.162 | E30: 6195194.943 | F30: 4954983.016 | G30: =SUM(G26:G29) -> 8969794.04 | H30: =SUM(H26:H29) -> 7687607.179 | I30: Total - Insurance of Persons & Fund Accumulation
B32: المجموع - كافة فروع التأمين | C32: =C22+C24+C30 -> 30269061.5 | D32: 33727738.21 | E32: 14047967.59 | F32: 13518707.22 | G32: =G22+G24+G30 -> 44317029.09 | H32: =H22+H24+H30 -> 47246445.43 | I32: TOTAL - All Types of Business Combined

Sheet 2B
B6: إجمالي الأقساط المكتتبة حسب فرع التأمين
B7: شركات التأمين التقليدي الوطنية وشركات التأمين التكافلي الوطنية
B8: Gross Written Premium by Line of Business
B9: Traditional & Takaful National Companies
B11: جدول رقم 2B | I11: TABLE 2B
B12: بالألف درهم | I12: AED in 000's
B13: فروع التأمين | C13: شركات التأمين التقليدي الوطنية | E13: شركات التأمين التكافلي الوطنية | G13: الشركات الوطنية | I13: Line of Business
C14: TRADITIONAL COMPANIES | E14: TAKAFUL COMPANIES | G14: NATIONAL COMPANIES
C15: =E15 -> 2021 | D15: =F15 -> 2022 | E15: =G15 -> 2021 | F15: =H15 -> 2022 | G15: =H15-1 -> 2021 | H15: =ReportYear -> 2022
B16: تأمين الحريق | C16: 2435997.991 | D16: 3307409.054 | E16: 339206.8142 | F16: 409896.039 | G16: =E16+C16 -> 2775204.805 | H16: =F16+D16 -> 3717305.093 | I16: Fire
B17: التأمين البحري والطيران | C17: 1126676.386 | D17: 1409521.278 | E17: 54758.02476 | F17: 95792.16667 | G17: =E17+C17 -> 1181434.41 | H17: 1505313.444 | I17: Marine & Aviation
B18: تأمين السيارات والمركبات الأخرى | C18: 2536485.85 | D18: 2598717.523 | E18: 873181.7491 | F18: 895526.1335 | G18: 3409667.599 | H18: 3494243.657 | I18: Motor & Transportation
B19: التأمين الهندسي والانشاءات والطاقة | C19: 2221059.503 | D19: 2982862.144 | E19: 85860.3678 | F19: 120913.2963 | G19: 2306919.871 | H19: 3103775.44 | I19: Engineering, Construction & Energy
B20: أخرى | C20: 2642018.279 | D20: 2840968.229 | E20: 312778.7733 | F20: 368597.8093 | G20: 2954797.052 | H20: 3209566.038 | I20: Other
B21: اعادة التأمين غير النسبية - المسؤوليات والممتلكات | C21: 0 | D21: 5710.81882 | E21: 0 | F21: 0 | G21: =E21+C21 -> 0 | H21: 5710.81882 | I21: Reinsurance - Property & Liability
B22: المجموع - تأمين الممتلكات والمسؤوليات | C22: =C16+C17+C18+C19+C20+C21 -> 10962238.01 | D22: =D16+D17+D18+D19+D20+D21 -> 13145189.05 | E22: =E16+E17+E18+E19+E20+E21 -> 1665785.729 | F22: 1890725.445 | G22: =G16+G17+G18+G19+G20+G21 -> 12628023.74 | H22: =H16+H17+H18+H19+H20+H21 -> 15035914.49 | I22: Total - Property & Liability Insurance
B24: المجموع - تأمين صحي | C24: 12970229.86 | D24: 14338584.57 | E24: 1896208.805 | F24: 1620614.989 | G24: =E24+C24 -> 14866438.67 | H24: =F24+D24 -> 15959199.56 | I24: Total - Health Insurance
B26: تأمين حياة جماعي | C26: 546363.6528 | D26: 584436.7123 | E26: 124291.3055 | F26: 155808.8303 | G26: =E26+C26 -> 670654.9583 | H26: 740245.5426 | I26: Group Life
B27: تأمين ائتمان حياة جماعي | C27: 719483.8771 | D27: 645669.2958 | E27: 205175.3798 | F27: 161956.8174 | G27: 924659.2569 | H27: 807626.1132 | I27: Group Credit Life
B28: تأمين حياة فردي | C28: 720134.3576 | D28: 844009.909 | E28: 459070.5234 | F28: 340742.5978 | G28: 1179204.881 | H28: 1184752.507 | I28: Individual Life
B29: دفعات الحياة وتكوين الأموال | C29: 0 | D29: 0 | E29: 80 | F29: 0 | G29: 80 | H29: 0 | I29: Annuities & Fund Accumulation
B30: المجموع - تأمين الأشخاص وعمليات تكوين الأموال | C30: =C26+C27+C28+C29 -> 1985981.888 | D30: =D26+D27+D28+D29 -> 2074115.917 | E30: =E26+E27+E28+E29 -> 788617.2087 | F30: 658508.2454 | G30: 2774599.096 | H30: 2732624.162 | I30: Total - Insurance of Persons & Fund Accumulation
B32: المجموع - كافة فروع التأمين | C32: =C22+C24+C30 -> 25918449.76 | D32: =D22+D24+D30 -> 29557889.53 | E32: =E22+E24+E30 -> 4350611.743 | F32: 4169848.679 | G32: 30269061.5 | H32: 33727738.21 | I32: TOTAL - All Types of Business Combined

Sheet 2C
B6: إجمالي الأقساط المكتتبة حسب فرع التأمين
B7: شركات التأمين على الحياة وشركات التأمينات العامة وشركات التأمين على الحياة والتأمينات العامة
B8: Gross Written Premium by Line of Business
B9: Life, Non-Life & Composite Companies
B11: جدول رقم 2C | K11: TABLE 2C
B12: بالألف درهم | K12: AED in 000's
B13: فروع التأمين | C13: شركات التأمين على الأشخاص وتكوين الأموال | E13: شركات تأمين الممتلكات والمسؤوليات | G13: شركات التأمين (النوعين معاً) | I13: الاجمالي | K13: Line of Business
C14: LIFE COMPANIES | E14: NON-LIFE COMPANIES | G14: COMPOSITE COMPANIES | I14: TOTAL
C15: =E15 -> 2021 | D15: 2022 | E15: 2021 | F15: 2022 | G15: 2021 | H15: 2022 | I15: 2021 | J15: =ReportYear -> 2022
B16: تأمين الحريق | C16: 0 | D16: 0 | E16: 1027626.181 | F16: 1076014.865 | G16: 2314895.391 | H16: 3227315.812 | I16: =G16+E16+C16 -> 3342521.572 | J16: =H16+F16+D16 -> 4303330.678 | K16: Fire
B17: التأمين البحري والطيران | C17: 0 | D17: 0 | E17: 368737.3227 | F17: 403549.8076 | G17: 1098761.686 | H17: 1415783.616 | I17: =G17+E17+C17 -> 1467499.009 | J17: 1819333.424 | K17: Marine & Aviation
B18: تأمين السيارات والمركبات الأخرى | C18: 0 | D18: 0 | E18: 2212981.707 | F18: 2235925.039 | G18: 2518159.336 | H18: 2522935.668 | I18: 4731141.043 | J18: 4758860.707 | K18: Motor & Transportation
B19: التأمين الهندسي والانشاءات والطاقة | C19: 0 | D19: 0 | E19: 350854.3193 | F19: 373605.8322 | G19: 2125968.326 | H19: 2849066.179 | I19: 2476822.646 | J19: 3222672.011 | K19: Engineering, Construction & Energy
B20: أخرى | C20: 0 | D20: 0 | E20: 650285.2282 | F20: 690520.2967 | G20: 2810835.713 | H20: 3016440.792 | I20: 3461120.942 | J20: 3706961.089 | K20: Other
B21: اعادة التأمين غير النسبية - المسؤوليات والممتلكات | C21: 0 | D21: 0 | E21: 0 | F21: 5710.81882 | G21: 0 | H21: 0 | I21: =G21+E21+C21 -> 0 | J21: =H21+F21+D21 -> 5710.81882 | K21: Reinsurance - Property & Liability
B22: المجموع - تأمين الممتلكات والمسؤوليات | C22: =C16+C17+C18+C19+C20+C21 -> 0 | D22: 0 | E22: =E16+E17+E18+E19+E20+E21 -> 4610484.759 | F22: 4785326.66 | G22: =G16+G17+G18+G19+G20+G21 -> 10868620.45 | H22: 13031542.07 | I22: =I16+I17+I18+I19+I20+I21 -> 15479105.21 | J22: =J16+J17+J18+J19+J20+J21 -> 17816868.73 | K22: Total - Property & Liability Insurance
B24: المجموع - تأمين صحي | C24: 1519716.794 | D24: 1550855.115 | E24: 8505430.879 | F24: 9464642.611 | G24: 9842982.166 | H24: 10726471.8 | I24: =G24+E24+C24 -> 19868129.84 | J24: =H24+F24+D24 -> 21741969.53 | K24: Total - Health Insurance
B26: تأمين حياة جماعي | C26: 207754.8047 | D26: 270842.091 | E26: 2556.523 | F26: 5364.631 | G26: 622295.6628 | H26: 636702.1356 | I26: =G26+E26+C26 -> 832606.9905 | J26: =H26+F26+D26 -> 912908.8576 | K26: Group Life
B27: تأمين ائتمان حياة جماعي | C27: 42930.34042 | D27: -2290.24732 | E27: 0 | F27: 0 | G27: 904564.7977 | H27: 830734.3605 | I27: =G27+E27+C27 -> 947495.1382 | J27: =H27+F27+D27 -> 828444.1132 | K27: Group Credit Life
B28: تأمين حياة فردي | C28: 4523209.218 | D28: 3683939.547 | E28: 0 | F28: 0 | G28: 2560023.556 | H28: 2115747.522 | I28: 7083232.775 | J28: 5799687.069 | K28: Individual Life
B29: دفعات الحياة وتكوين الأموال | C29: 15102.13635 | D29: 7330.138596 | E29: 0 | F29: 0 | G29: 91357 | H29: 139237 | I29: 106459.1363 | J29: 146567.1386 | K29: Annuities & Fund Accumulation
B30: المجموع - تأمين الأشخاص وعمليات تكوين الأموال | C30: =C26+C27+C28+C29 -> 4788996.5 | D30: 3959821.53 | E30: 2556.523 | F30: 5364.631 | G30: =G26+G27+G28+G29 -> 4178241.017 | H30: 3722421.018 | I30: =I26+I27+I28+I29 -> 8969794.04 | J30: =J26+J27+J28+J29 -> 7687607.179 | K30: Total - Insurance of Persons & Fund Accumulation
B32: المجموع - كافة فروع التأمين | C32: =C22+C24+C30 -> 6308713.294 | D32: 5510676.645 | E32: =E22+E24+E30 -> 13118472.16 | F32: 14255333.9 | G32: =G22+G24+G30 -> 24889843.64 | H32: =H22+H24+H30 -> 27480434.88 | I32: =I22+I24+I30 -> 44317029.09 | J32: 47246445.43 | K32: TOTAL - All Types of Business Combined

Sheet 3A
B6: صافي الأقساط المكتتبة حسب فرع التأمين
B7: الشركات الوطنية والاجنبية
B8: Net Written Premium by Line of Business
B9: National & Foreign Companies
B11: جدول رقم 3A | I11: TABLE 3A
B12: بالألف درهم | I12: AED in 000's
B13: فروع التأمين | C13: الشركات الوطنية | E13: الشركات الأجنبية | G13: الاجمالي | I13: Line of Business
C14: NATIONAL COMPANIES | E14: FOREIGN COMPANIES | G14: TOTAL
C15: 2021 | D15: 2022 | E15: 2021 | F15: 2022 | G15: 2021 | H15: 2022
B16: تأمين الحريق | C16: 442117.7895 | D16: 490047.3485 | E16: 343781.7939 | F16: 309724.498 | G16: =E16+C16 -> 785899.5834 | H16: =F16+D16 -> 799771.8466 | I16: Fire
B17: التأمين البحري والطيران | C17: 201255.5872 | D17: 241798.9753 | E17: 163818.0313 | F17: 177337.4103 | G17: 365073.6185 | H17: 419136.3856 | I17: Marine & Aviation
B18: تأمين السيارات والمركبات الأخرى | C18: 2441251.698 | D18: 2477725.633 | E18: 1195673.63 | F18: 1212623.878 | G18: 3636925.328 | H18: 3690349.51 | I18: Motor & Transportation
B19: التأمين الهندسي والانشاءات والطاقة | C19: 403573.9146 | D19: 462248.9081 | E19: 71546.7411 | F19: 63341.05455 | G19: 475120.6557 | H19: 525589.9626 | I19: Engineering, Construction & Energy
B20: أخرى | C20: 653072.9224 | D20: 802975.8993 | E20: 227304.8546 | F20: 219492.9734 | G20: 880377.777 | H20: 1022468.873 | I20: Other
B21: اعادة التأمين غير النسبية - المسؤوليات والممتلكات | C21: 0 | D21: 4115.782985 | E21: 0 | F21: 0 | G21: 0 | H21: 4115.782985 | I21: Reinsurance - Property & Liability
B22: المجموع - تأمين الممتلكات والمسؤوليات | C22: =C16+C17+C18+C19+C20+C21 -> 4141271.911 | D22: =D16+D17+D18+D19+D20+D21 -> 4478912.547 | E22: =E16+E17+E18+E19+E20+E21 -> 2002125.051 | F22: =F16+F17+F18+F19+F20+F21 -> 1982519.814 | G22: =G16+G17+G18+G19+G20+G21 -> 6143396.962 | H22: 6461432.361 | I22: Total - Property & Liability Insurance
B24: المجموع - تأمين صحي | C24: 8409409.547 | D24: 9031127.26 | E24: 3323239.437 | F24: 4028828.063 | G24: =E24+C24 -> 11732648.98 | H24: =F24+D24 -> 13059955.32 | I24: Total - Health Insurance
B26: تأمين حياة جماعي | C26: 263222.8651 | D26: 281621.0611 | E26: 45530.06601 | F26: 39792.87355 | G26: =E26+C26 -> 308752.9311 | H26: =F26+D26 -> 321413.9346 | I26: Group Life
B27: تأمين ائتمان حياة جماعي | C27: 459381.2217 | D27: 398034.3486 | E27: 6331.98125 | F27: 4573 | G27: 465713.203 | H27: 402607.3486 | I27: Group Credit Life
B28: تأمين حياة فردي | C28: 1043880.794 | D28: 1070909.59 | E28: 5761841.199 | F28: 4459570.431 | G28: 6805721.993 | H28: 5530480.022 | I28: Individual Life
B29: دفعات الحياة وتكوين الأموال | C29: 44.25084 | D29: -0.87356 | E29: 106292.6004 | F29: 146537.8143 | G29: 106336.8512 | H29: 146536.9407 | I29: Annuities & Fund Accumulation
B30: المجموع - تأمين الأشخاص وعمليات تكوين الأموال | C30: =C26+C27+C28+C29 -> 1766529.132 | D30: =D26+D27+D28+D29 -> 1750564.126 | E30: =E26+E27+E28+E29 -> 5919995.847 | F30: 4650474.119 | G30: 7686524.978 | H30: 6401038.246 | I30: Total - Insurance of Persons & Fund Accumulation
B32: المجموع - كافة فروع التأمين | C32: =C22+C24+C30 -> 14317210.59 | D32: =D22+D24+D30 -> 15260603.93 | E32: =E22+E24+E30 -> 11245360.34 | F32: 10661822 | G32: 25562570.93 | H32: 25922425.93 | I32: TOTAL - All Types of Business Combined

Sheet 3B
B6: صافي الأقساط المكتتبة حسب فرع التأمين
B7: شركات التأمين التقليدي الوطنية وشركات التأمين التكافلي الوطنية
B8: Net Written Premium by Line of Business
B9: Traditional & Takaful National Companies
B11: جدول رقم 3B | I11: TABLE 3B
B12: بالألف درهم | I12: AED in 000's
B13: فروع التأمين | C13: شركات التأمين التقليدي الوطنية | E13: شركات التأمين التكافلي الوطنية | G13: الشركات الوطنية | I13: Line of Business
C14: TRADITIONAL COMPANIES | E14: TAKAFUL OPERATORS | G14: NATIONAL COMPANIES
C15: 2021 | D15: 2022 | E15: 2021 | F15: 2022 | G15: 2021 | H15: 2022
B16: تأمين الحريق | C16: 397773.4811 | D16: 439927.018 | E16: 44344.30843 | F16: 50120.33058 | G16: =E16+C16 -> 442117.7895 | H16: =F16+D16 -> 490047.3485 | I16: Fire
B17: التأمين البحري والطيران | C17: 191547.5362 | D17: 221390.1764 | E17: 9708.05097 | F17: 20408.7989 | G17: =E17+C17 -> 201255.5872 | H17: =F17+D17 -> 241798.9753 | I17: Marine & Aviation
B18: تأمين السيارات والمركبات الأخرى | C18: 1782597.992 | D18: 1718890.109 | E18: 658653.7058 | F18: 758835.5238 | G18: 2441251.698 | H18: =F18+D18 -> 2477725.633 | I18: Motor & Transportation
B19: التأمين الهندسي والانشاءات والطاقة | C19: 384005.583 | D19: 437759.9537 | E19: 19568.33157 | F19: 24488.95438 | G19: 403573.9146 | H19: =F19+D19 -> 462248.9081 | I19: Engineering, Construction & Energy
B20: أخرى | C20: 578684.2105 | D20: 678487.9364 | E20: 74388.71189 | F20: 124487.9629 | G20: 653072.9224 | H20: =F20+D20 -> 802975.8993 | I20: Other
B21: اعادة التأمين غير النسبية - المسؤوليات والممتلكات | C21: 0 | D21: 4115.782985 | E21: 0 | F21: 0 | G21: 0 | H21: =F21+D21 -> 4115.782985 | I21: Reinsurance - Property & Liability
B22: المجموع - تأمين الممتلكات والمسؤوليات | C22: =C16+C17+C18+C19+C20+C21 -> 3334608.803 | D22: =D16+D17+D18+D19+D20+D21 -> 3500570.976 | E22: 806663.1086 | F22: 978341.5706 | G22: 4141271.911 | H22: 4478912.547 | I22: Total - Property & Liability Insurance
B24: المجموع - تأمين صحي | C24: 7227798.68 | D24: 7987984.564 | E24: 1181610.868 | F24: 1043142.696 | G24: =E24+C24 -> 8409409.547 | H24: =F24+D24 -> 9031127.26 | I24: Total - Health Insurance
B26: تأمين حياة جماعي | C26: 235188.6714 | D26: 253026.4249 | E26: 28034.19372 | F26: 28594.63615 | G26: =E26+C26 -> 263222.8651 | H26: 281621.0611 | I26: Group Life
B27: تأمين ائتمان حياة جماعي | C27: 414696.6722 | D27: 345729.8312 | E27: 44684.54953 | F27: 52304.51738 | G27: 459381.2217 | H27: 398034.3486 | I27: Group Credit Life
B28: تأمين حياة فردي | C28: 637381.9182 | D28: 767034.9461 | E28: 406498.8756 | F28: 303874.6443 | G28: 1043880.794 | H28: 1070909.59 | I28: Individual Life
B29: دفعات الحياة وتكوين الأموال | C29: 0 | D29: 0 | E29: 44.25084 | F29: -0.87356 | G29: 44.25084 | H29: -0.87356 | I29: Annuities & Fund Accumulation
B30: المجموع - تأمين الأشخاص وعمليات تكوين الأموال | C30: =C26+C27+C28+C29 -> 1287267.262 | D30: =D26+D27+D28+D29 -> 1365791.202 | E30: 479261.8697 | F30: 384772.9242 | G30: 1766529.132 | H30: 1750564.126 | I30: Total - Insurance of Persons & Fund Accumulation
B32: المجموع - كافة فروع التأمين | C32: =C22+C24+C30 -> 11849674.74 | D32: 12854346.74 | E32: 2467535.846 | F32: 2406257.191 | G32: 14317210.59 | H32: 15260603.93 | I32: TOTAL - All Types of Business Combined

Sheet 4A
B6: نسب الاحتفاظ بالاقساط المكتتبة حسب فرع التأمين
B7: (صافي الأقساط المكتتبة الى إجمالي الاقساط المكتتبة)
B8: Retention Ratios of Written Premium by Line of Business
B9: (Net Written Premium ÷ Gross Written Premium)
B11: جدول رقم 4A | I11: TABLE 4A
B12: بالألف درهم | I12: AED in 000's
B13: فروع التأمين | C13: الشركات الوطنية | E13: الشركات الأجنبية | G13: الاجمالي | I13: Line of Business
C14: NATIONAL COMPANIES | E14: FOREIGN COMPANIES | G14: TOTAL
C15: 2021 | D15: 2022 | E15: 2021 | F15: 2022 | G15: 2021 | H15: 2022
B16: تأمين الحريق | C16: =IFERROR('3A'!C16/'2A'!C16,"") -> 0.1593099683 | D16: =IFERROR('3A'!D16/'2A'!D16,"") -> 0.1318286598 | E16: =IFERROR('3A'!E16/'2A'!E16,"") -> 0.6059785537 | F16: =IFERROR('3A'!F16/'2A'!F16,"") -> 0.5285170239 | G16: =IFERROR('3A'!G16/'2A'!G16,"") -> 0.2351217686 | H16: =IFERROR('3A'!H16/'2A'!H16,"") -> 0.1858494981 | I16: Fire
B17: التأمين البحري والطيران | C17: =IFERROR('3A'!C17/'2A'!C17,"") -> 0.1703485063 | D17: =IFERROR('3A'!D17/'2A'!D17,"") -> 0.1606303167 | E17: =IFERROR('3A'!E17/'2A'!E17,"") -> 0.5726609728 | F17: =IFERROR('3A'!F17/'2A'!F17,"") -> 0.5647328894 | G17: =IFERROR('3A'!G17/'2A'!G17,"") -> 0.2487726508 | H17: =IFERROR('3A'!H17/'2A'!H17,"") -> 0.2303790939 | I17: Marine & Aviation
B18: تأمين السيارات والمركبات الأخرى | C18: =IFERROR('3A'!C18/'2A'!C18,"") -> 0.7159793812 | D18: =IFERROR('3A'!D18/'2A'!D18,"") -> 0.7090878245 | E18: =IFERROR('3A'!E18/'2A'!E18,"") -> 0.9048033734 | F18: =IFERROR('3A'!F18/'2A'!F18,"") -> 0.9588862314 | G18: =IFERROR('3A'!G18/'2A'!G18,"") -> 0.7687205464 | H18: =IFERROR('3A'!H18/'2A'!H18,"") -> 0.775469117 | I18: Motor & Transportation
B19: التأمين الهندسي والانشاءات والطاقة | C19: =IFERROR('3A'!C19/'2A'!C19,"") -> 0.1749405862 | D19: =IFERROR('3A'!D19/'2A'!D19,"") -> 0.1489311701 | E19: =IFERROR('3A'!E19/'2A'!E19,"") -> 0.4211040175 | F19: =IFERROR('3A'!F19/'2A'!F19,"") -> 0.5327408043 | G19: =IFERROR('3A'!G19/'2A'!G19,"") -> 0.1918266762 | H19: =IFERROR('3A'!H19/'2A'!H19,"") -> 0.1630913605 | I19: Engineering, Construction & Energy
B20: أخرى | C20: =IFERROR('3A'!C20/'2A'!C20,"") -> 0.2210212447 | D20: =IFERROR('3A'!D20/'2A'!D20,"") -> 0.2501820775 | E20: =IFERROR('3A'!E20/'2A'!E20,"") -> 0.4489317202 | F20: =IFERROR('3A'!F20/'2A'!F20,"") -> 0.441284997 | G20: =IFERROR('3A'!G20/'2A'!G20,"") -> 0.2543620382 | H20: =IFERROR('3A'!H20/'2A'!H20,"") -> 0.2758240101 | I20: Other
B21: اعادة التأمين غير النسبية - المسؤوليات والممتلكات | C21: =IFERROR('3A'!C21/'2A'!C21,"") ->  | D21: =IFERROR('3A'!D21/'2A'!D21,"") -> 0.7206992753 | E21: =IFERROR('3A'!E21/'2A'!E21,"") ->  | F21: =IFERROR('3A'!F21/'2A'!F21,"") ->  | G21: =IFERROR('3A'!G21/'2A'!G21,"") ->  | H21: =IFERROR('3A'!H21/'2A'!H21,"") -> 0.7206992753 | I21: Reinsurance - Property & Liability
B22: المجموع - تأمين الممتلكات والمسؤوليات | C22: =IFERROR('3A'!C22/'2A'!C22,"") -> 0.3279429939 | D22: =IFERROR('3A'!D22/'2A'!D22,"") -> 0.2978809536 | E22: =IFERROR('3A'!E22/'2A'!E22,"") -> 0.7022335452 | F22: =IFERROR('3A'!F22/'2A'!F22,"") -> 0.7128919234 | G22: =IFERROR('3A'!G22/'2A'!G22,"") -> 0.3968832099 | H22: =IFERROR('3A'!H22/'2A'!H22,"") -> 0.3626581337 | I22: Total - Property & Liability Insurance
B24: المجموع - تأمين صحي | C24: =IFERROR('3A'!C24/'2A'!C24,"") -> 0.565664026 | D24: =IFERROR('3A'!D24/'2A'!D24,"") -> 0.565888485 | E24: =IFERROR('3A'!E24/'2A'!E24,"") -> 0.6644231564 | F24: =IFERROR('3A'!F24/'2A'!F24,"") -> 0.6966951973 | G24: =IFERROR('3A'!G24/'2A'!G24,"") -> 0.5905260877 | H24: =IFERROR('3A'!H24/'2A'!H24,"") -> 0.6006794972 | I24: Total - Health Insurance
B26: تأمين حياة جماعي | C26: =IFERROR('3A'!C26/'2A'!C26,"") -> 0.3924862731 | D26: =IFERROR('3A'!D26/'2A'!D26,"") -> 0.3804427651 | E26: =IFERROR('3A'!E26/'2A'!E26,"") -> 0.2811330329 | F26: =IFERROR('3A'!F26/'2A'!F26,"") -> 0.2304651312 | G26: =IFERROR('3A'!G26/'2A'!G26,"") -> 0.3708267342 | H26: =IFERROR('3A'!H26/'2A'!H26,"") -> 0.3520766963 | I26: Group Life
B27: تأمين ائتمان حياة جماعي | C27: =IFERROR('3A'!C27/'2A'!C27,"") -> 0.4968113586 | D27: =IFERROR('3A'!D27/'2A'!D27,"") -> 0.4928448227 | E27: =IFERROR('3A'!E27/'2A'!E27,"") -> 0.2772821063 | F27: =IFERROR('3A'!F27/'2A'!F27,"") -> 0.2196656739 | G27: =IFERROR('3A'!G27/'2A'!G27,"") -> 0.4915204144 | H27: =IFERROR('3A'!H27/'2A'!H27,"") -> 0.4859800947 | I27: Group Credit Life
B28: تأمين حياة فردي | C28: =IFERROR('3A'!C28/'2A'!C28,"") -> 0.8852412423 | D28: =IFERROR('3A'!D28/'2A'!D28,"") -> 0.9039099595 | E28: =IFERROR('3A'!E28/'2A'!E28,"") -> 0.9759170016 | F28: =IFERROR('3A'!F28/'2A'!F28,"") -> 0.9663344888 | G28: =IFERROR('3A'!G28/'2A'!G28,"") -> 0.9608214511 | H28: =IFERROR('3A'!H28/'2A'!H28,"") -> 0.9535824874 | I28: Individual Life
B29: دفعات الحياة وتكوين الأموال | C29: =IFERROR('3A'!C29/'2A'!C29,"") -> 0.5531355 | D29: =IFERROR('3A'!D29/'2A'!D29,"") ->  | E29: =IFERROR('3A'!E29/'2A'!E29,"") -> 0.9991865323 | F29: =IFERROR('3A'!F29/'2A'!F29,"") -> 0.9997999258 | G29: =IFERROR('3A'!G29/'2A'!G29,"") -> 0.9988513419 | H29: =IFERROR('3A'!H29/'2A'!H29,"") -> 0.9997939657 | I29: Annuities & Fund Accumulation
B30: المجموع - تأمين الأشخاص وعمليات تكوين الأموال | C30: =IFERROR('3A'!C30/'2A'!C30,"") -> 0.6366790553 | D30: =IFERROR('3A'!D30/'2A'!D30,"") -> 0.6406164999 | E30: =IFERROR('3A'!E30/'2A'!E30,"") -> 0.955578622 | F30: =IFERROR('3A'!F30/'2A'!F30,"") -> 0.9385449161 | G30: =IFERROR('3A'!G30/'2A'!G30,"") -> 0.8569343894 | H30: =IFERROR('3A'!H30/'2A'!H30,"") -> 0.8326437729 | I30: Total - Insurance of Persons & Fund Accumulation
B32: المجموع - كافة فروع التأمين | C32: =IFERROR('3A'!C32/'2A'!C32,"") -> 0.4729981665 | D32: =IFERROR('3A'!D32/'2A'!D32,"") -> 0.4524644919 | E32: =IFERROR('3A'!E32/'2A'!E32,"") -> 0.8004973148 | F32: =IFERROR('3A'!F32/'2A'!F32,"") -> 0.7886717142 | G32: =IFERROR('3A'!G32/'2A'!G32,"") -> 0.5768114752 | H32: =IFERROR('3A'!H32/'2A'!H32,"") -> 0.5486640464 | I32: TOTAL - All Types of Business Combined

Sheet 4B
B6: نسب الاحتفاظ بالاقساط المكتتبة حسب فرع التأمين
B7: (صافي الأقساط المكتتبة الى إجمالي الاقساط المكتتبة)
B8: Retention Ratios of Written Premium by Line of Business
B9: (Net Written Premium ÷ Gross Written Premium)
B11: جدول رقم 4B | I11: TABLE 4B
B12: بالألف درهم | I12: AED in 000's
B13: فروع التأمين | C13: شركات التأمين التقليدي الوطنية | E13: شركات التأمين التكافلي الوطنية | G13: الشركات الوطنية | I13: Line of Business
C14: TRADITIONAL COMPANIES | E14: TAKAFUL OPERATORS | G14: NATIONAL COMPANIES
C15: 2021 | D15: 2022 | E15: 2021 | F15: 2022 | G15: 2021 | H15: 2022
B16: تأمين الحريق | C16: =IFERROR('3B'!C16/'2B'!C16,"") -> 0.163289741 | D16: =IFERROR('3B'!D16/'2B'!D16,"") -> 0.133012582 | E16: =IFERROR('3B'!E16/'2B'!E16,"") -> 0.1307294151 | F16: =IFERROR('3B'!F16/'2B'!F16,"") -> 0.1222757134 | G16: =IFERROR('3B'!G16/'2B'!G16,"") -> 0.1593099683 | H16: =IFERROR('3B'!H16/'2B'!H16,"") -> 0.1318286598 | I16: Fire
B17: التأمين البحري والطيران | C17: =IFERROR('3B'!C17/'2B'!C17,"") -> 0.1700111395 | D17: =IFERROR('3B'!D17/'2B'!D17,"") -> 0.157067637 | E17: =IFERROR('3B'!E17/'2B'!E17,"") -> 0.1772900139 | F17: =IFERROR('3B'!F17/'2B'!F17,"") -> 0.2130528999 | G17: =IFERROR('3B'!G17/'2B'!G17,"") -> 0.1703485063 | H17: =IFERROR('3B'!H17/'2B'!H17,"") -> 0.1606303167 | I17: Marine & Aviation
B18: تأمين السيارات والمركبات الأخرى | C18: =IFERROR('3B'!C18/'2B'!C18,"") -> 0.7027825493 | D18: =IFERROR('3B'!D18/'2B'!D18,"") -> 0.6614378414 | E18: =IFERROR('3B'!E18/'2B'!E18,"") -> 0.7543145587 | F18: =IFERROR('3B'!F18/'2B'!F18,"") -> 0.8473627909 | G18: =IFERROR('3B'!G18/'2B'!G18,"") -> 0.7159793812 | H18: =IFERROR('3B'!H18/'2B'!H18,"") -> 0.7090878245 | I18: Motor & Transportation
B19: التأمين الهندسي والانشاءات والطاقة | C19: =IFERROR('3B'!C19/'2B'!C19,"") -> 0.172892974 | D19: =IFERROR('3B'!D19/'2B'!D19,"") -> 0.1467583591 | E19: =IFERROR('3B'!E19/'2B'!E19,"") -> 0.2279087788 | F19: =IFERROR('3B'!F19/'2B'!F19,"") -> 0.2025331798 | G19: =IFERROR('3B'!G19/'2B'!G19,"") -> 0.1749405862 | H19: =IFERROR('3B'!H19/'2B'!H19,"") -> 0.1489311701 | I19: Engineering, Construction & Energy
B20: أخرى | C20: =IFERROR('3B'!C20/'2B'!C20,"") -> 0.2190311154 | D20: =IFERROR('3B'!D20/'2B'!D20,"") -> 0.2388227821 | E20: =IFERROR('3B'!E20/'2B'!E20,"") -> 0.2378317144 | F20: =IFERROR('3B'!F20/'2B'!F20,"") -> 0.3377338653 | G20: =IFERROR('3B'!G20/'2B'!G20,"") -> 0.2210212447 | H20: =IFERROR('3B'!H20/'2B'!H20,"") -> 0.2501820775 | I20: Other
B21: اعادة التأمين غير النسبية - المسؤوليات والممتلكات | C21: =IFERROR('3B'!C21/'2B'!C21,"") ->  | D21: =IFERROR('3B'!D21/'2B'!D21,"") -> 0.7206992753 | E21: =IFERROR('3B'!E21/'2B'!E21,"") ->  | F21: =IFERROR('3B'!F21/'2B'!F21,"") ->  | G21: =IFERROR('3B'!G21/'2B'!G21,"") ->  | H21: =IFERROR('3B'!H21/'2B'!H21,"") -> 0.7206992753 | I21: Reinsurance - Property & Liability
B22: المجموع - تأمين الممتلكات والمسؤوليات | C22: =IFERROR('3B'!C22/'2B'!C22,"") -> 0.3041905129 | D22: =IFERROR('3B'!D22/'2B'!D22,"") -> 0.2663005427 | E22: =IFERROR('3B'!E22/'2B'!E22,"") -> 0.4842538236 | F22: =IFERROR('3B'!F22/'2B'!F22,"") -> 0.517442431 | G22: =IFERROR('3B'!G22/'2B'!G22,"") -> 0.3279429939 | H22: =IFERROR('3B'!H22/'2B'!H22,"") -> 0.2978809536 | I22: Total - Property & Liability Insurance
B24: المجموع - تأمين صحي | C24: =IFERROR('3B'!C24/'2B'!C24,"") -> 0.5572606467 | D24: =IFERROR('3B'!D24/'2B'!D24,"") -> 0.5570971476 | E24: =IFERROR('3B'!E24/'2B'!E24,"") -> 0.6231438566 | F24: =IFERROR('3B'!F24/'2B'!F24,"") -> 0.6436708923 | G24: =IFERROR('3B'!G24/'2B'!G24,"") -> 0.565664026 | H24: =IFERROR('3B'!H24/'2B'!H24,"") -> 0.565888485 | I24: Total - Health Insurance
B26: تأمين حياة جماعي | C26: =IFERROR('3B'!C26/'2B'!C26,"") -> 0.4304617816 | D26: =IFERROR('3B'!D26/'2B'!D26,"") -> 0.4329406754 | E26: =IFERROR('3B'!E26/'2B'!E26,"") -> 0.2255523314 | F26: =IFERROR('3B'!F26/'2B'!F26,"") -> 0.1835238484 | G26: =IFERROR('3B'!G26/'2B'!G26,"") -> 0.3924862731 | H26: =IFERROR('3B'!H26/'2B'!H26,"") -> 0.3804427651 | I26: Group Life
B27: تأمين ائتمان حياة جماعي | C27: =IFERROR('3B'!C27/'2B'!C27,"") -> 0.5763807715 | D27: =IFERROR('3B'!D27/'2B'!D27,"") -> 0.5354596129 | E27: =IFERROR('3B'!E27/'2B'!E27,"") -> 0.2177870931 | F27: =IFERROR('3B'!F27/'2B'!F27,"") -> 0.3229534775 | G27: =IFERROR('3B'!G27/'2B'!G27,"") -> 0.4968113586 | H27: =IFERROR('3B'!H27/'2B'!H27,"") -> 0.4928448227 | I27: Group Credit Life
B28: تأمين حياة فردي | C28: =IFERROR('3B'!C28/'2B'!C28,"") -> 0.8850874999 | D28: =IFERROR('3B'!D28/'2B'!D28,"") -> 0.908798508 | E28: =IFERROR('3B'!E28/'2B'!E28,"") -> 0.8854824148 | F28: =IFERROR('3B'!F28/'2B'!F28,"") -> 0.891801161 | G28: =IFERROR('3B'!G28/'2B'!G28,"") -> 0.8852412423 | H28: =IFERROR('3B'!H28/'2B'!H28,"") -> 0.9039099595 | I28: Individual Life
B29: دفعات الحياة وتكوين الأموال | C29: =IFERROR('3B'!C29/'2B'!C29,"") ->  | D29: =IFERROR('3B'!D29/'2B'!D29,"") ->  | E29: =IFERROR('3B'!E29/'2B'!E29,"") -> 0.5531355 | F29: =IFERROR('3B'!F29/'2B'!F29,"") ->  | G29: =IFERROR('3B'!G29/'2B'!G29,"") -> 0.5531355 | H29: =IFERROR('3B'!H29/'2B'!H29,"") ->  | I29: Annuities & Fund Accumulation
B30: المجموع - تأمين الأشخاص وعمليات تكوين الأموال | C30: =IFERROR('3B'!C30/'2B'!C30,"") -> 0.6481767381 | D30: =IFERROR('3B'!D30/'2B'!D30,"") -> 0.6584931878 | E30: =IFERROR('3B'!E30/'2B'!E30,"") -> 0.6077243363 | F30: =IFERROR('3B'!F30/'2B'!F30,"") -> 0.5843099565 | G30: =IFERROR('3B'!G30/'2B'!G30,"") -> 0.6366790553 | H30: =IFERROR('3B'!H30/'2B'!H30,"") -> 0.6406164999 | I30: Total - Insurance of Persons & Fund Accumulation
B32: المجموع - كافة فروع التأمين | C32: =IFERROR('3B'!C32/'2B'!C32,"") -> 0.4571907215 | D32: =IFERROR('3B'!D32/'2B'!D32,"") -> 0.4348871636 | E32: =IFERROR('3B'!E32/'2B'!E32,"") -> 0.5671698584 | F32: =IFERROR('3B'!F32/'2B'!F32,"") -> 0.5770610341 | G32: =IFERROR('3B'!G32/'2B'!G32,"") -> 0.4729981665 | H32: =IFERROR('3B'!H32/'2B'!H32,"") -> 0.4524644919 | I32: TOTAL - All Types of Business Combined

Sheet 4C
B6: توزيع أقساط إعادة التأمين حسب التوزيع الجغرافي والتصنيف لكافة شركات التأمين العاملة في القطاع
B7: Ceded premiums per geographic location and rating - All Companies
B8: (2022)
B10: جدول رقم 4C | F10: TABLE 4C
B11: بالألف درهم | F11: AED in 000's
B12: البيــــــــان | C12: الشركات الوطنية | D12: الشركات الأجنبية | E12: الاجمالي | F12: DESCRIPTION
C13: NATIONAL COMPANIES | D13: FOREIGN COMPANIES | E13: TOTAL
B14: داخل الدولة | F14: Inside UAE
B15: AAA | C15: 26071.45788 | D15: 273.756 | E15: =C15+D15 -> 26345.21388 | F15: AAA
B16: AA | C16: 713437.7672 | D16: 79377.39067 | E16: =C16+D16 -> 792815.1579 | F16: AA
B17: A | C17: 1274983.418 | D17: 79721.23879 | E17: 1354704.656 | F17: A
B18: BBB | C18: 109506.688 | D18: 8434.207656 | E18: 117940.8956 | F18: BBB
B19: BB | C19: 17542.77001 | D19: 392.4845316 | E19: 17935.25454 | F19: BB
B20: B | C20: 92363.33152 | D20: 14696.3888 | E20: 107059.7203 | F20: B
B21: أخري | C21: 15533.31394 | D21: 414.29597 | E21: 15947.60991 | F21: Other
B22: غير مُصنفة | C22: 434054.0656 | D22: 2758.09833 | E22: 436812.1639 | F22: Unrated
B23: الاجمالي حسب نوع التصنيف | C23: =C15+C16+C17+C18+C19+C20+C21+C22 -> 2683492.812 | D23: =D15+D16+D17+D18+D19+D20+D21+D22 -> 186067.8607 | E23: =E15+E16+E17+E18+E19+E20+E21+E22 -> 2869560.672 | F23: Totals for All Rating Types
B25: مجلس التعاون الخليجي عدا دولة الإمارات | F25: GCC Excl UAE
B26: AAA | C26: 0 | D26: 0 | E26: =C26+D26 -> 0 | F26: AAA
B27: AA | C27: 198002.2339 | D27: 163.31132 | E27: 198165.5452 | F27: AA
B28: A | C28: 255904.3576 | D28: 67931.44974 | E28: 323835.8073 | F28: A
B29: BBB | C29: 135042.3514 | D29: 527.3484954 | E29: 135569.6999 | F29: BBB
B30: BB | C30: 18746.15939 | D30: 947.0073743 | E30: 19693.16677 | F30: BB
B31: B | C31: 2708.39206 | D31: 71.75 | E31: 2780.14206 | F31: B
B32: أخري | C32: 2335.18962 | D32: 0 | E32: 2335.18962 | F32: Other
B33: غير مُصنفة | C33: 33610.26397 | D33: 2298.241172 | E33: 35908.50514 | F33: Unrated
B34: الاجمالي حسب نوع التصنيف | C34: =C26+C27+C28+C29+C30+C31+C32+C33 -> 646348.9478 | D34: =D26+D27+D28+D29+D30+D31+D32+D33 -> 71939.10811 | E34: =E26+E27+E28+E29+E30+E31+E32+E33 -> 718288.056 | F34: Totals for All Rating Types
B36: منطقة الشرق الأوسط وشمال أفريقيا عدا منطقة مجلس التعاون الخليجي | F36: MENA Excl GCC
B37: AAA | C37: 5067.914297 | D37: 0 | E37: =C37+D37 -> 5067.914297 | F37: AAA
B38: AA | C38: 145418.023 | D38: 126.7084667 | E38: =C38+D38 -> 145544.7315 | F38: AA
B39: A | C39: 380302.4828 | D39: 3908.068493 | E39: 384210.5513 | F39: A
B40: BBB | C40: 47800.06548 | D40: 1643.758432 | E40: 49443.82391 | F40: BBB
B41: BB | C41: 34505.3752 | D41: 1668.63192 | E41: 36174.00712 | F41: BB
B42: B | C42: 374231.4524 | D42: 139.4479655 | E42: 374370.9004 | F42: B
B43: أخري | C43: 3708.055983 | D43: 4746.032 | E43: 8454.087983 | F43: Other
B44: غير مُصنفة | C44: 28031.78838 | D44: 405.4663013 | E44: 28437.25468 | F44: Unrated
B45: الاجمالي حسب نوع التصنيف | C45: =C37+C38+C39+C40+C41+C42+C43+C44 -> 1019065.158 | D45: =D37+D38+D39+D40+D41+D42+D43+D44 -> 12638.11358 | E45: 1031703.271 | F45: Totals for All Rating Types
B47: خارج منطقة الشرق الأوسط وشمال أفريقيا | F47: Outside MENA
B48: AAA | C48: 181102.4522 | D48: 2578.499319 | E48: =C48+D48 -> 183680.9515 | F48: AAA
B49: AA | C49: 3291456.347 | D49: 1169381.392 | E49: 4460837.739 | F49: AA
B50: A | C50: 9288509.184 | D50: 1261035.231 | E50: 10549544.41 | F50: A
B51: BBB | C51: 355144.1618 | D51: 26020.63741 | E51: 381164.7992 | F51: BBB
B52: BB | C52: 60232.60482 | D52: 1910.822223 | E52: 62143.42704 | F52: BB
B53: B | C53: 102865.1374 | D53: 2119.416915 | E53: 104984.5543 | F53: B
B54: أخري | C54: 27753.82163 | D54: 48788.62955 | E54: 76542.45118 | F54: Other
B55: غير مُصنفة | C55: 811163.6565 | D55: 74405.51313 | E55: 885569.1696 | F55: Unrated
B56: الاجمالي حسب نوع التصنيف | C56: =C48+C49+C50+C51+C52+C53+C54+C55 -> 14118227.37 | D56: 2586240.142 | E56: 16704467.51 | F56: Totals for All Rating Types
B58: كافة المناطق حسب التوزيع الجغرافي | F58: Totals for All Regions
B59: AAA | C59: =C15+C26+C37+C48 -> 212241.8244 | D59: =D15+D26+D37+D48 -> 2852.255319 | E59: =C59+D59 -> 215094.0797 | F59: AAA
B60: AA | C60: =C16+C27+C38+C49 -> 4348314.371 | D60: 1249048.802 | E60: 5597363.174 | F60: AA
B61: A | C61: 11199699.44 | D61: 1412595.988 | E61: 12612295.43 | F61: A
B62: BBB | C62: 647493.2666 | D62: 36625.95199 | E62: 684119.2186 | F62: BBB
B63: BB | C63: 131026.9094 | D63: 4918.946049 | E63: 135945.8555 | F63: BB
B64: B | C64: 572168.3134 | D64: 17027.00368 | E64: 589195.3171 | F64: B
B65: أخري | C65: 49330.38117 | D65: 53948.95752 | E65: =C65+D65 -> 103279.3387 | F65: Other
B66: غير مُصنفة | C66: =C22+C33+C44+C55 -> 1306859.774 | D66: =D22+D33+D44+D55 -> 79867.31893 | E66: =C66+D66 -> 1386727.093 | F66: Unrated
B67: الاجمالي حسب نوع التصنيف | C67: =C59+C60+C61+C62+C63+C64+C65+C66 -> 18467134.28 | D67: =D59+D60+D61+D62+D63+D64+D65+D66 -> 2856885.224 | E67: =E59+E60+E61+E62+E63+E64+E65+E66 -> 21324019.51 | F67: Totals for All Rating Types

Sheet 4D
B6: توزيع أقساط إعادة التأمين حسب التوزيع الجغرافي
B7: شركات التأمين التقليدي الوطنية وشركات التأمين التكافلي الوطنية
B8: Ceded premiums per geographic location and rating
B9: Traditional & Takaful National Companies
B10: (2022)
B12: جدول رقم 4D | F12: TABLE 4D
B13: بالألف درهم | F13: AED in 000's
B14: البيــــــــان | C14: شركات التأمين التقليدي الوطنية | D14: شركات التأمين التكافلي الوطنية | E14: إجمالي الشركات الوطنية | F14: DESCRIPTION
C15: TRADITIONAL COMPANIES | D15: TAKAFUL OPERATORS | E15: TOTAL of NATIONAL COMPANIES
B16: داخل الدولة | F16: Inside UAE
B17: AAA | C17: 25211.82042 | D17: 859.63746 | E17: =C17+D17 -> 26071.45788 | F17: AAA
B18: AA | C18: 597508.4542 | D18: 115929.313 | E18: =C18+D18 -> 713437.7672 | F18: AA
B19: A | C19: 902987.0531 | D19: 371996.3644 | E19: 1274983.418 | F19: A
B20: BBB | C20: 36121.20405 | D20: 73385.4839 | E20: 109506.688 | F20: BBB
B21: BB | C21: 5223.996655 | D21: 12318.77336 | E21: 17542.77001 | F21: BB
B22: B | C22: 10704.0597 | D22: 81659.27182 | E22: 92363.33152 | F22: B
B23: أخري | C23: 6943.137383 | D23: 8590.176556 | E23: =C23+D23 -> 15533.31394 | F23: Other
B24: غير مُصنفة | C24: 366752.3858 | D24: 67301.67984 | E24: 434054.0656 | F24: Unrated
B25: الاجمالي حسب نوع التصنيف | C25: =C17+C18+C19+C20+C21+C22+C23+C24 -> 1951452.111 | D25: =D17+D18+D19+D20+D21+D22+D23+D24 -> 732040.7003 | E25: =E17+E18+E19+E20+E21+E22+E23+E24 -> 2683492.812 | F25: Totals for All Rating Types
B27: مجلس التعاون الخليجي عدا دولة الإمارات | F27: GCC Excl UAE
B28: AAA | C28: 0 | D28: 0 | E28: =C28+D28 -> 0 | F28: AAA
B29: AA | C29: 111662.2052 | D29: 86340.02862 | E29: =C29+D29 -> 198002.2339 | F29: AA
B30: A | C30: 184965.4641 | D30: 70938.89345 | E30: =C30+D30 -> 255904.3576 | F30: A
B31: BBB | C31: 134166.9898 | D31: 875.3615473 | E31: 135042.3514 | F31: BBB
B32: BB | C32: 18331.10657 | D32: 415.0528251 | E32: 18746.15939 | F32: BB
B33: B | C33: 2708.39206 | D33: 0 | E33: 2708.39206 | F33: B
B34: أخري | C34: 2185.46905 | D34: 149.7205696 | E34: 2335.18962 | F34: Other
B35: غير مُصنفة | C35: 33312.36139 | D35: 297.902577 | E35: 33610.26397 | F35: Unrated
B36: الاجمالي حسب نوع التصنيف | C36: =C28+C29+C30+C31+C32+C33+C34+C35 -> 487331.9883 | D36: =D28+D29+D30+D31+D32+D33+D34+D35 -> 159016.9596 | E36: =E28+E29+E30+E31+E32+E33+E34+E35 -> 646348.9478 | F36: Totals for All Rating Types
B38: منطقة الشرق الأوسط وشمال أفريقيا عدا منطقة مجلس التعاون الخليجي | F38: MENA Excl GCC
B39: AAA | C39: 4881.080749 | D39: 186.8335475 | E39: =C39+D39 -> 5067.914297 | F39: AAA
B40: AA | C40: 140935.8575 | D40: 4482.16552 | E40: =C40+D40 -> 145418.023 | F40: AA
B41: A | C41: 356833.3016 | D41: 23469.18121 | E41: =C41+D41 -> 380302.4828 | F41: A
B42: BBB | C42: 45146.6751 | D42: 2653.390382 | E42: 47800.06548 | F42: BBB
B43: BB | C43: 34079.06673 | D43: 426.3084689 | E43: 34505.3752 | F43: BB
B44: B | C44: 313864.8443 | D44: 60366.60809 | E44: 374231.4524 | F44: B
B45: أخري | C45: 3653.817245 | D45: 54.23873803 | E45: 3708.055983 | F45: Other
B46: غير مُصنفة | C46: 27998.94378 | D46: 32.8446 | E46: 28031.78838 | F46: Unrated
B47: الاجمالي حسب نوع التصنيف | C47: =C39+C40+C41+C42+C43+C44+C45+C46 -> 927393.587 | D47: =D39+D40+D41+D42+D43+D44+D45+D46 -> 91671.57055 | E47: =E39+E40+E41+E42+E43+E44+E45+E46 -> 1019065.158 | F47: Totals for All Rating Types
B49: خارج منطقة الشرق الأوسط وشمال أفريقيا | F49: Outside MENA
B50: AAA | C50: 122982.3783 | D50: 58120.07385 | E50: =C50+D50 -> 181102.4522 | F50: AAA
B51: AA | C51: 2985619.989 | D51: 305836.3581 | E51: =C51+D51 -> 3291456.347 | F51: AA
B52: A | C52: 8919808.781 | D52: 368700.4024 | E52: 9288509.184 | F52: A
B53: BBB | C53: 341020.6467 | D53: 14123.5151 | E53: 355144.1618 | F53: BBB
B54: BB | C54: 48573.31852 | D54: 11659.2863 | E54: 60232.60482 | F54: BB
B55: B | C55: 97783.5523 | D55: 5081.585068 | E55: 102865.1374 | F55: B
B56: أخري | C56: 24345.27054 | D56: 3408.551086 | E56: 27753.82163 | F56: Other
B57: غير مُصنفة | C57: 797231.1681 | D57: 13932.48839 | E57: =C57+D57 -> 811163.6565 | F57: Unrated
B58: الاجمالي حسب نوع التصنيف | C58: =C50+C51+C52+C53+C54+C55+C56+C57 -> 13337365.1 | D58: =D50+D51+D52+D53+D54+D55+D56+D57 -> 780862.2603 | E58: =E50+E51+E52+E53+E54+E55+E56+E57 -> 14118227.37 | F58: Totals for All Rating Types
B60: كافة المناطق حسب التوزيع الجغرافي | F60: Totals for All Regions
B61: AAA | C61: 153075.2795 | D61: 59166.54486 | E61: =C61+D61 -> 212241.8244 | F61: AAA
B62: AA | C62: 3835726.506 | D62: 512587.8652 | E62: =C62+D62 -> 4348314.371 | F62: AA
B63: A | C63: 10364594.6 | D63: 835104.8415 | E63: 11199699.44 | F63: A
B64: BBB | C64: 556455.5157 | D64: 91037.75092 | E64: 647493.2666 | F64: BBB
B65: BB | C65: 106207.4885 | D65: 24819.42095 | E65: 131026.9094 | F65: BB
B66: B | C66: 425060.8484 | D66: 147107.465 | E66: 572168.3134 | F66: B
B67: أخري | C67: 37127.69422 | D67: 12202.68695 | E67: =C67+D67 -> 49330.38117 | F67: Other
B68: غير مُصنفة | C68: 1225294.859 | D68: 81564.9154 | E68: 1306859.774 | F68: Unrated
B69: الاجمالي حسب نوع التصنيف | C69: =C61+C62+C63+C64+C65+C66+C67+C68 -> 16703542.79 | D69: =D61+D62+D63+D64+D65+D66+D67+D68 -> 1763591.491 | E69: =E61+E62+E63+E64+E65+E66+E67+E68 -> 18467134.28 | F69: Totals for All Rating Types

Sheet 4E
B6: توزيع أقساط إعادة التأمين حسب التوزيع الجغرافي والتصنيف
B7: لشركات التامين على الأشخاص وتكوين الأموال وشركات تامين الممتلكات والمسؤوليات والشركات التي تمارس النوعين معاً
B8: Ceded premiums per geographic location and rating -
B9: Life, Non-Life & Composite
B11: جدول رقم 4E | K11: TABLE 4E
B12: بالألف درهم | K12: AED in 000's
B13: البيــــــــان | C13: شركات التأمين على الأشخاص وتكوين الأموال | E13: شركات تأمين الممتلكات والمسؤوليات | G13: شركات التأمين (النوعين معاً) | I13: الاجمالي | K13: DESCRIPTION
C14: LIFE COMPANIES | E14: NON-LIFE COMPANIES | G14: COMPOSITE COMPANIES | I14: TOTAL
C15: 2021 | D15: 2022 | E15: 2021 | F15: 2022 | G15: 2021 | H15: 2022 | I15: 2021 | J15: 2022
B16: داخل الدولة | K16: Inside UAE
B17: AAA | C17: 0 | D17: 243.953 | E17: 21611.56036 | F17: 26023.00223 | G17: 108 | H17: 78.25864986 | I17: =C17+E17+G17 -> 21719.56036 | J17: =D17+F17+H17 -> 26345.21388 | K17: AAA
B18: AA | C18: 109975.8541 | D18: 53756.11672 | E18: 68517.58972 | F18: 92467.78795 | G18: 430549.7492 | H18: 646591.2532 | I18: =C18+E18+G18 -> 609043.193 | J18: =D18+F18+H18 -> 792815.1579 | K18: AA
B19: A | C19: 79681.36295 | D19: 65128.05066 | E19: 209806.8787 | F19: 418321.5184 | G19: 914414.7847 | H19: 871255.0873 | I19: 1203903.026 | J19: 1354704.656 | K19: A
B20: BBB | C20: 701.22857 | D20: 926.02045 | E20: 72165.358 | F20: 61688.95427 | G20: 64941.19433 | H20: 55325.92089 | I20: 137807.7809 | J20: 117940.8956 | K20: BBB
B21: BB | C21: 37.00427 | D21: 629.50814 | E21: 15700.40847 | F21: 16510.4377 | G21: 27394.92167 | H21: 795.3087049 | I21: 43132.33441 | J21: 17935.25454 | K21: BB
B22: B | C22: 0 | D22: 0 | E22: 56133.05327 | F22: 90466.15425 | G22: 47220.46725 | H22: 16593.56606 | I22: 103353.5205 | J22: 107059.7203 | K22: B
B23: أخري | C23: 0 | D23: 0 | E23: 52725.86456 | F23: 789.526503 | G23: 11808.10119 | H23: 15158.08341 | I23: 64533.96574 | J23: 15947.60991 | K23: Other
B24: غير مُصنفة | C24: 2395.963431 | D24: 2516.763875 | E24: 74811.88357 | F24: 112244.1848 | G24: 113001.2707 | H24: 322051.2152 | I24: 190209.1177 | J24: 436812.1639 | K24: Unrated
B25: الاجمالي حسب نوع التصنيف | C25: =C17+C18+C19+C20+C21+C22+C23+C24 -> 192791.4133 | D25: 123200.4128 | E25: 571472.5966 | F25: 818511.5661 | G25: 1609438.489 | H25: 1927848.693 | I25: 2373702.499 | J25: 2869560.672 | K25: Totals for All Rating Types
B27: مجلس التعاون الخليجي عدا دولة الإمارات | K27: GCC Excl UAE
B28: AAA | C28: 0 | D28: 0 | E28: 0 | F28: 0 | G28: 0 | H28: 0 | I28: =C28+E28+G28 -> 0 | J28: =D28+F28+H28 -> 0 | K28: AAA
B29: AA | C29: 304.62252 | D29: 0 | E29: 2169.503177 | F29: 2686.079538 | G29: 163656.5988 | H29: 195479.4656 | I29: 166130.7244 | J29: 198165.5452 | K29: AA
B30: A | C30: 32973.93895 | D30: 26406.89269 | E30: 355071.1616 | F30: 158493.9493 | G30: 246700.8754 | H30: 138934.9654 | I30: 634745.9759 | J30: 323835.8073 | K30: A
B31: BBB | C31: 3248.38663 | D31: 303.0674 | E31: 12553.42951 | F31: 681.3425242 | G31: 92801.17416 | H31: 134585.2899 | I31: 108602.9903 | J31: 135569.6999 | K31: BBB
B32: BB | C32: 0 | D32: 0 | E32: 3445.588818 | F32: 7589.597367 | G32: 3363.95458 | H32: 12103.5694 | I32: 6809.543398 | J32: 19693.16677 | K32: BB
B33: B | C33: 0 | D33: 0 | E33: 78.6325 | F33: 192.5813859 | G33: 9979.77026 | H33: 2587.560674 | I33: 10058.40276 | J33: 2780.14206 | K33: B
B34: أخري | C34: 0 | D34: 0 | E34: 1236.610758 | F34: 18.3010377 | G34: 8362.597685 | H34: 2316.888582 | I34: 9599.208442 | J34: 2335.18962 | K34: Other
B35: غير مُصنفة | C35: 0 | D35: 0 | E35: 3442.795181 | F35: 2583.228197 | G35: 23462.92855 | H35: 33325.27694 | I35: 26905.72373 | J35: 35908.50514 | K35: Unrated
B36: الاجمالي حسب نوع التصنيف | C36: =C28+C29+C30+C31+C32+C33+C34+C35 -> 36526.9481 | D36: =D28+D29+D30+D31+D32+D33+D34+D35 -> 26709.96009 | E36: 377997.7215 | F36: 172245.0793 | G36: 548327.8993 | H36: 519333.0166 | I36: 962852.569 | J36: 718288.056 | K36: Totals for All Rating Types
B38: منطقة الشرق الأوسط وشمال أفريقيا عدا منطقة مجلس التعاون الخليجي | K38: MENA Excl GCC
B39: AAA | C39: 0 | D39: 0 | E39: 895.9770574 | F39: 186.8335475 | G39: 2880.815854 | H39: 4881.080749 | I39: =C39+E39+G39 -> 3776.792911 | J39: =D39+F39+H39 -> 5067.914297 | K39: AAA
B40: AA | C40: 0 | D40: 0 | E40: 102.6659702 | F40: 0 | G40: 388585.5379 | H40: 145544.7315 | I40: 388688.2039 | J40: 145544.7315 | K40: AA
B41: A | C41: 0 | D41: 0 | E41: 17041.20049 | F41: 5411.807136 | G41: 279652.3345 | H41: 378798.7441 | I41: 296693.5349 | J41: 384210.5513 | K41: A
B42: BBB | C42: 0 | D42: 0 | E42: 4407.508524 | F42: 7651.647684 | G42: 51724.7552 | H42: 41792.17623 | I42: 56132.26372 | J42: 49443.82391 | K42: BBB
B43: BB | C43: 0 | D43: 0 | E43: 4658.60038 | F43: 2843.610337 | G43: 23366.75944 | H43: 33330.39678 | I43: 28025.35982 | J43: 36174.00712 | K43: BB
B44: B | C44: 0 | D44: 0 | E44: 7602.364088 | F44: 18023.05328 | G44: 299219.9212 | H44: 356347.8471 | I44: 306822.2853 | J44: 374370.9004 | K44: B
B45: أخري | C45: 0 | D45: 0 | E45: 4775.03665 | F45: 4746.032 | G45: 1800.170399 | H45: 3708.055983 | I45: 6575.207049 | J45: 8454.087983 | K45: Other
B46: غير مُصنفة | C46: 24621.07282 | D46: 32.8446 | E46: 675.9005833 | F46: 278.8547346 | G46: 21730.0527 | H46: 28125.55534 | I46: 47027.0261 | J46: 28437.25468 | K46: Unrated
B47: الاجمالي حسب نوع التصنيف | C47: =C39+C40+C41+C42+C43+C44+C45+C46 -> 24621.07282 | D47: 32.8446 | E47: 40159.25374 | F47: 39141.83872 | G47: 1068960.347 | H47: 992528.5878 | I47: 1133740.674 | J47: 1031703.271 | K47: Totals for All Rating Types
B49: خارج منطقة الشرق الأوسط وشمال أفريقيا | K49: Outside MENA
B50: AAA | C50: 310.298 | D50: 16546.45476 | E50: 72652.70614 | F50: 35967.17416 | G50: 94913.15701 | H50: 131167.3226 | I50: =C50+E50+G50 -> 167876.1611 | J50: =D50+F50+H50 -> 183680.9515 | K50: AAA
B51: AA | C51: 403845.6337 | D51: 479506.4485 | E51: 1281776.825 | F51: 1319726.702 | G51: 2881506.921 | H51: 2661604.589 | I51: 4567129.38 | J51: 4460837.739 | K51: AA
B52: A | C52: 88405.95193 | D52: 102293.2488 | E52: 1238623.971 | F52: 1575253.257 | G52: 6451970.447 | H52: 8871997.909 | I52: 7779000.369 | J52: 10549544.41 | K52: A
B53: BBB | C53: 1166.597003 | D53: 5197.462914 | E53: 46191.7066 | F53: 66882.35955 | G53: 250586.3255 | H53: 309084.9767 | I53: 297944.6291 | J53: 381164.7992 | K53: BBB
B54: BB | C54: 0 | D54: 10733.09624 | E54: 2423.096574 | F54: 2452.830323 | G54: 30930.80707 | H54: 48957.50048 | I54: =C54+E54+G54 -> 33353.90364 | J54: =D54+F54+H54 -> 62143.42704 | K54: BB
B55: B | C55: 0 | D55: 0 | E55: 2377.413321 | F55: 8885.351707 | G55: 54187.69827 | H55: 96099.20258 | I55: 56565.11159 | J55: 104984.5543 | K55: B
B56: أخري | C56: 0 | D56: 0 | E56: 1829.34441 | F56: 50636.67105 | G56: 46510.54084 | H56: 25905.78013 | I56: 48339.88525 | J56: 76542.45118 | K56: Other
B57: غير مُصنفة | C57: 1936.531 | D57: 8777.260613 | E57: 373163.32 | F57: 51531.10824 | G57: 842943.9659 | H57: 825260.8007 | I57: 1218043.817 | J57: 885569.1696 | K57: Unrated
B58: الاجمالي حسب نوع التصنيف | C58: 495665.0116 | D58: 623053.9719 | E58: 3019038.383 | F58: 3111335.454 | G58: 10653549.86 | H58: 12970078.08 | I58: =I50+I51+I52+I53+I54+I55+I56+I57 -> 14168253.26 | J58: =J50+J51+J52+J53+J54+J55+J56+J57 -> 16704467.51 | K58: Totals for All Rating Types
B60: كافة المناطق حسب التوزيع الجغرافي | K60: Totals for All Regions
B61: AAA | C61: 310.298 | D61: 16790.40776 | E61: 95160.24356 | F61: 62177.00993 | G61: 97901.97286 | H61: 136126.662 | I61: =C61+E61+G61 -> 193372.5144 | J61: =D61+F61+H61 -> 215094.0797 | K61: AAA
B62: AA | C62: 514126.1103 | D62: 533262.5652 | E62: 1352566.584 | F62: 1414880.57 | G62: 3864298.807 | H62: 3649220.039 | I62: 5730991.502 | J62: 5597363.174 | K62: AA
B63: A | C63: 201061.2538 | D63: 193828.1922 | E63: 1820543.211 | F63: 2157480.532 | G63: 7892738.441 | H63: 10260986.71 | I63: 9914342.906 | J63: 12612295.43 | K63: A
B64: BBB | C64: 5116.212203 | D64: 6426.550764 | E64: 135318.0026 | F64: 136904.304 | G64: 460053.4492 | H64: 540788.3638 | I64: 600487.664 | J64: 684119.2186 | K64: BBB
B65: BB | C65: 37.00427 | D65: 11362.60438 | E65: 26227.69424 | F65: 29396.47572 | G65: 85056.44276 | H65: 95186.77537 | I65: =C65+E65+G65 -> 111321.1413 | J65: =D65+F65+H65 -> 135945.8555 | K65: BB
B66: B | C66: 0 | D66: 0 | E66: 66191.46318 | F66: 117567.1406 | G66: 410607.857 | H66: 471628.1764 | I66: =C66+E66+G66 -> 476799.3202 | J66: =D66+F66+H66 -> 589195.3171 | K66: B
B67: أخري | C67: 0 | D67: 0 | E67: 60566.85638 | F67: 56190.5306 | G67: 68481.41011 | H67: 47088.8081 | I67: 129048.2665 | J67: 103279.3387 | K67: Other
B68: غير مُصنفة | C68: 28953.56725 | D68: 11326.86909 | E68: 452093.8994 | F68: 166637.376 | G68: 1001138.218 | H68: 1208762.848 | I68: 1482185.685 | J68: =D68+F68+H68 -> 1386727.093 | K68: Unrated
B69: الاجمالي حسب نوع التصنيف | C69: 749604.4459 | D69: 772997.1894 | E69: 4008667.955 | F69: 4141233.938 | G69: 13880276.6 | H69: 16409788.38 | I69: =I61+I62+I63+I64+I65+I66+I67+I68 -> 18638549 | J69: =J61+J62+J63+J64+J65+J66+J67+J68 -> 21324019.51 | K69: Totals for All Rating Types

Sheet 5A
B6: إجمالي الأقساط المكتسبة حسب فرع التأمين
B7: الشركات الوطنية والاجنبية
B8: Gross Earned Premium by Line of Business
B9: National & Foreign Companies
B11: جدول رقم 5A | I11: TABLE 5A
B12: بالألف درهم | I12: AED in 000's
B13: فروع التأمين | C13: الشركات الوطنية | E13: الشركات الأجنبية | G13: الاجمالي | I13: Line of Business
C14: NATIONAL COMPANIES | E14: FOREIGN COMPANIES | G14: TOTAL
C15: 2021 | D15: 2022 | E15: 2021 | F15: 2022 | G15: 2021 | H15: 2022
B16: تأمين الحريق | C16: 2857205.734 | D16: 3378622.473 | E16: 571066.17 | F16: 589064.9996 | G16: =E16+C16 -> 3428271.904 | H16: =F16+D16 -> 3967687.473 | I16: Fire
B17: التأمين البحري والطيران | C17: 1188596.206 | D17: 1404662.927 | E17: 283468.5908 | F17: 318087.7649 | G17: =E17+C17 -> 1472064.796 | H17: =F17+D17 -> 1722750.692 | I17: Marine & Aviation
B18: تأمين السيارات والمركبات الأخرى | C18: 3508236.125 | D18: 3278751.225 | E18: 1366721.042 | F18: 1280399.76 | G18: 4874957.167 | H18: =F18+D18 -> 4559150.985 | I18: Motor & Transportation
B19: التأمين الهندسي والانشاءات والطاقة | C19: 2322105.297 | D19: 2547503.021 | E19: 198119.9986 | F19: 157321.4012 | G19: 2520225.296 | H19: =F19+D19 -> 2704824.422 | I19: Engineering, Construction & Energy
B20: أخرى | C20: 2747500.543 | D20: 2922347.794 | E20: 497167.6643 | F20: 488018.1244 | G20: 3244668.207 | H20: =F20+D20 -> 3410365.918 | I20: Other
B21: اعادة التأمين غير النسبية - المسؤوليات والممتلكات | C21: -2551 | D21: 5559.613754 | E21: 0 | F21: 0 | G21: -2551 | H21: =F21+D21 -> 5559.613754 | I21: Reinsurance - Property & Liability
B22: المجموع - تأمين الممتلكات والمسؤوليات | C22: =C16+C17+C18+C19+C20+C21 -> 12621092.91 | D22: 13537447.05 | E22: =E16+E17+E18+E19+E20+E21 -> 2916543.465 | F22: 2832892.05 | G22: =G16+G17+G18+G19+G20+G21 -> 15537636.37 | H22: =H16+H17+H18+H19+H20+H21 -> 16370339.1 | I22: Total - Property & Liability Insurance
B24: المجموع - تأمين صحي | C24: 14418675.81 | D24: 15296843.73 | E24: 4914383.718 | F24: 5672664.417 | G24: =E24+C24 -> 19333059.53 | H24: =F24+D24 -> 20969508.15 | I24: Total - Health Insurance
B26: تأمين حياة جماعي | C26: 630560.105 | D26: 747418.2845 | E26: 163902.2132 | F26: 169719.372 | G26: =E26+C26 -> 794462.3182 | H26: 917137.6565 | I26: Group Life
B27: تأمين ائتمان حياة جماعي | C27: 898406.6297 | D27: 807387.7753 | E27: 23088.88125 | F27: 21661 | G27: 921495.511 | H27: 829048.7753 | I27: Group Credit Life
B28: تأمين حياة فردي | C28: 1083383.453 | D28: 1217507.922 | E28: 5904140.723 | F28: 4615024.993 | G28: 6987524.176 | H28: 5832532.915 | I28: Individual Life
B29: دفعات الحياة وتكوين الأموال | C29: 80 | D29: 0 | E29: 106379.1363 | F29: 146567.1386 | G29: 106459.1363 | H29: 146567.1386 | I29: Annuities & Fund Accumulation
B30: المجموع - تأمين الأشخاص وعمليات تكوين الأموال | C30: =C26+C27+C28+C29 -> 2612430.187 | D30: 2772313.982 | E30: =E26+E27+E28+E29 -> 6197510.954 | F30: 4952972.504 | G30: =G26+G27+G28+G29 -> 8809941.141 | H30: =H26+H27+H28+H29 -> 7725286.485 | I30: Total - Insurance of Persons & Fund Accumulation
B32: المجموع - كافة فروع التأمين | C32: =C22+C24+C30 -> 29652198.91 | D32: 31606604.77 | E32: =E22+E24+E30 -> 14028438.14 | F32: 13458528.97 | G32: =G22+G24+G30 -> 43680637.04 | H32: =H22+H24+H30 -> 45065133.74 | I32: TOTAL - All Types of Business Combined

Sheet 5B
B6: إجمالي الأقساط المكتسبة حسب فرع التأمين
B7: شركات التأمين التقليدي الوطنية وشركات التأمين التكافلي الوطنية
B8: Gross Earned Premium by Line of Business
B9: Traditional & Takaful National Companies
B11: جدول رقم 5B | I11: TABLE 5B
B12: بالألف درهم | I12: AED in 000's
B13: فروع التأمين | C13: شركات التأمين التقليدي الوطنية | E13: شركات التأمين التكافلي الوطنية | G13: الشركات الوطنية | I13: Line of Business
C14: TRADITIONAL COMPANIES | E14: TAKAFUL OPERATORS | G14: NATIONAL COMPANIES
C15: 2021 | D15: 2022 | E15: 2021 | F15: 2022 | G15: 2021 | H15: 2022
B16: تأمين الحريق | C16: 2528164.921 | D16: 2994945.621 | E16: 329040.8133 | F16: 383676.852 | G16: =E16+C16 -> 2857205.734 | H16: 3378622.473 | I16: Fire
B17: التأمين البحري والطيران | C17: 1137808.554 | D17: 1335504.626 | E17: 50787.65152 | F17: 69158.30053 | G17: 1188596.206 | H17: 1404662.927 | I17: Marine & Aviation
B18: تأمين السيارات والمركبات الأخرى | C18: 2692741.312 | D18: 2597633.701 | E18: 815494.813 | F18: 681117.5238 | G18: 3508236.125 | H18: 3278751.225 | I18: Motor & Transportation
B19: التأمين الهندسي والانشاءات والطاقة | C19: 2234030.094 | D19: 2458128.821 | E19: 88075.20337 | F19: 89374.20045 | G19: 2322105.297 | H19: 2547503.021 | I19: Engineering, Construction & Energy
B20: أخرى | C20: 2393184.773 | D20: 2602438.679 | E20: 354315.7705 | F20: 319909.1149 | G20: 2747500.543 | H20: 2922347.794 | I20: Other
B21: اعادة التأمين غير النسبية - المسؤوليات والممتلكات | C21: -2551 | D21: 5559.613754 | E21: 0 | F21: 0 | G21: -2551 | H21: 5559.613754 | I21: Reinsurance - Property & Liability
B22: المجموع - تأمين الممتلكات والمسؤوليات | C22: =C16+C17+C18+C19+C20+C21 -> 10983378.65 | D22: =D16+D17+D18+D19+D20+D21 -> 11994211.06 | E22: =E16+E17+E18+E19+E20+E21 -> 1637714.252 | F22: =F16+F17+F18+F19+F20+F21 -> 1543235.992 | G22: =G16+G17+G18+G19+G20+G21 -> 12621092.91 | H22: 13537447.05 | I22: Total - Property & Liability Insurance
B24: المجموع - تأمين صحي | C24: 12521977.49 | D24: 13760568.78 | E24: 1896698.324 | F24: 1536274.948 | G24: =E24+C24 -> 14418675.81 | H24: 15296843.73 | I24: Total - Health Insurance
B26: تأمين حياة جماعي | C26: 503172.3103 | D26: 589804.6521 | E26: 127387.7947 | F26: 157613.6324 | G26: =E26+C26 -> 630560.105 | H26: =F26+D26 -> 747418.2845 | I26: Group Life
B27: تأمين ائتمان حياة جماعي | C27: 723028.1016 | D27: 642659.1587 | E27: 175378.5282 | F27: 164728.6166 | G27: 898406.6297 | H27: 807387.7753 | I27: Group Credit Life
B28: تأمين حياة فردي | C28: 635684.9476 | D28: 861116.5733 | E28: 447698.5051 | F28: 356391.3484 | G28: 1083383.453 | H28: 1217507.922 | I28: Individual Life
B29: دفعات الحياة وتكوين الأموال | C29: 0 | D29: 0 | E29: 80 | F29: 0 | G29: 80 | H29: 0 | I29: Annuities & Fund Accumulation
B30: المجموع - تأمين الأشخاص وعمليات تكوين الأموال | C30: =C26+C27+C28+C29 -> 1861885.359 | D30: =D26+D27+D28+D29 -> 2093580.384 | E30: 750544.828 | F30: 678733.5974 | G30: =G26+G27+G28+G29 -> 2612430.187 | H30: =H26+H27+H28+H29 -> 2772313.982 | I30: Total - Insurance of Persons & Fund Accumulation
B32: المجموع - كافة فروع التأمين | C32: =C22+C24+C30 -> 25367241.5 | D32: =D22+D24+D30 -> 27848360.23 | E32: 4284957.404 | F32: 3758244.537 | G32: =G22+G24+G30 -> 29652198.91 | H32: =H22+H24+H30 -> 31606604.77 | I32: TOTAL - All Types of Business Combined

Sheet 6A
B6: صافي الأقساط المكتسبة حسب فرع التأمين
B7: الشركات الوطنية والاجنبية
B8: Net Earned Premium by Line of Business
B9: National & Foreign Companies
B11: جدول رقم 6A | I11: TABLE 6A
B12: بالألف درهم | I12: AED in 000's
B13: فروع التأمين | C13: الشركات الوطنية | E13: الشركات الأجنبية | G13: الاجمالي | I13: Line of Business
C14: NATIONAL COMPANIES | E14: FOREIGN COMPANIES | G14: TOTAL
C15: 2021 | D15: 2022 | E15: 2021 | F15: 2022 | G15: 2021 | H15: 2022
B16: تأمين الحريق | C16: 419837.2452 | D16: 467616.7081 | E16: 356413.6311 | F16: 351946.3057 | G16: =E16+C16 -> 776250.8762 | H16: =F16+D16 -> 819563.0138 | I16: Fire
B17: التأمين البحري والطيران | C17: 207834.4261 | D17: 237775.8495 | E17: 159959.6084 | F17: 184218.3265 | G17: 367794.0345 | H17: 421994.1761 | I17: Marine & Aviation
B18: تأمين السيارات والمركبات الأخرى | C18: 2563483.321 | D18: 2342975.523 | E18: 1188412.596 | F18: 1236642.88 | G18: 3751895.918 | H18: 3579618.403 | I18: Motor & Transportation
B19: التأمين الهندسي والانشاءات والطاقة | C19: 416926.3065 | D19: 407767.8709 | E19: 101431.9938 | F19: 90540.65814 | G19: 518358.3002 | H19: 498308.529 | I19: Engineering, Construction & Energy
B20: أخرى | C20: 636023.0831 | D20: 714061.4521 | E20: 217001.7334 | F20: 221758.1219 | G20: 853024.8166 | H20: 935819.5739 | I20: Other
B21: اعادة التأمين غير النسبية - المسؤوليات والممتلكات | C21: -280 | D21: 2430.470667 | E21: 0 | F21: 0 | G21: -280 | H21: 2430.470667 | I21: Reinsurance - Property & Liability
B22: المجموع - تأمين الممتلكات والمسؤوليات | C22: =C16+C17+C18+C19+C20+C21 -> 4243824.382 | D22: 4172627.875 | E22: 2023219.563 | F22: 2085106.292 | G22: 6267043.945 | H22: 6257734.166 | I22: Total - Property & Liability Insurance
B24: المجموع - تأمين صحي | C24: 8111834 | D24: 8695088.839 | E24: 3248087.796 | F24: 3897724.655 | G24: =E24+C24 -> 11359921.8 | H24: =F24+D24 -> 12592813.49 | I24: Total - Health Insurance
B26: تأمين حياة جماعي | C26: 261170.355 | D26: 276453.0032 | E26: 47540.01001 | F26: 40216.08055 | G26: =E26+C26 -> 308710.365 | H26: =F26+D26 -> 316669.0837 | I26: Group Life
B27: تأمين ائتمان حياة جماعي | C27: 457701.9956 | D27: 396757.3343 | E27: 6539.98125 | F27: 4951 | G27: 464241.9768 | H27: 401708.3343 | I27: Group Credit Life
B28: تأمين حياة فردي | C28: 948043.0991 | D28: 1104755.713 | E28: 5761916.261 | F28: 4459659.075 | G28: 6709959.36 | H28: 5564414.789 | I28: Individual Life
B29: دفعات الحياة وتكوين الأموال | C29: 44.25084 | D29: -0.87356 | E29: 106292.6004 | F29: 146537.8143 | G29: 106336.8512 | H29: 146536.9407 | I29: Annuities & Fund Accumulation
B30: المجموع - تأمين الأشخاص وعمليات تكوين الأموال | C30: =C26+C27+C28+C29 -> 1666959.701 | D30: 1777965.177 | E30: 5922288.853 | F30: 4651363.97 | G30: 7589248.553 | H30: 6429329.148 | I30: Total - Insurance of Persons & Fund Accumulation
B32: المجموع - كافة فروع التأمين | C32: =C22+C24+C30 -> 14022618.08 | D32: 14645681.89 | E32: 11193596.21 | F32: 10634194.92 | G32: 25216214.29 | H32: 25279876.81 | I32: TOTAL - All Types of Business Combined

Sheet 6B
B6: صافي الأقساط المكتسبة حسب فرع التأمين
B7: شركات التأمين التقليدي الوطنية وشركات التأمين التكافلي الوطنية
B8: Net Earned Premium by Line of Business
B9: Traditional & Takaful National Companies
B11: جدول رقم 6B | I11: TABLE 6B
B12: بالألف درهم | I12: AED in 000's
B13: فروع التأمين | C13: شركات التأمين التقليدي الوطنية | E13: شركات التأمين التكافلي الوطنية | G13: الشركات الوطنية | I13: Line of Business
C14: TRADITIONAL COMPANIES | E14: TAKAFUL OPERATORS | G14: NATIONAL COMPANIES
C15: 2021 | D15: 2022 | E15: 2021 | F15: 2022 | G15: 2021 | H15: 2022
B16: تأمين الحريق | C16: 379449.7557 | D16: 421117.0718 | E16: 40387.48943 | F16: 46499.63628 | G16: =C16+E16 -> 419837.2452 | H16: =D16+F16 -> 467616.7081 | I16: Fire
B17: التأمين البحري والطيران | C17: 198245.1532 | D17: 225725.2455 | E17: 9589.272911 | F17: 12050.60403 | G17: =C17+E17 -> 207834.4261 | H17: =D17+F17 -> 237775.8495 | I17: Marine & Aviation
B18: تأمين السيارات والمركبات الأخرى | C18: 1937263.597 | D18: 1713957.05 | E18: 626219.7247 | F18: 629018.473 | G18: =C18+E18 -> 2563483.321 | H18: =D18+F18 -> 2342975.523 | I18: Motor & Transportation
B19: التأمين الهندسي والانشاءات والطاقة | C19: 400192.0188 | D19: 401908.0254 | E19: 16734.28768 | F19: 5859.845492 | G19: 416926.3065 | H19: 407767.8709 | I19: Engineering, Construction & Energy
B20: أخرى | C20: 570077.7739 | D20: 612821.6731 | E20: 65945.30922 | F20: 101239.779 | G20: 636023.0831 | H20: 714061.4521 | I20: Other
B21: اعادة التأمين غير النسبية - المسؤوليات والممتلكات | C21: -280 | D21: 2430.470667 | E21: 0 | F21: 0 | G21: -280 | H21: 2430.470667 | I21: Reinsurance - Property & Liability
B22: المجموع - تأمين الممتلكات والمسؤوليات | C22: =C16+C17+C18+C19+C20+C21 -> 3484948.298 | D22: 3377959.537 | E22: 758876.084 | F22: 794668.3378 | G22: 4243824.382 | H22: 4172627.875 | I22: Total - Property & Liability Insurance
B24: المجموع - تأمين صحي | C24: 6939049.82 | D24: 7696021.761 | E24: 1172784.194 | F24: 999067.0782 | G24: =C24+E24 -> 8111834.014 | H24: =D24+F24 -> 8695088.839 | I24: Total - Health Insurance
B26: تأمين حياة جماعي | C26: 232024.356 | D26: 246553.9179 | E26: 29145.99899 | F26: 29899.08524 | G26: =C26+E26 -> 261170.355 | H26: =D26+F26 -> 276453.0032 | I26: Group Life
B27: تأمين ائتمان حياة جماعي | C27: 415420.5345 | D27: 346171.7393 | E27: 42281.46112 | F27: 50585.59508 | G27: 457701.9956 | H27: 396757.3343 | I27: Group Credit Life
B28: تأمين حياة فردي | C28: 553063.4012 | D28: 785399.4623 | E28: 394979.6979 | F28: 319356.2512 | G28: 948043.0991 | H28: 1104755.713 | I28: Individual Life
B29: دفعات الحياة وتكوين الأموال | C29: 0 | D29: 0 | E29: 44.25084 | F29: -0.87356 | G29: 44.25084 | H29: -0.87356 | I29: Annuities & Fund Accumulation
B30: المجموع - تأمين الأشخاص وعمليات تكوين الأموال | C30: =C26+C27+C28+C29 -> 1200508.292 | D30: 1378125.119 | E30: 466451.4089 | F30: 399840.0579 | G30: 1666959.701 | H30: 1777965.177 | I30: Total - Insurance of Persons & Fund Accumulation
B32: المجموع - كافة فروع التأمين | C32: =C22+C24+C30 -> 11624506.41 | D32: 12452106.42 | E32: 2398111.687 | F32: 2193575.474 | G32: 14022618.1 | H32: 14645681.89 | I32: TOTAL - All Types of Business Combined

Sheet 7
B6: عدد وثائق التأمين ومعدل إجمالي الأقساط المكتتبة حسب فرع التأمين
B7: No. of Policies and Average Gross Written Premium
B8: (2022)
B10: جدول رقم 7 | L10: TABLE 7
B12: فروع التأمين | C12: الشركات الوطنية | F12: الشركات الأجنبية | I12: الاجمالي | L12: Line of Business
C13: NATIONAL COMPANIES | F13: FOREIGN COMPANIES | I13: TOTAL
C14: إجمالي الأقساط بالألف درهم | D14: عدد الوثائق | E14: معدل الأقساط | F14: إجمالي الأقساط بالألف درهم | G14: عدد الوثائق | H14: معدل الأقساط | I14: إجمالي الأقساط بالألف درهم | J14: عدد الوثائق | K14: معدل الأقساط
C15: GWP | D15: No. of Pols. | E15: Avg GWP | F15: GWP | G15: No. of Pols. | H15: Avg GWP | I15: GWP | J15: No. of Pols. | K15: Avg GWP
B16: تأمين الحريق | C16: 3717305.093 | D16: 181053 | E16: =C16*1000/D16 -> 20531.58519 | F16: 586025.5849 | G16: 52361 | H16: =F16*1000/G16 -> 11192.02431 | I16: =F16+C16 -> 4303330.678 | J16: =G16+D16 -> 233414 | K16: =I16*1000/J16 -> 18436.47201 | L16: Fire
B17: التأمين البحري والطيران | C17: 1505313.444 | D17: 151809 | E17: =C17*1000/D17 -> 9915.837956 | F17: 314019.9794 | G17: 114781 | H17: =F17*1000/G17 -> 2735.818466 | I17: =F17+C17 -> 1819333.424 | J17: =G17+D17 -> 266590 | K17: =I17*1000/J17 -> 6824.462371 | L17: Marine & Aviation
B18: تأمين السيارات والمركبات الأخرى | C18: 3494243.657 | D18: 4029210 | E18: 867.2279818 | F18: 1264617.05 | G18: 827829 | H18: 1527.630767 | I18: 4758860.707 | J18: =G18+D18 -> 4857039 | K18: 979.7863898 | L18: Motor & Transportation
B19: التأمين الهندسي والانشاءات والطاقة | C19: 3103775.44 | D19: 60388 | E19: 51397.22197 | F19: 118896.5704 | G19: 5027 | H19: 23651.59547 | I19: 3222672.011 | J19: =G19+D19 -> 65415 | K19: 49265.03112 | L19: Engineering, Construction & Energy
B20: أخرى | C20: 3209566.038 | D20: 2154158 | E20: 1489.939939 | F20: 497395.0506 | G20: 298053 | H20: 1668.814106 | I20: 3706961.089 | J20: =G20+D20 -> 2452211 | K20: 1511.681127 | L20: Other
B21: اعادة التأمين غير النسبية - المسؤوليات والممتلكات | C21: 5710.81882 | D21: 1351 | E21: 4227.104974 | F21: 0 | G21: 0 | I21: 5710.81882 | J21: =G21+D21 -> 1351 | K21: 4227.104974 | L21: Reinsurance - Property & Liability
B22: المجموع - تأمين الممتلكات والمسؤوليات | C22: =C16+C17+C18+C19+C20+C21 -> 15035914.49 | D22: =D16+D17+D18+D19+D20+D21 -> 6577969 | E22: 2285.798928 | F22: 2780954.236 | G22: 1298051 | H22: =F22*1000/G22 -> 2142.407529 | I22: =C22+F22 -> 17816868.73 | J22: =D22+G22 -> 7876020 | K22: 2262.166516 | L22: Total - Property & Liability Insurance
B24: المجموع - تأمين صحي | C24: 15959199.56 | D24: 1268598 | E24: =C24*1000/D24 -> 12580.1866 | F24: 5782770 | G24: 300629 | H24: =F24*1000/G24 -> 19235.56942 | I24: =F24+C24 -> 21741969.56 | J24: =G24+D24 -> 1569227 | K24: =I24*1000/J24 -> 13855.20996 | L24: Total - Health Insurance
B26: تأمين حياة جماعي | C26: 740245.5426 | D26: 9800 | E26: =C26*1000/D26 -> 75535.25945 | F26: 172663.315 | G26: 1461 | H26: =F26*1000/G26 -> 118181.5982 | I26: 912908.8576 | J26: =G26+D26 -> 11261 | K26: =I26*1000/J26 -> 81068.18734 | L26: Group Life
B27: تأمين ائتمان حياة جماعي | C27: 807626.1132 | D27: 1515 | E27: 533086.5433 | F27: 20818 | G27: 15 | H27: 1387866.667 | I27: 828444.1132 | J27: 1530 | K27: 541466.7406 | L27: Group Credit Life
B28: تأمين حياة فردي | C28: 1184752.507 | D28: 184609 | E28: 6417.631355 | F28: 4614934.563 | G28: 130915 | H28: 35251.38114 | I28: 5799687.069 | J28: 315524 | K28: 18381.12812 | L28: Individual Life
B29: دفعات الحياة وتكوين الأموال | C29: 0 | D29: 0 | F29: 146567.1386 | G29: 972 | H29: 150789.2372 | I29: 146567.1386 | J29: 972 | K29: 150789.2372 | L29: Annuities & Fund Accumulation
B30: المجموع - تأمين الأشخاص وعمليات تكوين الأموال | C30: =C26+C27+C28+C29 -> 2732624.162 | D30: =D26+D27+D28+D29 -> 195924 | E30: =C30*1000/D30 -> 13947.36818 | F30: 4954983.016 | G30: 133363 | H30: 37154.10583 | I30: =C30+F30 -> 7687607.179 | J30: =D30+G30 -> 329287 | K30: 23346.22132 | L30: Total - Insurance of Persons & Fund Accumulation
B32: المجموع - كافة فروع التأمين | C32: =C22+C24+C30 -> 33727738.21 | D32: =D22+D24+D30 -> 8042491 | E32: =C32*1000/D32 -> 4193.693 | F32: =F22+F24+F30 -> 13518707.25 | G32: =G22+G24+G30 -> 1732043 | H32: =F32*1000/G32 -> 7805.064454 | I32: =I22+I24+I30 -> 47246445.46 | J32: =J22+J24+J30 -> 9774534 | K32: =I32*1000/J32 -> 4833.626387 | L32: TOTAL - All Types of Business Combined

Sheet 8
B6: إجمالي الأقساط المكتتبة والعمولات المدفوعة حسب قنوات التوزيع الشركات الوطنية والاجنبية
B7: Gross Written Premium & Commission Paid by Distribution Channel
B8: (2022)
B10: جدول رقم 8 | I10: TABLE 8
B11: بالألف درهم | C11: Gross Written Premiums (اجمالي الاقساط المكتتبة) | I11: AED in 000's
B12: فروع التأمين | C12: الشركات الوطنية | E12: الشركات الأجنبية | G12: الاجمالي | I12: Distribution Channel
C13: NATIONAL COMPANIES | E13: FOREIGN COMPANIES | G13: TOTAL
C14: تأمينات عامة | D14: تأمين على الحياة | E14: تأمينات عامة | F14: تأمين على الحياة | G14: تأمينات عامة | H14: تأمين على الحياة
C15: Non-Life | D15: Life | E15: Non-Life | F15: Life | G15: Non-Life | H15: Life
B16: الوثائق المباعة من خلال الوكلاء | C16: 1203238.104 | D16: 179012.257 | E16: 504384.7012 | F16: 578267.3187 | G16: =E16+C16 -> 1707622.805 | H16: =F16+D16 -> 757279.5757 | I16: Policies Sold Through Agents
B17: الوثائق المباعة من خلال الوسطاء | C17: 13757991.6 | D17: 1131248.652 | E17: 4575610.579 | F17: 4852541.681 | G17: 18333602.18 | H17: 5983790.333 | I17: Policies Sold Through Brokers
B18: الوثائق المباعة من خلال البنوك | C18: 273172.0496 | D18: 964740.8879 | E18: 116345.3113 | F18: 1070175.803 | G18: 389517.3609 | H18: 2034916.691 | I18: Policies Sold Through Banks
B19: الوثائق المباعة من خلال شركات التمويل | C19: 15.18129 | D19: 0 | E19: 29410.28378 | F19: 0 | G19: 29425.46507 | H19: 0 | I19: Policies Sold Through Financial Institutions
B20: الوثائق المباعة عبر الانترنت | C20: 113680.3207 | D20: 0 | E20: 112146.8605 | F20: 0 | G20: =E20+C20 -> 225827.1812 | H20: =F20+D20 -> 0 | I20: Policies Sold Online
B21: الأخرى | C21: 14941165.3 | D21: 1163473.866 | E21: 1479363.628 | F21: 200461.047 | G21: 16420528.93 | H21: 1363934.913 | I21: Others
B22: كافة قنوات التوزيع | C22: =SUM(C16:C21) -> 30289262.55 | D22: 3438475.662 | E22: 6817261.364 | F22: 6701445.85 | G22: 37106523.92 | H22: 10139921.51 | I22: All Distribution Channels
C23: Percent of Total Gross Premium (توزيع إجمالي الأقساط)
B24: الوكلاء | C24: =IFERROR(C16/C$22,"") -> 0.03972490587 | D24: 0.05206151637 | E24: 0.073986411 | F24: 0.0862899338 | G24: 0.04601947649 | H24: 0.07468298199 | I24: Agents
B25: الوسطاء | C25: 0.4542200912 | D25: 0.3289971379 | E25: 0.6711801609 | F25: 0.724103692 | G25: 0.4940802922 | H25: 0.5901219576 | I25: Brokers
B26: البنوك (المصارف) | C26: 0.00901877519 | D26: 0.2805722601 | E26: 0.01706628294 | F26: 0.1596932702 | G26: 0.01049727433 | H26: 0.2006836728 | I26: Banks
B27: المؤسسات الاستثمارية والمالية | C27: 5.012102878e-07 | D27: 0 | E27: 0.00431409069 | F27: 0 | G27: 0.0007929997738 | H27: 0 | I27: Investment / Financial Institutions
B28: الوثائق المباعة عبر الانترنت | C28: 0.003753155777 | D28: 0 | E28: 0.01645042701 | F28: 0 | G28: 0.006085915827 | H28: 0 | I28: Policies Sold Online
B29: الأخرى | C29: 0.4932825707 | D29: 0.3383690856 | E29: 0.2170026275 | F29: 0.02991310405 | G29: 0.4425240414 | H29: 0.1345113876 | I29: Others
B30: كافة قنوات التوزيع | C30: 1 | D30: 1 | E30: 1 | F30: 1 | G30: 1 | H30: 1 | I30: All Distribution Channels
C31: Commission Paid (العمولات المدفوعة)
B32: الوكلاء | C32: 152379.1497 | D32: 11699.74637 | E32: 114941.9856 | F32: 28921.04034 | G32: =E32+C32 -> 267321.1353 | H32: =F32+D32 -> 40620.78671 | I32: Agents
B33: الوسطاء | C33: 1277800.847 | D33: 86962.6088 | E33: 612554.5823 | F33: 286348.1916 | G33: 1890355.429 | H33: 373310.8005 | I33: Brokers
B34: البنوك (المصارف) | C34: 82416.94983 | D34: 176780.6944 | E34: 43838.58043 | F34: 12642.135 | G34: 126255.5303 | H34: 189422.8294 | I34: Banks
B35: المؤسسات الاستثمارية والمالية | C35: 0 | D35: 0 | E35: 3879.9496 | F35: 0 | G35: 3879.9496 | H35: 0 | I35: Investment / Financial Institutions
B36: الوثائق المباعة عبر الانترنت | C36: 777.9214847 | D36: 0 | E36: 0.48711 | F36: 0 | G36: =E36+C36 -> 778.4085947 | H36: =F36+D36 -> 0 | I36: Policies Sold Online
B37: الأخرى | C37: 693963.5132 | D37: 123036.2773 | E37: 115287.6075 | F37: 30357.34 | G37: 809251.1207 | H37: 153393.6173 | I37: Others
B38: كافة قنوات التوزيع | C38: =SUM(C32:C37) -> 2207338.381 | D38: 398479.3269 | E38: 890503.1925 | F38: 358268.707 | G38: 3097841.574 | H38: 756748.0339 | I38: All Distribution Channels
C39: Commission Ratio (نسبة العمولات )
B40: الوكلاء | C40: =IFERROR(C32/C16,"") -> 0.1266408944 | D40: 0.06535723625 | E40: 0.2278855511 | F40: 0.05001327137 | G40: 0.1565457749 | H40: 0.05364040971 | I40: Agents
B41: الوسطاء | C41: 0.09287698991 | D41: 0.07687311599 | E41: 0.1338738452 | F41: 0.05900993963 | G41: 0.1031087841 | H41: 0.06238701219 | I41: Brokers
B42: البنوك (المصارف) | C42: 0.3017034501 | D42: 0.1832416316 | E42: 0.3767971389 | F42: 0.01181313852 | G42: 0.3241332555 | H42: 0.09308628224 | I42: Banks
B43: المؤسسات الاستثمارية والمالية | C43: 0 | E43: 0.131924929 | G43: 0.1318568658 | I43: Investment / Financial Institutions
B44: الوثائق المباعة عبر الانترنت | C44: 0.006843062017 | E44: 4.343500994e-06 | G44: 0.003446921627 | I44: Policies Sold Online
B45: الأخرى | C45: 0.0464464116 | D45: 0.1057490683 | E45: 0.07793054074 | F45: 0.1514376007 | G45: 0.04928289 | H45: 0.1124640303 | I45: Others
B46: كافة قنوات التوزيع | C46: 0.07287527642 | D46: 0.1158883663 | E46: 0.1306247692 | F46: 0.05346140445 | G46: 0.08348509229 | H46: 0.07463056129 | I46: All Distribution Channels

Sheet 9A
B6: إجمالي المُخصصات الفنية حسب فرع التأمين
B7: الشركات الوطنية والاجنبية
B8: Gross Technical Provisions by Line of Business
B9: National & Foreign Companies
B11: جدول رقم 9A | I11: TABLE 9A
B12: بالألف درهم | I12: AED in 000's
B13: فروع التأمين | C13: الشركات الوطنية | E13: الشركات الأجنبية | G13: الاجمالي | I13: Line of Business
C14: NATIONAL COMPANIES | E14: FOREIGN COMPANIES | G14: TOTAL
C15: 2021 | D15: 2022 | E15: 2021 | F15: 2022 | G15: 2021 | H15: 2022
B16: تأمين الحريق | C16: 4191692.147 | D16: 4550578.166 | E16: 1268435.382 | F16: 1178344.376 | G16: =E16+C16 -> 5460127.529 | H16: =F16+D16 -> 5728922.542 | I16: Fire
B17: التأمين البحري والطيران | C17: 1466776.914 | D17: 1777818.294 | E17: 396889.0465 | F17: 416634.5856 | G17: 1863665.96 | H17: 2194452.879 | I17: Marine & Aviation
B18: تأمين السيارات والمركبات الأخرى | C18: 3589958.418 | D18: 3436753.59 | E18: 1552032.306 | F18: 1438526.347 | G18: 5141990.724 | H18: 4875279.938 | I18: Motor & Transportation
B19: التأمين الهندسي والانشاءات والطاقة | C19: 4337468.17 | D19: 5149558.078 | E19: 777669.3491 | F19: 742065.832 | G19: 5115137.52 | H19: 5891623.91 | I19: Engineering, Construction & Energy
B20: أخرى | C20: 3273813.202 | D20: 3412591.614 | E20: 662530.4333 | F20: 649063.2771 | G20: 3936343.635 | H20: 4061654.891 | I20: Other
B21: اعادة التأمين غير النسبية - المسؤوليات والممتلكات | C21: 2551 | D21: 3790.876015 | E21: 0 | F21: 0 | G21: 2551 | H21: 3790.876015 | I21: Reinsurance - Property & Liability
B22: المجموع - تأمين الممتلكات والمسؤوليات | C22: =C16+C17+C18+C19+C20+C21 -> 16862259.85 | D22: 18331090.62 | E22: 4657556.517 | F22: =F16+F17+F18+F19+F20+F21 -> 4424634.418 | G22: =G16+G17+G18+G19+G20+G21 -> 21519816.37 | H22: 22755725.04 | I22: Total - Property & Liability Insurance
B24: المجموع - تأمين صحي | C24: 8337342.773 | D24: 9062913.144 | E24: 2053308.499 | F24: 2264988.035 | G24: =E24+C24 -> 10390651.27 | H24: =F24+D24 -> 11327901.18 | I24: Total - Health Insurance
B26: تأمين حياة جماعي | C26: 640765.5115 | D26: 607339.5475 | E26: 165658.137 | F26: 170072.166 | G26: =E26+C26 -> 806423.6485 | H26: =F26+D26 -> 777411.7135 | I26: Group Life
B27: تأمين ائتمان حياة جماعي | C27: 1042924.742 | D27: 1103694.802 | E27: 17474 | F27: 14216 | G27: 1060398.742 | H27: 1117910.802 | I27: Group Credit Life
B28: تأمين حياة فردي | C28: 5809026.539 | D28: 6072178.985 | E28: 30797416.53 | F28: 25915252.36 | G28: 36606443.07 | H28: 31987431.35 | I28: Individual Life
B29: دفعات الحياة وتكوين الأموال | C29: 0 | D29: 0 | E29: 754229.1366 | F29: 584732.4042 | G29: 754229.1366 | H29: 584732.4042 | I29: Annuities & Fund Accumulation
B30: المجموع - تأمين الأشخاص وعمليات تكوين الأموال | C30: =C26+C27+C28+C29 -> 7492716.792 | D30: 7783213.335 | E30: 31734777.81 | F30: 26684272.93 | G30: 39227494.6 | H30: 34467486.27 | I30: Total - Insurance of Persons & Fund Accumulation
B32: المجموع - كافة فروع التأمين | C32: =C22+C24+C30 -> 32692319.42 | D32: 35177217.1 | E32: 38445642.83 | F32: 33373895.38 | G32: 71137962.24 | H32: 68551112.48 | I32: TOTAL - All Types of Business Combined

Sheet 9B
B6: إجمالي المُخصصات الفنية حسب فرع التأمين
B7: شركات التأمين التقليدي الوطنية وشركات التأمين التكافلي الوطنية
B8: Gross Technical Provisions by Line of Business
B9: Traditional & Takaful National Companies
B11: جدول رقم 9B | I11: TABLE 9B
B12: بالألف درهم | I12: AED in 000's
B13: فروع التأمين | C13: شركات التأمين التقليدي الوطنية | E13: شركات التأمين التكافلي الوطنية | G13: الشركات الوطنية | I13: Line of Business
C14: TRADITIONAL COMPANIES | E14: TAKAFUL OPERATORS | G14: NATIONAL COMPANIES
C15: 2021 | D15: 2022 | E15: 2021 | F15: 2022 | G15: 2021 | H15: 2022
B16: تأمين الحريق | C16: 3735999.613 | D16: 4051703.945 | E16: 455692.5336 | F16: 498874.2209 | G16: =E16+C16 -> 4191692.147 | H16: =F16+D16 -> 4550578.166 | I16: Fire
B17: التأمين البحري والطيران | C17: 1416924.333 | D17: 1704865.605 | E17: 49852.58112 | F17: 72952.68889 | G17: 1466776.914 | H17: 1777818.294 | I17: Marine & Aviation
B18: تأمين السيارات والمركبات الأخرى | C18: 2496868.747 | D18: 2395727.499 | E18: 1093089.671 | F18: 1041026.092 | G18: 3589958.418 | H18: 3436753.59 | I18: Motor & Transportation
B19: التأمين الهندسي والانشاءات والطاقة | C19: 4195358.075 | D19: 4907221.453 | E19: 142110.0954 | F19: 242336.6251 | G19: 4337468.17 | H19: 5149558.078 | I19: Engineering, Construction & Energy
B20: أخرى | C20: 2969459.667 | D20: 3057742.681 | E20: 304353.535 | F20: 354848.9332 | G20: 3273813.202 | H20: 3412591.614 | I20: Other
B21: اعادة التأمين غير النسبية - المسؤوليات والممتلكات | C21: 2551 | D21: 3790.876015 | E21: 0 | F21: 0 | G21: 2551 | H21: 3790.876015 | I21: Reinsurance - Property & Liability
B22: المجموع - تأمين الممتلكات والمسؤوليات | C22: =C16+C17+C18+C19+C20+C21 -> 14817161.43 | D22: =D16+D17+D18+D19+D20+D21 -> 16121052.06 | E22: 2045098.416 | F22: =F16+F17+F18+F19+F20+F21 -> 2210038.56 | G22: =G16+G17+G18+G19+G20+G21 -> 16862259.85 | H22: 18331090.62 | I22: Total - Property & Liability Insurance
B24: المجموع - تأمين صحي | C24: 7216486.043 | D24: 8057247.328 | E24: 1120856.73 | F24: 1005665.816 | G24: =E24+C24 -> 8337342.773 | H24: =F24+D24 -> 9062913.144 | I24: Total - Health Insurance
B26: تأمين حياة جماعي | C26: 566885.9129 | D26: 543337.5417 | E26: 73879.59858 | F26: 64002.00573 | G26: =E26+C26 -> 640765.5115 | H26: =F26+D26 -> 607339.5475 | I26: Group Life
B27: تأمين ائتمان حياة جماعي | C27: 681549.5417 | D27: 807270.7737 | E27: 361375.2004 | F27: 296424.0284 | G27: 1042924.742 | H27: 1103694.802 | I27: Group Credit Life
B28: تأمين حياة فردي | C28: 2426409.04 | D28: 3301000.933 | E28: 3382617.499 | F28: 2771178.052 | G28: 5809026.539 | H28: 6072178.985 | I28: Individual Life
B29: دفعات الحياة وتكوين الأموال | C29: 0 | D29: 0 | E29: 0 | F29: 0 | G29: 0 | H29: 0 | I29: Annuities & Fund Accumulation
B30: المجموع - تأمين الأشخاص وعمليات تكوين الأموال | C30: =C26+C27+C28+C29 -> 3674844.495 | D30: =D26+D27+D28+D29 -> 4651609.248 | E30: 3817872.298 | F30: 3131604.087 | G30: 7492716.792 | H30: 7783213.335 | I30: Total - Insurance of Persons & Fund Accumulation
B32: المجموع - كافة فروع التأمين | C32: =C22+C24+C30 -> 25708491.97 | D32: =D22+D24+D30 -> 28829908.63 | E32: 6983827.444 | F32: 6347308.462 | G32: 32692319.42 | H32: 35177217.1 | I32: TOTAL - All Types of Business Combined

Sheet 9C
B6: إجمالي المُخصصات الفنية حسب فرع التأمين
B7: شركات التأمين على الحياة وشركات التأمينات العامة وشركات التأمين على الحياة والتأمينات العامة
B8: Gross Technical Provisions by Line of Business
B9: Life, Non-Life & Composite Companies
B11: جدول رقم 9C | K11: TABLE 9C
B12: بالألف درهم | K12: AED in 000's
B13: فروع التأمين | C13: شركات التأمين على الأشخاص وتكوين الأموال | E13: شركات تأمين الممتلكات والمسؤوليات | G13: شركات التأمين (النوعين معاً) | I13: الاجمالي | K13: Line of Business
C14: LIFE COMPANIES | E14: NON-LIFE COMPANIES | G14: COMPOSITE COMPANIES | I14: TOTAL
C15: 2021 | D15: 2022 | E15: 2021 | F15: 2022 | G15: 2021 | H15: 2022 | I15: 2021 | J15: =ReportYear -> 2022
B16: تأمين الحريق | C16: 0 | D16: 0 | E16: 2095993.474 | F16: 1839468.031 | G16: 3364134.055 | H16: 3889454.511 | I16: =G16+E16+C16 -> 5460127.529 | J16: =H16+F16+D16 -> 5728922.542 | K16: Fire
B17: التأمين البحري والطيران | C17: 0 | D17: 0 | E17: 439890.5723 | F17: 468739.9823 | G17: 1423775.388 | H17: 1725712.897 | I17: 1863665.96 | J17: 2194452.879 | K17: Marine & Aviation
B18: تأمين السيارات والمركبات الأخرى | C18: 0 | D18: 0.001 | E18: 2619183.8 | F18: 2483700.139 | G18: 2522806.924 | H18: 2391579.798 | I18: 5141990.724 | J18: 4875279.938 | K18: Motor & Transportation
B19: التأمين الهندسي والانشاءات والطاقة | C19: 0 | D19: 0 | E19: 940888.8652 | F19: 1052119.068 | G19: 4174248.654 | H19: 4839504.842 | I19: 5115137.52 | J19: 5891623.91 | K19: Engineering, Construction & Energy
B20: أخرى | C20: 0 | D20: 0 | E20: 578838.3295 | F20: 596137.1244 | G20: 3357505.305 | H20: 3465517.767 | I20: 3936343.635 | J20: 4061654.891 | K20: Other
B21: اعادة التأمين غير النسبية - المسؤوليات والممتلكات | C21: 0 | D21: 0 | E21: 2551 | F21: 3790.876015 | G21: 0 | H21: 0 | I21: 2551 | J21: 3790.876015 | K21: Reinsurance - Property & Liability
B22: المجموع - تأمين الممتلكات والمسؤوليات | C22: =C16+C17+C18+C19+C20+C21 -> 0 | D22: =D16+D17+D18+D19+D20+D21 -> 0.001 | E22: 6677346.041 | F22: 6443955.221 | G22: 14842470.33 | H22: 16311769.81 | I22: 21519816.37 | J22: 22755725.04 | K22: Total - Property & Liability Insurance
B24: المجموع - تأمين صحي | C24: 841779.7658 | D24: 867531.0159 | E24: 4389136.722 | F24: 4661559.334 | G24: 5159734.784 | H24: 5798810.829 | I24: =G24+E24+C24 -> 10390651.27 | J24: 11327901.18 | K24: Total - Health Insurance
B26: تأمين حياة جماعي | C26: 167522.3291 | D26: 177632.4804 | E26: 1810.331792 | F26: 3299.644256 | G26: 637090.9875 | H26: 596479.5888 | I26: =G26+E26+C26 -> 806423.6485 | J26: 777411.7135 | K26: Group Life
B27: تأمين ائتمان حياة جماعي | C27: 53461.39552 | D27: 35175.24024 | E27: 0 | F27: 0 | G27: 1006937.347 | H27: 1082735.562 | I27: 1060398.742 | J27: 1117910.802 | K27: Group Credit Life
B28: تأمين حياة فردي | C28: 26602069.17 | D28: 22410244.53 | E28: 0 | F28: 0 | G28: 10004373.91 | H28: 9577186.82 | I28: 36606443.07 | J28: 31987431.35 | K28: Individual Life
B29: دفعات الحياة وتكوين الأموال | C29: 276882.1366 | D29: 236809.4042 | E29: 0 | F29: 0 | G29: 477347 | H29: 347923 | I29: 754229.1366 | J29: 584732.4042 | K29: Annuities & Fund Accumulation
B30: المجموع - تأمين الأشخاص وعمليات تكوين الأموال | C30: =C26+C27+C28+C29 -> 27099935.03 | D30: =D26+D27+D28+D29 -> 22859861.65 | E30: 1810.331792 | F30: 3299.644256 | G30: 12125749.24 | H30: 11604324.97 | I30: 39227494.6 | J30: 34467486.27 | K30: Total - Insurance of Persons & Fund Accumulation
B32: المجموع - كافة فروع التأمين | C32: =C22+C24+C30 -> 27941714.79 | D32: =D22+D24+D30 -> 23727392.67 | E32: 11068293.09 | F32: 11108814.2 | G32: 32127954.35 | H32: 33714905.61 | I32: 71137962.24 | J32: 68551112.48 | K32: TOTAL - All Types of Business Combined

Sheet 10A
B6: صافي المُخصصات الفنية حسب فرع التأمين
B7: الشركات الوطنية والاجنبية
B8: Net Technical Provisions by Line of Business
B9: National & Foreign Companies
B11: جدول رقم 10A | I11: TABLE 10A
B12: بالألف درهم | I12: AED in 000's
B13: فروع التأمين | C13: الشركات الوطنية | E13: الشركات الأجنبية | G13: الاجمالي | I13: Line of Business
C14: NATIONAL COMPANIES | E14: FOREIGN COMPANIES | G14: TOTAL
C15: 2021 | D15: 2022 | E15: 2021 | F15: 2022 | G15: 2021 | H15: 2022
B16: تأمين الحريق | C16: 667129.0618 | D16: 627642.8325 | E16: 912336.131 | F16: 756192.5655 | G16: =E16+C16 -> 1579465.193 | H16: =F16+D16 -> 1383835.398 | I16: Fire
B17: التأمين البحري والطيران | C17: 296548.8027 | D17: 328061.7664 | E17: 280841.1334 | F17: 260964.709 | G17: 577389.9362 | H17: 589026.4753 | I17: Marine & Aviation
B18: تأمين السيارات والمركبات الأخرى | C18: 2376448.229 | D18: 2265319.04 | E18: 1490378.98 | F18: 1384983.882 | G18: 3866827.209 | H18: 3650302.922 | I18: Motor & Transportation
B19: التأمين الهندسي والانشاءات والطاقة | C19: 847282.6973 | D19: 878395.1914 | E19: 445306.0324 | F19: 414740.5079 | G19: 1292588.73 | H19: 1293135.699 | I19: Engineering, Construction & Energy
B20: أخرى | C20: 580245.0128 | D20: 650575.6936 | E20: 243540.3767 | F20: 252319.6913 | G20: 823785.3895 | H20: 902895.385 | I20: Other
B21: اعادة التأمين غير النسبية - المسؤوليات والممتلكات | C21: 280 | D21: 2448.163181 | E21: 0 | F21: 0 | G21: 280 | H21: 2448.163181 | I21: Reinsurance - Property & Liability
B22: المجموع - تأمين الممتلكات والمسؤوليات | C22: =C16+C17+C18+C19+C20+C21 -> 4767933.803 | D22: =D16+D17+D18+D19+D20+D21 -> 4752442.687 | E22: 3372402.654 | F22: 3069201.356 | G22: 8140336.457 | H22: 7821644.043 | I22: Total - Property & Liability Insurance
B24: المجموع - تأمين صحي | C24: 4809669.575 | D24: 5095910.489 | E24: 1486703.871 | F24: 1679344.377 | G24: =E24+C24 -> 6296373.446 | H24: =F24+D24 -> 6775254.866 | I24: Total - Health Insurance
B26: تأمين حياة جماعي | C26: 199971.0127 | D26: 194030.6926 | E26: 28955.351 | F26: 26842.921 | G26: =E26+C26 -> 228926.3637 | H26: =F26+D26 -> 220873.6136 | I26: Group Life
B27: تأمين ائتمان حياة جماعي | C27: 348776.8995 | D27: 500487.9596 | E27: 6861 | F27: 4686 | G27: 355637.8995 | H27: 505173.9596 | I27: Group Credit Life
B28: تأمين حياة فردي | C28: 5629607.198 | D28: 5969514.035 | E28: 30781550.59 | F28: 24238529 | G28: 36411157.79 | H28: 30208043.03 | I28: Individual Life
B29: دفعات الحياة وتكوين الأموال | C29: 0 | D29: 0 | E29: 754229.1366 | F29: 584732.4042 | G29: 754229.1366 | H29: 584732.4042 | I29: Annuities & Fund Accumulation
B30: المجموع - تأمين الأشخاص وعمليات تكوين الأموال | C30: =C26+C27+C28+C29 -> 6178355.11 | D30: 6664032.688 | E30: 31571596.08 | F30: =F26+F27+F28+F29 -> 24854790.32 | G30: =G26+G27+G28+G29 -> 37749951.19 | H30: 31518823.01 | I30: Total - Insurance of Persons & Fund Accumulation
B32: المجموع - كافة فروع التأمين | C32: =C22+C24+C30 -> 15755958.49 | D32: 16512385.86 | E32: 36430702.6 | F32: =F22+F24+F30 -> 29603336.05 | G32: =G22+G24+G30 -> 52186661.09 | H32: 46115721.92 | I32: TOTAL - All Types of Business Combined

Sheet 10B
B6: صافي المُخصصات الفنية حسب فرع التأمين
B7: شركات التأمين التقليدي الوطنية وشركات التأمين التكافلي الوطنية
B8: Net Technical Provisions by Line of Business
B9: Traditional & Takaful National Companies
B11: جدول رقم 10B | I11: TABLE 10B
B12: بالألف درهم | I12: AED in 000's
B13: فروع التأمين | C13: شركات التأمين التقليدي الوطنية | E13: شركات التأمين التكافلي الوطنية | G13: الشركات الوطنية | I13: Line of Business
C14: TRADITIONAL COMPANIES | E14: TAKAFUL OPERATORS | G14: NATIONAL COMPANIES
C15: 2021 | D15: 2022 | E15: 2021 | F15: 2022 | G15: 2021 | H15: 2022
B16: تأمين الحريق | C16: 631323.0167 | D16: 591239.0971 | E16: 35806.0451 | F16: 36403.73535 | G16: =E16+C16 -> 667129.0618 | H16: =F16+D16 -> 627642.8325 | I16: Fire
B17: التأمين البحري والطيران | C17: 290171.4843 | D17: 312776.8028 | E17: 6377.318444 | F17: 15284.96355 | G17: 296548.8027 | H17: 328061.7664 | I17: Marine & Aviation
B18: تأمين السيارات والمركبات الأخرى | C18: 1679223.459 | D18: 1549324.938 | E18: 697224.7693 | F18: 715994.1027 | G18: 2376448.229 | H18: 2265319.04 | I18: Motor & Transportation
B19: التأمين الهندسي والانشاءات والطاقة | C19: 822342.8737 | D19: 844673.5424 | E19: 24939.82354 | F19: 33721.64901 | G19: 847282.6973 | H19: 878395.1914 | I19: Engineering, Construction & Energy
B20: أخرى | C20: 507639.2882 | D20: 554546.2182 | E20: 72605.72456 | F20: 96029.47545 | G20: 580245.0128 | H20: 650575.6936 | I20: Other
B21: اعادة التأمين غير النسبية - المسؤوليات والممتلكات | C21: 280 | D21: 2448.163181 | E21: 0 | F21: 0 | G21: 280 | H21: 2448.163181 | I21: Reinsurance - Property & Liability
B22: المجموع - تأمين الممتلكات والمسؤوليات | C22: =C16+C17+C18+C19+C20+C21 -> 3930980.122 | D22: =D16+D17+D18+D19+D20+D21 -> 3855008.761 | E22: 836953.681 | F22: 897433.9261 | G22: 4767933.803 | H22: 4752442.687 | I22: Total - Property & Liability Insurance
B24: المجموع - تأمين صحي | C24: 4109229.265 | D24: 4474641.262 | E24: 700440.3099 | F24: 621269.2267 | G24: 4809670 | H24: 5095910.489 | I24: Total - Health Insurance
B26: تأمين حياة جماعي | C26: 183378.5957 | D26: 181106.2696 | E26: 16592.41709 | F26: 12924.42297 | G26: =E26+C26 -> 199971.0127 | H26: 194030.6926 | I26: Group Life
B27: تأمين ائتمان حياة جماعي | C27: 301646.0367 | D27: 457891.4541 | E27: 47130.86288 | F27: 42596.50556 | G27: 348776.8995 | H27: 500487.9596 | I27: Group Credit Life
B28: تأمين حياة فردي | C28: 2363358.061 | D28: 3227427.376 | E28: 3266249.137 | F28: 2742086.66 | G28: 5629607.198 | H28: 5969514.035 | I28: Individual Life
B29: دفعات الحياة وتكوين الأموال | C29: 0 | D29: 0 | E29: 0 | F29: 0 | G29: 0 | H29: 0 | I29: Annuities & Fund Accumulation
B30: المجموع - تأمين الأشخاص وعمليات تكوين الأموال | C30: =C26+C27+C28+C29 -> 2848382.693 | D30: =D26+D27+D28+D29 -> 3866425.1 | E30: 3329972.417 | F30: 2797607.588 | G30: 6178355.11 | H30: 6664032.688 | I30: Total - Insurance of Persons & Fund Accumulation
B32: المجموع - كافة فروع التأمين | C32: =C22+C24+C30 -> 10888592.08 | D32: =D22+D24+D30 -> 12196075.12 | E32: 4867366.408 | F32: 4316310.741 | G32: 15755958.91 | H32: 16512385.86 | I32: TOTAL - All Types of Business Combined

Sheet 11A
B6: إجمالي المُخصصات الفنية حسب فرع التأمين
B7: Gross Technical Provisions by Line of Business
B8: (2022)
B11: جدول رقم 11A | K11: TABLE 11A
B12: بالألف درهم | K12: AED in 000's
B13: فروع التأمين | C13: مخصص الأقساط غير المكتسبة | D13: مخصص المخاطر غير المنتهية | E13: مخصص المطالبات تحت التسوية | F13: مخصص المطالبات المتكبدة غير المبلغة | G13: مصاريف تسوية المطالبات الموزعة | H13: مصاريف تسوية المطالبات غير الموزعة | I13: المخصص الحسابي | J13: المجموع | K13: Line of Business
C15: UPR | D15: URR | E15: OSLR | F15: IBNR | G15: ALAE | H15: ULAE | I15: MATH | J15: Total
B16: تأمين الحريق | C16: 1603209.94 | D16: 36161.28059 | E16: 3365979.454 | F16: 663694.6208 | G16: 24960.88383 | H16: 34916.36239 | I16: 0 | J16: 5728922.542 | K16: Fire
B17: التأمين البحري والطيران | C17: 696107.189 | D17: 2398.27 | E17: 1119317.918 | F17: 351032.329 | G17: 10784.13656 | H17: 14813.03713 | I17: 0 | J17: 2194452.879 | K17: Marine & Aviation
B18: تأمين السيارات والمركبات الأخرى | C18: 2426046.45 | D18: 114685.9526 | E18: 1467770.109 | F18: 799980.3678 | G18: 7689.492383 | H18: 59107.56797 | I18: 0.001 | J18: 4875279.942 | K18: Motor & Transportation
B19: التأمين الهندسي والانشاءات والطاقة | C19: 1581997.199 | D19: 6792.868036 | E19: 3774444.435 | F19: 470760.9403 | G19: 18718.19627 | H19: 38910.27083 | I19: 0 | J19: 5891623.91 | K19: Engineering, Construction & Energy
B20: أخرى | C20: 1955511.923 | D20: 5030.144792 | E20: 1382300.796 | F20: 663647.8718 | G20: 20024.8562 | H20: 35139.29858 | I20: 0 | J20: 4061654.891 | K20: Other
B21: اعادة التأمين غير النسبية - المسؤوليات والممتلكات | C21: 2702.031082 | D21: 0 | E21: 788.994 | F21: 266.786745 | G21: 0 | H21: 33.06418725 | I21: 0 | J21: 3790.876015 | K21: Reinsurance - Property & Liability
B22: المجموع - تأمين الممتلكات والمسؤوليات | C22: =C16+C17+C18+C19+C20+C21 -> 8265574.733 | D22: 165068.516 | E22: 11110601.71 | F22: 2949382.916 | G22: 82177.56524 | H22: 182919.6011 | I22: 0.001 | J22: 22755725.04 | K22: Total - Property & Liability Insurance
B24: المجموع - تأمين صحي | C24: 7102571.204 | D24: 46122.67203 | E24: 2160172.444 | F24: 1975085.64 | G24: 2385.94225 | H24: 41563.27631 | I24: 0 | J24: 11327901.18 | K24: Total - Health Insurance
B26: تأمين حياة جماعي | C26: 206839.9537 | D26: 8899.371778 | E26: 423345.8163 | F26: 133854.3324 | G26: 0 | H26: 4472.239286 | I26: 0 | J26: 777411.7135 | K26: Group Life
B27: تأمين ائتمان حياة جماعي | C27: 47621.25135 | D27: 4006.67605 | E27: 305361.0448 | F27: 124773.7995 | G27: 0 | H27: 2772.268668 | I27: 633375.7618 | J27: 1117910.802 | K27: Group Credit Life
B28: تأمين حياة فردي | C28: 396238.4298 | D28: 18.55220034 | E28: 117446.5722 | F28: 34990.92682 | G28: 0 | H28: 31.98451867 | I28: 31438704.88 | J28: 31987431.35 | K28: Individual Life
B29: دفعات الحياة وتكوين الأموال | C29: 0 | D29: 0 | E29: 413 | F29: 0 | G29: 0 | H29: 0 | I29: 584319.4042 | J29: 584732.4042 | K29: Annuities & Fund Accumulation
B30: المجموع - تأمين الأشخاص وعمليات تكوين الأموال | C30: =C26+C27+C28+C29 -> 650699.6349 | D30: 12924.60003 | E30: 846566.4333 | F30: 293619.0587 | G30: 0 | H30: 7276.492472 | I30: 32656400.05 | J30: 34467486.27 | K30: Total - Insurance of Persons & Fund Accumulation
B32: المجموع - كافة فروع التأمين | C32: =C22+C24+C30 -> 16018845.57 | D32: 224115.788 | E32: 14117340.58 | F32: 5218087.615 | G32: 84563.50749 | H32: 231759.3699 | I32: 32656400.05 | J32: 68551112.48 | K32: TOTAL - All Types of Business Combined

Sheet 11B
B6: صافي المخصصات الفنية حسب فرع التأمين
B7: Net Technical Provisions by Line of Business
B8: (2022)
B11: جدول رقم 11B | K11: TABLE 11B
B12: بالألف درهم | K12: AED in 000's
B13: فروع التأمين | C13: مخصص الأقساط غير المكتسبة | D13: مخصص المخاطر غير المنتهية | E13: مخصص المطالبات تحت التسوية | F13: مخصص المطالبات المتكبدة غير المبلغة | G13: مصاريف تسوية المطالبات الموزعة | H13: مصاريف تسوية المطالبات غير الموزعة | I13: المخصص الحسابي | J13: المجموع | K13: Line of Business
C15: UPR | D15: URR | E15: OSLR | F15: IBNR | G15: ALAE | H15: ULAE | I15: MATH | J15: Total
B16: تأمين الحريق | C16: 322543.2095 | D16: 7248.606055 | E16: 758601.571 | F16: 255729 | G16: 4796.648957 | H16: 34916.36239 | I16: 0 | J16: 1383835.398 | K16: Fire
B17: التأمين البحري والطيران | C17: 134417.0499 | D17: 3087.402711 | E17: 329929.0906 | F17: 103301.0492 | G17: 3478.845844 | H17: 14813.03713 | I17: 0 | J17: 589026.4753 | K17: Marine & Aviation
B18: تأمين السيارات والمركبات الأخرى | C18: 1918099.339 | D18: 112035.9854 | E18: 1060412.674 | F18: 494140.2048 | G18: 6507.153395 | H18: 59107.56797 | I18: 0.001 | J18: 3650302.926 | K18: Motor & Transportation
B19: التأمين الهندسي والانشاءات والطاقة | C19: 360690.8322 | D19: 6851.556812 | E19: 747129.7103 | F19: 136299.8804 | G19: 3253.448802 | H19: 38910.27083 | I19: 0 | J19: 1293135.699 | K19: Engineering, Construction & Energy
B20: أخرى | C20: 439455.1362 | D20: 7173.597025 | E20: 263226.0932 | F20: 150779.862 | G20: 7121.397954 | H20: 35139.29858 | I20: 0 | J20: 902895.385 | K20: Other
B21: اعادة التأمين غير النسبية - المسؤوليات والممتلكات | C21: 1965.224542 | D21: 0 | E21: 354.3075 | F21: 95.56695192 | G21: 0 | H21: 33.06418725 | I21: 0 | J21: 2448.163181 | K21: Reinsurance - Property & Liability
B22: المجموع - تأمين الممتلكات والمسؤوليات | C22: =C16+C17+C18+C19+C20+C21 -> 3177170.791 | D22: 136397.148 | E22: 3159653.447 | F22: 1140345.563 | G22: 25157.49495 | H22: 182919.6011 | I22: 0.001 | J22: 7821644.047 | K22: Total - Property & Liability Insurance
B24: المجموع - تأمين صحي | C24: 4333331.31 | D24: 42945.33474 | E24: 1302588.941 | F24: 1052441.262 | G24: 2384.74225 | H24: 41563.27631 | I24: 0 | J24: 6775254.866 | K24: Total - Health Insurance
B26: تأمين حياة جماعي | C26: 75145.48526 | D26: 1155.543197 | E26: 104105.492 | F26: 35994.85382 | G26: 0 | H26: 4472.239286 | I26: 0 | J26: 220873.6136 | K26: Group Life
B27: تأمين ائتمان حياة جماعي | C27: 14323.80968 | D27: 0 | E27: 38648.54992 | F27: 27328.92925 | G27: 0 | H27: 2772.268668 | I27: 422100.4021 | J27: 505173.9596 | K27: Group Credit Life
B28: تأمين حياة فردي | C28: 391716.8058 | D28: 18.55220034 | E28: 69079.19421 | F28: 25356.56533 | G28: 0 | H28: 31.98451867 | I28: 29721839.93 | J28: 30208043.03 | K28: Individual Life
B29: دفعات الحياة وتكوين الأموال | C29: 0 | D29: 0 | E29: 413 | F29: 0 | G29: 0 | H29: 0 | I29: 584319.4042 | J29: 584732.4042 | K29: Annuities & Fund Accumulation
B30: المجموع - تأمين الأشخاص وعمليات تكوين الأموال | C30: =C26+C27+C28+C29 -> 481186.1007 | D30: 1174.095397 | E30: 212246.2361 | F30: 88680.3484 | G30: 0 | H30: 7276.492472 | I30: 30728259.74 | J30: 31518823.01 | K30: Total - Insurance of Persons & Fund Accumulation
B32: المجموع - كافة فروع التأمين | C32: =C22+C24+C30 -> 7991688.202 | D32: 180516.5782 | E32: 4674488.624 | F32: 2281467.173 | G32: 27542.2372 | H32: 231759.3699 | I32: 30728259.74 | J32: 46115721.92 | K32: TOTAL - All Types of Business Combined

Sheet 12A
B6: إجمالي المُطالبات المدفوعة والمتكبدة حسب فرع التأمين
B7: الشركات الوطنية والاجنبية
B8: Gross Paid and Incurred Claims by Line of Business
B9: National & Foreign Companies
B10: (2022)
B11: جدول رقم 12A | I11: TABLE 12A
B12: بالألف درهم | I12: AED in 000's
B13: فروع التأمين | C13: الشركات الوطنية | E13: الشركات الأجنبية | G13: الاجمالي | I13: Line of Business
C14: NATIONAL COMPANIES | E14: FOREIGN COMPANIES | G14: TOTAL
C15: المدفوعة | D15: المتكبدة | E15: المدفوعة | F15: المتكبدة | G15: المدفوعة | H15: المتكبدة
C16: Paid | D16: Incurred | E16: Paid | F16: Incurred | G16: Paid | H16: Incurred
B17: تأمين الحريق | C17: 1122632.848 | D17: 1158325.821 | E17: 242567.9647 | F17: 157415.0753 | G17: 1365200.812 | H17: 1315740.897 | I17: Fire
B18: التأمين البحري والطيران | C18: 393054.0821 | D18: 609179.8077 | E18: 100192.5312 | F18: 126664.9555 | G18: 493246.6133 | H18: 735844.7632 | I18: Marine & Aviation
B19: تأمين السيارات والمركبات الأخرى | C19: 2640586.315 | D19: 2714151.187 | E19: 1069335.3 | F19: 983055.4253 | G19: 3709921.615 | H19: 3697206.612 | I19: Motor & Transportation
B20: التأمين الهندسي والانشاءات والطاقة | C20: 899021.4033 | D20: 1188637.479 | E20: 96127.69523 | F20: 102130.1646 | G20: 995149.0985 | H20: 1290767.644 | I20: Engineering, Construction & Energy
B21: أخرى | C21: 326921.953 | D21: 200831.6264 | E21: 101827.9586 | F21: 89704.46147 | G21: 428749.9116 | H21: 290536.0879 | I21: Other
B22: اعادة التأمين غير النسبية - المسؤوليات والممتلكات | C22: 477.532 | D22: 1566.376932 | E22: 0 | F22: 0 | G22: 477.532 | H22: 1566.376932 | I22: Reinsurance - Property & Liability
B23: المجموع - تأمين الممتلكات والمسؤوليات | C23: =C17+C18+C19+C20+C21+C22 -> 5382694.133 | D23: 5872692.299 | E23: =E17+E18+E19+E20+E21+E22 -> 1610051.45 | F23: =F17+F18+F19+F20+F21+F22 -> 1458970.082 | G23: =G17+G18+G19+G20+G21+G22 -> 6992745.583 | H23: =H17+H18+H19+H20+H21+H22 -> 7331662.381 | I23: Total - Property & Liability Insurance
B25: التأمين الصحي والحوادث الشخصية | C25: 12554862.21 | D25: 12800312.21 | E25: 4501875.526 | F25: 4636947.292 | G25: 17056737.73 | H25: 17437259.5 | I25: Health & Personal Accident
B26: المجموع - تأمين صحي | C26: 12554862.21 | D26: 12800312.21 | E26: 4501875.526 | F26: 4636947.292 | G26: 17056737.73 | H26: 17437259.5 | I26: Total - Health Insurance
B28: تأمين حياة جماعي | C28: 385786.2669 | D28: 361370.073 | E28: 81848.74425 | F28: 83318.83025 | G28: 467635.0111 | H28: 444688.9032 | I28: Group Life
B29: تأمين ائتمان حياة جماعي | C29: 254814.7455 | D29: 319891.322 | E29: 7380 | F29: 4965 | G29: 262194.7455 | H29: 324856.322 | I29: Group Credit Life
B30: تأمين حياة فردي | C30: 268756.4923 | D30: 1013017.044 | E30: 2320460.082 | F30: -3104715.977 | G30: 2589216.574 | H30: -2091698.933 | I30: Individual Life
B31: دفعات الحياة وتكوين الأموال | C31: 0 | D31: 0 | E31: 309872.2289 | F31: 140375.4965 | G31: 309872.2289 | H31: 140375.4965 | I31: Annuities & Fund Accumulation
B32: المجموع - تأمين الأشخاص وعمليات تكوين الأموال | C32: =C28+C29+C30+C31 -> 909357.5047 | D32: 1694278.439 | E32: 2719561.055 | F32: -2876056.65 | G32: 3628918.56 | H32: =H28+H29+H30+H31 -> -1181778.211 | I32: Total - Insurance of Persons & Fund Accumulation
B34: المجموع - كافة فروع التأمين | C34: =C23+C26+C32 -> 18846913.85 | D34: 20367282.95 | E34: 8831488.031 | F34: 3219860.724 | G34: 27678401.88 | H34: =H23+H26+H32 -> 23587143.67 | I34: TOTAL - All Types of Business Combined

Sheet 12B
B6: إجمالي المُطالبات المدفوعة والمتكبدة حسب فرع التأمين
B7: شركات التأمين التقليدي الوطنية وشركات التأمين التكافلي الوطنية
B8: Gross Paid and Incurred Claims by Line of Business
B9: Traditional & Takaful National Companies
B10: (2022)
B11: جدول رقم 12B | I11: TABLE 12B
B12: بالألف درهم | I12: AED in 000's
B13: فروع التأمين | C13: شركات التأمين التقليدي الوطنية | E13: شركات التأمين التكافلي الوطنية | G13: الشركات الوطنية | I13: Line of Business
C14: TRADITIONAL COMPANIES | E14: TAKAFUL OPERATORS | G14: NATIONAL COMPANIES
C15: المدفوعة | D15: المتكبدة | E15: المدفوعة | F15: المتكبدة | G15: المدفوعة | H15: المتكبدة
C16: Paid | D16: Incurred | E16: Paid | F16: Incurred | G16: Paid | H16: Incurred
B17: تأمين الحريق | C17: 963914.7823 | D17: 959179.4409 | E17: 158718.0655 | F17: 199146.3805 | G17: 1122632.848 | H17: 1158325.821 | I17: Fire
B18: التأمين البحري والطيران | C18: 372086.5225 | D18: 590163.2958 | E18: 20967.55963 | F18: 19016.51194 | G18: 393054.0821 | H18: 609179.8077 | I18: Marine & Aviation
B19: تأمين السيارات والمركبات الأخرى | C19: 1971210.796 | D19: 1868733.957 | E19: 669375.5188 | F19: 845417.2301 | G19: 2640586.315 | H19: 2714151.187 | I19: Motor & Transportation
B20: التأمين الهندسي والانشاءات والطاقة | C20: 885526.4071 | D20: 1078484.169 | E20: 13494.99625 | F20: 110153.3101 | G20: 899021.4033 | H20: 1188637.479 | I20: Engineering, Construction & Energy
B21: أخرى | C21: 286396.0328 | D21: 146620.5956 | E21: 40525.92021 | F21: 54211.03078 | G21: 326921.953 | H21: 200831.6264 | I21: Other
B22: اعادة التأمين غير النسبية - المسؤوليات والممتلكات | C22: 477.532 | D22: 1566.376932 | E22: 0 | F22: 0 | G22: 477.532 | H22: 1566.376932 | I22: Reinsurance - Property & Liability
B23: المجموع - تأمين الممتلكات والمسؤوليات | C23: =C17+C18+C19+C20+C21+C22 -> 4479612.073 | D23: 4644747.835 | E23: 903082.0604 | F23: 1227944.463 | G23: 5382694.133 | H23: 5872692.299 | I23: Total - Property & Liability Insurance
B25: التأمين الصحي والحوادث الشخصية | C25: 11120736.86 | D25: 11416105.04 | E25: 1434125.353 | F25: 1384207.176 | G25: 12554862.21 | H25: 12800312.21 | I25: Health & Personal Accident
B26: المجموع - تأمين صحي | C26: 11120736.86 | D26: 11416105.04 | E26: 1434125.353 | F26: 1384207.176 | G26: 12554862.21 | H26: 12800312.21 | I26: Total - Health Insurance
B28: تأمين حياة جماعي | C28: 336421.8803 | D28: 319989.7919 | E28: 49364.38655 | F28: 41380.28108 | G28: 385786.2669 | H28: 361370.073 | I28: Group Life
B29: تأمين ائتمان حياة جماعي | C29: 194406.9747 | D29: 321662.9239 | E29: 60407.77078 | F29: -1771.601951 | G29: 254814.7455 | H29: 319891.322 | I29: Group Credit Life
B30: تأمين حياة فردي | C30: 249622.6509 | D30: 1140767.09 | E30: 19133.84147 | F30: -127750.0458 | G30: 268756.4923 | H30: 1013017.044 | I30: Individual Life
B31: دفعات الحياة وتكوين الأموال | C31: 0 | D31: 0 | E31: 0 | F31: 0 | G31: 0 | H31: 0 | I31: Annuities & Fund Accumulation
B32: المجموع - تأمين الأشخاص وعمليات تكوين الأموال | C32: =C28+C29+C30+C31 -> 780451.5059 | D32: 1782419.806 | E32: 128905.9988 | F32: -88141.36667 | G32: 909357.5047 | H32: 1694278.439 | I32: Total - Insurance of Persons & Fund Accumulation
B34: المجموع - كافة فروع التأمين | C34: =C23+C26+C32 -> 16380800.43 | D34: 17843272.68 | E34: 2466113.413 | F34: 2524010.272 | G34: 18846913.85 | H34: 20367282.95 | I34: TOTAL - All Types of Business Combined

Sheet 13A
B6: صافي المُطالبات المدفوعة والمتكبدة حسب فرع التأمين
B7: الشركات الوطنية والاجنبية
B8: Net Paid and Incurred Claims by Line of Business
B9: National & Foreign Companies
B10: (2022)
B11: جدول رقم 13A | I11: TABLE 13A
B12: بالألف درهم | I12: AED in 000's
B13: فروع التأمين | C13: الشركات الوطنية | E13: الشركات الأجنبية | G13: الاجمالي | I13: Line of Business
C14: NATIONAL COMPANIES | E14: FOREIGN COMPANIES | G14: TOTAL
C15: المدفوعة | D15: المتكبدة | E15: المدفوعة | F15: المتكبدة | G15: المدفوعة | H15: المتكبدة
C16: Paid | D16: Incurred | E16: Paid | F16: Incurred | G16: Paid | H16: Incurred
B17: تأمين الحريق | C17: 181789.6533 | D17: 132909.6821 | E17: 161483.2165 | F17: 56874.86279 | G17: =E17+C17 -> 343272.8698 | H17: =F17+D17 -> 189784.5449 | I17: Fire
B18: التأمين البحري والطيران | C18: 85369.91198 | D18: 115084.0149 | E18: 72724.73199 | F18: 59714.62748 | G18: 158094.644 | H18: 174798.6424 | I18: Marine & Aviation
B19: تأمين السيارات والمركبات الأخرى | C19: 1729938.99 | D19: 1567626.079 | E19: 948173.5275 | F19: 867064.7975 | G19: 2678112.517 | H19: 2434690.877 | I19: Motor & Transportation
B20: التأمين الهندسي والانشاءات والطاقة | C20: 160461.0623 | D20: 154778.4508 | E20: 110419.2644 | F20: 88519.31398 | G20: 270880.3267 | H20: 243297.7648 | I20: Engineering, Construction & Energy
B21: أخرى | C21: 84059.32104 | D21: 74730.76349 | E21: 48094.07968 | F21: 61297.20506 | G21: 132153.4007 | H21: 136027.9685 | I21: Other
B22: اعادة التأمين غير النسبية - المسؤوليات والممتلكات | C22: 399.5845 | D22: 885.5444594 | E22: 0 | F22: 0 | G22: 399.5845 | H22: 885.5444594 | I22: Reinsurance - Property & Liability
B23: المجموع - تأمين الممتلكات والمسؤوليات | C23: =C17+C18+C19+C20+C21+C22 -> 2242018.523 | D23: 2046014.535 | E23: 1340894.82 | F23: =F17+F18+F19+F20+F21+F22 -> 1133470.807 | G23: =G17+G18+G19+G20+G21+G22 -> 3582913.343 | H23: 3179485.342 | I23: Total - Property & Liability Insurance
B25: التأمين الصحي والحوادث الشخصية | C25: 6991502.951 | D25: 7028121.281 | E25: 2990558.592 | F25: 3058707.311 | G25: =E25+C25 -> 9982061.543 | H25: =F25+D25 -> 10086828.59 | I25: Health & Personal Accident
B26: المجموع - تأمين صحي | C26: 6991502.951 | D26: 7028121.281 | E26: 2990558.592 | F26: 3058707.311 | G26: 9982061.543 | H26: 10086828.59 | I26: Total - Health Insurance
B28: تأمين حياة جماعي | C28: 119347.6087 | D28: 108972.1741 | E28: 11330.34545 | F28: 9650.443518 | G28: =E28+C28 -> 130677.9541 | H28: =F28+D28 -> 118622.6176 | I28: Group Life
B29: تأمين ائتمان حياة جماعي | C29: 19528.38023 | D29: 169940.1079 | E29: 1252 | F29: -545 | G29: 20780.38023 | H29: 169395.1079 | I29: Group Credit Life
B30: تأمين حياة فردي | C30: 249771.9685 | D30: 998485.9454 | E30: 2252335.168 | F30: -4832206.95 | G30: 2502107.137 | H30: -3833721.004 | I30: Individual Life
B31: دفعات الحياة وتكوين الأموال | C31: 0 | D31: 0 | E31: 309872.2289 | F31: 140375.4965 | G31: 309872.2289 | H31: 140375.4965 | I31: Annuities & Fund Accumulation
B32: المجموع - تأمين الأشخاص وعمليات تكوين الأموال | C32: =C28+C29+C30+C31 -> 388647.9574 | D32: 1277398.227 | E32: 2574789.743 | F32: =F28+F29+F30+F31 -> -4682726.01 | G32: =G28+G29+G30+G31 -> 2963437.7 | H32: -3405327.782 | I32: Total - Insurance of Persons & Fund Accumulation
B34: المجموع - كافة فروع التأمين | C34: =C23+C26+C32 -> 9622169.431 | D34: 10351534.04 | E34: 6906243.155 | F34: =F23+F26+F32 -> -490547.8925 | G34: =G23+G26+G32 -> 16528412.59 | H34: 9860986.151 | I34: TOTAL - All Types of Business Combined

Sheet 13B
B6: صافي المُطالبات المدفوعة والمتكبدة حسب فرع التأمين
B7: شركات التأمين التقليدي الوطنية وشركات التأمين التكافلي الوطنية
B8: Net Paid and Incurred Claims by Line of Business
B9: Traditional & Takaful National Companies
B10: (2022)
B11: جدول رقم 13B | I11: TABLE 13B
B12: بالألف درهم | I12: AED in 000's
B13: فروع التأمين | C13: شركات التأمين التقليدي الوطنية | E13: شركات التأمين التكافلي الوطنية | G13: الشركات الوطنية | I13: Line of Business
C14: TRADITIONAL COMPANIES | E14: TAKAFUL OPERATORS | G14: NATIONAL COMPANIES
C15: المدفوعة | D15: المتكبدة | E15: المدفوعة | F15: المتكبدة | G15: المدفوعة | H15: المتكبدة
C16: Paid | D16: Incurred | E16: Paid | F16: Incurred | G16: Paid | H16: Incurred
B17: تأمين الحريق | C17: 169850.6617 | D17: 117787.9588 | E17: 11938.99167 | F17: 15121.72335 | G17: 181789.6533 | H17: 132909.6821 | I17: Fire
B18: التأمين البحري والطيران | C18: 83897.39435 | D18: 112661.5687 | E18: 1472.517633 | F18: 2422.446249 | G18: 85369.91198 | H18: 115084.0149 | I18: Marine & Aviation
B19: تأمين السيارات والمركبات الأخرى | C19: 1293332.559 | D19: 1155425.697 | E19: 436606.4311 | F19: 412200.3821 | G19: 1729938.99 | H19: 1567626.079 | I19: Motor & Transportation
B20: التأمين الهندسي والانشاءات والطاقة | C20: 157174.6633 | D20: 146763.5889 | E20: 3286.398979 | F20: 8014.861897 | G20: 160461.0623 | H20: 154778.4508 | I20: Engineering, Construction & Energy
B21: أخرى | C21: 75406.58278 | D21: 61427.69357 | E21: 8652.738257 | F21: 13303.06992 | G21: 84059.32104 | H21: 74730.76349 | I21: Other
B22: اعادة التأمين غير النسبية - المسؤوليات والممتلكات | C22: 399.5845 | D22: 885.5444594 | E22: 0 | F22: 0 | G22: 399.5845 | H22: 885.5444594 | I22: Reinsurance - Property & Liability
B23: المجموع - تأمين الممتلكات والمسؤوليات | C23: =C17+C18+C19+C20+C21+C22 -> 1780061.445 | D23: 1594952.052 | E23: 461957.0776 | F23: 451062.4835 | G23: 2242018.523 | H23: 2046014.535 | I23: Total - Property & Liability Insurance
B25: التأمين الصحي والحوادث الشخصية | C25: 6140388.924 | D25: 6209582.285 | E25: 851114.0267 | F25: 818538.9956 | G25: 6991502.951 | H25: 7028121.281 | I25: Health & Personal Accident
B26: المجموع - تأمين صحي | C26: 6140388.924 | D26: 6209582.285 | E26: 851114.0267 | F26: 818538.9956 | G26: 6991502.951 | H26: 7028121.281 | I26: Total - Health Insurance
B28: تأمين حياة جماعي | C28: 111431.8288 | D28: 103239.6147 | E28: 7915.779942 | F28: 5732.55945 | G28: 119347.6087 | H28: 108972.1741 | I28: Group Life
B29: تأمين ائتمان حياة جماعي | C29: 11086.00345 | D29: 167530.5452 | E29: 8442.376785 | F29: 2409.562732 | G29: 19528.38023 | H29: 169940.1079 | I29: Group Credit Life
B30: تأمين حياة فردي | C30: 246038.3947 | D30: 1127699.359 | E30: 3733.573725 | F30: -129213.4134 | G30: 249771.9685 | H30: 998485.9454 | I30: Individual Life
B31: دفعات الحياة وتكوين الأموال | C31: 0 | D31: 0 | E31: 0 | F31: 0 | G31: 0 | H31: 0 | I31: Annuities & Fund Accumulation
B32: المجموع - تأمين الأشخاص وعمليات تكوين الأموال | C32: =C28+C29+C30+C31 -> 368556.2269 | D32: 1398469.519 | E32: 20091.73045 | F32: -121071.2912 | G32: 388647.9574 | H32: 1277398.227 | I32: Total - Insurance of Persons & Fund Accumulation
B34: المجموع - كافة فروع التأمين | C34: =C23+C26+C32 -> 8289006.597 | D34: 9203003.855 | E34: 1333162.835 | F34: 1148530.188 | G34: 9622169.431 | H34: 10351534.04 | I34: TOTAL - All Types of Business Combined

Sheet 14A
B6: نسبة الخسارة (الإجمالية) حسب فرع التأمين
B7: الشركات الوطنية والاجنبية
B8: Gross Loss Ratios by Line of Business
B9: National & Foreign Companies
B10: (2022)
B11: جدول رقم 14A | I11: TABLE 14A
B13: فروع التأمين | C13: الشركات الوطنية | E13: الشركات الأجنبية | G13: الاجمالي | I13: Line of Business
C14: NATIONAL COMPANIES | E14: FOREIGN COMPANIES | G14: TOTAL
C15: المدفوعة | D15: المتكبدة | E15: المدفوعة | F15: المتكبدة | G15: المدفوعة | H15: المتكبدة
C16: Paid | D16: Incurred | E16: Paid | F16: Incurred | G16: Paid | H16: Incurred
B17: تأمين الحريق | C17: 0.3322753154 | D17: 0.3428396723 | E17: 0.4117847179 | F17: 0.267228702 | G17: 0.3440797245 | H17: 0.3316140461 | I17: Fire
B18: التأمين البحري والطيران | C18: 0.2798209268 | D18: 0.4336839793 | E18: 0.3149839205 | F18: 0.3982075687 | G18: 0.2863134031 | H18: 0.4271336338 | I18: Marine & Aviation
B19: تأمين السيارات والمركبات الأخرى | C19: 0.8053634246 | D19: 0.8278002815 | E19: 0.835157373 | F19: 0.7677722659 | G19: 0.813730808 | H19: 0.8109419109 | I19: Motor & Transportation
B20: التأمين الهندسي والانشاءات والطاقة | C20: 0.3529029782 | D20: 0.4665892325 | E20: 0.611027454 | F20: 0.6491816359 | G20: 0.3679163388 | H20: 0.4772094016 | I20: Engineering, Construction & Energy
B21: أخرى | C21: 0.1118696254 | D21: 0.06872269851 | E21: 0.2086561 | F21: 0.1838137909 | G21: 0.1257196213 | H21: 0.08519205705 | I21: Other
B22: اعادة التأمين غير النسبية - المسؤوليات والممتلكات | C22: 0.08589301723 | D22: 0.2817420421 | G22: 0.08589301723 | H22: 0.2817420421 | I22: Reinsurance - Property & Liability
B23: المجموع - تأمين الممتلكات والمسؤوليات | C23: 0.3976151568 | D23: 0.4338109154 | E23: 0.5683419704 | F23: 0.5150108285 | G23: 0.4271594827 | H23: 0.4478625845 | I23: Total - Property & Liability Insurance
B25: المجموع - تأمين صحي | C25: 0.8207485432 | D25: 0.8367943371 | E25: 0.7936086457 | F25: 0.8174196376 | G25: 0.8134066671 | H25: 0.8315530998 | I25: Total - Health Insurance
B27: تأمين حياة جماعي | C27: 0.5161584548 | D27: 0.4834910792 | E27: 0.4822592924 | F27: 0.4909211557 | G27: 0.5098853021 | H27: 0.4848660395 | I27: Group Life
B28: تأمين ائتمان حياة جماعي | C28: 0.3156039183 | D28: 0.3962053077 | E28: 0.3407044919 | F28: 0.2292137944 | G28: 0.3162597344 | H28: 0.3918422313 | I28: Group Credit Life
B29: تأمين حياة فردي | C29: 0.220743116 | D29: 0.8320414397 | E29: 0.5028055288 | F29: -0.6727408804 | G29: 0.4439266117 | H29: -0.3586261686 | I29: Individual Life
B30: دفعات الحياة وتكوين الأموال | E30: 2.114199894 | F30: 0.9577555913 | G30: 2.114199894 | H30: 0.9577555913 | I30: Annuities & Fund Accumulation
B31: المجموع - تأمين الأشخاص وعمليات تكوين الأموال | C31: 0.3280138941 | D31: 0.6111423346 | E31: 0.5490765501 | F31: -0.580672848 | G31: 0.4697454996 | H31: -0.152975325 | I31: Total - Insurance of Persons & Fund Accumulation
B33: المجموع - كافة فروع التأمين | C33: 0.5962966913 | D33: 0.6443995835 | E33: 0.6562000981 | F33: 0.2392431395 | G33: 0.6141866135 | H33: 0.5234011688 | I33: TOTAL - All Types of Business Combined

Sheet 14B
B6: نسبة الخسارة (الإجمالية) حسب فرع التأمين
B7: شركات التأمين التقليدي الوطنية وشركات التأمين التكافلي الوطنية
B8: Gross Loss Ratios by Line of Business
B9: Traditional & Takaful National Companies
B10: (2022)
B11: جدول رقم 14B | I11: TABLE 14B
B13: فروع التأمين | C13: شركات التأمين التقليدي الوطنية | E13: شركات التأمين التكافلي الوطنية | G13: الشركات الوطنية | I13: Line of Business
C14: TRADITIONAL COMPANIES | E14: TAKAFUL OPERATORS | G14: NATIONAL COMPANIES
C15: المدفوعة | D15: المتكبدة | E15: المدفوعة | F15: المتكبدة | G15: المدفوعة | H15: المتكبدة
C16: Paid | D16: Incurred | E16: Paid | F16: Incurred | G16: Paid | H16: Incurred
B17: تأمين الحريق | C17: 0.3218471733 | D17: 0.3202660623 | E17: 0.4136764172 | F17: 0.5190471602 | G17: 0.3322753154 | H17: 0.3428396723 | I17: Fire
B18: التأمين البحري والطيران | C18: 0.278611182 | D18: 0.4419028464 | E18: 0.3031821122 | F18: 0.2749707815 | G18: 0.2798209268 | H18: 0.4336839793 | I18: Marine & Aviation
B19: تأمين السيارات والمركبات الأخرى | C19: 0.758848638 | D19: 0.7193985649 | E19: 0.9827606771 | F19: 1.241220789 | G19: 0.8053634246 | H19: 0.8278002815 | I19: Motor & Transportation
B20: التأمين الهندسي والانشاءات والطاقة | C20: 0.3602441009 | D20: 0.4387419244 | E20: 0.1509943158 | F20: 1.232495614 | G20: 0.3529029782 | H20: 0.4665892325 | I20: Engineering, Construction & Energy
B21: أخرى | C21: 0.1100490994 | D21: 0.05633969276 | E21: 0.1266794796 | F21: 0.1694575998 | G21: 0.1118696254 | H21: 0.06872269851 | I21: Other
B22: اعادة التأمين غير النسبية - المسؤوليات والممتلكات | C22: 0.08589301723 | D22: 0.2817420421 | G22: 0.08589301723 | H22: 0.2817420421 | I22: Reinsurance - Property & Liability
B23: المجموع - تأمين الممتلكات والمسؤوليات | C23: 0.3734811777 | D23: 0.3872491331 | E23: 0.5851872723 | F23: 0.795694547 | G23: 0.3976151568 | H23: 0.4338109154 | I23: Total - Property & Liability Insurance
B25: المجموع - تأمين صحي | C25: 0.8081596793 | D25: 0.8296245028 | E25: 0.9335082598 | F25: 0.9010152625 | G25: 0.8207485432 | H25: 0.8367943371 | I25: Total - Health Insurance
B27: تأمين حياة جماعي | C27: 0.5703954336 | D27: 0.5425352119 | E27: 0.3131987113 | F27: 0.2625425253 | G27: 0.5161584548 | H27: 0.4834910792 | I27: Group Life
B28: تأمين ائتمان حياة جماعي | C28: 0.3025040133 | D28: 0.5005186958 | E28: 0.3667108486 | F28: -0.01075467024 | G28: 0.3156039183 | H28: 0.3962053077 | I28: Group Credit Life
B29: تأمين حياة فردي | C29: 0.28988253 | D29: 1.324753379 | E29: 0.05368772715 | F29: -0.3584543967 | G29: 0.220743116 | H29: 0.8320414397 | I29: Individual Life
B30: دفعات الحياة وتكوين الأموال | I30: Annuities & Fund Accumulation
B31: المجموع - تأمين الأشخاص وعمليات تكوين الأموال | C31: 0.3727831574 | D31: 0.8513739521 | E31: 0.1899213466 | F31: -0.1298615053 | G31: 0.3280138941 | H31: 0.6111423346 | I31: Total - Insurance of Persons & Fund Accumulation
B33: المجموع - كافة فروع التأمين | C33: 0.5882141821 | D33: 0.6407297424 | E33: 0.6561875866 | F33: 0.67159288 | G33: 0.5962966913 | H33: 0.6443995835 | I33: TOTAL - All Types of Business Combined

Sheet 15A
B6: نسبة الخسارة (الصافية) حسب فرع التأمين
B7: الشركات الوطنية والاجنبية
B8: Net Loss Ratios by Line of Business
B9: National & Foreign Companies
B10: (2022)
B11: جدول رقم 15A | I11: TABLE 15A
B13: فروع التأمين | C13: الشركات الوطنية | E13: الشركات الأجنبية | G13: الاجمالي | I13: Line of Business
C14: NATIONAL COMPANIES | E14: FOREIGN COMPANIES | G14: TOTAL
C15: المدفوعة | D15: المتكبدة | E15: المدفوعة | F15: المتكبدة | G15: المدفوعة | H15: المتكبدة
C16: Paid | D16: Incurred | E16: Paid | F16: Incurred | G16: Paid | H16: Incurred
B17: تأمين الحريق | C17: 0.3887578228 | D17: 0.2842278298 | E17: 0.4588291279 | F17: 0.1616009655 | G17: 0.4188486597 | H17: 0.2315679719 | I17: Fire
B18: التأمين البحري والطيران | C18: 0.3590352517 | D18: 0.4840021186 | E18: 0.3947746858 | F18: 0.3241513947 | G18: 0.374637028 | H18: 0.414220509 | I18: Marine & Aviation
B19: تأمين السيارات والمركبات الأخرى | C19: 0.7383512857 | D19: 0.6690748853 | E19: 0.766731886 | F19: 0.7011440504 | G19: 0.7481558691 | H19: 0.680153749 | I19: Motor & Transportation
B20: التأمين الهندسي والانشاءات والطاقة | C20: 0.3935108029 | D20: 0.3795749049 | E20: 1.21955447 | F20: 0.9776747353 | G20: 0.5435996193 | H20: 0.4882472417 | I20: Engineering, Construction & Energy
B21: أخرى | C21: 0.1177200097 | D21: 0.1046559274 | E21: 0.2168762942 | F21: 0.2764147014 | G21: 0.141216752 | H21: 0.1453570457 | I21: Other
B22: اعادة التأمين غير النسبية - المسؤوليات والممتلكات | C22: 0.164406222 | D22: 0.3643510171 | G22: 0.164406222 | H22: 0.3643510171 | I22: Reinsurance - Property & Liability
B23: المجموع - تأمين الممتلكات والمسؤوليات | C23: 0.5373157134 | D23: 0.4903419612 | E23: 0.6430822377 | F23: 0.5436033699 | G23: 0.5725576139 | H23: 0.5080889116 | I23: Total - Property & Liability Insurance
B25: المجموع - تأمين صحي | C25: 0.8040749302 | D25: 0.8082863109 | E25: 0.7672575303 | F25: 0.7847417613 | G25: 0.7926792172 | H25: 0.8009988075 | I25: Total - Health Insurance
B27: تأمين حياة جماعي | C27: 0.4317102991 | D27: 0.3941797443 | E27: 0.2817366908 | F27: 0.2399647948 | G27: 0.4126640738 | H27: 0.3745948807 | I27: Group Life
B28: تأمين ائتمان حياة جماعي | C28: 0.04921996027 | D28: 0.4283225367 | E28: 0.2528782064 | F28: -0.110078772 | G28: 0.05173002016 | H28: 0.4216868146 | I28: Group Credit Life
B29: تأمين حياة فردي | C29: 0.2260879626 | D29: 0.9038069985 | E29: 0.5050464913 | F29: -1.083537299 | G29: 0.4496622254 | H29: -0.6889711048 | I29: Individual Life
B30: دفعات الحياة وتكوين الأموال | C30: 0 | D30: 0 | E30: 2.114622975 | F30: 0.9579472519 | G30: 2.114635582 | H30: 0.9579529626 | I30: Annuities & Fund Accumulation
B31: المجموع - تأمين الأشخاص وعمليات تكوين الأموال | C31: 0.2185914338 | D31: 0.7184607683 | E31: 0.5535558514 | F31: -1.006742547 | G31: 0.4609248698 | H31: -0.529655226 | I31: Total - Insurance of Persons & Fund Accumulation
B33: المجموع - كافة فروع التأمين | C33: 0.656997025 | D33: 0.7067976841 | E33: 0.6494373301 | F33: -0.04612929294 | G33: 0.6538169751 | H33: 0.3900725556 | I33: TOTAL - All Types of Business Combined

Sheet 15B
B6: نسبة الخسارة (الصافية) حسب فرع التأمين
B7: شركات التأمين التقليدي الوطنية وشركات التأمين التكافلي الوطنية
B8: Net Loss Ratios by Line of Business
B9: Traditional & Takaful National Companies
B10: (2022)
B11: جدول رقم 15B | I11: TABLE 15B
B13: فروع التأمين | C13: شركات التأمين التقليدي الوطنية | E13: شركات التأمين التكافلي الوطنية | G13: الشركات الوطنية | I13: Line of Business
C14: TRADITIONAL COMPANIES | E14: TAKAFUL OPERATORS | G14: NATIONAL COMPANIES
C15: المدفوعة | D15: المتكبدة | E15: المدفوعة | F15: المتكبدة | G15: المدفوعة | H15: المتكبدة
C16: Paid | D16: Incurred | E16: Paid | F16: Incurred | G16: Paid | H16: Incurred
B17: تأمين الحريق | C17: 0.4033335931 | D17: 0.2797035947 | E17: 0.2567545174 | F17: 0.3252008952 | G17: 0.3887578228 | H17: 0.2842278298 | I17: Fire
B18: التأمين البحري والطيران | C18: 0.3716792695 | D18: 0.4991092974 | E18: 0.1221945082 | F18: 0.2010228071 | G18: 0.3590352517 | H18: 0.4840021186 | I18: Marine & Aviation
B19: تأمين السيارات والمركبات الأخرى | C19: 0.7545886629 | D19: 0.6741275676 | E19: 0.6941074862 | F19: 0.655307276 | G19: 0.7383512857 | H19: 0.6690748853 | I19: Motor & Transportation
B20: التأمين الهندسي والانشاءات والطاقة | C20: 0.3910712237 | D20: 0.365167102 | E20: 0.5608337257 | F20: 1.367759936 | G20: 0.3935108029 | H20: 0.3795749049 | I20: Engineering, Construction & Energy
B21: أخرى | C21: 0.1230481657 | D21: 0.1002374692 | E21: 0.08546777112 | F21: 0.1314016097 | G21: 0.1177200097 | H21: 0.1046559274 | I21: Other
B22: اعادة التأمين غير النسبية - المسؤوليات والممتلكات | C22: 0.164406222 | D22: 0.3643510171 | G22: 0.164406222 | H22: 0.3643510171 | I22: Reinsurance - Property & Liability
B23: المجموع - تأمين الممتلكات والمسؤوليات | C23: 0.5269635193 | D23: 0.4721643449 | E23: 0.5813206034 | F23: 0.567610992 | G23: 0.5373157134 | H23: 0.4903419612 | I23: Total - Property & Liability Insurance
B25: المجموع - تأمين صحي | C25: 0.7978653277 | D25: 0.8068561236 | E25: 0.851908791 | F25: 0.8193033416 | G25: 0.8040749302 | H25: 0.8082863109 | I25: Total - Health Insurance
B27: تأمين حياة جماعي | C27: 0.451957242 | D27: 0.4187303756 | E27: 0.2647499039 | F27: 0.1917302621 | G27: 0.4317102991 | H27: 0.3941797443 | I27: Group Life
B28: تأمين ائتمان حياة جماعي | C28: 0.03202457679 | D28: 0.4839521144 | E28: 0.1668929024 | F28: 0.04763337721 | G28: 0.04921996027 | H28: 0.4283225367 | I28: Group Credit Life
B29: تأمين حياة فردي | C29: 0.3132652956 | D29: 1.435829044 | E29: 0.01169093672 | F29: -0.4046058685 | G29: 0.2260879626 | H29: 0.9038069985 | I29: Individual Life
B30: دفعات الحياة وتكوين الأموال | E30: 0 | F30: 0 | G30: 0 | H30: 0 | I30: Annuities & Fund Accumulation
B31: المجموع - تأمين الأشخاص وعمليات تكوين الأموال | C31: 0.2674330667 | D31: 1.014762375 | E31: 0.05024941862 | F31: -0.3027993038 | G31: 0.2185914338 | H31: 0.7184607683 | I31: Total - Insurance of Persons & Fund Accumulation
B33: المجموع - كافة فروع التأمين | C33: 0.6656710374 | D33: 0.7390720531 | E33: 0.6077579051 | F33: 0.523588179 | G33: 0.656997025 | H33: 0.7067976841 | I33: TOTAL - All Types of Business Combined

Sheet 16A
B6: نسبة العمولات ونسبة المصاريف والنسبة المجمعة (الإجمالية) حسب فرع التأمين
B7: الشركات الوطنية والاجنبية
B8: Gross Commission, Expense & Combined Ratios by Line of Business
B9: National & Foreign Companies
B10: (2022)
B11: جدول رقم 16A | L11: TABLE 16A
B13: فروع التأمين | C13: الشركات الوطنية | F13: الشركات الأجنبية | I13: الاجمالي | L13: Line of Business
C14: NATIONAL COMPANIES | F14: FOREIGN COMPANIES | I14: TOTAL
C15: نسبة العمولات | D15: نسبة المصاريف | E15: النسبة المجمعة | F15: نسبة العمولات | G15: نسبة المصاريف | H15: النسبة المجمعة | I15: نسبة العمولات | J15: نسبة المصاريف | K15: النسبة المجمعة
C16: Commission Ratio | D16: Expense Ratio | E16: Combined Ratio | F16: Commission Ratio | G16: Expense Ratio | H16: Combined Ratio | I16: Commission Ratio | J16: Expense Ratio | K16: Combined Ratio
B17: تأمين الحريق | C17: 0.0799084961 | D17: 0.06266914753 | E17: 0.4854173159 | F17: 0.1880319307 | G17: 0.1424033728 | H17: 0.5976640055 | I17: 0.09596110392 | J17: 0.07450693508 | K17: 0.5020820851 | L17: Fire
B18: التأمين البحري والطيران | C18: 0.08857676984 | D18: 0.06505171039 | E18: 0.5873124595 | F18: 0.1920106295 | G18: 0.1562264228 | H18: 0.7464446209 | I18: 0.1076747423 | J18: 0.08188616045 | K18: 0.6166945366 | L18: Marine & Aviation
B19: تأمين السيارات والمركبات الأخرى | C19: 0.1655656941 | D19: 0.1459163956 | E19: 1.139282371 | F19: 0.1913838316 | G19: 0.1445360463 | H19: 1.103692144 | I19: 0.172816504 | J19: 0.1455287359 | K19: 1.129287151 | L19: Motor & Transportation
B20: التأمين الهندسي والانشاءات والطاقة | C20: 0.07284341472 | D20: 0.04659137819 | E20: 0.5860240254 | F20: 0.1893590509 | G20: 0.08425390119 | H20: 0.922794588 | I20: 0.07962034375 | J20: 0.04878195324 | K20: 0.6056116986 | L20: Engineering, Construction & Energy
B21: أخرى | C21: 0.08257592588 | D21: 0.1209605466 | E21: 0.272259171 | F21: 0.1792959107 | G21: 0.2024014568 | H21: 0.5655111585 | I21: 0.09641640714 | J21: 0.1326146157 | K21: 0.3142230799 | L21: Other
B22: اعادة التأمين غير النسبية - المسؤوليات والممتلكات | C22: 0.2944585148 | D22: 0.1694531253 | E22: 0.7456536823 | I22: 0.2944585148 | J22: 0.1695021124 | K22: 0.7457026693 | L22: Reinsurance - Property & Liability
B23: المجموع - تأمين الممتلكات والمسؤوليات | C23: 0.1008883973 | D23: 0.09268049056 | E23: 0.6273798033 | F23: 0.1885624122 | G23: 0.1520260078 | H23: 0.8555992485 | I23: 0.1160604117 | J23: 0.10295025 | K23: 0.6668732462 | L23: Total - Property & Liability Insurance
B25: المجموع - تأمين صحي | C25: 0.04754060124 | D25: 0.07917341645 | E25: 0.9635083548 | F25: 0.07995022012 | G25: 0.1183905407 | H25: 1.015760398 | I25: 0.05630804063 | J25: 0.08978241994 | K25: 0.9776435604 | L25: Total - Health Insurance
B27: تأمين حياة جماعي | C27: 0.06555982965 | D27: 0.08324464025 | E27: 0.6322955491 | F27: 0.08584838377 | G27: 0.08663968102 | H27: 0.6634092205 | I27: 0.06931429403 | J27: 0.08387290383 | K27: 0.6380532374 | L27: Group Life
B28: تأمين ائتمان حياة جماعي | C28: 0.1374413151 | D28: 0.1636584753 | E28: 0.6973050981 | F28: 0.09717926227 | G28: 0.1114906976 | H28: 0.4378837542 | I28: 0.1363893669 | J28: 0.1622954599 | K28: 0.6905270582 | L28: Group Credit Life
B29: تأمين حياة فردي | C29: 0.1607650166 | D29: 0.131035543 | E29: 1.123841999 | F29: 0.1712688062 | G29: 0.08850154626 | H29: -0.4129705279 | I29: 0.1690762001 | J29: 0.09738027506 | K29: -0.09216969348 | L29: Individual Life
B30: دفعات الحياة وتكوين الأموال | F30: 0.017126432 | G30: 0.02287889 | H30: 0.9977609133 | I30: 0.017126432 | J30: 0.02287889 | K30: 0.9977609133 | L30: Annuities & Fund Accumulation
B31: المجموع - تأمين الأشخاص وعمليات تكوين الأموال | C31: 0.128304996 | D31: 0.1276519299 | E31: 0.8670992605 | F31: 0.1634564146 | G31: 0.08659639707 | H31: -0.3306200364 | I31: 0.1508418961 | J31: 0.1013296795 | K31: 0.09919625056 | L31: Total - Insurance of Persons & Fund Accumulation
B33: المجموع - كافة فروع التأمين | C33: 0.07747413041 | D33: 0.08921084261 | E33: 0.8110845565 | F33: 0.1335437816 | G33: 0.1137696886 | H33: 0.4865566098 | I33: 0.09421911623 | J33: 0.09654524756 | K33: 0.7141655326 | L33: TOTAL - All Types of Business Combined

Sheet 16B
B6: نسبة العمولات ونسبة المصاريف والنسبة المجمعة (الإجمالية) حسب فرع التأمين
B7: شركات التأمين التقليدي الوطنية وشركات التأمين التكافلي الوطنية
B8: Gross Commission, Expense & Combined Ratios by Line of Business
B9: Traditional & Takaful National Companies
B10: (2022)
B11: جدول رقم 16B | L11: TABLE 16B
B13: فروع التأمين | C13: شركات التأمين التقليدي الوطنية | F13: شركات التأمين التكافلي الوطنية | I13: الشركات الوطنية | L13: Line of Business
C14: TRADITIONAL COMPANIES | F14: TAKAFUL OPERATORS | I14: NATIONAL COMPANIES
C15: نسبة العمولات | D15: نسبة المصاريف | E15: النسبة المجمعة | F15: نسبة العمولات | G15: نسبة المصاريف | H15: النسبة المجمعة | I15: نسبة العمولات | J15: نسبة المصاريف | K15: النسبة المجمعة
C16: Commission Ratio | D16: Expense Ratio | E16: Combined Ratio | F16: Commission Ratio | G16: Expense Ratio | H16: Combined Ratio | I16: Commission Ratio | J16: Expense Ratio | K16: Combined Ratio
B17: تأمين الحريق | C17: 0.0732122513 | D17: 0.0597942127 | E17: 0.4532725263 | F17: 0.1321787567 | G17: 0.08511061992 | H17: 0.7363365368 | I17: 0.0799084961 | J17: 0.06266914753 | K17: 0.4854173159 | L17: Fire
B18: التأمين البحري والطيران | C18: 0.08502956556 | D18: 0.06525195166 | E18: 0.5921843636 | F18: 0.1570762514 | G18: 0.06118488409 | H18: 0.4932319169 | I18: 0.08857676984 | J18: 0.06505171039 | K18: 0.5873124595 | L18: Marine & Aviation
B19: تأمين السيارات والمركبات الأخرى | C19: 0.1502812883 | D19: 0.1421860064 | E19: 1.01186586 | F19: 0.2238570846 | G19: 0.1601432862 | H19: 1.62522116 | I19: 0.1655656941 | J19: 0.1459163956 | K19: 1.139282371 | L19: Motor & Transportation
B20: التأمين الهندسي والانشاءات والطاقة | C20: 0.0691150279 | D20: 0.0464440622 | E20: 0.5543010145 | F20: 0.1753881654 | G20: 0.05064312567 | H20: 1.458526905 | I20: 0.07284341472 | J20: 0.04659137819 | K20: 0.5860240254 | L20: Engineering, Construction & Energy
B21: أخرى | C21: 0.06797509173 | D21: 0.1242247916 | E21: 0.2485395761 | F21: 0.2013527089 | G21: 0.09440613789 | H21: 0.4652164466 | I21: 0.08257592588 | J21: 0.1209605466 | K21: 0.272259171 | L21: Other
B22: اعادة التأمين غير النسبية - المسؤوليات والممتلكات | C22: 0.2944585148 | D22: 0.1694531253 | E22: 0.7456536823 | I22: 0.2944585148 | J22: 0.1694531253 | K22: 0.7456536823 | L22: Reinsurance - Property & Liability
B23: المجموع - تأمين الممتلكات والمسؤوليات | C23: 0.08934573093 | D23: 0.08954043243 | E23: 0.5661352964 | F23: 0.1905993539 | G23: 0.1170853905 | H23: 1.103379291 | I23: 0.1008883973 | J23: 0.09268049056 | K23: 0.6273798033 | L23: Total - Property & Liability Insurance
B25: المجموع - تأمين صحي | C25: 0.0457367397 | D25: 0.07301042415 | E25: 0.9483716666 | F25: 0.06369796995 | G25: 0.1343759566 | H25: 1.099089189 | I25: 0.04754060124 | J25: 0.07917341645 | K25: 0.9635083548 | L25: Total - Health Insurance
B27: تأمين حياة جماعي | C27: 0.06240098306 | D27: 0.08998893906 | E27: 0.694925134 | F27: 0.07738052299 | G27: 0.05800685624 | H27: 0.3979299046 | I27: 0.06555982965 | J27: 0.08324464025 | K27: 0.6322955491 | L27: Group Life
B28: تأمين ائتمان حياة جماعي | C28: 0.1292113443 | D28: 0.1361372922 | E28: 0.7658673323 | F28: 0.1695490701 | G28: 0.2710274362 | H28: 0.429821836 | I28: 0.1374413151 | J28: 0.1636584753 | K28: 0.6973050981 | L28: Group Credit Life
B29: تأمين حياة فردي | C29: 0.05647879811 | D29: 0.1354957669 | E29: 1.516727943 | F29: 0.4127424888 | G29: 0.1202587026 | H29: 0.1745467947 | I29: 0.1607650166 | J29: 0.131035543 | K29: 1.123841999 | L29: Individual Life
B30: دفعات الحياة وتكوين الأموال | L30: Annuities & Fund Accumulation
B31: المجموع - تأمين الأشخاص وعمليات تكوين الأموال | C31: 0.08047365859 | D31: 0.1228724844 | E31: 1.054720095 | F31: 0.2758426309 | G31: 0.1423943171 | H31: 0.2883754427 | I31: 0.128304996 | J31: 0.1276519299 | K31: 0.8670992605 | L31: Total - Insurance of Persons & Fund Accumulation
B33: المجموع - كافة فروع التأمين | C33: 0.06713045811 | D33: 0.08387837605 | E33: 0.7917385765 | F33: 0.1541201042 | G33: 0.1287240909 | H33: 0.9544370751 | I33: 0.07747413041 | J33: 0.08921084261 | K33: 0.8110845565 | L33: TOTAL - All Types of Business Combined

Sheet 17A
B6: نسبة العمولات ونسبة المصاريف والنسبة المجمعة (الصافية) حسب فرع التأمين
B7: الشركات الوطنية والاجنبية
B8: Net Commission, Expense & Combined Ratios by Line of Business
B9: National & Foreign Companies
B10: (2022)
B11: جدول رقم 17A | L11: TABLE 17A
B13: فروع التأمين | C13: الشركات الوطنية | F13: الشركات الأجنبية | I13: الاجمالي | L13: Line of Business
C14: NATIONAL COMPANIES | F14: FOREIGN COMPANIES | I14: TOTAL
C15: نسبة العمولات | D15: نسبة المصاريف | E15: النسبة المجمعة | F15: نسبة العمولات | G15: نسبة المصاريف | H15: النسبة المجمعة | I15: نسبة العمولات | J15: نسبة المصاريف | K15: النسبة المجمعة
C16: Commission Ratio | D16: Expense Ratio | E16: Combined Ratio | F16: Commission Ratio | G16: Expense Ratio | H16: Combined Ratio | I16: Commission Ratio | J16: Expense Ratio | K16: Combined Ratio
B17: تأمين الحريق | C17: -0.2957797028 | D17: 0.452796888 | E17: 0.441245015 | F17: 0.2224152315 | G17: 0.2383455698 | H17: 0.6223617667 | I17: -0.07325039185 | J17: 0.3607047024 | K17: 0.5190222824 | L17: Fire
B18: التأمين البحري والطيران | C18: -0.1073631819 | D18: 0.3842935525 | E18: 0.7609324893 | F18: 0.2035263847 | G18: 0.2697544516 | H18: 0.797432231 | I18: 0.02835327808 | J18: 0.334292385 | K18: 0.7768661721 | L18: Marine & Aviation
B19: تأمين السيارات والمركبات الأخرى | C19: 0.1311081724 | D19: 0.2041948607 | E19: 1.004377918 | F19: 0.1953002798 | G19: 0.1496502523 | H19: 1.046094582 | I19: 0.1532844782 | J19: 0.1853514551 | K19: 1.018789682 | L19: Motor & Transportation
B20: التأمين الهندسي والانشاءات والطاقة | C20: -0.07207865189 | D20: 0.2910765786 | E20: 0.5985728316 | F20: 0.1562894314 | G20: 0.1463976744 | H20: 1.280361841 | I20: -0.03058508845 | J20: 0.2647890028 | K20: 0.722451156 | L20: Engineering, Construction & Energy
B21: أخرى | C21: -0.03781160868 | D21: 0.4950397272 | E21: 0.561884046 | F21: 0.06824396452 | G21: 0.4454203458 | H21: 0.7900790118 | I21: -0.01267996431 | J21: 0.4832815837 | K21: 0.6159586651 | L21: Other
B22: اعادة التأمين غير النسبية - المسؤوليات والممتلكات | C22: 0.641807635 | D22: 0.3876178961 | E22: 1.393776548 | I22: 0.641807635 | J22: 0.3877299523 | K22: 1.393888604 | L22: Reinsurance - Property & Liability
B23: المجموع - تأمين الممتلكات والمسؤوليات | C23: 0.02121254584 | D23: 0.3006875455 | E23: 0.8122420525 | F23: 0.1853969806 | G23: 0.2065473931 | H23: 0.9355477436 | I23: 0.07591956741 | J23: 0.2693196064 | K23: 0.8533280855 | L23: Total - Property & Liability Insurance
B25: المجموع - تأمين صحي | C25: 0.0383133693 | D25: 0.139285912 | E25: 0.9858855922 | F25: 0.05393276554 | G25: 0.1723030401 | H25: 1.010977567 | I25: 0.04314788113 | J25: 0.1495053657 | K25: 0.9936520543 | L25: Total - Health Insurance
B27: تأمين حياة جماعي | C27: 0.118491256 | D27: 0.2250601929 | E27: 0.7377311932 | F27: 0.1698838248 | G27: 0.3656356376 | H27: 0.7754842572 | I27: 0.1250179673 | J27: 0.2429128779 | K27: 0.7425257258 | L27: Group Life
B28: تأمين ائتمان حياة جماعي | C28: 0.1928862377 | D28: 0.3330394698 | E28: 0.9542482443 | F28: -0.1116659988 | G28: 0.4877802464 | H28: 0.2660354756 | I28: 0.1891326733 | J28: 0.3349466286 | K28: 0.9457661165 | L28: Group Credit Life
B29: تأمين حياة فردي | C29: 0.1733010891 | D29: 0.1444091302 | E29: 1.221517218 | F29: 0.1731340375 | G29: 0.09158476938 | H29: -0.8188184924 | I29: 0.1731672038 | J29: 0.1020724876 | K29: -0.4137314134 | L29: Individual Life
B30: دفعات الحياة وتكوين الأموال | C30: 0 | D30: 0 | E30: 0 | F30: 0.01497549204 | G30: 0.02288346839 | H30: 0.9958062123 | I30: 0.01497558131 | J30: 0.0228836048 | K30: 0.9958121487 | L30: Annuities & Fund Accumulation
B31: المجموع - تأمين الأشخاص وعمليات تكوين الأموال | C31: 0.1691493541 | D31: 0.1990428354 | E31: 1.086652958 | F31: 0.1678201202 | G31: 0.09221156985 | H31: -0.7467108568 | I31: 0.1681877062 | J31: 0.121754663 | K31: -0.2397128567 | L31: Total - Insurance of Persons & Fund Accumulation
B33: المجموع - كافة فروع التأمين | C33: 0.04932456383 | D33: 0.1925244495 | E33: 0.9486466974 | F33: 0.1295236689 | G33: 0.1439857612 | H33: 0.2273801372 | I33: 0.08306099862 | J33: 0.1721062379 | K33: 0.6452397921 | L33: TOTAL - All Types of Business Combined

Sheet 17B
B6: نسبة العمولات ونسبة المصاريف والنسبة المجمعة (الصافية) حسب فرع التأمين
B7: شركات التأمين التقليدي الوطنية وشركات التأمين التكافلي الوطنية
B8: Net Commission, Expense & Combined Ratios by Line of Business
B9: Traditional & Takaful National Companies
B10: (2022)
B11: جدول رقم 17B | L11: TABLE 17B
B13: فروع التأمين | C13: شركات التأمين التقليدي الوطنية | F13: شركات التأمين التكافلي الوطنية | I13: الشركات الوطنية | L13: Line of Business
C14: TRADITIONAL COMPANIES | F14: TAKAFUL OPERATORS | I14: NATIONAL COMPANIES
C15: نسبة العمولات | D15: نسبة المصاريف | E15: النسبة المجمعة | F15: نسبة العمولات | G15: نسبة المصاريف | H15: النسبة المجمعة | I15: نسبة العمولات | J15: نسبة المصاريف | K15: النسبة المجمعة
C16: Commission Ratio | D16: Expense Ratio | E16: Combined Ratio | F16: Commission Ratio | G16: Expense Ratio | H16: Combined Ratio | I16: Commission Ratio | J16: Expense Ratio | K16: Combined Ratio
B17: تأمين الحريق | C17: -0.2891841785 | D17: 0.425250904 | E17: 0.4157703201 | F17: -0.3555110915 | G17: 0.7022630139 | H17: 0.6719528176 | I17: -0.2957797028 | J17: 0.452796888 | K17: 0.441245015 | L17: Fire
B18: التأمين البحري والطيران | C18: -0.1059080369 | D18: 0.3860635222 | E18: 0.7792647827 | F18: -0.1346201523 | G18: 0.3511394609 | H18: 0.4175421157 | I18: -0.1073631819 | J18: 0.3842935525 | K18: 0.7609324893 | L18: Marine & Aviation
B19: تأمين السيارات والمركبات الأخرى | C19: 0.09725015172 | D19: 0.2154938259 | E19: 0.9868715452 | F19: 0.2233649115 | G19: 0.1734073055 | H19: 1.052079493 | I19: 0.1311081724 | J19: 0.2041948607 | K19: 1.004377918 | L19: Motor & Transportation
B20: التأمين الهندسي والانشاءات والطاقة | C20: -0.07126639589 | D20: 0.2840587414 | E20: 0.5779594475 | F20: -0.1277886887 | G20: 0.7724075442 | H20: 2.012378792 | I20: -0.07207865189 | J20: 0.2910765786 | K20: 0.5985728316 | L20: Engineering, Construction & Energy
B21: أخرى | C21: -0.09389920083 | D21: 0.5275391139 | E21: 0.5338773823 | F21: 0.301696166 | G21: 0.2983153888 | H21: 0.7314131644 | I21: -0.03781160868 | J21: 0.4950397272 | K21: 0.561884046 | L21: Other
B22: اعادة التأمين غير النسبية - المسؤوليات والممتلكات | C22: 0.641807635 | D22: 0.3876178961 | E22: 1.393776548 | I22: 0.641807635 | J22: 0.3876178961 | K22: 1.393776548 | L22: Reinsurance - Property & Liability
B23: المجموع - تأمين الممتلكات والمسؤوليات | C23: -0.01883682602 | D23: 0.3179336027 | E23: 0.7712611215 | F23: 0.1914535774 | G23: 0.2273783667 | H23: 0.9864429362 | I23: 0.02121254584 | J23: 0.3006875455 | K23: 0.8122420525 | L23: Total - Property & Liability Insurance
B25: المجموع - تأمين صحي | C25: 0.03161454887 | D25: 0.1305434151 | E25: 0.9690140876 | F25: 0.0899157781 | G25: 0.2066311864 | H25: 1.115850306 | I25: 0.0383133693 | J25: 0.139285912 | K25: 0.9858855922 | L25: Total - Health Insurance
B27: تأمين حياة جماعي | C27: 0.09548304838 | D27: 0.215270945 | E27: 0.7294843689 | F27: 0.3082216001 | G27: 0.3057843156 | H27: 0.8057361779 | I27: 0.118491256 | J27: 0.2250601929 | K27: 0.7377311932 | L27: Group Life
B28: تأمين ائتمان حياة جماعي | C28: 0.1517890799 | D28: 0.2527354713 | E28: 0.8884766656 | F28: 0.474125879 | G28: 0.8825827699 | H28: 1.404342026 | I28: 0.1928862377 | J28: 0.3330394698 | K28: 0.9542482443 | L28: Group Credit Life
B29: تأمين حياة فردي | C29: 0.05667097998 | D29: 0.1485583529 | E29: 1.641058377 | F29: 0.4601319391 | G29: 0.1342048606 | H29: 0.1897309312 | I29: 0.1733010891 | J29: 0.1444091302 | K29: 1.221517218 | L29: Individual Life
B30: دفعات الحياة وتكوين الأموال | F30: 0 | G30: 0 | H30: 0 | I30: 0 | J30: 0 | K30: 0 | L30: Annuities & Fund Accumulation
B31: المجموع - تأمين الأشخاص وعمليات تكوين الأموال | C31: 0.08750741494 | D31: 0.1866618781 | E31: 1.288931668 | F31: 0.4505438892 | G31: 0.2417161692 | H31: 0.3894607546 | I31: 0.1691493541 | J31: 0.1990428354 | K31: 1.086652958 | L31: Total - Insurance of Persons & Fund Accumulation
B33: المجموع - كافة فروع التأمين | C33: 0.0241141841 | D33: 0.1875887624 | E33: 0.9507749996 | F33: 0.1924344476 | G33: 0.2205424966 | H33: 0.9365651233 | I33: 0.04932456383 | J33: 0.1925244495 | K33: 0.9486466974 | L33: TOTAL - All Types of Business Combined

Sheet 18
B6: تحليل الربحية للتأمين على المركبات
B7: Motor Profitability Analysis
B8: (2022)
B11: جدول رقم 18 | G11: TABLE 18
B12: بالألف درهم | G12: AED in 000's
B13: البيــــــــان | C13: تأمين المركبات الشامل - أفراد | D13: تأمين المركبات المسؤولية المدنية - أفراد | E13: تأمين المركبات - تجاري | F13: الاجمالي | G13: DESCRIPTION
C14: Personal Motor - Comprehensive | D14: Personal Motor - Third Party Liability | E14: Commercial Motor | F14: TOTAL
B15: Gross of Reinsurance (إجمالي من إعادة التأمين)
B16: الأقساط المكتسبة | C16: 2638280.674 | D16: 739021.2104 | E16: 1181849.101 | F16: 4559150.985 | G16: Earned Premium
B17: المطالبات المتكبدة | C17: 2136360.17 | D17: 615893.0052 | E17: 944953.4376 | F17: 3697206.612 | G17: Losses Incurred
B18: العمولات | C18: 499928.073 | D18: 123978.5653 | E18: 163989.8961 | F18: 787896.5344 | G18: Commission
B19: المصاريف | C19: 419285.6228 | D19: 98973.91226 | E19: 145227.9446 | F19: 663487.4797 | G19: Expenses
B20: الأرباح / (الخسائر) | C20: -417293.1912 | D20: -99824.27229 | E20: -72322.17746 | F20: -589439.641 | G20: Profit / (Loss)
B21: نسبة الخسارة | C21: 0.8097546976 | D21: 0.8333901605 | E21: 0.7995550675 | F21: 0.8109419109 | G21: Loss Ratio
B22: نسبة العمولات | C22: 0.1894901016 | D22: 0.1677604966 | E22: 0.1387570511 | F22: 0.172816504 | G22: Commission Ratio
B23: نسبة المصاريف | C23: 0.1589238124 | D23: 0.133925672 | E23: 0.122881969 | F23: 0.1455287359 | G23: Expense Ratio
B24: النسبة المجمعة | C24: 1.158168612 | D24: 1.135076329 | E24: 1.061194088 | F24: 1.129287151 | G24: Combined Ratio
B25: Net of Reinsurance (صافي من إعادة التأمين)
B26: الأقساط المكتسبة | C26: 1970842.563 | D26: 707862.5235 | E26: 900913.3168 | F26: 3579618.403 | G26: Earned Premium
B27: المطالبات المتكبدة | C27: 1437820.463 | D27: 368460.2219 | E27: 628410.1924 | F27: 2434690.877 | G27: Losses Incurred
B28: العمولات | C28: 360915.7465 | D28: 114622.5077 | E28: 73161.68493 | F28: 548699.9391 | G28: Commission
B29: المصاريف | C29: 419285.6228 | D29: 98973.91226 | E29: 145227.9446 | F29: 663487.4797 | G29: Expenses
B30: الأرباح / (الخسائر) | C30: -247179.2693 | D30: 125805.8816 | E30: 54113.49492 | F30: -67259.89274 | G30: Profit / (Loss)
B31: نسبة الخسارة | C31: 0.7295460783 | D31: 0.5205251157 | E31: 0.6975257005 | F31: 0.680153749 | G31: Loss Ratio
B32: نسبة العمولات | C32: 0.1831276396 | D32: 0.1619276397 | E32: 0.08120835109 | F32: 0.1532844782 | G32: Commission Ratio
B33: نسبة المصاريف | C33: 0.2127443515 | D33: 0.1398208112 | E33: 0.1612007969 | F33: 0.1853514551 | G33: Expense Ratio
B34: النسبة المجمعة | C34: 1.125418069 | D34: 0.8222735666 | E34: 0.9399348484 | F34: 1.018789682 | G34: Combined Ratio

Sheet 19
B6: تحليل الربحية للتأمين الصحي
B7: Health Profitability Analysis
B8: (2022)
B11: جدول رقم 19 | G11: TABLE 19
B12: بالألف درهم | G12: AED in 000's
B13: البيــــــــان | C13: التأمين الصحي الفردي | D13: التأمين الصحي الجماعي | E13: تأمين الحوادث الشخصية | F13: الاجمالي | G13: DESCRIPTION
C14: Health Insurance, Individual | D14: Health Insurance, Group | E14: Personal Accident Insurance | F14: TOTAL
B15: Gross of Reinsurance (إجمالي من إعادة التأمين)
B16: الأقساط المكتسبة | C16: 739479.4204 | D16: 19819981.01 | E16: 410047.7232 | F16: 20969508.15 | G16: Earned Premium
B17: المطالبات المتكبدة | C17: 468723.0244 | D17: 16807301.66 | E17: 161234.8177 | F17: 17437259.5 | G17: Losses Incurred
B18: العمولات | C18: 58979.84823 | D18: 1053754.378 | E18: 68017.69075 | F18: 1180751.917 | G18: Commission
B19: المصاريف | C19: 63062.53524 | D19: 1751897.001 | E19: 67733.65049 | F19: 1882693.187 | G19: Expenses
B20: الأرباح / (الخسائر) | C20: 148714.0126 | D20: 207027.9656 | E20: 113061.5643 | F20: 468803.5425 | G20: Profit / (Loss)
B21: نسبة الخسارة | C21: 0.6338554007 | D21: 0.8479978692 | E21: 0.393209884 | F21: 0.8315530998 | G21: Loss Ratio
B22: نسبة العمولات | C22: 0.07975860666 | D22: 0.05316626578 | E22: 0.1658774989 | F22: 0.05630804063 | G22: Commission Ratio
B23: نسبة المصاريف | C23: 0.08527963523 | D23: 0.08839044803 | E23: 0.1651847984 | F23: 0.08978241994 | G23: Expense Ratio
B24: النسبة المجمعة | C24: 0.7988936426 | D24: 0.989554583 | E24: 0.7242721812 | F24: 0.9776435604 | G24: Combined Ratio
B25: Net of Reinsurance (صافي من إعادة التأمين)
B26: الأقساط المكتسبة | C26: 436618.638 | D26: 11931294.94 | E26: 224899.9112 | F26: 12592813.49 | G26: Earned Premium
B27: المطالبات المتكبدة | C27: 234505.219 | D27: 9804424.203 | E27: 47899.16909 | F27: 10086828.59 | G27: Losses Incurred
B28: العمولات | C28: 21557.1699 | D28: 468920.0327 | E28: 52876.01711 | F28: 543353.2197 | G28: Commission
B29: المصاريف | C29: 63062.53524 | D29: 1751897.001 | E29: 67733.65049 | F29: 1882693.187 | G29: Expenses
B30: الأرباح / (الخسائر) | C30: 117493.7138 | D30: -93946.29204 | E30: 56391.07447 | F30: 79938.49627 | G30: Profit / (Loss)
B31: نسبة الخسارة | C31: 0.5370939273 | D31: 0.8217401588 | E31: 0.2129799378 | F31: 0.8009988075 | G31: Loss Ratio
B32: نسبة العمولات | C32: 0.04937299517 | D32: 0.03930168811 | E32: 0.2351091063 | F32: 0.04314788113 | G32: Commission Ratio
B33: نسبة المصاريف | C33: 0.1444339058 | D33: 0.1468320923 | E33: 0.3011724199 | F33: 0.1495053657 | G33: Expense Ratio
B34: النسبة المجمعة | C34: 0.7309008283 | D34: 1.007873939 | E34: 0.749261464 | F34: 0.9936520543 | G34: Combined Ratio

Sheet 20A
B6: الموجودات المستثمرة حسب الفئة
B7: الشركات الوطنية والاجنبية
B8: Invested Assets by Class
B9: National & Foreign Companies
B11: جدول رقم 20A | I11: TABLE 20A
B12: بالألف درهم | I12: AED in 000's
B13: فروع التأمين | C13: الشركات الوطنية | E13: الشركات الأجنبية | G13: الاجمالي | I13: Asset Class
C14: NATIONAL COMPANIES | E14: FOREIGN COMPANIES | G14: TOTAL
C15: 2021 | D15: 2022 | E15: 2021 | F15: 2022 | G15: 2021 | H15: 2022
B16: استثمارات عقارية | C16: 4039142.072 | D16: ='20B'!H16 -> 4160844.845 | E16: 48292.20387 | F16: 77332.63359 | G16: =E16+C16 -> 4087434.276 | H16: =F16+D16 -> 4238177.479 | I16: Real estate investments
B17: الأوراق المالية وسندات الدين | C17: 12586576.13 | D17: 12639258.76 | E17: 21294125.75 | F17: 17257173.76 | G17: =E17+C17 -> 33880701.87 | H17: =F17+D17 -> 29896432.52 | I17: Equity and debt securities
B18: النقد والودائع | C18: 12539324.9 | D18: ='20B'!H18 -> 13043558.44 | E18: 7528418.735 | F18: 6975881.852 | G18: =E18+C18 -> 20067743.64 | H18: 20019440.29 | I18: Cash and deposits
B19: قروض مضمونة بوثائق التأمين على الحياة | C19: 45543.85 | D19: ='20B'!H19 -> 43959.658 | E19: 85597.23525 | F19: 74812.79144 | G19: 131141.0852 | H19: 118772.4494 | I19: Loans secured by Life policies
B20: قروض وودائع وأدوات مالية أخرى مصنفة A | C20: 2258345.074 | D20: ='20B'!H20 -> 1994701.745 | E20: 2023347.046 | F20: 1266825.465 | G20: 4281692.12 | H20: 3261527.21 | I20: Loans, Deposits and Other Instruments that are A Rated
B21: الاستثمار في الشركات الزميلة | C21: 565371.7635 | D21: ='20B'!H21 -> 537733.1509 | E21: 38040.78976 | F21: 33835.67037 | G21: =E21+C21 -> 603412.5533 | H21: 571568.8213 | I21: Investment in associates
B22: موجودات مستثمرة أخرى | C22: 6141907.907 | D22: ='20B'!H22 -> 6153315.094 | E22: 9675404.699 | F22: 7171938.75 | G22: =E22+C22 -> 15817312.61 | H22: =F22+D22 -> 13325253.84 | I22: Other invested assets
B23: إجمالي الموجودات المستثمرة | C23: =SUM(C16,C17:C22) -> 38176211.69 | D23: =SUM(D16,D17:D22) -> 38573371.69 | E23: 40693226.46 | F23: 32857800.92 | G23: =SUM(G16,G17:G22) -> 78869438.15 | H23: 71431172.61 | I23: Total Invested Assets
B25: Percent of Total (النسبة من الإجمالي)
B27: فروع التأمين | C27: الشركات الوطنية | E27: الشركات الأجنبية | G27: الاجمالي | I27: Asset Class
C28: NATIONAL COMPANIES | E28: FOREIGN COMPANIES | G28: TOTAL
C29: 2021 | D29: 2022 | E29: 2021 | F29: 2022 | G29: 2021 | H29: 2022
B30: استثمارات عقارية | C30: =C16/C$23 -> 0.10580259 | D30: =D16/D$23 -> 0.1078683211 | E30: 0.00118673814 | F30: 0.002353554755 | G30: 0.05182532514 | H30: 0.05933232403 | I30: Real estate investments
B31: الأوراق المالية وسندات الدين | C31: =C17/C$23 -> 0.3296968339 | D31: 0.3276679794 | E31: 0.523284281 | F31: 0.5252078129 | G31: 0.4295796023 | H31: 0.4185348136 | I31: Equity and debt securities
B32: النقد والودائع | C32: =C18/C$23 -> 0.3284591201 | D32: 0.3381492949 | E32: 0.1850042228 | F32: 0.2123051956 | G32: 0.2544425839 | H32: 0.2802619579 | I32: Cash and deposits
B33: قروض مضمونة بوثائق التأمين على الحياة | C33: =C19/C$23 -> 0.001192990294 | D33: 0.001139637425 | E33: 0.002103476247 | F33: 0.002276865443 | G33: 0.001662761753 | H33: 0.00166275374 | I33: Loans secured by Life policies
B34: قروض وودائع وأدوات مالية أخرى مصنفة A | C34: =C20/C$23 -> 0.05915581913 | D34: 0.05171188459 | E34: 0.04972196166 | F34: 0.03855478545 | G34: 0.05428835579 | H34: 0.04565971817 | I34: Loans, Deposits and Other Instruments that are A Rated
B35: الاستثمار في الشركات الزميلة | C35: =C21/C$23 -> 0.01480953029 | D35: 0.01394052755 | E35: 0.0009348187174 | F35: 0.001029760648 | G35: 0.007650777886 | H35: 0.008001672105 | I35: Investment in associates
B36: موجودات مستثمرة أخرى | C36: =C22/C$23 -> 0.1608831163 | D36: 0.159522355 | E36: 0.2377645014 | F36: 0.2182720252 | G36: 0.2005505932 | H36: 0.1865467604 | I36: Other invested assets
B37: إجمالي الموجودات المستثمرة | C37: =C23/C$23 -> 1 | D37: =D23/D$23 -> 1 | E37: 1 | F37: 1 | G37: 1 | H37: 1 | I37: Total Invested Assets

Sheet 20B
B6: الموجودات المستثمرة حسب الفئة
B7: شركات التأمين التقليدي الوطنية وشركات التأمين التكافلي الوطنية
B8: Invested Assets by Class
B9: Traditional & Takaful National Companies
B11: جدول رقم 20B | I11: TABLE 20B
B12: بالألف درهم | I12: AED in 000's
B13: فروع التأمين | C13: شركات التأمين التقليدي الوطنية | E13: شركات التأمين التكافلي الوطنية | G13: الشركات الوطنية | I13: Asset Class
C14: TRADITIONAL COMPANIES | E14: TAKAFUL OPERATORS | G14: NATIONAL COMPANIES
C15: 2021 | D15: 2022 | E15: 2021 | F15: 2022 | G15: 2021 | H15: 2022
B16: استثمارات عقارية | C16: 3375691.244 | D16: 3483968.359 | E16: 663450.8278 | F16: 676876.486 | G16: =E16+C16 -> 4039142.072 | H16: =F16+D16 -> 4160844.845 | I16: Real estate investments
B17: الأوراق المالية وسندات الدين | C17: 10593175.79 | D17: 10738173.56 | E17: 1993400.336 | F17: 1901085.2 | G17: =E17+C17 -> 12586576.13 | H17: =F17+D17 -> 12639258.76 | I17: Equity and debt securities
B18: النقد والودائع | C18: 10659115.15 | D18: 11248488.03 | E18: 1880209.751 | F18: 1795070.405 | G18: =E18+C18 -> 12539324.9 | H18: 13043558.44 | I18: Cash and deposits
B19: قروض مضمونة بوثائق التأمين على الحياة | C19: 45543.85 | D19: 43959.658 | E19: 0 | F19: 0 | G19: 45543.85 | H19: 43959.658 | I19: Loans secured by Life policies
B20: قروض وودائع وأدوات مالية أخرى مصنفة A | C20: 2157693.611 | D20: 1864253.956 | E20: 100651.4629 | F20: 130447.7894 | G20: 2258345.074 | H20: 1994701.745 | I20: Loans, Deposits and Other Instruments that are A Rated
B21: الاستثمار في الشركات الزميلة | C21: 315925.0194 | D21: 287545.4749 | E21: 249446.7441 | F21: 250187.676 | G21: =E21+C21 -> 565371.7635 | H21: 537733.1509 | I21: Investment in associates
B22: موجودات مستثمرة أخرى | C22: 2728212.318 | D22: 3461967.376 | E22: 3413695.589 | F22: 2691347.718 | G22: =E22+C22 -> 6141907.907 | H22: =F22+D22 -> 6153315.094 | I22: Other invested assets
B23: إجمالي الموجودات المستثمرة | C23: =SUM(C16,C17:C22) -> 29875356.98 | D23: =SUM(D16,D17:D22) -> 31128356.42 | E23: =SUM(E16,E17:E22) -> 8300854.71 | F23: =SUM(F16,F17:F22) -> 7445015.274 | G23: 38176211.69 | H23: 38573371.69 | I23: Total Invested Assets
B25: Percent of Total (النسبة من الإجمالي)
B27: فروع التأمين | C27: شركات التأمين التقليدي الوطنية | E27: شركات التأمين التكافلي الوطنية | G27: الشركات الوطنية | I27: Asset Class
C28: TRADITIONAL COMPANIES | E28: TAKAFUL OPERATORS | G28: NATIONAL COMPANIES
C29: 2021 | D29: 2022 | E29: 2021 | F29: 2022 | G29: 2021 | H29: 2022
B30: استثمارات عقارية | C30: =C16/C$23 -> 0.112992499 | D30: =D16/D$23 -> 0.111922657 | E30: =E16/E$23 -> 0.07992560417 | F30: 0.09091673571 | G30: 0.10580259 | H30: 0.1078683211 | I30: Real estate investments
B31: الأوراق المالية وسندات الدين | C31: =C17/C$23 -> 0.3545790531 | D31: 0.3449643603 | E31: 0.2401439858 | F31: 0.2553500738 | G31: 0.3296968339 | H31: 0.3276679794 | I31: Equity and debt securities
B32: النقد والودائع | C32: 0.356786202 | D32: 0.3613582382 | E32: 0.2265079702 | F32: 0.2411103724 | G32: 0.3284591201 | H32: 0.3381492949 | I32: Cash and deposits
B33: قروض مضمونة بوثائق التأمين على الحياة | C33: 0.001524462119 | D33: 0.001412206202 | E33: 0 | F33: 0 | G33: 0.001192990294 | H33: 0.001139637425 | I33: Loans secured by Life policies
B34: قروض وودائع وأدوات مالية أخرى مصنفة A | C34: =C20/C$23 -> 0.07222319092 | D34: 0.05988925117 | E34: =E20/E$23 -> 0.01212543363 | F34: 0.01752149385 | G34: 0.05915581913 | H34: 0.05171188459 | I34: Loans, Deposits and Other Instruments that are A Rated
B35: الاستثمار في الشركات الزميلة | C35: 0.01057476969 | D35: 0.009237412701 | E35: 0.03005073006 | F35: 0.033604723 | G35: 0.01480953029 | H35: 0.01394052755 | I35: Investment in associates
B36: موجودات مستثمرة أخرى | C36: 0.0913198232 | D36: 0.1112158744 | E36: 0.4112462762 | F36: 0.3614966012 | G36: 0.1608831163 | H36: 0.159522355 | I36: Other invested assets
B37: إجمالي الموجودات المستثمرة | C37: 1 | D37: 1 | E37: 1 | F37: 1 | G37: 1 | H37: 1 | I37: Total Invested Assets

Sheet 21A
B6: قائمة المركز المالي
B7: الشركات الوطنية والاجنبية
B8: Statement of Financial Position
B9: National & Foreign Companies
B11: جدول رقم 21A | I11: TABLE 21A
B12: بالألف درهم | I12: AED in 000's
B13: البيــــــــان | C13: الشركات الوطنية | E13: الشركات الأجنبية | G13: الاجمالي | I13: DESCRIPTION
C14: NATIONAL COMPANIES | E14: FOREIGN COMPANIES | G14: TOTAL
C15: 2021 | D15: 2022 | E15: 2021 | F15: 2022 | G15: 2021 | H15: 2022
B16: الموجودات | I16: Assets
B17: إجمالي الموجودات المستثمرة | C17: 38176211.7 | D17: 38573371.69 | E17: 40693226.45 | F17: 32857800.92 | G17: =C17+E17 -> 78869438.15 | H17: =D17+F17 -> 71431172.6 | I17: Total Invested Assets
B18: مستردات إعادة التأمين | C18: 16862826.22 | D18: 18664831.24 | E18: 2014940.219 | F18: 3770559.333 | G18: =C18+E18 -> 18877766.44 | H18: =D18+F18 -> 22435390.57 | I18: Reinsurance recoverable
B19: ذمم إعادة التأمين المدينة | C19: 1245154.532 | D19: 1382125.721 | E19: 150505.155 | F19: 179644.038 | G19: 1395659.687 | H19: 1561769.759 | I19: Reinsurance receivables
B20: ذمم تأمين مدينة | C20: 6113474.944 | D20: 7431068.066 | E20: 1771300.459 | F20: 1888869.104 | G20: 7884775.403 | H20: 9319937.17 | I20: Insurance receivables
B21: ذمم مدينة ودفعات مقدمة أخرى | C21: 5450543.633 | D21: 5387257.225 | E21: 584305.5191 | F21: 552660.9498 | G21: 6034849.152 | H21: 5939918.174 | I21: Other receivables and prepayments
B22: تكاليف الاستحواذ المؤجلة | C22: 731980.3748 | D22: 833062.885 | E22: 4428604.151 | F22: 4264225.288 | G22: 5160584.526 | H22: 5097288.173 | I22: Deferred policy acquisition costs
B23: الممتلكات والآلات والمعدات | C23: 1664194.211 | D23: 1533597.574 | E23: 132298.3526 | F23: 148380.8164 | G23: 1796492.563 | H23: 1681978.39 | I23: Property, machinery and equipment
B24: ودائع قانونية إلزامية | C24: 765819.564 | D24: 769999.474 | E24: 384163.4716 | F24: 293822.6433 | G24: 1149983.036 | H24: 1063822.117 | I24: Statutory deposits
B25: الموجودات غير الملموسة | C25: 257729.8706 | D25: 257556.7658 | E25: 102190.008 | F25: 101613.017 | G25: 359919.8786 | H25: 359169.7827 | I25: Intangible assets
B26: أخرى | C26: 1108539.915 | D26: 1227829.705 | E26: 0 | F26: 0 | G26: 1108539.915 | H26: 1227829.705 | I26: Others
B27: مجموع الموجودات | C27: =SUM(C17:C26) -> 72376474.96 | D27: 76060700.34 | E27: 50261533.79 | F27: 44057576.11 | G27: =SUM(G17:G26) -> 122638008.8 | H27: =SUM(H17:H26) -> 120118276.4 | I27: Total Assets
B29: المطلوبات | I29: Liabilities
B30: إجمالي المخصصات الفنية | C30: 32689768.42 | D30: 35177217.11 | E30: 38445642.83 | F30: 33373895.38 | G30: =C30+E30 -> 71135411.25 | H30: =D30+F30 -> 68551112.49 | I30: Total Technical Provisions
B31: أقساط تأمين مقبوضة مقدما | C31: 239510.459 | D31: 262071.6249 | E31: 23138.89742 | F31: 16458.21942 | G31: 262649.3564 | H31: 278529.8443 | I31: Premiums collected in advance
B32: ذمم التأمين الدائنة | C32: 3662632.365 | D32: 3973774.903 | E32: 849541.0486 | F32: 953768.2653 | G32: 4512173.414 | H32: 4927543.168 | I32: Insurance payable
B33: ذمم اعادة التأمين الدائنة | C33: 4326279.947 | D33: 5652180.951 | E33: 363269.1507 | F33: 420932.4763 | G33: 4689549.097 | H33: 6073113.427 | I33: Reinsurance payables
B34: عمولات اعادة التامين غير المكتسبة | C34: 341573.6445 | D34: 336999.1872 | E34: 76270.42684 | F34: 78267.15521 | G34: 417844.0713 | H34: 415266.3424 | I34: Unearned reinsurance commissions
B35: المصاريف المستحقة والمطلوبات الأخرى | C35: 7465560.346 | D35: 7516771.569 | E35: 4383603.308 | F35: 4145355.139 | G35: 11849163.65 | H35: 11662126.71 | I35: Accrued expenses and other liabilities
B36: ذمم الوكالة/المضاربة دائنة | C36: 106808.4822 | D36: 113218.1845 | E36: 0 | F36: 0 | G36: 106808.4822 | H36: 113218.1845 | I36: Wakala / Mudaraba Payable
B37: القروض | C37: 1094709.787 | D37: 884390.2329 | E37: 0 | F37: 0 | G37: 1094709.787 | H37: 884390.2329 | I37: Borrowings
B38: تعويضات مكافآت نهاية الخدمة للموظفين | C38: 392514.0033 | D38: 378412.7359 | E38: 78210.46816 | F38: 71785.44793 | G38: 470724.4714 | H38: 450198.1838 | I38: End of service indemnity
B39: أخرى | C39: 71956.04104 | D39: 28479.5191 | E39: 0 | F39: 0 | G39: 71956.04104 | H39: 28479.5191 | I39: Others
B40: مجموع المطلوبات | C40: =SUM(C30:C39) -> 50391313.5 | D40: =SUM(D30:D39) -> 54323516.02 | E40: 44219676.13 | F40: 39060462.09 | G40: =SUM(G30:G39) -> 94610989.63 | H40: 93383978.1 | I40: Total Liabilities
B42: حقوق المساهمين العائدة لمساهمي الشركة الأُم | I42: Equity Attributable to Equityholders of Parent
B43: الرصيد الصافي في حساب المشتركين | C43: -5087.821 | D43: -4087.45678 | E43: 31801.2678 | F43: 36882.10642 | G43: =C43+E43 -> 26713.4468 | H43: =D43+F43 -> 32794.64964 | I43: Net balance in participants' funds
B44: رأس المال المصدر والمدفوع | C44: 7295670.917 | D44: 7374631.767 | E44: 0 | F44: 100000 | G44: 7295670.917 | H44: 7474631.767 | I44: Issued and paid up share capital
B45: علاوة إصدار | C45: 111117.0534 | D45: 110975.9346 | E45: 0 | F45: 0 | G45: 111117.0534 | H45: 110975.9346 | I45: Share premium
B46: أسهم الخزينة | C46: -35972.967 | D46: -40633.285 | E46: 0 | F46: 0 | G46: -35972.967 | H46: -40633.285 | I46: Treasury shares
B47: رأس المال الإضافي المدفوع | C47: 15000 | D47: 15000 | E47: 0 | F47: 38000 | G47: 15000 | H47: 53000 | I47: Additional paid in capital
B48: الأرباح/الخسائر المدورة | C48: 3930138.698 | D48: 4092995.777 | E48: 69081.62853 | F48: -162858.7976 | G48: 3999220.327 | H48: 3930136.979 | I48: Retained earnings/loss
B49: حساب الشركة الأم | C49: 0 | D49: 0 | E49: 5802768.474 | F49: 5074870.53 | G49: 5802768.474 | H49: 5074870.53 | I49: Head Office Account
B50: حقوق الأقلية | C50: 146549.8956 | D50: 108958.6144 | E50: 0 | F50: 0 | G50: 146549.8956 | H50: 108958.6144 | I50: Minority interest
B51: الإحتياطيات | C51: 10527745.69 | D51: 10079342.98 | E51: 138206.2843 | F51: -89779.81996 | G51: 10665951.97 | H51: 9989563.16 | I51: Reserves
B52: مجموع حقوق المساهمين | C52: =SUM(C43:C51) -> 21985161.46 | D52: =SUM(D43:D51) -> 21737184.33 | E52: =SUM(E43:E51) -> 6041857.654 | F52: =SUM(F43:F51) -> 4997114.019 | G52: =SUM(G43:G51) -> 28027019.12 | H52: =SUM(H43:H51) -> 26734298.35 | I52: Total Equity
B54: مجموع حقوق المساهمين والمطلوبات | C54: =SUM(C40+C52) -> 72376474.96 | D54: =SUM(D40+D52) -> 76060700.35 | E54: =SUM(E40+E52) -> 50261533.79 | F54: =SUM(F40+F52) -> 44057576.11 | G54: =SUM(G40+G52) -> 122638008.7 | H54: =SUM(H40+H52) -> 120118276.5 | I54: Total Equity and Liabilities

Sheet 21B
B6: قائمة المركز المالي
B7: شركات التأمين التقليدي الوطنية وشركات التأمين التكافلي الوطنية
B8: Statement of Financial Position
B9: Traditional & Takaful National Companies
B11: جدول رقم 21B | I11: TABLE 21B
B12: بالألف درهم | I12: AED in 000's
B13: البيــــــــان | C13: شركات التأمين التقليدي الوطنية | E13: شركات التأمين التكافلي الوطنية | G13: الشركات الوطنية | I13: DESCRIPTION
C14: TRADITIONAL COMPANIES | E14: TAKAFUL OPERATORS | G14: NATIONAL COMPANIES
C15: 2021 | D15: 2022 | E15: 2021 | F15: 2022 | G15: 2021 | H15: 2022
B16: الموجودات | I16: Assets
B17: إجمالي الموجودات المستثمرة | C17: 29875356.99 | D17: 31128356.41 | E17: 8300854.708 | F17: 7445015.273 | G17: =E17+C17 -> 38176211.7 | H17: =F17+D17 -> 38573371.69 | I17: Total Invested Assets
B18: مستردات إعادة التأمين | C18: 14817628.9 | D18: 16633833.51 | E18: 2045197.326 | F18: 2030997.725 | G18: =E18+C18 -> 16862826.22 | H18: 18664831.24 | I18: Reinsurance recoverable
B19: ذمم إعادة التأمين المدينة | C19: 1012584.175 | D19: 1036906.073 | E19: 232570.3563 | F19: 345219.6478 | G19: 1245154.532 | H19: 1382125.721 | I19: Reinsurance receivables
B20: ذمم تأمين مدينة | C20: 5126844.448 | D20: 6488332.847 | E20: 986630.4953 | F20: 942735.2182 | G20: 6113474.944 | H20: 7431068.066 | I20: Insurance receivables
B21: ذمم مدينة ودفعات مقدمة أخرى | C21: 4108370.554 | D21: 4003638.855 | E21: 1342173.079 | F21: 1383618.369 | G21: 5450543.633 | H21: 5387257.225 | I21: Other receivables and prepayments
B22: تكاليف الاستحواذ المؤجلة | C22: 506769.9414 | D22: 600299.6201 | E22: 225210.4334 | F22: 232763.2648 | G22: 731980.3748 | H22: 833062.885 | I22: Deferred policy acquisition costs
B23: الممتلكات والآلات والمعدات | C23: 1510421.693 | D23: 1441479.346 | E23: 153772.5181 | F23: 92118.22766 | G23: 1664194.211 | H23: 1533597.574 | I23: Property, machinery and equipment
B24: ودائع قانونية إلزامية | C24: 452170.422 | D24: 426887.807 | E24: 313649.142 | F24: 343111.667 | G24: 765819.564 | H24: 769999.474 | I24: Statutory deposits
B25: الموجودات غير الملموسة | C25: 135437.0604 | D25: 121917.6898 | E25: 122292.8102 | F25: 135639.076 | G25: 257729.8706 | H25: 257556.7658 | I25: Intangible assets
B26: أخرى | C26: 0 | D26: 0 | E26: 1108539.915 | F26: 1227829.705 | G26: =E26+C26 -> 1108539.915 | H26: =F26+D26 -> 1227829.705 | I26: Others
B27: مجموع الموجودات | C27: 57545584.18 | D27: =SUM(D17:D26) -> 61881652.17 | E27: 14830890.78 | F27: 14179048.17 | G27: 72376474.96 | H27: =SUM(H17:H26) -> 76060700.34 | I27: Total Assets
B29: المطلوبات | I29: Liabilities
B30: إجمالي المخصصات الفنية | C30: 25705940.98 | D30: 28829908.64 | E30: 6983827.44 | F30: 6347308.466 | G30: =E30+C30 -> 32689768.42 | H30: 35177217.11 | I30: Total Technical Provisions
B31: أقساط تأمين مقبوضة مقدما | C31: 219494.348 | D31: 230455.1272 | E31: 20016.111 | F31: 31616.49773 | G31: 239510.459 | H31: 262071.6249 | I31: Premiums collected in advance
B32: ذمم التأمين الدائنة | C32: 3284520.995 | D32: 3451163.504 | E32: 378111.37 | F32: 522611.399 | G32: 3662632.365 | H32: 3973774.903 | I32: Insurance payable
B33: ذمم اعادة التأمين الدائنة | C33: 3351597.71 | D33: 4624942.735 | E33: 974682.2363 | F33: 1027238.216 | G33: 4326279.947 | H33: 5652180.951 | I33: Reinsurance payables
B34: عمولات اعادة التامين غير المكتسبة | C34: 278008.2495 | D34: 293404.6762 | E34: 63565.39498 | F34: 43594.51101 | G34: 341573.6445 | H34: 336999.1872 | I34: Unearned reinsurance commissions
B35: المصاريف المستحقة والمطلوبات الأخرى | C35: 4099296.298 | D35: 4262412.714 | E35: 3366264.048 | F35: 3254358.855 | G35: 7465560.346 | H35: 7516771.569 | I35: Accrued expenses and other liabilities
B36: ذمم الوكالة/المضاربة دائنة | C36: 0 | D36: 0 | E36: 106808.4822 | F36: 113218.1845 | G36: 106808.4822 | H36: 113218.1845 | I36: Wakala / Mudaraba Payable
B37: القروض | C37: 890857.787 | D37: 683272.2329 | E37: 203852 | F37: 201118 | G37: 1094709.787 | H37: 884390.2329 | I37: Borrowings
B38: تعويضات مكافآت نهاية الخدمة للموظفين | C38: 352192.0956 | D38: 334155.3682 | E38: 40321.90765 | F38: 44257.36771 | G38: 392514.0033 | H38: 378412.7359 | I38: End of service indemnity
B39: أخرى | C39: 2897.92104 | D39: 0 | E39: 69058.12 | F39: 28479.5191 | G39: 71956.04104 | H39: 28479.5191 | I39: Others
B40: مجموع المطلوبات | C40: 38184806.39 | D40: =SUM(D30:D39) -> 42709715 | E40: 12206507.11 | F40: 11613801.02 | G40: 50391313.5 | H40: 54323516.02 | I40: Total Liabilities
B42: حقوق المساهمين العائدة لمساهمي الشركة الأُم | I42: Equity Attributable to Equityholders of Parent
B43: الرصيد الصافي في حساب المشتركين | C43: 0 | D43: 0 | E43: -5087.821 | F43: -4087.45678 | G43: =E43+C43 -> -5087.821 | H43: -4087.45678 | I43: Net balance in participants' funds
B44: رأس المال المصدر والمدفوع | C44: 4307920.917 | D44: 4356869.517 | E44: 2987750 | F44: 3017762.25 | G44: 7295670.917 | H44: 7374631.767 | I44: Issued and paid up share capital
B45: علاوة إصدار | C45: 109918.6634 | D45: 109777.5446 | E45: 1198.39 | F45: 1198.39 | G45: 111117.0534 | H45: 110975.9346 | I45: Share premium
B46: أسهم الخزينة | C46: 0 | D46: -4660.318 | E46: -35972.967 | F46: -35972.967 | G46: -35972.967 | H46: -40633.285 | I46: Treasury shares
B47: رأس المال الإضافي المدفوع | C47: 15000 | D47: 15000 | E47: 0 | F47: 0 | G47: =E47+C47 -> 15000 | H47: =F47+D47 -> 15000 | I47: Additional paid in capital
B48: الأرباح/الخسائر المدورة | C48: 4517874.984 | D48: 4756437.485 | E48: -587736.2861 | F48: -663441.7086 | G48: 3930138.698 | H48: 4092995.777 | I48: Retained earnings/loss
B49: حساب الشركة الأم | C49: 0 | D49: 0 | E49: 0 | F49: 0 | G49: 0 | H49: 0 | I49: Head Office Account
B50: حقوق الأقلية | C50: 72195.71944 | D50: 42497 | E50: 74354.17615 | F50: 66461.61444 | G50: 146549.8956 | H50: 108958.6144 | I50: Minority interest
B51: الإحتياطيات | C51: 10337867.51 | D51: 9896015.94 | E51: 189878.1806 | F51: 183327.0397 | G51: 10527745.69 | H51: 10079342.98 | I51: Reserves
B52: مجموع حقوق المساهمين | C52: 19360777.79 | D52: =SUM(D43:D51) -> 19171937.17 | E52: 2624383.673 | F52: 2565247.162 | G52: =SUM(G43:G51) -> 21985161.46 | H52: =SUM(H43:H51) -> 21737184.33 | I52: Total Equity
B54: مجموع حقوق المساهمين والمطلوبات | C54: =SUM(C40+C52) -> 57545584.18 | D54: =SUM(D40+D52) -> 61881652.17 | E54: =SUM(E40+E52) -> 14830890.78 | F54: 14179048.18 | G54: =SUM(G40+G52) -> 72376474.96 | H54: =SUM(H40+H52) -> 76060700.35 | I54: Total Equity and Liabilities

Sheet 22A
B6: قائمة الدخل
B7: الشركات الوطنية والاجنبية
B8: Income Statement
B9: National & Foreign Companies
B11: جدول رقم 22A | I11: TABLE 22A
B12: بالألف درهم | I12: AED in 000's
B13: البيــــــــان | C13: الشركات الوطنية | E13: الشركات الأجنبية | G13: الاجمالي | I13: DESCRIPTION
C14: NATIONAL COMPANIES | E14: FOREIGN COMPANIES | G14: TOTAL
C15: 2021 | D15: 2022 | E15: 2021 | F15: 2022 | G15: 2021 | H15: 2022
B16: الدخل الاكتتابي | I16: Underwriting Income
B17: اجمالي الأقساط المكتتبة | C17: 30269061.5 | D17: ='22B'!H17 -> 33727738.21 | E17: 14047967.59 | F17: 13518707.22 | G17: =E17+C17 -> 44317029.08 | H17: =F17+D17 -> 47246445.43 | I17: Gross Written Premium
B18: صافي الأقساط المكتتبة | C18: 14317210.59 | D18: ='22B'!H18 -> 15260603.93 | E18: 11245360.33 | F18: 10661822 | G18: =E18+C18 -> 25562570.92 | H18: 25922425.93 | I18: Net Written Premium
B19: صافي الأقساط المكتسبة | C19: 14022898.1 | D19: ='22B'!H19 -> 14645681.88 | E19: 11193596.21 | F19: 10634194.92 | G19: 25216494.31 | H19: 25279876.8 | I19: Net Premiums Earned
B20: صافي المطالبات ومصاريف تسوية المطالبات المدفوعة | C20: 8978276.445 | D20: ='22B'!H20 -> 9622169.418 | E20: 6907042.176 | F20: 6906243.152 | G20: 15885318.62 | H20: 16528412.57 | I20: Net Claims & Claim Related Expenses Paid
B21: صافي المطالبات ومصاريف تسوية المطالبات المتكبدة | C21: 9761655.645 | D21: ='22B'!H21 -> 10351534.04 | E21: 9568971.492 | F21: -490547.8935 | G21: 19330627.14 | H21: 9860986.148 | I21: Net Claims & Claim Related Expenses Incurred
B22: أجر الوكالة/حصة المضاربة المكتسبة | C22: -5627.0073 | D22: ='22B'!H22 -> 651.445035 | E22: 0 | F22: 0 | G22: =E22+C22 -> -5627.0073 | H22: =F22+D22 -> 651.445035 | I22: Wakala / Mudaraba Fees Earned
B23: صافي العمولات المدفوعة | C23: 701005.8664 | D23: ='22B'!H23 -> 842192.8213 | E23: 832129.5023 | F23: 843952.3481 | G23: 1533135.369 | H23: 1686145.169 | I23: Net Commissions Paid
B24: صافي العمولات المتكبدة | C24: 706133.7303 | D24: ='22B'!H24 -> 722391.8679 | E24: 905219.6883 | F24: 1377379.942 | G24: 1611353.419 | H24: 2099771.81 | I24: Net Commissions Incurred
B25: تكاليف الاستحواذ الأخرى | C25: 493942.4922 | D25: ='22B'!H25 -> 501525.1879 | E25: -61341.04206 | F25: 314947.2355 | G25: 432601.4501 | H25: 816472.4234 | I25: Other Acquisition Expenses
B26: مصاريف عمومية | C26: 2066364.114 | D26: ='22B'!H26 -> 2224949.535 | E26: 1173242.156 | F26: 1216225.411 | G26: 3239606.27 | H26: 3441174.946 | I26: General Expenses
B27: الضرائب والتراخيص والرسوم | C27: 161051.9027 | D27: ='22B'!H27 -> 196981.9902 | E27: 70924.05506 | F27: 86204.27255 | G27: 231975.9577 | H27: 283186.2627 | I27: Taxes, Licenses and Fees
B28: تكاليف الإكتتاب الاخرى | C28: 2721358.509 | D28: =SUM(D25:D27) -> 2923456.714 | E28: 1182825.169 | F28: =SUM(F25:F27) -> 1617376.919 | G28: =SUM(G25:G27) -> 3904183.678 | H28: 4540833.632 | I28: Other Underwriting Expenses
B29: صافي دخل / (خسارة) الاكتتاب | C29: 833750.2116 | D29: =D19-D21-D24-D28 -> 648299.2618 | E29: -463420.1392 | F29: =F19-F21-F24-F28 -> 8129985.952 | G29: =G19-G21-G24-G28 -> 370330.0724 | H29: =H19-H21-H24-H28 -> 8778285.214 | I29: Net Underwriting Income / (Loss)
B31: الدخل الاستثماري | I31: Investment Income
B32: دخل مكتسب من الاستثمارات العقارية | C32: 109876.3392 | D32: ='22B'!H32 -> 110108.1438 | E32: 2143.865976 | F32: 2135.611931 | G32: =E32+C32 -> 112020.2052 | H32: 112243.7557 | I32: Earned Income from Real Estate Investments
B33: دخل مكتسب من الاستثمارات الاخرى | C33: 1089988.365 | D33: ='22B'!H33 -> 1024616.488 | E33: 478535.3167 | F33: 344723.3047 | G33: 1568523.681 | H33: 1369339.792 | I33: Earned Income from Other Investments
B34: صافي الربح / (الخسارة) المحققة على الاستثمارات | C34: 156074.8457 | D34: ='22B'!H34 -> 84376.92698 | E34: 680601.9928 | F34: -1601619.746 | G34: 836676.8384 | H34: -1517242.819 | I34: Net Realized Gain / (Loss) on Investments
B35: صافي الربح / (الخسارة) غير المحققة على الاستثمارات | C35: 431076.5443 | D35: ='22B'!H35 -> -58355.90766 | E35: 1626405.29 | F35: -4893871.686 | G35: 2057481.834 | H35: -4952227.594 | I35: Net Unrealized Gain / (Loss) on Investments
B36: تعديلات في الاستثمارات متدنية القيمة | C36: -109946.2484 | D36: ='22B'!H36 -> 8235.10067 | E36: -4525.76756 | F36: -66550.85285 | G36: -114472.016 | H36: -58315.75218 | I36: Adjustment for Impaired Investments
B37: ربح / (خسارة) صرف العملات الأجنبية على الاستثمارات | C37: -1536.28031 | D37: ='22B'!H37 -> -1729.48448 | E37: 49243.68476 | F37: 376637.0795 | G37: 47707.40445 | H37: 374907.5951 | I37: Foreign Exchange Gain / (Loss) on Investments
B38: إجمالي دخل الاستثمار | C38: 1675533.565 | D38: =SUM(D32:D37) -> 1167251.267 | E38: 2832404.382 | F38: =SUM(F32:F37) -> -5838546.288 | G38: 4507937.947 | H38: -4671295.021 | I38: Gross Investment Income
B39: مصاريف الاستثمار | C39: 292796.6844 | D39: ='22B'!H39 -> 312796.843 | E39: 15661.30255 | F39: 12469.95094 | G39: 308457.987 | H39: 325266.794 | I39: Investment Expenses
B40: صافي دخل الاستثمار | C40: 1382736.881 | D40: =D38-D39 -> 854454.424 | E40: 2816743.08 | F40: =F38-F39 -> -5851016.239 | G40: 4199479.96 | H40: -4996561.815 | I40: Net Investment Income
B41: دخل تشغيلي آخر | C41: 540453.1239 | D41: ='22B'!H41 -> 578075.8067 | E41: -94743.92032 | F41: -267657.6125 | G41: 445709.2036 | H41: 310418.1942 | I41: Other Operating Income
B42: مصاريف تشغيلية أخرى | C42: 688408.3183 | D42: ='22B'!H42 -> 313284.8618 | E42: 1803045.244 | F42: 1791695.595 | G42: =E42+C42 -> 2491453.563 | H42: =F42+D42 -> 2104980.457 | I42: Other Operating Expenses
B43: إجمالي الربح / الخسارة قبل حساب القروض وتوزيعات الأرباح | C43: 2068531.898 | D43: =D29+D40+D41-D42 -> 1767544.631 | E43: 455533.7759 | F43: =F29+F40+F41-F42 -> 219616.5046 | G43: =G29+G40+G41-G42 -> 2524065.674 | H43: =H29+H40+H41-H42 -> 1987161.135 | I43: Total Profit / (Loss) prior to Loans & Dividends
B44: أخرى | C44: 8220.604809 | D44: 9341 | E44: 0 | G44: =E44+C44 -> 8220.604809 | H44: =F44+D44 -> 9341 | I44: Others
B45: إجمالي الربح / الخسارة قبل توزيعات الأرباح على حاملي الوثائق | C45: 2060311.288 | D45: =D43-D44 -> 1758203.631 | E45: 455533.7759 | F45: 219616.5046 | G45: 2515845.069 | H45: =H43-H44 -> 1977820.135 | I45: Total Profit / (Loss) prior to Policyholder Dividends
B46: توزيعات الأرباح على حاملي الوثائق | C46: 28958.272 | D46: ='22B'!H46 -> 22051.269 | E46: 0 | F46: 0 | G46: =E46+C46 -> 28958.272 | H46: =F46+D46 -> 22051.269 | I46: Policyholder Dividends
B47: إجمالي الربح / (الخسارة) | C47: 2031353.016 | D47: =D45-D46 -> 1736152.362 | E47: 455533.7759 | F47: =F45-F46 -> 219616.5046 | G47: =G45-G46 -> 2486886.797 | H47: =H45-H46 -> 1955768.866 | I47: Total Profit / (Loss)

Sheet 22B
B6: قائمة الدخل
B7: شركات التأمين التقليدي الوطنية وشركات التأمين التكافلي الوطنية
B8: Income Statement
B9: Traditional & Takaful National Companies
B11: جدول رقم 22B | I11: TABLE 22B
B12: بالألف درهم | I12: AED in 000's
B13: البيــــــــان | C13: شركات التأمين التقليدي الوطنية | E13: شركات التأمين التكافلي الوطنية | G13: الشركات الوطنية | I13: DESCRIPTION
C14: TRADITIONAL COMPANIES | E14: TAKAFUL OPERATORS | G14: NATIONAL COMPANIES
C15: 2021 | D15: 2022 | E15: 2021 | F15: 2022 | G15: 2021 | H15: 2022
B16: الدخل الاكتتابي | I16: Underwriting Income
B17: اجمالي الأقساط المكتتبة | C17: 25918449.76 | D17: 29557889.53 | E17: 4350611.741 | F17: 4169848.679 | G17: =E17+C17 -> 30269061.5 | H17: =F17+D17 -> 33727738.21 | I17: Gross Written Premium
B18: صافي الأقساط المكتتبة | C18: 11849674.74 | D18: 12854346.74 | E18: 2467535.845 | F18: 2406257.193 | G18: =E18+C18 -> 14317210.59 | H18: 15260603.93 | I18: Net Written Premium
B19: صافي الأقساط المكتسبة | C19: 11624786.41 | D19: 12452106.41 | E19: 2398111.683 | F19: 2193575.473 | G19: 14022898.1 | H19: 14645681.88 | I19: Net Premiums Earned
B20: صافي المطالبات ومصاريف تسوية المطالبات المدفوعة | C20: 7611109.29 | D20: 8289006.591 | E20: 1367167.155 | F20: 1333162.827 | G20: 8978276.445 | H20: 9622169.418 | I20: Net Claims & Claim Related Expenses Paid
B21: صافي المطالبات ومصاريف تسوية المطالبات المتكبدة | C21: 8348184.082 | D21: 9203003.854 | E21: 1413471.563 | F21: 1148530.187 | G21: 9761655.645 | H21: 10351534.04 | I21: Net Claims & Claim Related Expenses Incurred
B22: أجر الوكالة/حصة المضاربة المكتسبة | C22: 0 | D22: -0.0007930227975 | E22: -5627.0073 | F22: 651.445828 | G22: -5627.0073 | H22: 651.445035 | I22: Wakala / Mudaraba Fees Earned
B23: صافي العمولات المدفوعة | C23: 258488.9417 | D23: 377728.2248 | E23: 442516.9247 | F23: 464464.5965 | G23: 701005.8664 | H23: 842192.8213 | I23: Net Commissions Paid
B24: صافي العمولات المتكبدة | C24: 257931.3294 | D24: 300272.3841 | E24: 448202.4009 | F24: 422119.4837 | G24: 706133.7303 | H24: =F24+D24 -> 722391.8679 | I24: Net Commissions Incurred
B25: تكاليف الاستحواذ الأخرى | C25: 473650.0383 | D25: 560283.0335 | E25: 20292.45382 | F25: -58757.84562 | G25: 493942.4922 | H25: 501525.1879 | I25: Other Acquisition Expenses
B26: مصاريف عمومية | C26: 1581081.677 | D26: 1775592.199 | E26: 485282.4375 | F26: 449357.3365 | G26: 2066364.114 | H26: 2224949.535 | I26: General Expenses
B27: الضرائب والتراخيص والرسوم | C27: 133193.8343 | D27: 170124.6957 | E27: 27858.06843 | F27: 26857.29444 | G27: 161051.9027 | H27: 196981.9902 | I27: Taxes, Licenses and Fees
B28: تكاليف الإكتتاب الاخرى | C28: =SUM(C25:C27) -> 2187925.549 | D28: =SUM(D25:D27) -> 2505999.928 | E28: =SUM(E25:E27) -> 533432.9598 | F28: =SUM(F25:F27) -> 417456.7854 | G28: =SUM(G25:G27) -> 2721358.509 | H28: 2923456.714 | I28: Other Underwriting Expenses
B29: صافي دخل / (خسارة) الاكتتاب | C29: =C19-C21-C24-C28 -> 830745.4526 | D29: 442830.2452 | E29: =E19-E21-E24-E28 -> 3004.758978 | F29: =F19-F21-F24-F28 -> 205469.0165 | G29: =G19-G21-G24-G28 -> 833750.2116 | H29: =H19-H21-H24-H28 -> 648299.2618 | I29: Net Underwriting Income / (Loss)
B31: الدخل الاستثماري | I31: Investment Income
B32: دخل مكتسب من الاستثمارات العقارية | C32: 95703.58805 | D32: 103884.5502 | E32: 14172.75115 | F32: 6223.59363 | G32: =E32+C32 -> 109876.3392 | H32: 110108.1438 | I32: Earned Income from Real Estate Investments
B33: دخل مكتسب من الاستثمارات الاخرى | C33: 855809.7486 | D33: 780076.1477 | E33: 234178.6159 | F33: 244540.34 | G33: 1089988.365 | H33: 1024616.488 | I33: Earned Income from Other Investments
B34: صافي الربح / (الخسارة) المحققة على الاستثمارات | C34: 115322.3306 | D34: 58354.84317 | E34: 40752.51511 | F34: 26022.08381 | G34: 156074.8457 | H34: 84376.92698 | I34: Net Realized Gain / (Loss) on Investments
B35: صافي الربح / (الخسارة) غير المحققة على الاستثمارات | C35: 299345.597 | D35: -67353.6971 | E35: 131730.9473 | F35: 8997.789439 | G35: 431076.5443 | H35: -58355.90766 | I35: Net Unrealized Gain / (Loss) on Investments
B36: تعديلات في الاستثمارات متدنية القيمة | C36: -112358.2484 | D36: 7035.10067 | E36: 2412 | F36: 1200 | G36: -109946.2484 | H36: 8235.10067 | I36: Adjustment for Impaired Investments
B37: ربح / (خسارة) صرف العملات الأجنبية على الاستثمارات | C37: -1536.28031 | D37: -1729.48448 | E37: 0 | F37: 0 | G37: -1536.28031 | H37: -1729.48448 | I37: Foreign Exchange Gain / (Loss) on Investments
B38: إجمالي دخل الاستثمار | C38: =SUM(C32:C37) -> 1252286.735 | D38: =SUM(D32:D37) -> 880267.4602 | E38: =SUM(E32:E37) -> 423246.8295 | F38: 286983.8069 | G38: =SUM(G32:G37) -> 1675533.565 | H38: 1167251.267 | I38: Gross Investment Income
B39: مصاريف الاستثمار | C39: 149960.0916 | D39: 124912.8901 | E39: 142836.5928 | F39: 187883.9529 | G39: 292796.6844 | H39: 312796.843 | I39: Investment Expenses
B40: صافي دخل الاستثمار | C40: =C38-C39 -> 1102326.644 | D40: 755354.57 | E40: =E38-E39 -> 280410.2367 | F40: 99099.85395 | G40: =G38-G39 -> 1382736.881 | H40: 854454.424 | I40: Net Investment Income
B41: دخل تشغيلي آخر | C41: 472844.2831 | D41: 499122.9383 | E41: 67608.84073 | F41: 78952.86841 | G41: 540453.1239 | H41: 578075.8067 | I41: Other Operating Income
B42: مصاريف تشغيلية أخرى | C42: 438228.7377 | D42: -75063.51825 | E42: 250179.5807 | F42: 388348.38 | G42: 688408.3183 | H42: 313284.8618 | I42: Other Operating Expenses
B43: إجمالي الربح / الخسارة قبل حساب القروض وتوزيعات الأرباح | C43: =C29+C40+C41-C42 -> 1967687.642 | D43: 1772371.272 | E43: =E29+E40+E41-E42 -> 100844.2557 | F43: -4826.641142 | G43: =G29+G40+G41-G42 -> 2068531.898 | H43: =H29+H40+H41-H42 -> 1767544.631 | I43: Total Profit / (Loss) prior to Loans & Dividends
B44: أخرى | C44: 0 | D44: 0 | E44: 8220.604809 | F44: 9341 | G44: =E44+C44 -> 8220.604809 | H44: =F44+D44 -> 9341 | I44: Others
B45: إجمالي الربح / الخسارة قبل توزيعات الأرباح على حاملي الوثائق | C45: =C43-C44 -> 1967687.642 | D45: 1772371.272 | E45: 92623.65091 | F45: -14167.64114 | G45: 2060311.293 | H45: =H43-H44 -> 1758203.631 | I45: Total Profit / (Loss) prior to Policyholder Dividends
B46: توزيعات الأرباح على حاملي الوثائق | C46: 28958.272 | D46: 22051.269 | E46: 0 | F46: 0 | G46: =E46+C46 -> 28958.272 | H46: 22051.269 | I46: Policyholder Dividends
B47: إجمالي الربح / (الخسارة) | C47: =C45-C46 -> 1938729.37 | D47: 1750320.003 | E47: =E45-E46 -> 92623.65091 | F47: -14167.64114 | G47: =G45-G46 -> 2031353.021 | H47: 1736152.362 | I47: Total Profit / (Loss)

Sheet 23A
B6: تحليل الملاءة المالية
B7: Solvency Analysis
B8: (2022)
B11: جدول رقم 23A | D11: TABLE 23A
B12: بالألف درهم | D12: AED in 000's
B13: البيــــــــان | C13: الاجمالي | D13: DESCRIPTION
C14: TOTAL
B15: متطلب الحد الأدنى لرأس المال (MCR) | C15: 6050000 | D15: Minimum Capital Requirement (MCR)
B16: مخاطر الإكتتاب - التأمينات العامة | C16: 1545129.946 | D16: Underwriting Risk - Property and Liability Insurance
B17: مخاطر الإكتتاب - التأمين على الحياة | C17: 309083.4194 | D17: Underwriting Risk - Life Insurance
B18: مخاطر الإكتتاب - التأمين الصحي | C18: 1136334.825 | D18: Underwriting Risk - Health Insurance
B19: المخاطر الاستثمارية | C19: 3860873.444 | D19: Investment Risk
B20: مخاطر الائتمان | C20: 2570408.901 | D20: Credit Risk
B21: المتطلب الأساسي لملاءة رأس المال (BSCR) | C21: 6849129.637 | D21: Basic Solvency Capital Required (BSCR)
B22: المخاطر التشغيلية | C22: 2084529.633 | D22: Operational Risk
B23: متطلب ملاءة رأس المال (SCR) | C23: 8933659.27 | D23: Solvency Capital Requirement (SCR)
B24: المبلغ الأدنى للضمان (MGF) | C24: 5953302.015 | D24: Minimum Guarantee Fund (MGF)
B26: صافي الموجودات المقبولة مطروحا منها المطلوبات | C26: 18384377.09 | D26: Admissible Assets less Liabilities
B28: الفائض / (العجز) في هامش الحد الأدنى لرأس المال | C28: 12633628.04 | D28: MCR Solvency Margin - Surplus / (Deficit)
B29: الفائض / (العجز) في هامش ملاءة رأس المال | C29: 9771390.657 | D29: SCR Solvency Margin - Surplus / (Deficit)
B30: الفائض / (العجز) في هامش المبلغ الأدنى للضمان | C30: 12751747.91 | D30: MGF Solvency Margin - Surplus / (Deficit)
B32: نسبة الحد الأدنى لرأس المال | C32: 3.038740014 | D32: MCR Solvency Ratio
B33: نسبة ملاءة رأس المال | C33: 2.057877576 | D33: SCR Solvency Ratio
B34: نسبة المبلغ الأدنى للضمان | C34: 3.088097503 | D34: MGF Solvency Ratio

Sheet 23B
B6: تحليل الملاءة المالية للشركات الوطنية
B7: Solvency Analysis for National Companies
B8: (2022)
B11: جدول رقم 23B | D11: TABLE 23B
B12: بالألف درهم | D12: AED in 000's
B13: البيــــــــان | C13: الشركات الوطنية | D13: DESCRIPTION
C14: NATIONAL COMPANIES
B15: متطلب الحد الأدنى لرأس المال (MCR) | C15: 3200000 | D15: Minimum Capital Requirement (MCR)
B16: مخاطر الإكتتاب - التأمينات العامة | C16: 1153579.784 | D16: Underwriting Risk - Property and Liability Insurance
B17: مخاطر الإكتتاب - التأمين على الحياة | C17: 123067.8666 | D17: Underwriting Risk - Life Insurance
B18: مخاطر الإكتتاب - التأمين الصحي | C18: 821232.5465 | D18: Underwriting Risk - Health Insurance
B19: المخاطر الاستثمارية | C19: 3245146.246 | D19: Investment Risk
B20: مخاطر الائتمان | C20: 2048376.096 | D20: Credit Risk
B21: المتطلب الأساسي لملاءة رأس المال (BSCR) | C21: 5275902.935 | D21: Basic Solvency Capital Required (BSCR)
B22: المخاطر التشغيلية | C22: 1427298.261 | D22: Operational Risk
B23: متطلب ملاءة رأس المال (SCR) | C23: 6703201.196 | D23: Solvency Capital Requirement (SCR)
B24: المبلغ الأدنى للضمان (MGF) | C24: 4051453.681 | D24: Minimum Guarantee Fund (MGF)
B26: صافي الموجودات المقبولة مطروحا منها المطلوبات | C26: 14371693.35 | D26: Admissible Assets less Liabilities
B28: الفائض / (العجز) في هامش الحد الأدنى لرأس المال | C28: 10736379.48 | D28: MCR Solvency Margin - Surplus / (Deficit)
B29: الفائض / (العجز) في هامش ملاءة رأس المال | C29: 7234002.583 | D29: SCR Solvency Margin - Surplus / (Deficit)
B30: الفائض / (العجز) في هامش المبلغ الأدنى للضمان | C30: 9885750.098 | D30: MGF Solvency Margin - Surplus / (Deficit)
B32: نسبة الحد الأدنى لرأس المال | C32: 4.491154173 | D32: MCR Solvency Ratio
B33: نسبة ملاءة رأس المال | C33: 2.144004474 | D33: SCR Solvency Ratio
B34: نسبة المبلغ الأدنى للضمان | C34: 3.547293018 | D34: MGF Solvency Ratio

Sheet 24A
B6: إجمالي الأقساط المكتتبة حسب الإمارة
B7: Gross Written Premium by Emirate
B8: (2022)
B11: جدول رقم 24A | M11: TABLE 24A
B12: بالألف درهم | M12: AED in 000's
B13: فروع التأمين | C13: أم القيوين | D13: الشارقة | E13: رأس الخيمة | F13: الفجيرة | G13: دبي | H13: عجمان | I13: أبو ظبي | J13: داخل الدولة | K13: خارج الدولة | L13: جميع المواقع | M13: Line of Business
C14: Umm Al Quwain | D14: Sharjah | E14: Ras Al Khaimah | F14: Fujairah | G14: Dubai | H14: Ajman | I14: Abu Dhabi | J14: Within UAE | K14: Outside UAE | L14: All Locations
B15: تأمين الحريق | C15: 2142.12331 | D15: 96945.8048 | E15: 33763.07933 | F15: 39985.78529 | G15: 1981771.577 | H15: 7127.302696 | I15: 978590.6534 | J15: 3140326.326 | K15: 1163004.352 | L15: 4303330.678 | M15: Fire
B16: التأمين البحري والطيران | C16: 43.08426 | D16: 67721.55069 | E16: 6669.854913 | F16: 10349.66777 | G16: 1064361.258 | H16: 2817.975604 | I16: 459735.6595 | J16: 1611699.05 | K16: 207634.3732 | L16: 1819333.424 | M16: Marine & Aviation
B17: تأمين السيارات والمركبات الأخرى | C17: 207.43131 | D17: 292363.5079 | E17: 133015.5428 | F17: 68918.07815 | G17: 2883158.701 | H17: 53351.52943 | I17: 994714.5264 | J17: 4425729.317 | K17: 333131.3904 | L17: 4758860.707 | M17: Motor & Transportation
B18: التأمين الهندسي والانشاءات والطاقة | C18: 74.79327 | D18: 46860.67814 | E18: 9892.302968 | F18: 42191.06504 | G18: 921039.8829 | H18: 2136.49412 | I18: 1410208.145 | J18: 2432403.362 | K18: 790268.6489 | L18: 3222672.011 | M18: Engineering, Construction & Energy
B19: أخرى | C19: 117.09359 | D19: 42893.24631 | E19: 20492.36481 | F19: 12972.26544 | G19: 2630929.294 | H19: 5319.363401 | I19: 789439.3552 | J19: 3502162.983 | K19: 204798.106 | L19: 3706961.089 | M19: Other
B20: اعادة التأمين غير النسبية - المسؤوليات والممتلكات | C20: 0 | D20: 30.65 | E20: 0 | F20: 0 | G20: 5444.39982 | H20: 0 | I20: 235.769 | J20: 5710.81882 | K20: 0 | L20: 5710.81882 | M20: Reinsurance - Property & Liability
B21: المجموع - تأمين الممتلكات والمسؤوليات | C21: 2584.52574 | D21: 546815.4378 | E21: 203833.1448 | F21: 174416.8617 | G21: 9486705.112 | H21: 70752.66525 | I21: 4632924.109 | J21: 15118031.86 | K21: 2698836.871 | L21: 17816868.73 | M21: Total - Property & Liability Insurance
B23: المجموع - تأمين صحي | C23: 5033.148297 | D23: 1021809.111 | E23: 130397.0284 | F23: 38543.49565 | G23: 13204119.73 | H23: 48897.45269 | I23: 6961355.759 | J23: 21410155.72 | K23: 331813.8022 | L23: 21741969.53 | M23: Total - Health Insurance
B25: تأمين حياة جماعي | C25: 1054.607154 | D25: 22123.26967 | E25: 4645.848539 | F25: 3166.232117 | G25: 574321.7171 | H25: 3608.281636 | I25: 254591.338 | J25: 863511.2943 | K25: 49397.56328 | L25: 912908.8576 | M25: Group Life
B26: تأمين ائتمان حياة جماعي | C26: 0 | D26: 207.13567 | E26: 80583.56342 | F26: 0 | G26: 625703.9965 | H26: 0 | I26: 107537.4497 | J26: 814032.1453 | K26: 14411.96791 | L26: 828444.1132 | M26: Group Credit Life
B27: تأمين حياة فردي | C27: 4576.53874 | D27: 117281.0381 | E27: 14380.79227 | F27: 5635.269055 | G27: 5052886.348 | H27: 20957.918 | I27: 556998.8679 | J27: 5772716.773 | K27: 26970.29675 | L27: 5799687.069 | M27: Individual Life
B28: دفعات الحياة وتكوين الأموال | C28: 0 | D28: 0 | E28: 0 | F28: 0 | G28: 145115.091 | H28: 0 | I28: 1452.047556 | J28: 146567.1386 | K28: 0 | L28: 146567.1386 | M28: Annuities & Fund Accumulation
B29: المجموع - تأمين الأشخاص وعمليات تكوين الأموال | C29: 5631.145894 | D29: 139611.4435 | E29: 99610.20423 | F29: 8801.501172 | G29: 6398027.153 | H29: 24566.19964 | I29: 920579.7032 | J29: 7596827.351 | K29: 90779.82794 | L29: 7687607.179 | M29: Total - Insurance of Persons & Fund Accumulation
B31: المجموع - كافة فروع التأمين | C31: =C21+C23+C29 -> 13248.81993 | D31: 1708235.992 | E31: 433840.3774 | F31: 221761.8585 | G31: 29088851.99 | H31: 144216.3176 | I31: 12514859.57 | J31: 44125014.93 | K31: 3121430.501 | L31: 47246445.43 | M31: TOTAL - All Types of Business Combined
G88: ` | H88: ` | I88: `

Sheet 24B
B6: صافي الأقساط المكتتبة حسب الإمارة
B7: Net Written Premium by Emirate
B8: (2022)
B11: جدول رقم 24B | M11: TABLE 24B
B12: بالألف درهم | M12: AED in 000's
B13: فروع التأمين | C13: أم القيوين | D13: الشارقة | E13: رأس الخيمة | F13: الفجيرة | G13: دبي | H13: عجمان | I13: أبو ظبي | J13: داخل الدولة | K13: خارج الدولة | L13: جميع المواقع | M13: Line of Business
C14: Umm Al Quwain | D14: Sharjah | E14: Ras Al Khaimah | F14: Fujairah | G14: Dubai | H14: Ajman | I14: Abu Dhabi | J14: Within UAE | K14: Outside UAE | L14: All Locations
B15: تأمين الحريق | C15: 78.31950779 | D15: 12337.77234 | E15: 6690.617501 | F15: 38.18680293 | G15: 384823.6286 | H15: 1549.842524 | I15: -17734.71392 | J15: 387783.6534 | K15: 411988.1932 | L15: 799771.8466 | M15: Fire
B16: التأمين البحري والطيران | C16: 12.92528 | D16: 15755.69747 | E16: 1489.130125 | F16: 1558.199493 | G16: 249909.1754 | H16: 1571.606834 | I16: -2814.700995 | J16: 267482.0336 | K16: 151654.3519 | L16: 419136.3856 | M16: Marine & Aviation
B17: تأمين السيارات والمركبات الأخرى | C17: 203.9097498 | D17: 180345.8866 | E17: 107541.4418 | F17: 60030.28239 | G17: 2347954.123 | H17: 24079.17632 | I17: 712802.4343 | J17: 3432957.255 | K17: 257392.2559 | L17: 3690349.51 | M17: Motor & Transportation
B18: التأمين الهندسي والانشاءات والطاقة | C18: 6.079614708 | D18: 2994.831431 | E18: 1579.422493 | F18: 1792.714326 | G18: 235643.9069 | H18: 359.6431179 | I18: -250453.6915 | J18: -8077.093641 | K18: 533667.0563 | L18: 525589.9626 | M18: Engineering, Construction & Energy
B19: أخرى | C19: 53.83408 | D19: 13037.82876 | E19: 4776.073058 | F19: 3457.612427 | G19: 765636.974 | H19: 1090.635754 | I19: 148108.8929 | J19: 936161.851 | K19: 86307.02165 | L19: 1022468.873 | M19: Other
B20: اعادة التأمين غير النسبية - المسؤوليات والممتلكات | C20: 0 | D20: 11.9375 | E20: 0 | F20: 0 | G20: 3932.828235 | H20: 0 | I20: 171.01725 | J20: 4115.782985 | K20: 0 | L20: 4115.782985 | M20: Reinsurance - Property & Liability
B21: المجموع - تأمين الممتلكات والمسؤوليات | C21: 355.0682323 | D21: 224483.9541 | E21: 122076.685 | F21: 66876.99544 | G21: 3987900.637 | H21: 28650.90455 | I21: 590079.2381 | J21: 5020423.482 | K21: 1441008.879 | L21: 6461432.361 | M21: Total - Property & Liability Insurance
B23: المجموع - تأمين صحي | C23: 3344.713251 | D23: 433490.3847 | E23: 105794.4615 | F23: 27771.61911 | G23: 7780867.403 | H23: 33499.91991 | I23: 5284970.964 | J23: 13669739.47 | K23: -609784.1433 | L23: 13059955.32 | M23: Total - Health Insurance
B25: تأمين حياة جماعي | C25: 303.773094 | D25: 4306.692957 | E25: 1595.840803 | F25: 1037.800097 | G25: 173517.8018 | H25: -513.1297278 | I25: 94225.26676 | J25: 274474.0458 | K25: 46939.88884 | L25: 321413.9346 | M25: Group Life
B26: تأمين ائتمان حياة جماعي | C26: 0 | D26: 66.9773 | E26: 45360.4596 | F26: 0 | G26: 329070.5433 | H26: 0 | I26: 24332.64569 | J26: 398830.6259 | K26: 3776.722685 | L26: 402607.3486 | M26: Group Credit Life
B27: تأمين حياة فردي | C27: 4559.920409 | D27: 112227.3187 | E27: 14202.20883 | F27: 5594.840016 | G27: 4806143.331 | H27: 20844.08669 | I27: 549263.0381 | J27: 5512834.744 | K27: 17645.27827 | L27: 5530480.022 | M27: Individual Life
B28: دفعات الحياة وتكوين الأموال | C28: 0 | D28: 0 | E28: 0 | F28: 0 | G28: 145095.0507 | H28: 0 | I28: 1441.890063 | J28: 146536.9407 | K28: -1.389969839e-06 | L28: 146536.9407 | M28: Annuities & Fund Accumulation
B29: المجموع - تأمين الأشخاص وعمليات تكوين الأموال | C29: 4863.693503 | D29: 116600.989 | E29: 61158.50924 | F29: 6632.640113 | G29: 5453826.727 | H29: 20330.95696 | I29: 669262.8406 | J29: 6332676.356 | K29: 68361.88979 | L29: 6401038.246 | M29: Total - Insurance of Persons & Fund Accumulation
B31: المجموع - كافة فروع التأمين | C31: =C21+C23+C29 -> 8563.474987 | D31: 774575.3278 | E31: 289029.6557 | F31: 101281.2547 | G31: 17222594.77 | H31: 82481.78142 | I31: 6544313.043 | J31: 25022839.3 | K31: 899586.6254 | L31: 25922425.93 | M31: TOTAL - All Types of Business Combined

Sheet 25
B6: عدد وثائق التأمين حسب الإمارة
B7: Number of Policies by Emirate
B8: (2022)
B11: جدول رقم 25 | M11: TABLE 25
B13: فروع التأمين | C13: أم القيوين | D13: الشارقة | E13: رأس الخيمة | F13: الفجيرة | G13: دبي | H13: عجمان | I13: أبو ظبي | J13: داخل الدولة | K13: خارج الدولة | L13: جميع المواقع | M13: Line of Business
C14: Umm Al Quwain | D14: Sharjah | E14: Ras Al Khaimah | F14: Fujairah | G14: Dubai | H14: Ajman | I14: Abu Dhabi | J14: Within UAE | K14: Outside UAE | L14: All Locations
B15: تأمين الحريق | C15: 122 | D15: 7671.188879 | E15: 1529 | F15: 1158 | G15: 94441.43722 | H15: 4712 | I15: 25973.56047 | J15: 135607.1866 | K15: 97806.81344 | L15: 233414 | M15: Fire
B16: التأمين البحري والطيران | C16: 1 | D16: 24357.74916 | E16: 669 | F16: 394 | G16: 176775.5692 | H16: 1093 | I16: 25493.31813 | J16: 228783.6365 | K16: 37806.36351 | L16: 266590 | M16: Marine & Aviation
B17: تأمين السيارات والمركبات الأخرى | C17: 201 | D17: 303378.2079 | E17: 462772 | F17: 65057 | G17: 2010967.179 | H17: 76641 | I17: 1016777.683 | J17: 3935794.07 | K17: 921244.9296 | L17: 4857039 | M17: Motor & Transportation
B18: التأمين الهندسي والانشاءات والطاقة | C18: 6 | D18: 1870.102617 | E18: 345 | F18: 282 | G18: 19520.97907 | H18: 764 | I18: 12265.7871 | J18: 35053.86879 | K18: 30361.13121 | L18: 65415 | M18: Engineering, Construction & Energy
B19: أخرى | C19: 35 | D19: 14325.93458 | E19: 2739 | F19: 1122 | G19: 2205966.611 | H19: 3659 | I19: 64717.67776 | J19: 2292565.224 | K19: 159645.7762 | L19: 2452211 | M19: Other
B20: اعادة التأمين غير النسبية - المسؤوليات والممتلكات | C20: 0 | D20: 99 | E20: 0 | F20: 0 | G20: 550 | H20: 0 | I20: 702 | J20: 1351 | K20: 0 | L20: 1351 | M20: Reinsurance - Property & Liability
B21: المجموع - تأمين الممتلكات والمسؤوليات | C21: 365 | D21: 351702.1831 | E21: 468054 | F21: 68013 | G21: 4508221.776 | H21: 86869 | I21: 1145930.027 | J21: 6629154.986 | K21: 1246865.014 | L21: 7876020 | M21: Total - Property & Liability Insurance
B23: المجموع - تأمين صحي | C23: 768 | D23: 61355.75619 | E23: 14254 | F23: 4231 | G23: 839895.4681 | H23: 8191 | I23: 563975.6887 | J23: 1492670.913 | K23: 76556.08706 | L23: 1569227 | M23: Total - Health Insurance
B25: تأمين حياة جماعي | C25: 15 | D25: 1985.589862 | E25: 108 | F25: 145 | G25: 7020.122947 | H25: 107.368667 | I25: 1464.918524 | J25: 10846 | K25: 415 | L25: 11261 | M25: Group Life
B26: تأمين ائتمان حياة جماعي | C26: 0 | D26: 125 | E26: 39 | F26: 0 | G26: 1185 | H26: 0 | I26: 155 | J26: 1504 | K26: 26 | L26: 1530 | M26: Group Credit Life
B27: تأمين حياة فردي | C27: 277 | D27: 8344 | E27: 933 | F27: 362 | G27: 268849 | H27: 1353 | I27: 33252 | J27: 313370 | K27: 2154 | L27: 315524 | M27: Individual Life
B28: دفعات الحياة وتكوين الأموال | C28: 0 | D28: 0 | E28: 0 | F28: 0 | G28: 949 | H28: 0 | I28: 23 | J28: 972 | K28: 0 | L28: 972 | M28: Annuities & Fund Accumulation
B29: المجموع - تأمين الأشخاص وعمليات تكوين الأموال | C29: 292 | D29: 10454.58986 | E29: 1080 | F29: 507 | G29: 278003.1229 | H29: 1460.368667 | I29: 34894.91852 | J29: 326692 | K29: 2595 | L29: 329287 | M29: Total - Insurance of Persons & Fund Accumulation
B31: المجموع - كافة فروع التأمين | C31: =C21+C23+C29 -> 1425 | D31: 423512.5291 | E31: 483388 | F31: 72751 | G31: 5626120.367 | H31: 96520.36867 | I31: 1744800.634 | J31: 8448517.899 | K31: 1326016.101 | L31: 9774534 | M31: TOTAL - All Types of Business Combined

Sheet 26A
B6: إجمالي الأقساط غير المكتسبة حسب الإمارة
B7: Gross Unearned Premium Reserve by Emirate
B8: (2022)
B11: جدول رقم 26A | M11: TABLE 26A
B12: بالألف درهم | M12: AED in 000's
B13: فروع التأمين | C13: أم القيوين | D13: الشارقة | E13: رأس الخيمة | F13: الفجيرة | G13: دبي | H13: عجمان | I13: أبو ظبي | J13: داخل الدولة | K13: خارج الدولة | L13: جميع المواقع | M13: Line of Business
C14: Umm Al Quwain | D14: Sharjah | E14: Ras Al Khaimah | F14: Fujairah | G14: Dubai | H14: Ajman | I14: Abu Dhabi | J14: Within UAE | K14: Outside UAE | L14: All Locations
B15: تأمين الحريق | C15: 692.8736401 | D15: 32922.08521 | E15: 15162.01725 | F15: 12415.6202 | G15: 704521.3608 | H15: 3209.941447 | I15: 304946.5109 | J15: 1073870.409 | K15: 529339.5304 | L15: 1603209.94 | M15: Fire
B16: التأمين البحري والطيران | C16: 6.92529 | D16: 20826.26499 | E16: 3411.248935 | F16: 2475.231864 | G16: 405253.2006 | H16: 1116.030941 | I16: 183695.0876 | J16: 616783.9903 | K16: 79323.19868 | L16: 696107.189 | M16: Marine & Aviation
B17: تأمين السيارات والمركبات الأخرى | C17: 130.3667101 | D17: 116177.5883 | E17: 71040.31623 | F17: 36015.39617 | G17: 1611231.253 | H17: 21589.60664 | I17: 435827.0128 | J17: 2292011.54 | K17: 134034.9108 | L17: 2426046.45 | M17: Motor & Transportation
B18: التأمين الهندسي والانشاءات والطاقة | C18: 50.98907646 | D18: 16115.95415 | E18: 6217.185591 | F18: 32820.82997 | G18: 499274.0114 | H18: 918.8713519 | I18: 657358.2832 | J18: 1212756.125 | K18: 369241.0746 | L18: 1581997.199 | M18: Engineering, Construction & Energy
B19: أخرى | C19: 37.65937795 | D19: 28009.09687 | E19: 10085.1959 | F19: 4314.629882 | G19: 1460429.892 | H19: 5067.441519 | I19: 387257.4704 | J19: 1895201.386 | K19: 60310.53724 | L19: 1955511.923 | M19: Other
B20: اعادة التأمين غير النسبية - المسؤوليات والممتلكات | C20: 0 | D20: 17.80819832 | E20: 0 | F20: 0 | G20: 1493.190032 | H20: 0 | I20: 1191.032852 | J20: 2702.031082 | K20: 0 | L20: 2702.031082 | M20: Reinsurance - Property & Liability
B21: المجموع - تأمين الممتلكات والمسؤوليات | C21: 918.8140946 | D21: 214068.7978 | E21: 105915.9639 | F21: 88041.70808 | G21: 4682202.908 | H21: 31901.8919 | I21: 1970275.398 | J21: 7093325.481 | K21: 1172249.252 | L21: 8265574.733 | M21: Total - Property & Liability Insurance
B23: المجموع - تأمين صحي | C23: 788.5245129 | D23: 192233.2226 | E23: 41879.61512 | F23: 11300.66185 | G23: 4504634.368 | H23: 14296.76463 | I23: 2262325.331 | J23: 7027458.488 | K23: 75112.71603 | L23: 7102571.204 | M23: Total - Health Insurance
B25: تأمين حياة جماعي | C25: 185.2052125 | D25: 7236.078937 | E25: 1531.476973 | F25: 531.982952 | G25: 121876.4356 | H25: 957.9187085 | I25: 65137.33615 | J25: 197456.4345 | K25: 9383.519202 | L25: 206839.9537 | M25: Group Life
B26: تأمين ائتمان حياة جماعي | C26: 0 | D26: 7.47888 | E26: 2.87107 | F26: 0 | G26: 41028.07265 | H26: 0 | I26: 2871.93748 | J26: 43910.36008 | K26: 3710.89127 | L26: 47621.25135 | M26: Group Credit Life
B27: تأمين حياة فردي | C27: 0.2643651726 | D27: 194.0113098 | E27: 4.701021572 | F27: 0.4610292691 | G27: 362430.7048 | H27: 1.051095214 | I27: 688.4479808 | J27: 363319.6416 | K27: 32918.78822 | L27: 396238.4298 | M27: Individual Life
B28: دفعات الحياة وتكوين الأموال | C28: 0 | D28: 0 | E28: 0 | F28: 0 | G28: 0 | H28: 0 | I28: 0 | J28: 0 | K28: 0 | L28: 0 | M28: Annuities & Fund Accumulation
B29: المجموع - تأمين الأشخاص وعمليات تكوين الأموال | C29: 185.4695777 | D29: 7437.569127 | E29: 1539.049065 | F29: 532.4439813 | G29: 525335.213 | H29: 958.9698037 | I29: 68697.72161 | J29: 604686.4362 | K29: 46013.19869 | L29: 650699.6349 | M29: Total - Insurance of Persons & Fund Accumulation
B31: المجموع - كافة فروع التأمين | C31: =C21+C23+C29 -> 1892.808185 | D31: 413739.5895 | E31: 149334.6281 | F31: 99874.81392 | G31: 9712172.489 | H31: 47157.62634 | I31: 4301298.451 | J31: 14725470.41 | K31: 1293375.166 | L31: 16018845.57 | M31: TOTAL - All Types of Business Combined

Sheet 26B
B6: صافي الأقساط غير المكتسبة حسب الإمارة
B7: Net Unearned Premium Reserve by Emirate
B8: (2022)
B11: جدول رقم 26B | M11: TABLE 26B
B12: بالألف درهم | M12: AED in 000's
B13: فروع التأمين | C13: أم القيوين | D13: الشارقة | E13: رأس الخيمة | F13: الفجيرة | G13: دبي | H13: عجمان | I13: أبو ظبي | J13: داخل الدولة | K13: خارج الدولة | L13: جميع المواقع | M13: Line of Business
C14: Umm Al Quwain | D14: Sharjah | E14: Ras Al Khaimah | F14: Fujairah | G14: Dubai | H14: Ajman | I14: Abu Dhabi | J14: Within UAE | K14: Outside UAE | L14: All Locations
B15: تأمين الحريق | C15: 90.91778235 | D15: 5887.860698 | E15: 3613.241926 | F15: 1173.383072 | G15: 155445.4363 | H15: 1708.689173 | I15: 12162.13163 | J15: 180081.6606 | K15: 142461.549 | L15: 322543.2095 | M15: Fire
B16: التأمين البحري والطيران | C16: 2.07759 | D16: 5036.544688 | E16: 597.7699682 | F16: 380.4559025 | G16: 70319.83518 | H16: 727.2147662 | I16: -2574.381828 | J16: 74489.51627 | K16: 59927.53361 | L16: 134417.0499 | M16: Marine & Aviation
B17: تأمين السيارات والمركبات الأخرى | C17: 129.1377582 | D17: 73275.78654 | E17: 59041.24806 | F17: 32889.2052 | G17: 1317941.429 | H17: 10732.52851 | I17: 293834.2707 | J17: 1787843.606 | K17: 130255.7334 | L17: 1918099.339 | M17: Motor & Transportation
B18: التأمين الهندسي والانشاءات والطاقة | C18: 2.622315868 | D18: 3288.327384 | E18: 1318.54148 | F18: 1105.477226 | G18: 135120.3681 | H18: 594.6432747 | I18: -6894.030782 | J18: 134535.949 | K18: 226154.8831 | L18: 360690.8322 | M18: Engineering, Construction & Energy
B19: أخرى | C19: 16.43943549 | D19: 6936.730631 | E19: 2138.528595 | F19: 1124.39378 | G19: 316984.5377 | H19: 1287.264863 | I19: 76345.73501 | J19: 404833.63 | K19: 34621.50622 | L19: 439455.1362 | M19: Other
B20: اعادة التأمين غير النسبية - المسؤوليات والممتلكات | C20: 0 | D20: 7.1504123 | E20: 0 | F20: 0 | G20: 1127.681001 | H20: 0 | I20: 830.3931287 | J20: 1965.224542 | K20: 0 | L20: 1965.224542 | M20: Reinsurance - Property & Liability
B21: المجموع - تأمين الممتلكات والمسؤوليات | C21: 241.1948819 | D21: 94432.40035 | E21: 66709.33003 | F21: 36672.91518 | G21: 1996939.287 | H21: 15050.34059 | I21: 373704.1178 | J21: 2583749.586 | K21: 593421.2054 | L21: 3177170.791 | M21: Total - Property & Liability Insurance
B23: المجموع - تأمين صحي | C23: 620.2082216 | D23: 118346.3527 | E23: 33582.93133 | F23: 8302.707848 | G23: 2558723.936 | H23: 11002.47118 | I23: 1692733.039 | J23: 4423311.645 | K23: -89980.33555 | L23: 4333331.31 | M23: Total - Health Insurance
B25: تأمين حياة جماعي | C25: 129.4582174 | D25: 2401.941068 | E25: 666.654712 | F25: 303.1253548 | G25: 41240.93822 | H25: 596.2333593 | I25: 23840.39584 | J25: 69178.74677 | K25: 5966.738482 | L25: 75145.48526 | M25: Group Life
B26: تأمين ائتمان حياة جماعي | C26: 0 | D26: 2.23591 | E26: 0.8291 | F26: 0 | G26: 10382.813 | H26: 0 | I26: 238.03316 | J26: 10623.91117 | K26: 3699.89851 | L26: 14323.80968 | M26: Group Credit Life
B27: تأمين حياة فردي | C27: 0.127487609 | D27: 162.2417371 | E27: 2.267023278 | F27: 0.2223270131 | G27: 358235.1931 | H27: 0.5068807452 | I27: 397.4595138 | J27: 358798.018 | K27: 32918.78775 | L27: 391716.8058 | M27: Individual Life
B28: دفعات الحياة وتكوين الأموال | C28: 0 | D28: 0 | E28: 0 | F28: 0 | G28: 0 | H28: 0 | I28: 0 | J28: 0 | K28: 0 | L28: 0 | M28: Annuities & Fund Accumulation
B29: المجموع - تأمين الأشخاص وعمليات تكوين الأموال | C29: 129.585705 | D29: 2566.418715 | E29: 669.7508353 | F29: 303.3476818 | G29: 409858.9443 | H29: 596.74024 | I29: 24475.88851 | J29: 438600.676 | K29: 42585.42474 | L29: 481186.1007 | M29: Total - Insurance of Persons & Fund Accumulation
B31: المجموع - كافة فروع التأمين | C31: =C21+C23+C29 -> 990.9888086 | D31: 215345.1718 | E31: 100962.0122 | F31: 45278.97071 | G31: 4965522.167 | H31: 26649.552 | I31: 2090913.045 | J31: 7445661.907 | K31: 546026.2946 | L31: 7991688.202 | M31: TOTAL - All Types of Business Combined

Sheet 27A
B6: إجمالي المطالبات المدفوعة حسب الإمارة
B7: Gross Claims Paid by Emirate
B8: (2022)
B11: جدول رقم 27A | M11: TABLE 27A
B12: بالألف درهم | M12: AED in 000's
B13: فروع التأمين | C13: أم القيوين | D13: الشارقة | E13: رأس الخيمة | F13: الفجيرة | G13: دبي | H13: عجمان | I13: أبو ظبي | J13: داخل الدولة | K13: خارج الدولة | L13: جميع المواقع | M13: Line of Business
C14: Umm Al Quwain | D14: Sharjah | E14: Ras Al Khaimah | F14: Fujairah | G14: Dubai | H14: Ajman | I14: Abu Dhabi | J14: Within UAE | K14: Outside UAE | L14: All Locations
B15: تأمين الحريق | C15: 23236.53884 | D15: 25455.17276 | E15: 6009.397722 | F15: 66490.42971 | G15: 633799.5263 | H15: 2898.417059 | I15: 341187.8986 | J15: 1099077.381 | K15: 266123.4314 | L15: 1365200.812 | M15: Fire
B16: التأمين البحري والطيران | C16: 0 | D16: 15972.54392 | E16: 278.2803692 | F16: 376.65564 | G16: 288365.5194 | H16: 213.035318 | I16: 85577.46688 | J16: 390783.5015 | K16: 102463.1118 | L16: 493246.6133 | M16: Marine & Aviation
B17: تأمين السيارات والمركبات الأخرى | C17: 524.62048 | D17: 297387.0568 | E17: 114749.2396 | F17: 70456.41912 | G17: 2182221.071 | H17: 20318.17569 | I17: 822416.6066 | J17: 3508073.189 | K17: 201848.4265 | L17: 3709921.615 | M17: Motor & Transportation
B18: التأمين الهندسي والانشاءات والطاقة | C18: 0 | D18: 16883.46084 | E18: 1685.43754 | F18: 34657.58418 | G18: 480580.5094 | H18: 1805.866707 | I18: 185270.4597 | J18: 720883.3184 | K18: 274265.7802 | L18: 995149.0985 | M18: Engineering, Construction & Energy
B19: أخرى | C19: 0.52 | D19: 3312.505728 | E19: 1603.228819 | F19: 1869.4908 | G19: 251071.4886 | H19: 1792.358498 | I19: 119479.2396 | J19: 379128.832 | K19: 49621.07957 | L19: 428749.9116 | M19: Other
B20: اعادة التأمين غير النسبية - المسؤوليات والممتلكات | C20: 0 | D20: 2.5 | E20: 0 | F20: 0 | G20: 302.2405 | H20: 0 | I20: 172.7915 | J20: 477.532 | K20: 0 | L20: 477.532 | M20: Reinsurance - Property & Liability
B21: المجموع - تأمين الممتلكات والمسؤوليات | C21: 23761.67932 | D21: 359013.24 | E21: 124325.5841 | F21: 173850.5794 | G21: 3836340.355 | H21: 27027.85328 | I21: 1554104.463 | J21: 6098423.754 | K21: 894321.8294 | L21: 6992745.583 | M21: Total - Property & Liability Insurance
B23: المجموع - تأمين صحي | C23: 3339.639494 | D23: 771783.2192 | E23: 101623.0346 | F23: 32254.15104 | G23: 10459343.39 | H23: 30227.0074 | I23: 5482068.51 | J23: 16880638.95 | K23: 176098.7813 | L23: 17056737.73 | M23: Total - Health Insurance
B25: تأمين حياة جماعي | C25: 464.6547306 | D25: 8460.895224 | E25: 2332.459897 | F25: 5691.13302 | G25: 246216.2353 | H25: 2130.633752 | I25: 131020.3906 | J25: 396316.4025 | K25: 71318.60858 | L25: 467635.0111 | M25: Group Life
B26: تأمين ائتمان حياة جماعي | C26: 0 | D26: 1151.66066 | E26: 17398.728 | F26: 0 | G26: 167192.078 | H26: 0 | I26: 60218.51666 | J26: 245960.9833 | K26: 16233.76216 | L26: 262194.7455 | M26: Group Credit Life
B27: تأمين حياة فردي | C27: 2798.364255 | D27: 61840.23283 | E27: 15357.70497 | F27: 3644.922364 | G27: 2266998.709 | H27: 17274.18391 | I27: 202906.7121 | J27: 2570820.829 | K27: 18395.74503 | L27: 2589216.574 | M27: Individual Life
B28: دفعات الحياة وتكوين الأموال | C28: 0 | D28: 0 | E28: 0 | F28: 0 | G28: 302924.3732 | H28: 0 | I28: 6947.855714 | J28: 309872.2289 | K28: 0 | L28: 309872.2289 | M28: Annuities & Fund Accumulation
B29: المجموع - تأمين الأشخاص وعمليات تكوين الأموال | C29: 3263.018986 | D29: 71452.78871 | E29: 35088.89287 | F29: 9336.055384 | G29: 2983331.396 | H29: 19404.81766 | I29: 401093.475 | J29: 3522970.444 | K29: 105948.1158 | L29: 3628918.56 | M29: Total - Insurance of Persons & Fund Accumulation
B31: المجموع - كافة فروع التأمين | C31: =C21+C23+C29 -> 30364.3378 | D31: 1202249.248 | E31: 261037.5115 | F31: 215440.7859 | G31: 17279015.14 | H31: 76659.67833 | I31: 7437266.448 | J31: 26502033.15 | K31: 1176368.726 | L31: 27678401.88 | M31: TOTAL - All Types of Business Combined

Sheet 27B
B6: صافي المطالبات المدفوعة حسب الإمارة
B7: Net Claims Paid by Emirate
B8: (2022)
B11: جدول رقم 27B | M11: TABLE 27B
B12: بالألف درهم | M12: AED in 000's
B13: فروع التأمين | C13: أم القيوين | D13: الشارقة | E13: رأس الخيمة | F13: الفجيرة | G13: دبي | H13: عجمان | I13: أبو ظبي | J13: داخل الدولة | K13: خارج الدولة | L13: جميع المواقع | M13: Line of Business
C14: Umm Al Quwain | D14: Sharjah | E14: Ras Al Khaimah | F14: Fujairah | G14: Dubai | H14: Ajman | I14: Abu Dhabi | J14: Within UAE | K14: Outside UAE | L14: All Locations
B15: تأمين الحريق | C15: 1471.05894 | D15: 18041.97265 | E15: -4455.601973 | F15: 12498.939 | G15: 171619.7438 | H15: 1758.014171 | I15: 33998.55079 | J15: 234932.6774 | K15: 108340.1925 | L15: 343272.8698 | M15: Fire
B16: التأمين البحري والطيران | C16: 0 | D16: 12176.8221 | E16: -4809.316478 | F16: 3.42024 | G16: 89848.73258 | H16: 168.3770474 | I16: 12865.58062 | J16: 110253.6161 | K16: 47841.02786 | L16: 158094.644 | M16: Marine & Aviation
B17: تأمين السيارات والمركبات الأخرى | C17: 523.18048 | D17: 266580.4563 | E17: -17310.88133 | F17: 51135.64726 | G17: 1632009.414 | H17: 13424.77582 | I17: 530678.61 | J17: 2477041.203 | K17: 201071.3145 | L17: 2678112.517 | M17: Motor & Transportation
B18: التأمين الهندسي والانشاءات والطاقة | C18: 0 | D18: 11113.32911 | E18: -7409.724835 | F18: 3468.207666 | G18: 99506.36908 | H18: 1215.476338 | I18: 26612.8301 | J18: 134506.4875 | K18: 136373.8392 | L18: 270880.3267 | M18: Engineering, Construction & Energy
B19: أخرى | C19: 0.156 | D19: 1736.0129 | E19: -258.8214902 | F19: 542.0678 | G19: 77791.12112 | H19: 1119.118911 | I19: 24199.87551 | J19: 105129.5307 | K19: 27023.86997 | L19: 132153.4007 | M19: Other
B20: اعادة التأمين غير النسبية - المسؤوليات والممتلكات | C20: 0 | D20: 1.875 | E20: 0 | F20: 0 | G20: 62.7045 | H20: 0 | I20: 335.005 | J20: 399.5845 | K20: 0 | L20: 399.5845 | M20: Reinsurance - Property & Liability
B21: المجموع - تأمين الممتلكات والمسؤوليات | C21: 1994.39542 | D21: 309650.4681 | E21: -34244.34611 | F21: 67648.28197 | G21: 2070838.085 | H21: 17685.76228 | I21: 628690.452 | J21: 3062263.099 | K21: 520650.244 | L21: 3582913.343 | M21: Total - Property & Liability Insurance
B23: المجموع - تأمين صحي | C23: 1927.749414 | D23: 675393.4572 | E23: -270432.7865 | F23: 24400.86269 | G23: 5740673.343 | H23: 21316.72125 | I23: 4209314.737 | J23: 10402594.08 | K23: -420532.5408 | L23: 9982061.543 | M23: Total - Health Insurance
B25: تأمين حياة جماعي | C25: 162.1287278 | D25: 4301.438024 | E25: -1215.147573 | F25: 4456.894535 | G25: 40998.30043 | H25: 832.4385317 | I25: 59889.05676 | J25: 109425.1094 | K25: 21252.84471 | L25: 130677.9541 | M25: Group Life
B26: تأمين ائتمان حياة جماعي | C26: 0 | D26: 230.332138 | E26: 1862.448217 | F26: 0 | G26: 10417.14409 | H26: 0 | I26: 5645.480468 | J26: 18155.40491 | K26: 2624.975319 | L26: 20780.38023 | M26: Group Credit Life
B27: تأمين حياة فردي | C27: 2793.879404 | D27: 61364.24264 | E27: 15143.79102 | F27: 3637.074281 | G27: 2190784.879 | H27: 17222.68837 | I27: 202623.9428 | J27: 2493570.497 | K27: 8536.639679 | L27: 2502107.137 | M27: Individual Life
B28: دفعات الحياة وتكوين الأموال | C28: 0 | D28: 0 | E28: 0 | F28: 0 | G28: 302924.3732 | H28: 0 | I28: 6947.855714 | J28: 309872.2289 | K28: 0 | L28: 309872.2289 | M28: Annuities & Fund Accumulation
B29: المجموع - تأمين الأشخاص وعمليات تكوين الأموال | C29: 2956.008132 | D29: 65896.0128 | E29: 15791.09167 | F29: 8093.968815 | G29: 2545124.696 | H29: 18055.1269 | I29: 275106.3358 | J29: 2931023.24 | K29: 32414.45971 | L29: 2963437.7 | M29: Total - Insurance of Persons & Fund Accumulation
B31: المجموع - كافة فروع التأمين | C31: =C21+C23+C29 -> 6878.152965 | D31: 1050939.938 | E31: -288886.0409 | F31: 100143.1135 | G31: 10356636.12 | H31: 57057.61043 | I31: 5113111.525 | J31: 16395880.42 | K31: 132532.1629 | L31: 16528412.59 | M31: TOTAL - All Types of Business Combined

Sheet 28A
B6: البيانات بالإجمالي لإمارة دبي
B7: Gross Results for Dubai
B8: (2022)
B11: جدول رقم 28A | H11: TABLE 28A
B12: بالألف درهم | H12: AED in 000's
B13: فروع التأمين | C13: الأقساط المكتتبة | D13: أعداد الوثائق | E13: مخصص الأقساط غير المكتسبة | F13: المطالبات المدفوعة | G13: مخصص المطالبات تحت التسوية | H13: Line of Business
C14: Written Premium | D14: Number of Policies | E14: Unearned Premium Reserve | F14: Claims Paid | G14: Outstanding Claim Reserves
B15: تأمين الحريق | C15: 1981771.577 | D15: 94441.43722 | E15: 704521.3608 | F15: 633799.5263 | G15: 2398842.51 | H15: Fire
B16: التأمين البحري والطيران | C16: 1064361.258 | D16: 176775.5692 | E16: 405253.2006 | F16: 288365.5194 | G16: 811531.1803 | H16: Marine & Aviation
B17: تأمين السيارات والمركبات الأخرى | C17: 2883158.701 | D17: 2010967.179 | E17: 1611231.253 | F17: 2182221.071 | G17: 1237719.392 | H17: Motor & Transportation
B18: التأمين الهندسي والانشاءات والطاقة | C18: 921039.8829 | D18: 19520.97907 | E18: 499274.0114 | F18: 480580.5094 | G18: 2237283.045 | H18: Engineering, Construction & Energy
B19: أخرى | C19: 2630929.294 | D19: 2205966.611 | E19: 1460429.892 | F19: 251071.4886 | G19: 1268982.511 | H19: Other
B20: اعادة التأمين غير النسبية - المسؤوليات والممتلكات | C20: 5444.39982 | D20: 550 | E20: 1493.190032 | F20: 302.2405 | G20: 601.7149137 | H20: Reinsurance - Property & Liability
B21: المجموع - تأمين الممتلكات والمسؤوليات | C21: 9486705.112 | D21: 4508221.776 | E21: 4682202.908 | F21: 3836340.355 | G21: 7954960.353 | H21: Total - Property & Liability Insurance
B23: المجموع - تأمين صحي | C23: 13204119.73 | D23: 839895.4681 | E23: 4504634.368 | F23: 10459343.39 | G23: 2361926.27 | H23: Total - Health Insurance
B25: تأمين حياة جماعي | C25: 574321.7171 | D25: 7020.122947 | E25: 121876.4356 | F25: 246216.2353 | G25: 280079.1725 | H25: Group Life
B26: تأمين ائتمان حياة جماعي | C26: 625703.9965 | D26: 1185 | E26: 41028.07265 | F26: 167192.078 | G26: 599214.6689 | H26: Group Credit Life
B27: تأمين حياة فردي | C27: 5052886.348 | D27: 268849 | E27: 362430.7048 | F27: 2266998.709 | G27: 29771467.91 | H27: Individual Life
B28: دفعات الحياة وتكوين الأموال | C28: 145115.091 | D28: 949 | E28: 0 | F28: 302924.3732 | G28: 584732.4042 | H28: Annuities & Fund Accumulation
B29: المجموع - تأمين الأشخاص وعمليات تكوين الأموال | C29: 6398027.153 | D29: 278003.1229 | E29: 525335.213 | F29: 2983331.396 | G29: 31235494.16 | H29: Total - Insurance of Persons & Fund Accumulation
B31: المجموع - كافة فروع التأمين | C31: =C21+C23+C29 -> 29088851.99 | D31: =D21+D23+D29 -> 5626120.367 | E31: =E21+E23+E29 -> 9712172.489 | F31: =F21+F23+F29 -> 17279015.14 | G31: =G21+G23+G29 -> 41552380.78 | H31: TOTAL - All Types of Business Combined

Sheet 28B
B6: البيانات بالصافي لإمارة دبي
B7: Net Results for Dubai
B8: (2022)
B11: جدول رقم 28B | H11: TABLE 28B
B12: بالألف درهم | H12: AED in 000's
B13: فروع التأمين | C13: الأقساط المكتتبة | D13: أعداد الوثائق | E13: مخصص الأقساط غير المكتسبة | F13: المطالبات المدفوعة | G13: مخصص المطالبات تحت التسوية | H13: Line of Business
C14: Written Premium | D14: Number of Policies | E14: Unearned Premium Reserve | F14: Claims Paid | G14: Outstanding Claim Reserves
B15: تأمين الحريق | C15: 384823.6286 | D15: 94441.43722 | E15: 155445.4363 | F15: 171619.7438 | G15: 429981.8077 | H15: Fire
B16: التأمين البحري والطيران | C16: 249909.1754 | D16: 176775.5692 | E16: 70319.83518 | F16: 89848.73258 | G16: 234441.9779 | H16: Marine & Aviation
B17: تأمين السيارات والمركبات الأخرى | C17: 2347954.123 | D17: 2010967.179 | E17: 1317941.429 | F17: 1632009.414 | G17: 906240.6928 | H17: Motor & Transportation
B18: التأمين الهندسي والانشاءات والطاقة | C18: 235643.9069 | D18: 19520.97907 | E18: 135120.3681 | F18: 99506.36908 | G18: 520220.8577 | H18: Engineering, Construction & Energy
B19: أخرى | C19: 765636.974 | D19: 2205966.611 | E19: 316984.5377 | F19: 77791.12112 | G19: 358419.299 | H19: Other
B20: اعادة التأمين غير النسبية - المسؤوليات والممتلكات | C20: 3932.828235 | D20: 550 | E20: 1127.681001 | F20: 62.7045 | G20: 301.1418186 | H20: Reinsurance - Property & Liability
B21: المجموع - تأمين الممتلكات والمسؤوليات | C21: 3987900.637 | D21: 4508221.776 | E21: 1996939.287 | F21: 2070838.085 | G21: 2449605.777 | H21: Total - Property & Liability Insurance
B23: المجموع - تأمين صحي | C23: 7780867.403 | D23: 839895.4681 | E23: 2558723.936 | F23: 5740673.343 | G23: 1409188.344 | H23: Total - Health Insurance
B25: تأمين حياة جماعي | C25: 173517.8018 | D25: 7020.122947 | E25: 41240.93822 | F25: 40998.30043 | G25: 29633.71025 | H25: Group Life
B26: تأمين ائتمان حياة جماعي | C26: 329070.5433 | D26: 1185 | E26: 10382.813 | F26: 10417.14409 | G26: 373557.5464 | H26: Group Credit Life
B27: تأمين حياة فردي | C27: 4806143.331 | D27: 268849 | E27: 358235.1931 | F27: 2190784.879 | G27: 28027858.23 | H27: Individual Life
B28: دفعات الحياة وتكوين الأموال | C28: 145095.0507 | D28: 949 | E28: 0 | F28: 302924.3732 | G28: 584732.4042 | H28: Annuities & Fund Accumulation
B29: المجموع - تأمين الأشخاص وعمليات تكوين الأموال | C29: 5453826.727 | D29: 278003.1229 | E29: 409858.9443 | F29: 2545124.696 | G29: 29015781.9 | H29: Total - Insurance of Persons & Fund Accumulation
B31: المجموع - كافة فروع التأمين | C31: =C21+C23+C29 -> 17222594.77 | D31: =D21+D23+D29 -> 5626120.367 | E31: =E21+E23+E29 -> 4965522.167 | F31: =F21+F23+F29 -> 10356636.12 | G31: =G21+G23+G29 -> 32874576.02 | H31: TOTAL - All Types of Business Combined

Sheet 29A
B6: البيانات بالإجمالي لإمارة أبو ظبي
B7: Gross Results for Abu Dhabi
B8: (2022)
B11: جدول رقم 29A | H11: TABLE 29A
B12: بالألف درهم | H12: AED in 000's
B13: فروع التأمين | C13: الأقساط المكتتبة | D13: أعداد الوثائق | E13: مخصص الأقساط غير المكتسبة | F13: المطالبات المدفوعة | G13: مخصص المطالبات تحت التسوية | H13: Line of Business
C14: Written Premium | D14: Number of Policies | E14: Unearned Premium Reserve | F14: Claims Paid | G14: Outstanding Claim Reserves
B15: تأمين الحريق | C15: 978590.6534 | D15: 25973.56047 | E15: 304946.5109 | F15: 341187.8986 | G15: 782711.0687 | H15: Fire
B16: التأمين البحري والطيران | C16: 459735.6595 | D16: 25493.31813 | E16: 183695.0876 | F16: 85577.46688 | G16: 407528.2011 | H16: Marine & Aviation
B17: تأمين السيارات والمركبات الأخرى | C17: 994714.5264 | D17: 1016777.683 | E17: 435827.0128 | F17: 822416.6066 | G17: 524768.1991 | H17: Motor & Transportation
B18: التأمين الهندسي والانشاءات والطاقة | C18: 1410208.145 | D18: 12265.7871 | E18: 657358.2832 | F18: 185270.4597 | G18: 951767.0089 | H18: Engineering, Construction & Energy
B19: أخرى | C19: 789439.3552 | D19: 64717.67776 | E19: 387257.4704 | F19: 119479.2396 | G19: 595848.3006 | H19: Other
B20: اعادة التأمين غير النسبية - المسؤوليات والممتلكات | C20: 235.769 | D20: 702 | E20: 1191.032852 | F20: 172.7915 | G20: 479.9537997 | H20: Reinsurance - Property & Liability
B21: المجموع - تأمين الممتلكات والمسؤوليات | C21: 4632924.109 | D21: 1145930.027 | E21: 1970275.398 | F21: 1554104.463 | G21: 3263102.732 | H21: Total - Property & Liability Insurance
B23: المجموع - تأمين صحي | C23: 6961355.759 | D23: 563975.6887 | E23: 2262325.331 | F23: 5482068.51 | G23: 1369787.936 | H23: Total - Health Insurance
B25: تأمين حياة جماعي | C25: 254591.338 | D25: 1464.918524 | E25: 65137.33615 | F25: 131020.3906 | G25: 210178.8936 | H25: Group Life
B26: تأمين ائتمان حياة جماعي | C26: 107537.4497 | D26: 155 | E26: 2871.93748 | F26: 60218.51666 | G26: 334089.7335 | H26: Group Credit Life
B27: تأمين حياة فردي | C27: 556998.8679 | D27: 33252 | E27: 688.4479808 | F27: 202906.7121 | G27: 1087289.924 | H27: Individual Life
B28: دفعات الحياة وتكوين الأموال | C28: 1452.047556 | D28: 23 | E28: 0 | F28: 6947.855714 | G28: 0 | H28: Annuities & Fund Accumulation
B29: المجموع - تأمين الأشخاص وعمليات تكوين الأموال | C29: 920579.7032 | D29: 34894.91852 | E29: 68697.72161 | F29: 401093.475 | G29: 1631558.551 | H29: Total - Insurance of Persons & Fund Accumulation
B31: المجموع - كافة فروع التأمين | C31: =C21+C23+C29 -> 12514859.57 | D31: =D21+D23+D29 -> 1744800.634 | E31: =E21+E23+E29 -> 4301298.451 | F31: =F21+F23+F29 -> 7437266.448 | G31: =G21+G23+G29 -> 6264449.219 | H31: TOTAL - All Types of Business Combined

Sheet 29B
B6: البيانات بالصافي لإمارة أبو ظبي
B7: Net Results for Abu Dhabi
B8: (2022)
B11: جدول رقم 29B | H11: TABLE 29B
B12: بالألف درهم | H12: AED in 000's
B13: فروع التأمين | C13: الأقساط المكتتبة | D13: أعداد الوثائق | E13: مخصص الأقساط غير المكتسبة | F13: المطالبات المدفوعة | G13: مخصص المطالبات تحت التسوية | H13: Line of Business
C14: Written Premium | D14: Number of Policies | E14: Unearned Premium Reserve | F14: Claims Paid | G14: Outstanding Claim Reserves
B15: تأمين الحريق | C15: -17734.71392 | D15: 25973.56047 | E15: 12162.13163 | F15: 33998.55079 | G15: 3375.842231 | H15: Fire
B16: التأمين البحري والطيران | C16: -2814.700995 | D16: 25493.31813 | E16: -2574.381828 | F16: 12865.58062 | G16: 18420.59475 | H16: Marine & Aviation
B17: تأمين السيارات والمركبات الأخرى | C17: 712802.4343 | D17: 1016777.683 | E17: 293834.2707 | F17: 530678.61 | G17: 312358.9477 | H17: Motor & Transportation
B18: التأمين الهندسي والانشاءات والطاقة | C18: -250453.6915 | D18: 12265.7871 | E18: -6894.030782 | F18: 26612.8301 | G18: -312773.212 | H18: Engineering, Construction & Energy
B19: أخرى | C19: 148108.8929 | D19: 64717.67776 | E19: 76345.73501 | F19: 24199.87551 | G19: 101625.211 | H19: Other
B20: اعادة التأمين غير النسبية - المسؤوليات والممتلكات | C20: 171.01725 | D20: 702 | E20: 830.3931287 | F20: 335.005 | G20: 183.384937 | H20: Reinsurance - Property & Liability
B21: المجموع - تأمين الممتلكات والمسؤوليات | C21: 590079.2381 | D21: 1145930.027 | E21: 373704.1178 | F21: 628690.452 | G21: 123190.7687 | H21: Total - Property & Liability Insurance
B23: المجموع - تأمين صحي | C23: 5284970.964 | D23: 563975.6887 | E23: 1692733.039 | F23: 4209314.737 | G23: 922588.2856 | H23: Total - Health Insurance
B25: تأمين حياة جماعي | C25: 94225.26676 | D25: 1464.918524 | E25: 23840.39584 | F25: 59889.05676 | G25: 61442.22225 | H25: Group Life
B26: تأمين ائتمان حياة جماعي | C26: 24332.64569 | D26: 155 | E26: 238.03316 | F26: 5645.480468 | G26: 86992.97227 | H26: Group Credit Life
B27: تأمين حياة فردي | C27: 549263.0381 | D27: 33252 | E27: 397.4595138 | F27: 202623.9428 | G27: 1082334.91 | H27: Individual Life
B28: دفعات الحياة وتكوين الأموال | C28: 1441.890063 | D28: 23 | E28: 0 | F28: 6947.855714 | G28: 0 | H28: Annuities & Fund Accumulation
B29: المجموع - تأمين الأشخاص وعمليات تكوين الأموال | C29: 669262.8406 | D29: 34894.91852 | E29: 24475.88851 | F29: 275106.3358 | G29: 1230770.105 | H29: Total - Insurance of Persons & Fund Accumulation
B31: المجموع - كافة فروع التأمين | C31: =C21+C23+C29 -> 6544313.043 | D31: =D21+D23+D29 -> 1744800.634 | E31: =E21+E23+E29 -> 2090913.045 | F31: =F21+F23+F29 -> 5113111.525 | G31: =G21+G23+G29 -> 2276549.159 | H31: TOTAL - All Types of Business Combined

Sheet 30A
B6: البيانات بالإجمالي لإمارة عجمان
B7: Gross Results for Ajman
B8: (2022)
B11: جدول رقم 30A | H11: TABLE 30A
B12: بالألف درهم | H12: AED in 000's
B13: فروع التأمين | C13: الأقساط المكتتبة | D13: أعداد الوثائق | E13: مخصص الأقساط غير المكتسبة | F13: المطالبات المدفوعة | G13: مخصص المطالبات تحت التسوية | H13: Line of Business
C14: Written Premium | D14: Number of Policies | E14: Unearned Premium Reserve | F14: Claims Paid | G14: Outstanding Claim Reserves
B15: تأمين الحريق | C15: 7127.302696 | D15: 4712 | E15: 3209.941447 | F15: 2898.417059 | G15: 11986.24199 | H15: Fire
B16: التأمين البحري والطيران | C16: 2817.975604 | D16: 1093 | E16: 1116.030941 | F16: 213.035318 | G16: 562.1009459 | H16: Marine & Aviation
B17: تأمين السيارات والمركبات الأخرى | C17: 53351.52943 | D17: 76641 | E17: 21589.60664 | F17: 20318.17569 | G17: 35592.45992 | H17: Motor & Transportation
B18: التأمين الهندسي والانشاءات والطاقة | C18: 2136.49412 | D18: 764 | E18: 918.8713519 | F18: 1805.866707 | G18: 3243.247534 | H18: Engineering, Construction & Energy
B19: أخرى | C19: 5319.363401 | D19: 3659 | E19: 5067.441519 | F19: 1792.358498 | G19: 17601.97318 | H19: Other
B20: اعادة التأمين غير النسبية - المسؤوليات والممتلكات | C20: 0 | D20: 0 | E20: 0 | F20: 0 | G20: 0 | H20: Reinsurance - Property & Liability
B21: المجموع - تأمين الممتلكات والمسؤوليات | C21: 70752.66525 | D21: 86869 | E21: 31901.8919 | F21: 27027.85328 | G21: 68986.02358 | H21: Total - Property & Liability Insurance
B23: المجموع - تأمين صحي | C23: 48897.45269 | D23: 8191 | E23: 14296.76463 | F23: 30227.0074 | G23: 6906.704078 | H23: Total - Health Insurance
B25: تأمين حياة جماعي | C25: 3608.281636 | D25: 107.368667 | E25: 957.9187085 | F25: 2130.633752 | G25: 2146.838656 | H25: Group Life
B26: تأمين ائتمان حياة جماعي | C26: 0 | D26: 0 | E26: 0 | F26: 0 | G26: 0 | H26: Group Credit Life
B27: تأمين حياة فردي | C27: 20957.918 | D27: 1353 | E27: 1.051095214 | F27: 17274.18391 | G27: 97204.62718 | H27: Individual Life
B28: دفعات الحياة وتكوين الأموال | C28: 0 | D28: 0 | E28: 0 | F28: 0 | G28: 0 | H28: Annuities & Fund Accumulation
B29: المجموع - تأمين الأشخاص وعمليات تكوين الأموال | C29: 24566.19964 | D29: 1460.368667 | E29: 958.9698037 | F29: 19404.81766 | G29: 99351.46584 | H29: Total - Insurance of Persons & Fund Accumulation
B31: المجموع - كافة فروع التأمين | C31: =C21+C23+C29 -> 144216.3176 | D31: =D21+D23+D29 -> 96520.36867 | E31: =E21+E23+E29 -> 47157.62634 | F31: =F21+F23+F29 -> 76659.67833 | G31: =G21+G23+G29 -> 175244.1935 | H31: TOTAL - All Types of Business Combined

Sheet 30B
B6: البيانات بالصافي لإمارة عجمان
B7: Net Results for Ajman
B8: (2022)
B11: جدول رقم 30B | H11: TABLE 30B
B12: بالألف درهم | H12: AED in 000's
B13: فروع التأمين | C13: الأقساط المكتتبة | D13: أعداد الوثائق | E13: مخصص الأقساط غير المكتسبة | F13: المطالبات المدفوعة | G13: مخصص المطالبات تحت التسوية | H13: Line of Business
C14: Written Premium | D14: Number of Policies | E14: Unearned Premium Reserve | F14: Claims Paid | G14: Outstanding Claim Reserves
B15: تأمين الحريق | C15: 1549.842524 | D15: 4712 | E15: 1708.689173 | F15: 1758.014171 | G15: 6922.165932 | H15: Fire
B16: التأمين البحري والطيران | C16: 1571.606834 | D16: 1093 | E16: 727.2147662 | F16: 168.3770474 | G16: 347.8518982 | H16: Marine & Aviation
B17: تأمين السيارات والمركبات الأخرى | C17: 24079.17632 | D17: 76641 | E17: 10732.52851 | F17: 13424.77582 | G17: 14784.91877 | H17: Motor & Transportation
B18: التأمين الهندسي والانشاءات والطاقة | C18: 359.6431179 | D18: 764 | E18: 594.6432747 | F18: 1215.476338 | G18: 1024.303432 | H18: Engineering, Construction & Energy
B19: أخرى | C19: 1090.635754 | D19: 3659 | E19: 1287.264863 | F19: 1119.118911 | G19: 3016.403268 | H19: Other
B20: اعادة التأمين غير النسبية - المسؤوليات والممتلكات | C20: 0 | D20: 0 | E20: 0 | F20: 0 | G20: 0 | H20: Reinsurance - Property & Liability
B21: المجموع - تأمين الممتلكات والمسؤوليات | C21: 28650.90455 | D21: 86869 | E21: 15050.34059 | F21: 17685.76228 | G21: 26095.64331 | H21: Total - Property & Liability Insurance
B23: المجموع - تأمين صحي | C23: 33499.91991 | D23: 8191 | E23: 11002.47118 | F23: 21316.72125 | G23: 2732.713961 | H23: Total - Health Insurance
B25: تأمين حياة جماعي | C25: -513.1297278 | D25: 107.368667 | E25: 596.2333593 | F25: 832.4385317 | G25: 945.4390608 | H25: Group Life
B26: تأمين ائتمان حياة جماعي | C26: 0 | D26: 0 | E26: 0 | F26: 0 | G26: 0 | H26: Group Credit Life
B27: تأمين حياة فردي | C27: 20844.08669 | D27: 1353 | E27: 0.5068807452 | F27: 17222.68837 | G27: 97119.9257 | H27: Individual Life
B28: دفعات الحياة وتكوين الأموال | C28: 0 | D28: 0 | E28: 0 | F28: 0 | G28: 0 | H28: Annuities & Fund Accumulation
B29: المجموع - تأمين الأشخاص وعمليات تكوين الأموال | C29: 20330.95696 | D29: 1460.368667 | E29: 596.74024 | F29: 18055.1269 | G29: 98065.36476 | H29: Total - Insurance of Persons & Fund Accumulation
B31: المجموع - كافة فروع التأمين | C31: =C21+C23+C29 -> 82481.78142 | D31: =D21+D23+D29 -> 96520.36867 | E31: =E21+E23+E29 -> 26649.552 | F31: =F21+F23+F29 -> 57057.61043 | G31: =G21+G23+G29 -> 126893.722 | H31: TOTAL - All Types of Business Combined

Sheet 31A
B6: البيانات بالإجمالي لإمارة أم القيوين
B7: Gross Results for Umm Al Quwain
B8: (2022)
B11: جدول رقم 31A | H11: TABLE 31A
B12: بالألف درهم | H12: AED in 000's
B13: فروع التأمين | C13: الأقساط المكتتبة | D13: أعداد الوثائق | E13: مخصص الأقساط غير المكتسبة | F13: المطالبات المدفوعة | G13: مخصص المطالبات تحت التسوية | H13: Line of Business
C14: Written Premium | D14: Number of Policies | E14: Unearned Premium Reserve | F14: Claims Paid | G14: Outstanding Claim Reserves
B15: تأمين الحريق | C15: 2142.12331 | D15: 122 | E15: 692.8736401 | F15: 23236.53884 | G15: 1540.283594 | H15: Fire
B16: التأمين البحري والطيران | C16: 43.08426 | D16: 1 | E16: 6.92529 | F16: 0 | G16: 2.668645356 | H16: Marine & Aviation
B17: تأمين السيارات والمركبات الأخرى | C17: 207.43131 | D17: 201 | E17: 130.3667101 | F17: 524.62048 | G17: 162.7681085 | H17: Motor & Transportation
B18: التأمين الهندسي والانشاءات والطاقة | C18: 74.79327 | D18: 6 | E18: 50.98907646 | F18: 0 | G18: 146.5753371 | H18: Engineering, Construction & Energy
B19: أخرى | C19: 117.09359 | D19: 35 | E19: 37.65937795 | F19: 0.52 | G19: 35.81702392 | H19: Other
B20: اعادة التأمين غير النسبية - المسؤوليات والممتلكات | C20: 0 | D20: 0 | E20: 0 | F20: 0 | G20: 0 | H20: Reinsurance - Property & Liability
B21: المجموع - تأمين الممتلكات والمسؤوليات | C21: 2584.52574 | D21: 365 | E21: 918.8140946 | F21: 23761.67932 | G21: 1888.112708 | H21: Total - Property & Liability Insurance
B23: المجموع - تأمين صحي | C23: 5033.148297 | D23: 768 | E23: 788.5245129 | F23: 3339.639494 | G23: 524.926384 | H23: Total - Health Insurance
B25: تأمين حياة جماعي | C25: 1054.607154 | D25: 15 | E25: 185.2052125 | F25: 464.6547306 | G25: 430.2411784 | H25: Group Life
B26: تأمين ائتمان حياة جماعي | C26: 0 | D26: 0 | E26: 0 | F26: 0 | G26: 0 | H26: Group Credit Life
B27: تأمين حياة فردي | C27: 4576.53874 | D27: 277 | E27: 0.2643651726 | F27: 2798.364255 | G27: 16233.50002 | H27: Individual Life
B28: دفعات الحياة وتكوين الأموال | C28: 0 | D28: 0 | E28: 0 | F28: 0 | G28: 0 | H28: Annuities & Fund Accumulation
B29: المجموع - تأمين الأشخاص وعمليات تكوين الأموال | C29: 5631.145894 | D29: 292 | E29: 185.4695777 | F29: 3263.018986 | G29: 16663.7412 | H29: Total - Insurance of Persons & Fund Accumulation
B31: المجموع - كافة فروع التأمين | C31: =C21+C23+C29 -> 13248.81993 | D31: =D21+D23+D29 -> 1425 | E31: =E21+E23+E29 -> 1892.808185 | F31: =F21+F23+F29 -> 30364.3378 | G31: =G21+G23+G29 -> 19076.78029 | H31: TOTAL - All Types of Business Combined

Sheet 31B
B6: البيانات بالصافي لإمارة أم القيوين
B7: Net Results for Umm Al Quwain
B8: (2022)
B11: جدول رقم 31B | H11: TABLE 31B
B12: بالألف درهم | H12: AED in 000's
B13: فروع التأمين | C13: الأقساط المكتتبة | D13: أعداد الوثائق | E13: مخصص الأقساط غير المكتسبة | F13: المطالبات المدفوعة | G13: مخصص المطالبات تحت التسوية | H13: Line of Business
C14: Written Premium | D14: Number of Policies | E14: Unearned Premium Reserve | F14: Claims Paid | G14: Outstanding Claim Reserves
B15: تأمين الحريق | C15: 78.31950779 | D15: 122 | E15: 90.91778235 | F15: 1471.05894 | G15: -151.3634796 | H15: Fire
B16: التأمين البحري والطيران | C16: 12.92528 | D16: 1 | E16: 2.07759 | F16: 0 | G16: 1.195786666 | H16: Marine & Aviation
B17: تأمين السيارات والمركبات الأخرى | C17: 203.9097498 | D17: 201 | E17: 129.1377582 | F17: 523.18048 | G17: 123.3784375 | H17: Motor & Transportation
B18: التأمين الهندسي والانشاءات والطاقة | C18: 6.079614708 | D18: 6 | E18: 2.622315868 | F18: 0 | G18: -6.87533127 | H18: Engineering, Construction & Energy
B19: أخرى | C19: 53.83408 | D19: 35 | E19: 16.43943549 | F19: 0.156 | G19: 12.29728239 | H19: Other
B20: اعادة التأمين غير النسبية - المسؤوليات والممتلكات | C20: 0 | D20: 0 | E20: 0 | F20: 0 | G20: 0 | H20: Reinsurance - Property & Liability
B21: المجموع - تأمين الممتلكات والمسؤوليات | C21: 355.0682323 | D21: 365 | E21: 241.1948819 | F21: 1994.39542 | G21: -21.36730431 | H21: Total - Property & Liability Insurance
B23: المجموع - تأمين صحي | C23: 3344.713251 | D23: 768 | E23: 620.2082216 | F23: 1927.749414 | G23: 326.1352063 | H23: Total - Health Insurance
B25: تأمين حياة جماعي | C25: 303.773094 | D25: 15 | E25: 129.4582174 | F25: 162.1287278 | G25: 135.8462753 | H25: Group Life
B26: تأمين ائتمان حياة جماعي | C26: 0 | D26: 0 | E26: 0 | F26: 0 | G26: 0 | H26: Group Credit Life
B27: تأمين حياة فردي | C27: 4559.920409 | D27: 277 | E27: 0.127487609 | F27: 2793.879404 | G27: 16218.92984 | H27: Individual Life
B28: دفعات الحياة وتكوين الأموال | C28: 0 | D28: 0 | E28: 0 | F28: 0 | G28: 0 | H28: Annuities & Fund Accumulation
B29: المجموع - تأمين الأشخاص وعمليات تكوين الأموال | C29: 4863.693503 | D29: 292 | E29: 129.585705 | F29: 2956.008132 | G29: 16354.77612 | H29: Total - Insurance of Persons & Fund Accumulation
B31: المجموع - كافة فروع التأمين | C31: =C21+C23+C29 -> 8563.474987 | D31: =D21+D23+D29 -> 1425 | E31: =E21+E23+E29 -> 990.9888086 | F31: =F21+F23+F29 -> 6878.152965 | G31: =G21+G23+G29 -> 16659.54402 | H31: TOTAL - All Types of Business Combined

Sheet 32A
B6: البيانات بالإجمالي لإمارة الشارقة
B7: Gross Results for Sharjah
B8: (2022)
B11: جدول رقم 32A | H11: TABLE 32A
B12: بالألف درهم | H12: AED in 000's
B13: فروع التأمين | C13: الأقساط المكتتبة | D13: أعداد الوثائق | E13: مخصص الأقساط غير المكتسبة | F13: المطالبات المدفوعة | G13: مخصص المطالبات تحت التسوية | H13: Line of Business
C14: Written Premium | D14: Number of Policies | E14: Unearned Premium Reserve | F14: Claims Paid | G14: Outstanding Claim Reserves
B15: تأمين الحريق | C15: 96945.8048 | D15: 7671.188879 | E15: 32922.08521 | F15: 25455.17276 | G15: 48207.42271 | H15: Fire
B16: التأمين البحري والطيران | C16: 67721.55069 | D16: 24357.74916 | E16: 20826.26499 | F16: 15972.54392 | G16: 56253.2431 | H16: Marine & Aviation
B17: تأمين السيارات والمركبات الأخرى | C17: 292363.5079 | D17: 303378.2079 | E17: 116177.5883 | F17: 297387.0568 | G17: 196477.7815 | H17: Motor & Transportation
B18: التأمين الهندسي والانشاءات والطاقة | C18: 46860.67814 | D18: 1870.102617 | E18: 16115.95415 | F18: 16883.46084 | G18: 57632.33679 | H18: Engineering, Construction & Energy
B19: أخرى | C19: 42893.24631 | D19: 14325.93458 | E19: 28009.09687 | F19: 3312.505728 | G19: 35591.86461 | H19: Other
B20: اعادة التأمين غير النسبية - المسؤوليات والممتلكات | C20: 30.65 | D20: 99 | E20: 17.80819832 | F20: 2.5 | G20: 7.176218891 | H20: Reinsurance - Property & Liability
B21: المجموع - تأمين الممتلكات والمسؤوليات | C21: 546815.4378 | D21: 351702.1831 | E21: 214068.7978 | F21: 359013.24 | G21: 394169.8249 | H21: Total - Property & Liability Insurance
B23: المجموع - تأمين صحي | C23: 1021809.111 | D23: 61355.75619 | E23: 192233.2226 | F23: 771783.2192 | G23: 353670.618 | H23: Total - Health Insurance
B25: تأمين حياة جماعي | C25: 22123.26967 | D25: 1985.589862 | E25: 7236.078937 | F25: 8460.895224 | G25: 20526.58011 | H25: Group Life
B26: تأمين ائتمان حياة جماعي | C26: 207.13567 | D26: 125 | E26: 7.47888 | F26: 1151.66066 | G26: 121 | H26: Group Credit Life
B27: تأمين حياة فردي | C27: 117281.0381 | D27: 8344 | E27: 194.0113098 | F27: 61840.23283 | G27: 465469.3529 | H27: Individual Life
B28: دفعات الحياة وتكوين الأموال | C28: 0 | D28: 0 | E28: 0 | F28: 0 | G28: 0 | H28: Annuities & Fund Accumulation
B29: المجموع - تأمين الأشخاص وعمليات تكوين الأموال | C29: 139611.4435 | D29: 10454.58986 | E29: 7437.569127 | F29: 71452.78871 | G29: 486116.933 | H29: Total - Insurance of Persons & Fund Accumulation
B31: المجموع - كافة فروع التأمين | C31: =C21+C23+C29 -> 1708235.992 | D31: =D21+D23+D29 -> 423512.5291 | E31: =E21+E23+E29 -> 413739.5895 | F31: =F21+F23+F29 -> 1202249.248 | G31: =G21+G23+G29 -> 1233957.376 | H31: TOTAL - All Types of Business Combined

Sheet 32B
B6: البيانات بالصافي لإمارة الشارقة
B7: Net Results for Sharjah
B8: (2022)
B11: جدول رقم 32B | H11: TABLE 32B
B12: بالألف درهم | H12: AED in 000's
B13: فروع التأمين | C13: الأقساط المكتتبة | D13: أعداد الوثائق | E13: مخصص الأقساط غير المكتسبة | F13: المطالبات المدفوعة | G13: مخصص المطالبات تحت التسوية | H13: Line of Business
C14: Written Premium | D14: Number of Policies | E14: Unearned Premium Reserve | F14: Claims Paid | G14: Outstanding Claim Reserves
B15: تأمين الحريق | C15: 12337.77234 | D15: 7671.188879 | E15: 5887.860698 | F15: 18041.97265 | G15: 19117.20628 | H15: Fire
B16: التأمين البحري والطيران | C16: 15755.69747 | D16: 24357.74916 | E16: 5036.544688 | F16: 12176.8221 | G16: 9241.485329 | H16: Marine & Aviation
B17: تأمين السيارات والمركبات الأخرى | C17: 180345.8866 | D17: 303378.2079 | E17: 73275.78654 | F17: 266580.4563 | G17: 126071.1216 | H17: Motor & Transportation
B18: التأمين الهندسي والانشاءات والطاقة | C18: 2994.831431 | D18: 1870.102617 | E18: 3288.327384 | F18: 11113.32911 | G18: 12823.38273 | H18: Engineering, Construction & Energy
B19: أخرى | C19: 13037.82876 | D19: 14325.93458 | E19: 6936.730631 | F19: 1736.0129 | G19: -75402.18587 | H19: Other
B20: اعادة التأمين غير النسبية - المسؤوليات والممتلكات | C20: 11.9375 | D20: 99 | E20: 7.1504123 | F20: 1.875 | G20: -1.588116474 | H20: Reinsurance - Property & Liability
B21: المجموع - تأمين الممتلكات والمسؤوليات | C21: 224483.9541 | D21: 351702.1831 | E21: 94432.40035 | F21: 309650.4681 | G21: 91849.42196 | H21: Total - Property & Liability Insurance
B23: المجموع - تأمين صحي | C23: 433490.3847 | D23: 61355.75619 | E23: 118346.3527 | F23: 675393.4572 | G23: 105581.0237 | H23: Total - Health Insurance
B25: تأمين حياة جماعي | C25: 4306.692957 | D25: 1985.589862 | E25: 2401.941068 | F25: 4301.438024 | G25: 4414.268268 | H25: Group Life
B26: تأمين ائتمان حياة جماعي | C26: 66.9773 | D26: 125 | E26: 2.23591 | F26: 230.332138 | G26: 24.2 | H26: Group Credit Life
B27: تأمين حياة فردي | C27: 112227.3187 | D27: 8344 | E27: 162.2417371 | F27: 61364.24264 | G27: 458110.939 | H27: Individual Life
B28: دفعات الحياة وتكوين الأموال | C28: 0 | D28: 0 | E28: 0 | F28: 0 | G28: 0 | H28: Annuities & Fund Accumulation
B29: المجموع - تأمين الأشخاص وعمليات تكوين الأموال | C29: 116600.989 | D29: 10454.58986 | E29: 2566.418715 | F29: 65896.0128 | G29: 462549.4072 | H29: Total - Insurance of Persons & Fund Accumulation
B31: المجموع - كافة فروع التأمين | C31: =C21+C23+C29 -> 774575.3278 | D31: =D21+D23+D29 -> 423512.5291 | E31: =E21+E23+E29 -> 215345.1718 | F31: =F21+F23+F29 -> 1050939.938 | G31: =G21+G23+G29 -> 659979.8529 | H31: TOTAL - All Types of Business Combined

Sheet 33A
B6: البيانات بالإجمالي لإمارة رأس الخيمة
B7: Gross Results for Ras Al Khaimah
B8: (2022)
B11: جدول رقم 33A | H11: TABLE 33A
B12: بالألف درهم | H12: AED in 000's
B13: فروع التأمين | C13: الأقساط المكتتبة | D13: أعداد الوثائق | E13: مخصص الأقساط غير المكتسبة | F13: المطالبات المدفوعة | G13: مخصص المطالبات تحت التسوية | H13: Line of Business
C14: Written Premium | D14: Number of Policies | E14: Unearned Premium Reserve | F14: Claims Paid | G14: Outstanding Claim Reserves
B15: تأمين الحريق | C15: 33763.07933 | D15: 1529 | E15: 15162.01725 | F15: 6009.397722 | G15: 11819.24551 | H15: Fire
B16: التأمين البحري والطيران | C16: 6669.854913 | D16: 669 | E16: 3411.248935 | F16: 278.2803692 | G16: 1075.305365 | H16: Marine & Aviation
B17: تأمين السيارات والمركبات الأخرى | C17: 133015.5428 | D17: 462772 | E17: 71040.31623 | F17: 114749.2396 | G17: 115479.6925 | H17: Motor & Transportation
B18: التأمين الهندسي والانشاءات والطاقة | C18: 9892.302968 | D18: 345 | E18: 6217.185591 | F18: 1685.43754 | G18: 14463.96537 | H18: Engineering, Construction & Energy
B19: أخرى | C19: 20492.36481 | D19: 2739 | E19: 10085.1959 | F19: 1603.228819 | G19: 13881.2243 | H19: Other
B20: اعادة التأمين غير النسبية - المسؤوليات والممتلكات | C20: 0 | D20: 0 | E20: 0 | F20: 0 | G20: 0 | H20: Reinsurance - Property & Liability
B21: المجموع - تأمين الممتلكات والمسؤوليات | C21: 203833.1448 | D21: 468054 | E21: 105915.9639 | F21: 124325.5841 | G21: 156719.4331 | H21: Total - Property & Liability Insurance
B23: المجموع - تأمين صحي | C23: 130397.0284 | D23: 14254 | E23: 41879.61512 | F23: 101623.0346 | G23: 15058.29124 | H23: Total - Health Insurance
B25: تأمين حياة جماعي | C25: 4645.848539 | D25: 108 | E25: 1531.476973 | F25: 2332.459897 | G25: 2584.448665 | H25: Group Life
B26: تأمين ائتمان حياة جماعي | C26: 80583.56342 | D26: 39 | E26: 2.87107 | F26: 17398.728 | G26: 25566.43969 | H26: Group Credit Life
B27: تأمين حياة فردي | C27: 14380.79227 | D27: 933 | E27: 4.701021572 | F27: 15357.70497 | G27: 85613.59489 | H27: Individual Life
B28: دفعات الحياة وتكوين الأموال | C28: 0 | D28: 0 | E28: 0 | F28: 0 | G28: 0 | H28: Annuities & Fund Accumulation
B29: المجموع - تأمين الأشخاص وعمليات تكوين الأموال | C29: 99610.20423 | D29: 1080 | E29: 1539.049065 | F29: 35088.89287 | G29: 113764.4832 | H29: Total - Insurance of Persons & Fund Accumulation
B31: المجموع - كافة فروع التأمين | C31: =C21+C23+C29 -> 433840.3774 | D31: =D21+D23+D29 -> 483388 | E31: =E21+E23+E29 -> 149334.6281 | F31: =F21+F23+F29 -> 261037.5115 | G31: =G21+G23+G29 -> 285542.2076 | H31: TOTAL - All Types of Business Combined

Sheet 33B
B6: البيانات بالصافي لإمارة رأس الخيمة
B7: Net Results for Ras Al Khaimah
B8: (2022)
B11: جدول رقم 33B | H11: TABLE 33B
B12: بالألف درهم | H12: AED in 000's
B13: فروع التأمين | C13: الأقساط المكتتبة | D13: أعداد الوثائق | E13: مخصص الأقساط غير المكتسبة | F13: المطالبات المدفوعة | G13: مخصص المطالبات تحت التسوية | H13: Line of Business
C14: Written Premium | D14: Number of Policies | E14: Unearned Premium Reserve | F14: Claims Paid | G14: Outstanding Claim Reserves
B15: تأمين الحريق | C15: 6690.617501 | D15: 1529 | E15: 3613.241926 | F15: -4455.601973 | G15: 1157.20413 | H15: Fire
B16: التأمين البحري والطيران | C16: 1489.130125 | D16: 669 | E16: 597.7699682 | F16: -4809.316478 | G16: 250.3872125 | H16: Marine & Aviation
B17: تأمين السيارات والمركبات الأخرى | C17: 107541.4418 | D17: 462772 | E17: 59041.24806 | F17: -17310.88133 | G17: 52891.32473 | H17: Motor & Transportation
B18: التأمين الهندسي والانشاءات والطاقة | C18: 1579.422493 | D18: 345 | E18: 1318.54148 | F18: -7409.724835 | G18: 1677.226471 | H18: Engineering, Construction & Energy
B19: أخرى | C19: 4776.073058 | D19: 2739 | E19: 2138.528595 | F19: -258.8214902 | G19: 1825.715172 | H19: Other
B20: اعادة التأمين غير النسبية - المسؤوليات والممتلكات | C20: 0 | D20: 0 | E20: 0 | F20: 0 | G20: 0 | H20: Reinsurance - Property & Liability
B21: المجموع - تأمين الممتلكات والمسؤوليات | C21: 122076.685 | D21: 468054 | E21: 66709.33003 | F21: -34244.34611 | G21: 57801.85772 | H21: Total - Property & Liability Insurance
B23: المجموع - تأمين صحي | C23: 105794.4615 | D23: 14254 | E23: 33582.93133 | F23: -270432.7865 | G23: 11656.45863 | H23: Total - Health Insurance
B25: تأمين حياة جماعي | C25: 1595.840803 | D25: 108 | E25: 666.654712 | F25: -1215.147573 | G25: 754.3237502 | H25: Group Life
B26: تأمين ائتمان حياة جماعي | C26: 45360.4596 | D26: 39 | E26: 0.8291 | F26: 1862.448217 | G26: 4238.981672 | H26: Group Credit Life
B27: تأمين حياة فردي | C27: 14202.20883 | D27: 933 | E27: 2.267023278 | F27: 15143.79102 | G27: 85242.10798 | H27: Individual Life
B28: دفعات الحياة وتكوين الأموال | C28: 0 | D28: 0 | E28: 0 | F28: 0 | G28: 0 | H28: Annuities & Fund Accumulation
B29: المجموع - تأمين الأشخاص وعمليات تكوين الأموال | C29: 61158.50924 | D29: 1080 | E29: 669.7508353 | F29: 15791.09167 | G29: 90235.4134 | H29: Total - Insurance of Persons & Fund Accumulation
B31: المجموع - كافة فروع التأمين | C31: =C21+C23+C29 -> 289029.6557 | D31: =D21+D23+D29 -> 483388 | E31: =E21+E23+E29 -> 100962.0122 | F31: =F21+F23+F29 -> -288886.0409 | G31: =G21+G23+G29 -> 159693.7297 | H31: TOTAL - All Types of Business Combined

Sheet 34A
B6: البيانات بالإجمالي لإمارة الفجيرة
B7: Gross Results for Fujairah
B8: (2022)
B11: جدول رقم 34A | H11: TABLE 34A
B12: بالألف درهم | H12: AED in 000's
B13: فروع التأمين | C13: الأقساط المكتتبة | D13: أعداد الوثائق | E13: مخصص الأقساط غير المكتسبة | F13: المطالبات المدفوعة | G13: مخصص المطالبات تحت التسوية | H13: Line of Business
C14: Written Premium | D14: Number of Policies | E14: Unearned Premium Reserve | F14: Claims Paid | G14: Outstanding Claim Reserves
B15: تأمين الحريق | C15: 39985.78529 | D15: 1158 | E15: 12415.6202 | F15: 66490.42971 | G15: 87257.30299 | H15: Fire
B16: التأمين البحري والطيران | C16: 10349.66777 | D16: 394 | E16: 2475.231864 | F16: 376.65564 | G16: 5883.351378 | H16: Marine & Aviation
B17: تأمين السيارات والمركبات الأخرى | C17: 68918.07815 | D17: 65057 | E17: 36015.39617 | F17: 70456.41912 | G17: 28813.13354 | H17: Motor & Transportation
B18: التأمين الهندسي والانشاءات والطاقة | C18: 42191.06504 | D18: 282 | E18: 32820.82997 | F18: 34657.58418 | G18: 26251.58895 | H18: Engineering, Construction & Energy
B19: أخرى | C19: 12972.26544 | D19: 1122 | E19: 4314.629882 | F19: 1869.4908 | G19: 5876.100196 | H19: Other
B20: اعادة التأمين غير النسبية - المسؤوليات والممتلكات | C20: 0 | D20: 0 | E20: 0 | F20: 0 | G20: 0 | H20: Reinsurance - Property & Liability
B21: المجموع - تأمين الممتلكات والمسؤوليات | C21: 174416.8617 | D21: 68013 | E21: 88041.70808 | F21: 173850.5794 | G21: 154081.477 | H21: Total - Property & Liability Insurance
B23: المجموع - تأمين صحي | C23: 38543.49565 | D23: 4231 | E23: 11300.66185 | F23: 32254.15104 | G23: 6322.079118 | H23: Total - Health Insurance
B25: تأمين حياة جماعي | C25: 3166.232117 | D25: 145 | E25: 531.982952 | F25: 5691.13302 | G25: 785.1099811 | H25: Group Life
B26: تأمين ائتمان حياة جماعي | C26: 0 | D26: 0 | E26: 0 | F26: 0 | G26: 0 | H26: Group Credit Life
B27: تأمين حياة فردي | C27: 5635.269055 | D27: 362 | E27: 0.4610292691 | F27: 3644.922364 | G27: 21202.53972 | H27: Individual Life
B28: دفعات الحياة وتكوين الأموال | C28: 0 | D28: 0 | E28: 0 | F28: 0 | G28: 0 | H28: Annuities & Fund Accumulation
B29: المجموع - تأمين الأشخاص وعمليات تكوين الأموال | C29: 8801.501172 | D29: 507 | E29: 532.4439813 | F29: 9336.055384 | G29: 21987.6497 | H29: Total - Insurance of Persons & Fund Accumulation
B31: المجموع - كافة فروع التأمين | C31: =C21+C23+C29 -> 221761.8585 | D31: =D21+D23+D29 -> 72751 | E31: =E21+E23+E29 -> 99874.81392 | F31: =F21+F23+F29 -> 215440.7859 | G31: =G21+G23+G29 -> 182391.2059 | H31: TOTAL - All Types of Business Combined

Sheet 34B
B6: البيانات بالصافي لإمارة الفجيرة
B7: Net Results for Fujairah
B8: (2022)
B11: جدول رقم 34B | H11: TABLE 34B
B12: بالألف درهم | H12: AED in 000's
B13: فروع التأمين | C13: الأقساط المكتتبة | D13: أعداد الوثائق | E13: مخصص الأقساط غير المكتسبة | F13: المطالبات المدفوعة | G13: مخصص المطالبات تحت التسوية | H13: Line of Business
C14: Written Premium | D14: Number of Policies | E14: Unearned Premium Reserve | F14: Claims Paid | G14: Outstanding Claim Reserves
B15: تأمين الحريق | C15: 38.18680293 | D15: 1158 | E15: 1173.383072 | F15: 12498.939 | G15: 5793.546404 | H15: Fire
B16: التأمين البحري والطيران | C16: 1558.199493 | D16: 394 | E16: 380.4559025 | F16: 3.42024 | G16: 770.476717 | H16: Marine & Aviation
B17: تأمين السيارات والمركبات الأخرى | C17: 60030.28239 | D17: 65057 | E17: 32889.2052 | F17: 51135.64726 | G17: 23169.69164 | H17: Motor & Transportation
B18: التأمين الهندسي والانشاءات والطاقة | C18: 1792.714326 | D18: 282 | E18: 1105.477226 | F18: 3468.207666 | G18: 1060.382566 | H18: Engineering, Construction & Energy
B19: أخرى | C19: 3457.612427 | D19: 1122 | E19: 1124.39378 | F19: 542.0678 | G19: 508.3557386 | H19: Other
B20: اعادة التأمين غير النسبية - المسؤوليات والممتلكات | C20: 0 | D20: 0 | E20: 0 | F20: 0 | G20: 0 | H20: Reinsurance - Property & Liability
B21: المجموع - تأمين الممتلكات والمسؤوليات | C21: 66876.99544 | D21: 68013 | E21: 36672.91518 | F21: 67648.28197 | G21: 31302.45306 | H21: Total - Property & Liability Insurance
B23: المجموع - تأمين صحي | C23: 27771.61911 | D23: 4231 | E23: 8302.707848 | F23: 24400.86269 | G23: 4493.398221 | H23: Total - Health Insurance
B25: تأمين حياة جماعي | C25: 1037.800097 | D25: 145 | E25: 303.1253548 | F25: 4456.894535 | G25: 142.5993979 | H25: Group Life
B26: تأمين ائتمان حياة جماعي | C26: 0 | D26: 0 | E26: 0 | F26: 0 | G26: 0 | H26: Group Credit Life
B27: تأمين حياة فردي | C27: 5594.840016 | D27: 362 | E27: 0.2223270131 | F27: 3637.074281 | G27: 21182.20466 | H27: Individual Life
B28: دفعات الحياة وتكوين الأموال | C28: 0 | D28: 0 | E28: 0 | F28: 0 | G28: 0 | H28: Annuities & Fund Accumulation
B29: المجموع - تأمين الأشخاص وعمليات تكوين الأموال | C29: 6632.640113 | D29: 507 | E29: 303.3476818 | F29: 8093.968815 | G29: 21324.80406 | H29: Total - Insurance of Persons & Fund Accumulation
B31: المجموع - كافة فروع التأمين | C31: =C21+C23+C29 -> 101281.2547 | D31: =D21+D23+D29 -> 72751 | E31: =E21+E23+E29 -> 45278.97071 | F31: =F21+F23+F29 -> 100143.1135 | G31: =G21+G23+G29 -> 57120.65534 | H31: TOTAL - All Types of Business Combined

Sheet Ins. Companies
A3: دليل شركات التأمين في دولة الإمارات العربية المتحدة
A4: Directory of insurance companies in the UAE
A7: رقم القيد | B7: الاسم | C7: الشكل القانوني | D7: جنسية الشركة | E7: تأمين تقليدي / تأمين تكافلي | F7: أنواع التأمين | G7: الموقع الالكتروني | H7: تاريخ القيد | I7: Insurance Type | J7: Traditional Insurance / Takaful Insurance | K7: Company Nationality | L7: Legal Type | M7: Name | N7: Registration Number
G8: Web Site | H8: Registration Date
A9: 1 | B9: شركة أبوظبي الوطنية للتامين | C9: شركة مساهمة عامة | D9: الإمارات العربية المتحدة | E9: تأمين تقليدي | F9: تأمين الممتلكات والمسؤوليات + تأمين الأشخاص وعمليات تكوين الأموال | G9: www.adnic.ae | H9: 1984-07-22 | I9: Property and Liability Insurance + Insurance of Persons and Fund Accumulation Operations | J9: Traditional Insurance | K9: United Arab Emirate | L9: Public Joint Stock | M9: Abu Dhabi National Insurance Company | N9: 1
A10: 2 | B10: شركة الامارات للتأمين (ش.م.ع) | C10: شركة مساهمة عامة | D10: الإمارات العربية المتحدة | E10: تأمين تقليدي | F10: تأمين الممتلكات والمسؤوليات + تأمين الأشخاص وعمليات تكوين الأموال | G10: www.eminsco.com | H10: 1985-08-26 | I10: Property and Liability Insurance + Insurance of Persons and Fund Accumulation Operations | J10: Traditional Insurance | K10: United Arab Emirate | L10: Public Joint Stock | M10: Emirates Insurance Company (PSC) | N10: 2
A11: 3 | B11: شركة العين الاهلية للتأمين | C11: شركة مساهمة عامة | D11: الإمارات العربية المتحدة | E11: تأمين تقليدي | F11: تأمين الممتلكات والمسؤوليات + تأمين الأشخاص وعمليات تكوين الأموال | G11: www.alaininsurance.com | H11: 1984-08-08 | I11: Property and Liability Insurance + Insurance of Persons and Fund Accumulation Operations | J11: Traditional Insurance | K11: United Arab Emirate | L11: Public Joint Stock | M11: Al Ain Ahlia Insurance Company | N11: 3
A12: 4 | B12: شركة دبي للتأمين شركة مساهمة عامة | C12: شركة مساهمة عامة | D12: الإمارات العربية المتحدة | E12: تأمين تقليدي | F12: تأمين الممتلكات والمسؤوليات + تأمين الأشخاص وعمليات تكوين الأموال | G12: www.dubins.ae | H12: 1984-11-13 | I12: Property and Liability Insurance + Insurance of Persons and Fund Accumulation Operations | J12: Traditional Insurance | K12: United Arab Emirate | L12: Public Joint Stock | M12: Dubai Insurance Company (PSC) | N12: 4
A13: 5 | B13: شركة الظفرة للتأمين | C13: شركة مساهمة عامة | D13: الإمارات العربية المتحدة | E13: تأمين تقليدي | F13: تأمين الممتلكات والمسؤوليات + تأمين الأشخاص وعمليات تكوين الأموال | G13: www.aldhafrainsurance.ae | H13: 1984-11-14 | I13: Property and Liability Insurance + Insurance of Persons and Fund Accumulation Operations | J13: Traditional Insurance | K13: United Arab Emirate | L13: Public Joint Stock | M13: Al dhafra Insurance Company | N13: 5
A14: 6 | B14: الشركة العربية الاسكندنافية للتأمين (ش.م.ع) - تكافل - اسكانا للتأمين | C14: شركة مساهمة عامة | D14: الإمارات العربية المتحدة | E14: تأمين تكافلي | F14: تأمين الممتلكات والمسؤوليات + تأمين الأشخاص وعمليات تكوين الأموال | G14: www.ascanatakaful.ae | H14: 1984-12-15 | I14: Property and Liability Insurance + Insurance of Persons and Fund Accumulation Operations | J14: Takaful Insurance | K14: United Arab Emirate | L14: Public Joint Stock | M14: Arabian Scandinavian Insurance | N14: 6
A15: 7 | B15: شركة رأس الخيمة الوطنية للتأمين | C15: شركة مساهمة عامة | D15: الإمارات العربية المتحدة | E15: تأمين تقليدي | F15: تأمين الممتلكات والمسؤوليات + تأمين الأشخاص وعمليات تكوين الأموال | G15: www.rakinsurance.com | H15: 1998-12-20 | I15: Property and Liability Insurance + Insurance of Persons and Fund Accumulation Operations | J15: Traditional Insurance | K15: United Arab Emirate | L15: Public Joint Stock | M15: Ras Al Khaimah National Insurance Company P.S.C | N15: 7
A16: 8 | B16: شركة التأمين فيدلتي المتحدة | C16: شركة مساهمة عامة | D16: الإمارات العربية المتحدة | E16: تأمين تقليدي | F16: تأمين الممتلكات والمسؤوليات + تأمين الأشخاص وعمليات تكوين الأموال | G16: www.fidelityunited.ae | H16: 1984-12-22 | I16: Property and Liability Insurance + Insurance of Persons and Fund Accumulation Operations | J16: Traditional Insurance | K16: United Arab Emirate | L16: Public Joint Stock | M16: United Fidelity Insurance Company | N16: 8
A17: 9 | B17: شركة عمان للتأمين (ش.م.ع) | C17: شركة مساهمة عامة | D17: الإمارات العربية المتحدة | E17: تأمين تقليدي | F17: تأمين الممتلكات والمسؤوليات + تأمين الأشخاص وعمليات تكوين الأموال | G17: www.omaninsurance.ae | H17: 1984-12-24 | I17: Property and Liability Insurance + Insurance of Persons and Fund Accumulation Operations | J17: Traditional Insurance | K17: United Arab Emirate | L17: Public Joint Stock | M17: (Oman Insurance Company (PSC | N17: 9
A18: 10 | B18: شركة الوثبة الوطنية للتأمين | C18: شركة مساهمة عامة | D18: الإمارات العربية المتحدة | E18: تأمين تقليدي | F18: تأمين الممتلكات والمسؤوليات | G18: www.awnic.com | H18: 1984-12-24 | I18: Property and Liability Insurance | J18: Traditional Insurance | K18: United Arab Emirate | L18: Public Joint Stock | M18: Al Wathba National Insurance Company | N18: 10
A19: 11 | B19: شركة الفجيرة الوطنية للتأمين - ش . م . ع | C19: شركة مساهمة عامة | D19: الإمارات العربية المتحدة | E19: تأمين تقليدي | F19: تأمين الممتلكات والمسؤوليات + تأمين الأشخاص وعمليات تكوين الأموال | G19: www.afnic.ae | H19: 1984-12-25 | I19: Property and Liability Insurance + Insurance of Persons and Fund Accumulation Operations | J19: Traditional Insurance | K19: United Arab Emirate | L19: Public Joint Stock | M19: Al Fujairah National Insurance Company PSC | N19: 11
A20: 12 | B20: شركة الشارقة للتأمين | C20: شركة مساهمة عامة | D20: الإمارات العربية المتحدة | E20: تأمين تقليدي | F20: تأمين الممتلكات والمسؤوليات + تأمين الأشخاص وعمليات تكوين الأموال | G20: www.sharjahinsurance.co.ae | H20: 1984-12-25 | I20: Property and Liability Insurance + Insurance of Persons and Fund Accumulation Operations | J20: Traditional Insurance | K20: United Arab Emirate | L20: Public Joint Stock | M20: Sharjah Insurance Company (P.S.C) | N20: 12
A21: 14 | B21: شركة أورينت للتأمين | C21: شركة مساهمة عامة | D21: الإمارات العربية المتحدة | E21: تأمين تقليدي | F21: تأمين الممتلكات والمسؤوليات + تأمين الأشخاص وعمليات تكوين الأموال | G21: www.insuranceuae.com | H21: 1984-12-29 | I21: Property and Liability Insurance + Insurance of Persons and Fund Accumulation Operations | J21: Traditional Insurance | K21: United Arab Emirate | L21: Public Joint Stock | M21: Orient Insurance Company | N21: 14
A22: 15 | B22: شركة البحيرة الوطنية للتأمين | C22: شركة مساهمة عامة | D22: الإمارات العربية المتحدة | E22: تأمين تقليدي | F22: تأمين الممتلكات والمسؤوليات + تأمين الأشخاص وعمليات تكوين الأموال | G22: www.albuhaira.com | H22: 1984-12-30 | I22: Property and Liability Insurance + Insurance of Persons and Fund Accumulation Operations | J22: Traditional Insurance | K22: United Arab Emirate | L22: Public Joint Stock | M22: Al Buharia National Insurance Company | N22: 15
A23: 16 | B23: شركة الصقر الوطنية للتأمين (شركة مساهمة عامة) | C23: شركة مساهمة عامة | D23: الإمارات العربية المتحدة | E23: تأمين تقليدي | F23: تأمين الممتلكات والمسؤوليات + تأمين الأشخاص وعمليات تكوين الأموال | G23: www.alsagrins.ae | H23: 1989-10-26 | I23: Property and Liability Insurance + Insurance of Persons and Fund Accumulation Operations | J23: Traditional Insurance | K23: United Arab Emirate | L23: Public Joint Stock | M23: Al Sagr National Insurance Company (PSC) | N23: 16
A24: 17 | B24: الشركة الإسلامية العربية للتأمين ( سلامة ) | C24: شركة مساهمة عامة | D24: الإمارات العربية المتحدة | E24: تأمين تكافلي | F24: تأمين الممتلكات والمسؤوليات + تأمين الأشخاص وعمليات تكوين الأموال | G24: www.salama.ae | H24: 1984-12-25 | I24: Property and Liability Insurance + Insurance of Persons and Fund Accumulation Operations | J24: Takaful Insurance | K24: United Arab Emirate | L24: Public Joint Stock | M24: Islamic Arab Insurance Company "SALAMA" | N24: 17
A25: 18 | B25: اللاينس للتأمين | C25: شركة مساهمة عامة | D25: الإمارات العربية المتحدة | E25: تأمين تقليدي | F25: تأمين الممتلكات والمسؤوليات + تأمين الأشخاص وعمليات تكوين الأموال | G25: www.alliance-uae.com | H25: 1984-12-31 | I25: Property and Liability Insurance + Insurance of Persons and Fund Accumulation Operations | J25: Traditional Insurance | K25: United Arab Emirate | L25: Public Joint Stock | M25: Alliance Insurance Company | N25: 18
A26: 20 | B26: شركة التأمين العربية ش م ل | C26: فرع شركة أجنبية | D26: لبنان | E26: تأمين تقليدي | F26: تأمين الممتلكات والمسؤوليات + تأمين الأشخاص وعمليات تكوين الأموال | G26: www.arabiainsurance.com | H26: 1984-11-01 | I26: Property and Liability Insurance + Insurance of Persons and Fund Accumulation Operations | J26: Traditional Insurance | K26: Lebanon | L26: Foreign Company Branch | M26: Arabia Insurance Company sal | N26: 20
A27: 21 | B27: شركة التأمين الأردنية المساهمة المحدودة | C27: فرع شركة أجنبية | D27: الأردن | E27: تأمين تقليدي | F27: تأمين الممتلكات والمسؤوليات | G27: www.jicjo.com | H27: 1984-12-01 | I27: Property and Liability Insurance | J27: Traditional Insurance | K27: Jordan | L27: Foreign Company Branch | M27: Jordan Insurance Company Ltd | N27: 21
A28: 22 | B28: شركة التأمين العربية السعودية ش . م . ب(م) | C28: فرع شركة خليجية | D28: البحرين | E28: تأمين تقليدي | F28: تأمين الممتلكات والمسؤوليات | G28: www.damana.com | H28: 1984-12-13 | I28: Property and Liability Insurance | J28: Traditional Insurance | K28: Bahrain | L28: GCC Company Branch | M28: Saudi Arabian Insurance Company B.S.C (C) | N28: 22
A29: 30 | B29: شركة سهامي بيمة ايران | C29: فرع شركة أجنبية | D29: ايران | E29: تأمين تقليدي | F29: تأمين الممتلكات والمسؤوليات | G29: www.bimehir.ae | H29: 1984-12-19 | I29: Property and Liability Insurance | J29: Traditional Insurance | K29: Iran, Islamic Republic of | L29: Foreign Company Branch | M29: Iran Insurance Company | N29: 30
A30: 32 | B30: ميتسوى سوميتومو انشورانس كومبانى ليمتد | C30: فرع شركة أجنبية | D30: اليابان | E30: تأمين تقليدي | F30: تأمين الممتلكات والمسؤوليات | G30: www.ms-ins.com | H30: 1984-12-22 | I30: Property and Liability Insurance | J30: Traditional Insurance | K30: Japan | L30: Foreign Company Branch | M30: Mitsui Sumitomo Insurance Company Ltd | N30: 32
A31: 34 | B31: اميركان لايف انشورنس كومباني | C31: فرع شركة أجنبية | D31: الولايات المتحدة الامريكية | E31: تأمين تقليدي | F31: تأمين الممتلكات والمسؤوليات + تأمين الأشخاص وعمليات تكوين الأموال | G31: www.metlife.com | H31: 1984-12-23 | I31: Property and Liability Insurance + Insurance of Persons and Fund Accumulation Operations | J31: Traditional Insurance | K31: United States of America | L31: Foreign Company Branch | M31: American Life Insurance Company | N31: 34
A32: 37 | B32: ذي أورينتال أنشورانس كومباني ليمتد | C32: فرع شركة أجنبية | D32: الهند | E32: تأمين تقليدي | F32: تأمين الممتلكات والمسؤوليات | G32: www.orientalinsurance.org.in | H32: 1984-12-29 | I32: Property and Liability Insurance | J32: Traditional Insurance | K32: India | L32: Foreign Company Branch | M32: The Oriental Insurance Company Limited | N32: 37
A33: 38 | B33: شركة قطر للتأمين | C33: فرع شركة أجنبية | D33: قطر | E33: تأمين تقليدي | F33: تأمين الممتلكات والمسؤوليات | G33: www.qatarinsurance.com | H33: 1984-12-29 | I33: Property and Liability Insurance | J33: Traditional Insurance | K33: Qatar | L33: Foreign Company Branch | M33: Qatar Insurance Company | N33: 38
A34: 42 | B34: الإتحاد الوطني - شركة الضمان العامة للشرق الأدنى | C34: فرع شركة أجنبية | D34: لبنان | E34: تأمين تقليدي | F34: تأمين الممتلكات والمسؤوليات + تأمين الأشخاص وعمليات تكوين الأموال | G34: www.unic.ae | H34: 1984-12-29 | I34: Property and Liability Insurance + Insurance of Persons and Fund Accumulation Operations | J34: Traditional Insurance | K34: Lebanon | L34: Foreign Company Branch | M34: Al Ittihad Al Watani - General Insurance Company for the Near East | N34: 42
A35: 43 | B35: الشركة القطرية العامة للتأمين و إعادة التأمين ش.م.ق | C35: فرع شركة أجنبية | D35: قطر | E35: تأمين تقليدي | F35: تأمين الممتلكات والمسؤوليات + تأمين الأشخاص وعمليات تكوين الأموال | G35: www.qgirco.com | H35: 1984-12-29 | I35: Property and Liability Insurance + Insurance of Persons and Fund Accumulation Operations | J35: Traditional Insurance | K35: Qatar | L35: Foreign Company Branch | M35: Qatar General Insurance & Reinsurance Company S.A.Q | N35: 43
A36: 44 | B36: أدمجي أنشورنس كومباني ليمتد | C36: فرع شركة أجنبية | D36: باكستان | E36: تأمين تقليدي | F36: تأمين الممتلكات والمسؤوليات | G36: www.adamjeeinsurance.com | H36: 1984-12-29 | I36: Property and Liability Insurance | J36: Traditional Insurance | K36: Pakistan | L36: Foreign Company Branch | M36: Adamjee Insurance Company Limited | N36: 44
A37: 45 | B37: طوكيو مارين اند نيتشيدو فايرانشورانس كومباني ليمتد | C37: فرع شركة أجنبية | D37: اليابان | E37: تأمين تقليدي | F37: تأمين الممتلكات والمسؤوليات | G37: www.tmnf.ae | H37: 1984-12-29 | I37: Property and Liability Insurance | J37: Traditional Insurance | K37: Japan | L37: Foreign Company Branch | M37: Tokio Marine & Nichido Fire Insurance Company Ltd | N37: 45
A38: 48 | B38: سيغنا الشرق الأوسط للتأمين ش.م.ل | C38: فرع شركة أجنبية | D38: لبنان | E38: تأمين تقليدي | F38: تأمين الممتلكات والمسؤوليات | G38: www.cigna.com | H38: 1984-12-30 | I38: Property and Liability Insurance | J38: Traditional Insurance | K38: Lebanon | L38: Foreign Company Branch | M38: Cigna Insurance Middle East S.A.L | N38: 48
A39: 49 | B39: ذي نيو انديا اشورانس كومباني ليمتد | C39: فرع شركة أجنبية | D39: الهند | E39: تأمين تقليدي | F39: تأمين الممتلكات والمسؤوليات | G39: www.nia-dubai.com | H39: 1984-12-30 | I39: Property and Liability Insurance | J39: Traditional Insurance | K39: India | L39: Foreign Company Branch | M39: The New India Assurance Company Limited | N39: 49
A40: 54 | B40: ستيت لايف أنشورانس كوربوريشن أوف باكستان | C40: فرع شركة أجنبية | D40: باكستان | E40: تأمين تقليدي | F40: تأمين الأشخاص وعمليات تكوين الأموال | G40: www.statelifegulf.ae | H40: 1984-12-30 | I40: Insurance of Persons and Fund Accumulation Operations | J40: Traditional Insurance | K40: Pakistan | L40: Foreign Company Branch | M40: State Life Insurance Corporation Of Pakistan | N40: 54
A41: 59 | B41: أسيكورازيوني جنرالي أس .بي .ايه | C41: فرع شركة أجنبية | D41: إيطاليا | E41: تأمين تقليدي | F41: تأمين الممتلكات والمسؤوليات + تأمين الأشخاص وعمليات تكوين الأموال | G41: www.generali-uae.com | H41: 1984-12-31 | I41: Property and Liability Insurance + Insurance of Persons and Fund Accumulation Operations | J41: Traditional Insurance | K41: Italy | L41: Foreign Company Branch | M41: Assicurazioni Generali S.P.A | N41: 59
A42: 61 | B42: الشركة الوطنية للتأمينات العامة | C42: شركة مساهمة عامة | D42: الإمارات العربية المتحدة | E42: تأمين تقليدي | F42: تأمين الممتلكات والمسؤوليات + تأمين الأشخاص وعمليات تكوين الأموال | G42: www.ngiuae.com | H42: 1984-12-31 | I42: Property and Liability Insurance + Insurance of Persons and Fund Accumulation Operations | J42: Traditional Insurance | K42: United Arab Emirate | L42: Public Joint Stock | M42: National General Insurance Company | N42: 61
A43: 62 | B43: زيوريخ لايف أنشورانس كومباني ليمتد | C43: فرع شركة أجنبية | D43: سويسرا | E43: تأمين تقليدي | F43: تأمين الأشخاص وعمليات تكوين الأموال | G43: www.zurich.com | H43: 1988-04-04 | I43: Insurance of Persons and Fund Accumulation Operations | J43: Traditional Insurance | K43: Switzerland | L43: Foreign Company Branch | M43: Zurich Life Insurance Company Limited | N43: 62
A44: 63 | B44: زيوريخ إنترناشيونال لايف ليمتد | C44: فرع شركة أجنبية | D44: المملكة المتحدة | E44: تأمين تقليدي | F44: تأمين الأشخاص وعمليات تكوين الأموال | G44: www.zurich.com | H44: 1991-06-07 | I44: Insurance of Persons and Fund Accumulation Operations | J44: Traditional Insurance | K44: United Kingdom | L44: Foreign Company Branch | M44: Zurich International Life Limited | N44: 63
A45: 64 | B45: دبي الوطنية للتأمين واعادة التأمين ش.م.ع | C45: شركة مساهمة عامة | D45: الإمارات العربية المتحدة | E45: تأمين تقليدي | F45: تأمين الممتلكات والمسؤوليات | G45: www.dnirc.com | H45: 1992-01-06 | I45: Property and Liability Insurance | J45: Traditional Insurance | K45: United Arab Emirate | L45: Public Joint Stock | M45: Dubai National Insurance & Reinsurance Company P.S.C | N45: 64
A46: 65 | B46: رويال أند صن آللاينس للتأمين ( الشرق الاوسط ) ش . م . ب(مقفلة) | C46: فرع شركة أجنبية | D46: البحرين | E46: تأمين تقليدي | F46: تأمين الممتلكات والمسؤوليات | G46: www.rsadirect.ae | H46: 1992-10-21 | I46: Property and Liability Insurance | J46: Traditional Insurance | K46: bahrain | L46: Foreign Company Branch | M46: Royal & Sun Alliance Insurance Company (Middle East) BSCC | N46: 65
A47: 66 | B47: شركة الخزنة للتأمين | C47: شركة مساهمة عامة | D47: الإمارات العربية المتحدة | E47: تأمين تقليدي | F47: تأمين الممتلكات والمسؤوليات + تأمين الأشخاص وعمليات تكوين الأموال | G47: www.akic.ae | H47: 1997-01-27 | I47: Property and Liability Insurance + Insurance of Persons and Fund Accumulation Operations | J47: Traditional Insurance | K47: United Arab Emirate | L47: Public Joint Stock | M47: Al Khazna Insurance Company P.S.C | N47: 66
A48: 67 | B48: شركة الاتحاد للتأمين | C48: شركة مساهمة عامة | D48: الإمارات العربية المتحدة | E48: تأمين تقليدي | F48: تأمين الممتلكات والمسؤوليات + تأمين الأشخاص وعمليات تكوين الأموال | G48: www.unioninsurance.ae | H48: 1998-04-26 | I48: Property and Liability Insurance + Insurance of Persons and Fund Accumulation Operations | J48: Traditional Insurance | K48: United Arab Emirate | L48: Public Joint Stock | M48: Union Insurance | N48: 67
A49: 69 | B49: مجموعة الخليج للتأمين (الخليج) ش.م.ب مقفله | C49: فرع شركة خليجية | D49: البحرين | E49: تأمين تقليدي | F49: تأمين الممتلكات والمسؤوليات + تأمين الأشخاص وعمليات تكوين الأموال | G49: www.GIG-Gulf.com | H49: 2002-01-22 | I49: Property and Liability Insurance + Insurance of Persons and Fund Accumulation Operations | J49: Traditional Insurance | K49: bahrain | L49: GCC Company Branch | M49: Gulf Insurance Group (Gulf) B.S.C Closed | N49: 69
A50: 70 | B50: شركة دبى الإسلامية للتأمين وإعادة التأمين ( أمان ) | C50: شركة مساهمة عامة | D50: الإمارات العربية المتحدة | E50: تأمين تكافلي | F50: تأمين الممتلكات والمسؤوليات + تأمين الأشخاص وعمليات تكوين الأموال | G50: www.aman.ae | H50: 2003-09-16 | I50: Property and Liability Insurance + Insurance of Persons and Fund Accumulation Operations | J50: Takaful Insurance | K50: United Arab Emirate | L50: Public Joint Stock | M50: Dubai Islamic Insurance & Reinsurance Co. (Aman) P.S.C | N50: 70
A51: 71 | B51: شركة أبوظبي الوطنية للتكافل - ش م ع - تكافل | C51: شركة مساهمة عامة | D51: الإمارات العربية المتحدة | E51: تأمين تكافلي | F51: تأمين الممتلكات والمسؤوليات + تأمين الأشخاص وعمليات تكوين الأموال | G51: www.takaful.ae | H51: 2003-11-23 | I51: Property and Liability Insurance + Insurance of Persons and Fund Accumulation Operations | J51: Takaful Insurance | K51: United Arab Emirate | L51: Public Joint Stock | M51: Abu Dhabi National Takaful Company - P S C - Takaful. | N51: 71
A52: 72 | B52: شركة التأمين على الحياة (العالمية)ش.م.ب (مقفلة) | C52: فرع شركة خليجية | D52: الإمارات العربية المتحدة | E52: تأمين تقليدي | F52: تأمين الممتلكات والمسؤوليات + تأمين الأشخاص وعمليات تكوين الأموال | G52: www.licinternational.com | H52: 2005-10-25 | I52: Property and Liability Insurance + Insurance of Persons and Fund Accumulation Operations | J52: Traditional Insurance | K52: United Arab Emirate | L52: GCC Company Branch | M52: Life Insurance Corporation Company (International) B.S.C(C) | N52: 72
A53: 73 | B53: الشركة الوطنية للضمان الصحي (ضمان | C53: شركة مساهمة عامة | D53: الإمارات العربية المتحدة | E53: تأمين تقليدي | F53: تأمين صحي | G53: www.damanhealth.ae | H53: 2006-12-06 | I53: Health Insurance | J53: Traditional Insurance | K53: United Arab Emirate | L53: Public Joint Stock | M53: The National Health Insurance Company (Daman) PJS | N53: 73
A54: 74 | B54: جنرال انشورانس كوربوريشن اوف انديا | C54: فرع شركة أجنبية | D54: الهند | E54: تأمين تقليدي | F54: تأمين الممتلكات والمسؤوليات | G54: www.gicdubai.com | H54: 2006-07-03 | I54: Property and Liability Insurance | J54: Traditional Insurance | K54: India | L54: Foreign Company Branch | M54: General Insurance Corporation Of India | N54: 74
A55: 76 | B55: فريندز بروفيدنت انترناشيونال ليمتد | C55: فرع شركة أجنبية | D55: المملكة المتحدة | E55: تأمين تقليدي | F55: تأمين الأشخاص وعمليات تكوين الأموال | G55: www.fpinternational.com | H55: 2007-04-18 | I55: Insurance of Persons and Fund Accumulation Operations | J55: Traditional Insurance | K55: United Kingdom | L55: Foreign Company Branch | M55: Friends Provident International Limited | N55: 76
A56: 77 | B56: الشركة الوطنية للتأمين على الحياة والعام ش م ع ع | C56: فرع شركة أجنبية | D56: عُمان | E56: تأمين تقليدي | F56: تأمين الأشخاص وعمليات تكوين الأموال | G56: www.nlicgulf.com | H56: 2007-05-13 | I56: Insurance of Persons and Fund Accumulation Operations | J56: Traditional Insurance | K56: Oman | L56: Foreign Company Branch | M56: National Life and General Insurance Company SAOG | N56: 77
A57: 78 | B57: شركة نور للتكافل العائلي | C57: شركة مساهمة عامة | D57: الإمارات العربية المتحدة | E57: تأمين تكافلي | F57: تأمين الأشخاص وعمليات تكوين الأموال | G57: www.noortakaful.com | H57: 2008-05-15 | I57: Insurance of Persons and Fund Accumulation Operations | J57: Takaful Insurance | K57: United Arab Emirate | L57: Public Joint Stock | M57: Noor Takaful Family PJSC | N57: 78
A58: 79 | B58: أميريكان هوم أشورانس كومباني (فرع دبي | C58: فرع شركة أجنبية | D58: الولايات المتحدة الامريكية | E58: تأمين تقليدي | F58: تأمين الممتلكات والمسؤوليات | G58: www.aig.com | H58: 2008-07-14 | I58: Property and Liability Insurance | J58: Traditional Insurance | K58: United States of America | L58: Foreign Company Branch | M58: American Home Insurance Company (Dubai Br.) | N58: 79
A59: 80 | B59: شركة دار التكافل ش.م.ع | C59: شركة مساهمة عامة | D59: الإمارات العربية المتحدة | E59: تأمين تكافلي | F59: تأمين الممتلكات والمسؤوليات | G59: www.noortakaful.com | H59: 2008-08-26 | I59: Property and Liability Insurance | J59: Traditional Insurance | K59: United Arab Emirate | L59: Public Joint Stock | M59: Dar Al Takaful PJSC | N59: 80
A60: 81 | B60: تشب تيمبست لايف ري انشورانس ليمتد | C60: فرع شركة أجنبية | D60: المملكة المتحدة | E60: تأمين تقليدي | F60: تأمين الأشخاص وعمليات تكوين الأموال | G60: www.chubb.com | H60: 2008-08-24 | I60: Insurance of Persons and Fund Accumulation Operations | J60: Traditional Insurance | K60: United Kingdom | L60: Foreign Company Branch | M60: CHUBB Tempest Life ReInsurance Ltd | N60: 81
A61: 82 | B61: شركة ميثاق للتأمين التكافلي | C61: شركة مساهمة عامة | D61: الإمارات العربية المتحدة | E61: تأمين تكافلي | F61: تأمين الممتلكات والمسؤوليات | G61: www.methaq.ae | H61: 2008-09-10 | I61: Property and Liability Insurance | J61: Takaful Insurance | K61: United Arab Emirate | L61: Public Joint Stock | M61: Methaq Takaful Insurance | N61: 82
A62: 83 | B62: شركة حياه للتأمين | C62: شركة مساهمة عامة | D62: الإمارات العربية المتحدة | E62: تأمين تقليدي | F62: تأمين الأشخاص وعمليات تكوين الأموال | G62: www.green-crescent.com | H62: 2008-09-16 | I62: Insurance of Persons and Fund Accumulation Operations | J62: Traditional Insurance | K62: United Arab Emirate | L62: Public Joint Stock | M62: HAYAH Insurance Company | N62: 83
A63: 84 | B63: ياس تكافل | C63: شركة مساهمة عامة | D63: الإمارات العربية المتحدة | E63: تأمين تكافلي | F63: تأمين الممتلكات والمسؤوليات + تأمين الأشخاص وعمليات تكوين الأموال | G63: www.yastakaful.ae | H63: 2009-01-05 | I63: Property and Liability Insurance + Insurance of Persons and Fund Accumulation Operations | J63: Takaful Insurance | K63: United Arab Emirate | L63: Public Joint Stock | M63: YAS TAKAFUL | N63: 84
A64: 85 | B64: شركة نور للتكافل العام | C64: شركة مساهمة عامة | D64: الإمارات العربية المتحدة | E64: تأمين تكافلي | F64: تأمين الممتلكات والمسؤوليات + تأمين الأشخاص وعمليات تكوين الأموال | G64: compliance@watania.ae | H64: 2009-01-06 | I64: Property and Liability Insurance + Insurance of Persons and Fund Accumulation Operations | J64: Takaful Insurance | K64: United Arab Emirate | L64: Public Joint Stock | M64: Watania Takaful General PJSC | N64: 85
A65: 86 | B65: تكافل الامارات - تأمين (ش.م.ع) | C65: شركة مساهمة عامة | D65: الإمارات العربية المتحدة | E65: تأمين تكافلي | F65: تأمين الأشخاص وعمليات تكوين الأموال | G65: www.noortakaful.com | H65: 2008-10-14 | I65: Insurance of Persons and Fund Accumulation Operations | J65: Takaful Insurance | K65: United Arab Emirate | L65: Public Joint Stock | M65: Takaful Emarat - Insurance PSC | N65: 86
A66: 87 | B66: شركة الإمارات لتأمين ائتمان الصادرات | C66: شركة مساهمة عامة | D66: الإمارات العربية المتحدة | E66: تأمين تقليدي | F66: تأمين الممتلكات والمسؤوليات | G66: www.ecie.ae | H66: 2009-06-01 | I66: Property and Liability Insurance | J66: Traditional Insurance | K66: United Arab Emirate | L66: Public Joint Stock | M66: Export Credit Insurance Company of The Emirates | N66: 87
A67: 89 | B67: دار التأمين ش.م.ع | C67: شركة مساهمة عامة | D67: الإمارات العربية المتحدة | E67: تأمين تكافلي | F67: تأمين الممتلكات والمسؤوليات | G67: www.insurancehouse.ae | H67: 2011-05-02 | I67: Property and Liability Insurance | J67: Takaful Insurance | K67: United Arab Emirate | L67: Public Joint Stock | M67: Insurance House | N67: 89
A68: 90 | B68: شركة الوطنية للتكافل ش.م.ع (وطنية) | C68: شركة مساهمة عامة | D68: الإمارات العربية المتحدة | E68: تأمين تكافلي | F68: تأمين الممتلكات والمسؤوليات | G68: www.watania.ae | H68: 2011-07-12 | I68: Property and Liability Insurance | J68: Takaful Insurance | K68: United Arab Emirate | L68: Public Joint Stock | M68: Al Watania Takaful | N68: 90
A69: 91 | B69: شركة المتوسط والخليج للتأمين وإعادة التأمين "ميد غلف" ش م ب مقفلة | C69: فرع شركة أجنبية | D69: البحرين | E69: تأمين تقليدي | F69: تأمين صحي | G69: www.medgulf.ae | H69: 2015-11-30 | I69: health insurance | J69: Traditional Insurance | K69: Bahrain | L69: Foreign Company Branch | M69: The Mediterranean & Gulf Insurance & Reinsurance Company BSC (c) - Medgulf | N69: 91
A70: 92 | B70: شركة اورينت تكافل مساهمة عامة | C70: شركة مساهمة عامة | D70: الإمارات العربية المتحدة | E70: تأمين تكافلي | F70: تأمين الممتلكات والمسؤوليات | G70: www.orientunbtakaful.ae | H70: 2017-07-16 | I70: Property and Liability Insurance | J70: Takaful Insurance | K70: United Arab Emirate | L70: Public Joint Stock | M70: Orient Takaful(PJSC) | N70: 92

Sheet Glossary
A3: قائمة مصطلحات التأمين المُستخدمة في التقرير
A4: Glossary of Insurance Terms Used in The Report
A8: المُصطلح | B8: التعريف | C8: Definition | D8: Term
A9: الشركة (المؤمن): | B9: شركة التأمين المؤسسة في دولة الإمارات العربية المتحدة، وشركة التأمين الأجنبية المُرخص لها بمباشرة النشاط في الدولة، إما عن طريق فرع أو عن طريق وكيل التأمين. | C9: The insurance company incorporated in the UAE and the foreign insurance company licensed to carry out insurance activities in the UAE either through a branch or through an insurance agent. | D9: Company (Insurer)
A10: قسط التأمين | B10: مبلغ من المال تتقاضاه الشركة من المؤمن له لتوفير التغطية التأمينية المُحددة في وثيقة التأمين. | C10: An amount of many that the company receives from the insured to provide | D10: Insurance Premium
A11: مبلغ التأمين | B11: هو مسؤولية المؤمِن القصوى وهو القيمة المذكورة في الوثيقة التي على أساسها يحدد قسط التأمين. | C11: The Insurer’s maximum liability, which is the value indicated in the Insurance Policy, based on which the premium is determined. | D11: Sum Insured
A12: المؤمن له | B12: الشخص الذى أبرم مع الشركة عقد التأمين. | C12: The person who concluded an insurance contract with the company. | D12: Insured
A13: المُستفيد | B13: الشخص الذي اكتسب حقوق عقد التأمين ابتداءً أو حُولت إليه هذه الحقوق بصورة قانونية. | C13: The person who acquired the rights of the insurance contract at the start or to whom these rights are legally transferred. | D13: Beneficiary
A14: إعادة التأمين: | B14: عملية تحويل أعباء المخاطر المؤمن عليها من المؤمِن إلى معيد التأمين وتعويض المؤمِن من قبل معيد التأمين عما يتم دفعه للمؤمَن لهم إذا تعرضوا للضرر أو الخسارة. | C14: The mechanism of shifting risks of the insured risks from the Insurer to the Re-Insurer and indemnification of the Insurer by the Re-Insurer for what is paid to the Insured Person(s) in the event of a loss. | D14: Re-insurance:
A15: مُعيد التأمين (شركة إعادة التأمين) | B15: أية شركة إعادة تأمين مُؤسسة في دولة الإمارات العربية المتحدة أو شركة إعادة تأمين أجنبية مُرخص لها بممارسة أعمال إعادة التأمين في الدولة أو شركة إعادة تأمين في الخارج. | C15: Any reinsurance company incorporated in the UAE or foreign reinsurance company licensed to carry out reinsurance operations inside the UAE or a foreign reinsurance company outside the UAE. | D15: Re-insurer
A16: وسيط التأمين | B16: الشخص الذي يتوسط في عمليات التأمين أو إعادة التأمين بشكل مستقل فيما بين طالب التأمين أو طالب إعادة التأمين من جهة وبين أية شركة تأمين أو إعادة تأمين من جهة أخري، ويتقاضى مقابل أتعابه عمولة من شركة التأمين أو شركة إعادة التأمين التي يتم التأمين أو إعادة التأمين لديها. | C16: The person who independently intermediates in insurance and reinsurance operations between the applicant of the insurance or the reinsurance on one side and any insurance or reinsurance company on the other side and receive for his efforts commission from the insurance company or the reinsurance company with which the insurance or reinsurance has been accomplished. | D16: Insurance Broker
A17: خبير الكشف وتقدير الأضرار | B17: الشخص الذي يقوم بالكشف عن الأضرار الحادثة في موضوع التأمين وتقديرها. | C17: The person who examines damages occurs to the subject matter of the insurance and assesses them. | D17: Loss and Damage Adjuster
A18: استشاري التأمين | B18: الشخص الذي يقوم بدراسة متطلبات التأمين لعملائه وتقديم المشورة بشأن الغطاء التأمينى المُلائم والمساعدة في إعداد مُتطلبات التأمين، ويتقاضى مقابل أتعابه من عُملائه. | C18: The person who studies the insurance requirements for his clients, give advice in respect of the suitable insurance coverage, assists in preparing the insurance requirements and receives for his efforts remuneration from his clients. | D18: Insurance Consultant
A19: الإكتواري | B19: الشخص الذي يقوم بتقدير قيمة عقود التأمين والوثائق والحسابات المُتعلقة بها. | C19: The person who estimates values of the insurance contracts, documents and the related accounts. | D19: Actuary
A20: وكيل التأمين | B20: الشخص المُعتمد من قبل الشركة أو المفوض لممارسة أعمال التأمين نيابةً عنها أو عن أحد فروعها. | C20: The person approved and authorized by the Company to carry out insurance operation on its behalf or in behalf of any branch thereof. | D20: Insurance Agent
A21: السجل | B21: سجل شركات التأمين أو وكلاء التأمين. | C21: The register of the insurance companies or the insurance agents. | D21: Register
A22: استمارة طلب التأمين | B22: تشكل أساس العقد، وهي وسيلة للحصول على معلومات حول الخطر، وهي عرض من المؤمَن له وتقوم على أساس مبدأ منتهى حسن النية. | C22: The basis of the contract, and is a means to get information about the risk, a proposal by the Insured, which based on the Principle of Utmost Good Faith. | D22: Insurance Application Form:
A23: وثيقة التأمين (عقد التأمين) | B23: وثيقة (بوليصة) التأمين المُبرمة بين المؤمن والمؤمن له المُتضمنة شروط العقد بين الطرفين والتزاماتهما وحقوقهما أو حقوق المُستفيد من التأمين وأي ملحق بهذه الوثيقة. | C23: The insurance document (policy) concluded by the insurer and insured containing the terms and conditions of the contract between the two parties, their liabilities, and rights or the rights of beneficiary of the insurance and endorsements therein. | D23: Insurance policy (Insurance Contract)
A24: فروع التأمين | D24: Types of Insurance
A25: - تأمين الممتلكات والمسؤوليات | D25: - Property and liability Insurance
A26: ‌أ. التأمين من الحريق | B26: تأمين الحريق المباع للأشخاص وللشركات والتأمينات المرتبطة ويشمل (التأمين ضد اخطار الحريق والتأمينات المرتبطة به، تأمين السطو والسرقة، تأمين كسر الزجاج). | C26: Personal Fire, Commercial Fire & Allied Lines includes (Fire insurance and the allied perils, Robbery and theft, Glass insurance) | D26: a. Fire insurance
